Workbook

Sheet Historical scenario - input
B1: Unit cost - historical | C1: Calibration period: 2014-15 to 2016-17
B2: Replacement lives - calibrated
D3: Unit cost | E3: Replacement life | G3: Method | H3: Volume | CV3: Replacement Cost (NOT depreciated)
H4: Installation date | CV4: Installation date
A5: ID | B5: Asset group | C5: Asset category | D5: $ ('000) | E5: μ | F5: σ | G5: # | H5: 2017 | I5: 2016 | J5: 2015 | K5: 2014 | L5: 2013 | M5: 2012 | N5: 2011 | O5: 2010 | P5: 2009 | Q5: 2008 | R5: 2007 | S5: 2006 | T5: 2005 | U5: 2004 | V5: 2003 | W5: 2002 | X5: 2001 | Y5: 2000 | Z5: 1999 | AA5: 1998 | AB5: 1997 | AC5: 1996 | AD5: 1995 | AE5: 1994 | AF5: 1993 | AG5: 1992 | AH5: 1991 | AI5: 1990 | AJ5: 1989 | AK5: 1988 | AL5: 1987 | AM5: 1986 | AN5: 1985 | AO5: 1984 | AP5: 1983 | AQ5: 1982 | AR5: 1981 | AS5: 1980 | AT5: 1979 | AU5: 1978 | AV5: 1977 | AW5: 1976 | AX5: 1975 | AY5: 1974 | AZ5: 1973 | BA5: 1972 | BB5: 1971 | BC5: 1970 | BD5: 1969 | BE5: 1968 | BF5: 1967 | BG5: 1966 | BH5: 1965 | BI5: 1964 | BJ5: 1963 | BK5: 1962 | BL5: 1961 | BM5: 1960 | BN5: 1959 | BO5: 1958 | BP5: 1957 | BQ5: 1956 | BR5: 1955 | BS5: 1954 | BT5: 1953 | BU5: 1952 | BV5: 1951 | BW5: 1950 | BX5: 1949 | BY5: 1948 | BZ5: 1947 | CA5: 1946 | CB5: 1945 | CC5: 1944 | CD5: 1943 | CE5: 1942 | CF5: 1941 | CG5: 1940 | CH5: 1939 | CI5: 1938 | CJ5: 1937 | CK5: 1936 | CL5: 1935 | CM5: 1934 | CN5: 1933 | CO5: 1932 | CP5: 1931 | CQ5: 1930 | CR5: 1929 | CS5: 1928 | CT5: 1927 | CV5: =H5 -> 2017 | CW5: =I5 -> 2016 | CX5: 2015 | CY5: 2014 | CZ5: 2013 | DA5: 2012 | DB5: 2011 | DC5: 2010 | DD5: 2009 | DE5: 2008 | DF5: 2007 | DG5: 2006 | DH5: 2005 | DI5: 2004 | DJ5: 2003 | DK5: 2002 | DL5: 2001 | DM5: 2000 | DN5: 1999 | DO5: 1998 | DP5: 1997 | DQ5: 1996 | DR5: 1995 | DS5: 1994 | DT5: 1993 | DU5: 1992 | DV5: 1991 | DW5: 1990 | DX5: 1989 | DY5: 1988 | DZ5: 1987 | EA5: 1986 | EB5: 1985 | EC5: 1984 | ED5: 1983 | EE5: 1982 | EF5: 1981 | EG5: 1980 | EH5: 1979 | EI5: 1978 | EJ5: 1977 | EK5: 1976 | EL5: 1975 | EM5: 1974 | EN5: 1973 | EO5: 1972 | EP5: 1971 | EQ5: 1970 | ER5: 1969 | ES5: 1968 | ET5: 1967 | EU5: 1966 | EV5: 1965 | EW5: 1964 | EX5: 1963 | EY5: 1962 | EZ5: 1961 | FA5: 1960 | FB5: 1959 | FC5: 1958 | FD5: 1957 | FE5: 1956 | FF5: 1955 | FG5: 1954 | FH5: 1953 | FI5: =BU5 -> 1952 | FJ5: 1951 | FK5: 1950 | FL5: 1949 | FM5: 1948 | FN5: 1947 | FO5: 1946 | FP5: 1945 | FQ5: 1944 | FR5: 1943 | FS5: 1942 | FT5: 1941 | FU5: 1940 | FV5: 1939 | FW5: 1938 | FX5: 1937 | FY5: 1936 | FZ5: 1935 | GA5: 1934 | GB5: 1933 | GC5: 1932 | GD5: 1931 | GE5: 1930 | GF5: 1929 | GG5: 1928 | GH5: 1927
A6: 1 | B6: OVERHEAD CONDUCTORS | C6: ˂ = 1 kv | D6: 49.89771894 | E6: 91.84007261 | F6: 9.583322629 | G6: =IFERROR(IF($B6="","",2),"") -> 2 | H6: 80.2824016 | I6: 85.49119405 | J6: 124.9864441 | K6: 132.3866181 | L6: 226.7469741 | M6: 412.2726352 | N6: 556.2539134 | O6: 150.9458419 | P6: 138.4253987 | Q6: 155.9103227 | R6: 119.0743556 | S6: 177.2447631 | T6: 140.3762876 | U6: 341.7698421 | V6: 447.9626763 | W6: 359.1712577 | X6: 281.7118862 | Y6: 58.45114624 | Z6: 31.47721192 | AA6: 30.00132657 | AB6: 35.24125004 | AC6: 41.03158179 | AD6: 61.7688027 | AE6: 66.47569897 | AF6: 76.77181144 | AG6: 87.36264443 | AH6: 121.8201059 | AI6: 152.7380331 | AJ6: 165.3674501 | AK6: 131.7813977 | AL6: 164.2085822 | AM6: 178.8512408 | AN6: 177.1804349 | AO6: 155.1231132 | AP6: 96.50882004 | AQ6: 156.9262481 | AR6: 212.8430489 | AS6: 290.1143095 | AT6: 166.2805827 | AU6: 217.029741 | AV6: 354.0076887 | AW6: 189.8733298 | AX6: 300.4172245 | AY6: 279.4973893 | AZ6: 270.4091403 | BA6: 291.1651334 | BB6: 801.1219511 | BC6: 1143.930781 | BD6: 532.7546738 | BE6: 506.4061367 | BF6: 740.1731644 | BG6: 2003.103073 | BH6: 1183.944731 | BI6: 539.3171101 | BJ6: 435.4806276 | BK6: 371.1301427 | BL6: 1038.607353 | BM6: 4235.73795 | BN6: 223.8830057 | BO6: 553.9811775 | BP6: 331.3227087 | BQ6: 327.4922411 | BR6: 1036.115349 | BS6: 195.5061028 | BT6: 210.3540361 | BU6: 389.491174 | BV6: 54.34821518 | BW6: 2078.378078 | BX6: 95.62180681 | BY6: 116.6127929 | BZ6: 91.54544975 | CA6: 77.03644522 | CB6: 36.38858502 | CC6: 10.0371565 | CD6: 11.3217753 | CE6: 13.98447638 | CF6: 1.45061605 | CG6: 164.4444216 | CH6: 20.31063515 | CI6: 21.21916805 | CJ6: 18.22181011 | CK6: 26.61491456 | CL6: 28.06635564 | CM6: 10.06069898 | CN6: 0 | CO6: 0 | CP6: 1.47387131 | CQ6: 319.602277 | CR6: 0 | CS6: 0.43609079 | CT6: 3.84670313 | CV6: =IFERROR($D6*H6,"") -> 4005.908711 | CW6: =IFERROR($D6*I6,"") -> 4265.815573 | CX6: =IFERROR($D6*J6,"") -> 6236.538462 | CY6: =IFERROR($D6*K6,"") -> 6605.790263 | CZ6: =IFERROR($D6*L6,"") -> 11314.15678 | DA6: =IFERROR($D6*M6,"") -> 20571.46408 | DB6: =IFERROR($D6*N6,"") -> 27755.80143 | DC6: =IFERROR($D6*O6,"") -> 7531.853195 | DD6: =IFERROR($D6*P6,"") -> 6907.111637 | DE6: =IFERROR($D6*Q6,"") -> 7779.569461 | DF6: =IFERROR($D6*R6,"") -> 5941.538727 | DG6: =IFERROR($D6*S6,"") -> 8844.109374 | DH6: =IFERROR($D6*T6,"") -> 7004.456543 | DI6: =IFERROR($D6*U6,"") -> 17053.53552 | DJ6: =IFERROR($D6*V6,"") -> 22352.31572 | DK6: =IFERROR($D6*W6,"") -> 17921.82647 | DL6: =IFERROR($D6*X6,"") -> 14056.78052 | DM6: =IFERROR($D6*Y6,"") -> 2916.578867 | DN6: =IFERROR($D6*Z6,"") -> 1570.641074 | DO6: =IFERROR($D6*AA6,"") -> 1496.997761 | DP6: =IFERROR($D6*AB6,"") -> 1758.45799 | DQ6: =IFERROR($D6*AC6,"") -> 2047.382336 | DR6: =IFERROR($D6*AD6,"") -> 3082.122357 | DS6: =IFERROR($D6*AE6,"") -> 3316.985744 | DT6: =IFERROR($D6*AF6,"") -> 3830.73827 | DU6: =IFERROR($D6*AG6,"") -> 4359.196678 | DV6: =IFERROR($D6*AH6,"") -> 6078.545404 | DW6: =IFERROR($D6*AI6,"") -> 7621.279448 | DX6: =IFERROR($D6*AJ6,"") -> 8251.458548 | DY6: =IFERROR($D6*AK6,"") -> 6575.591144 | DZ6: =IFERROR($D6*AL6,"") -> 8193.633684 | EA6: =IFERROR($D6*AM6,"") -> 8924.268948 | EB6: =IFERROR($D6*AN6,"") -> 8840.899541 | EC6: =IFERROR($D6*AO6,"") -> 7740.289507 | ED6: =IFERROR($D6*AP6,"") -> 4815.569978 | EE6: =IFERROR($D6*AQ6,"") -> 7830.261825 | EF6: =IFERROR($D6*AR6,"") -> 10620.38263 | EG6: =IFERROR($D6*AS6,"") -> 14476.04228 | EH6: =IFERROR($D6*AT6,"") -> 8297.02178 | EI6: =IFERROR($D6*AU6,"") -> 10829.28902 | EJ6: =IFERROR($D6*AV6,"") -> 17664.17615 | EK6: =IFERROR($D6*AW6,"") -> 9474.246046 | EL6: =IFERROR($D6*AX6,"") -> 14990.13423 | EM6: =IFERROR($D6*AY6,"") -> 13946.28218 | EN6: =IFERROR($D6*AZ6,"") -> 13492.79928 | EO6: =IFERROR($D6*BA6,"") -> 14528.47599 | EP6: =IFERROR($D6*BB6,"") -> 39974.15796 | EQ6: =IFERROR($D6*BC6,"") -> 57079.5366 | ER6: =IFERROR($D6*BD6,"") -> 26583.24298 | ES6: =IFERROR($D6*BE6,"") -> 25268.51108 | ET6: =IFERROR($D6*BF6,"") -> 36932.95253 | EU6: =IFERROR($D6*BG6,"") -> 99950.27415 | EV6: =IFERROR($D6*BH6,"") -> 59076.14146 | EW6: =IFERROR($D6*BI6,"") -> 26910.69358 | EX6: =IFERROR($D6*BJ6,"") -> 21729.48996 | EY6: =IFERROR($D6*BK6,"") -> 18518.54755 | EZ6: =IFERROR($D6*BL6,"") -> 51824.13777 | FA6: =IFERROR($D6*BM6,"") -> 211353.6617 | FB6: =IFERROR($D6*BN6,"") -> 11171.25129 | FC6: =IFERROR($D6*BO6,"") -> 27642.3971 | FD6: =IFERROR($D6*BP6,"") -> 16532.2474 | FE6: =IFERROR($D6*BQ6,"") -> 16341.1158 | FF6: =IFERROR($D6*BR6,"") -> 51699.7925 | FG6: =IFERROR($D6*BS6,"") -> 9755.30857 | FH6: =IFERROR($D6*BT6,"") -> 10496.18657 | FI6: =IFERROR($D6*BU6,"") -> 19434.72113 | FJ6: =IFERROR($D6*BV6,"") -> 2711.851966 | FK6: =IFERROR($D6*BW6,"") -> 103706.3252 | FL6: =IFERROR($D6*BX6,"") -> 4771.310041 | FM6: =IFERROR($D6*BY6,"") -> 5818.712365 | FN6: =IFERROR($D6*BZ6,"") -> 4567.909122 | FO6: =IFERROR($D6*CA6,"") -> 3843.942892 | FP6: =IFERROR($D6*CB6,"") -> 1815.707388 | FQ6: =IFERROR($D6*CC6,"") -> 500.831214 | FR6: =IFERROR($D6*CD6,"") -> 564.9307619 | FS6: =IFERROR($D6*CE6,"") -> 697.793472 | FT6: =IFERROR($D6*CF6,"") -> 72.38243196 | FU6: =IFERROR($D6*CG6,"") -> 8205.40153 | FV6: =IFERROR($D6*CH6,"") -> 1013.454364 | FW6: =IFERROR($D6*CI6,"") -> 1058.788084 | FX6: =IFERROR($D6*CJ6,"") -> 909.2267595 | FY6: =IFERROR($D6*CK6,"") -> 1328.023526 | FZ6: =IFERROR($D6*CL6,"") -> 1400.447126 | GA6: =IFERROR($D6*CM6,"") -> 502.0059301 | GB6: =IFERROR($D6*CN6,"") -> 0 | GC6: =IFERROR($D6*CO6,"") -> 0 | GD6: =IFERROR($D6*CP6,"") -> 73.54281639 | GE6: =IFERROR($D6*CQ6,"") -> 15947.42459 | GF6: =IFERROR($D6*CR6,"") -> 0 | GG6: =IFERROR($D6*CS6,"") -> 21.75993567 | GH6: =IFERROR($D6*CT6,"") -> 191.9417116
A7: 1 | B7: OVERHEAD CONDUCTORS | C7: ˃ 11 kv & < = 22 kv ; multiple-phase | D7: 57.3243447 | E7: 87.70297271 | F7: 9.36498653 | G7: =IFERROR(IF($B7="","",2),"") -> 2 | H7: 5.25467788 | I7: 8.36890434 | J7: 5.61467473 | K7: 24.79829511 | L7: 36.23358994 | M7: 27.80857521 | N7: 6.10347426 | O7: 24.13040875 | P7: 18.79697588 | Q7: 64.42648262 | R7: 70.0273034 | S7: 68.2533856 | T7: 33.27224831 | U7: 16.38174081 | V7: 55.68546968 | W7: 32.18255014 | X7: 67.58545285 | Y7: 24.18337128 | Z7: 4.57631141 | AA7: 14.71826597 | AB7: 14.38987038 | AC7: 417.7880853 | AD7: 1049.361567 | AE7: 1216.888352 | AF7: 951.7664219 | AG7: 148.5431854 | AH7: 19.89384366 | AI7: 135.5583177 | AJ7: 401.3754081 | AK7: 818.6000168 | AL7: 90.6773002 | AM7: 149.0631758 | AN7: 264.6171071 | AO7: 590.9084536 | AP7: 89.68209989 | AQ7: 757.0244645 | AR7: 1225.710612 | AS7: 608.8276234 | AT7: 21.94203972 | AU7: 503.6690981 | AV7: 142.8427212 | AW7: 251.8108953 | AX7: 228.8585898 | AY7: 409.2461483 | AZ7: 75.62255084 | BA7: 152.3270222 | BB7: 342.5893511 | BC7: 738.7046484 | BD7: 177.5687603 | BE7: 429.5686385 | BF7: 326.004518 | BG7: 2016.179751 | BH7: 2351.426244 | BI7: 2207.59034 | BJ7: 1355.684975 | BK7: 403.3035889 | BL7: 1059.362 | BM7: 1813.144195 | BN7: 710.9196991 | BO7: 352.9250184 | BP7: 276.4820791 | BQ7: 198.0956905 | BR7: 452.799011 | BS7: 26.20665318 | BT7: 641.3813342 | BU7: 270.750809 | BV7: 144.2019641 | BW7: 500.8415348 | BX7: 0.08347075 | BY7: 48.97759624 | BZ7: 0.01241232 | CA7: 0 | CB7: 32.84148551 | CC7: 0.27122352 | CD7: 0.00015493 | CE7: 0.0025606 | CF7: 0 | CG7: 1239.79134 | CH7: 0.00924793 | CI7: 0.0107806 | CJ7: 0.03041579 | CK7: 0 | CL7: 0 | CM7: 0 | CN7: 0 | CO7: 0 | CP7: 0.01628053 | CQ7: 174.3151099 | CR7: 0 | CS7: 0 | CT7: 0 | CV7: =IFERROR($D7*H7,"") -> 301.2209661 | CW7: 479.7419571 | CX7: 321.8575496 | CY7: 1421.546017 | CZ7: 2077.066799 | DA7: 1594.108351 | DB7: 349.8776623 | DC7: 1383.259869 | DD7: 1077.524325 | DE7: 3693.205897 | DF7: 4014.269278 | DG7: 3912.580603 | DH7: 1907.309831 | DI7: 939.0725569 | DJ7: 3192.133059 | DK7: 1844.843597 | DL7: 3874.291796 | DM7: 1386.295911 | DN7: 262.3340527 | DO7: 843.7149518 | DP7: 824.8898898 | DQ7: 23949.42821 | DR7: 60153.9642 | DS7: 69757.32734 | DT7: 54559.38644 | DU7: 8515.140761 | DV7: 1140.401551 | DW7: 7770.791733 | DX7: 23008.58225 | DY7: 46925.70953 | DZ7: 5198.016813 | EA7: 8544.948872 | EB7: 15169.00226 | EC7: 33873.43988 | ED7: 5140.967607 | EE7: 43395.93135 | EF7: 70263.05761 | EG7: 34900.64454 | EH7: 1257.813048 | EI7: 28872.50099 | EJ7: 8188.365388 | EK7: 14434.89456 | EL7: 13119.16869 | EM7: 23459.76727 | EN7: 4335.013171 | EO7: 8732.046729 | EP7: 19638.71005 | EQ7: 42345.7599 | ER7: 10179.01283 | ES7: 24624.7407 | ET7: 18687.99536 | EU7: 115576.183 | EV7: 134793.9685 | EW7: 126548.6696 | EX7: 77713.75283 | EY7: 23119.11395 | EZ7: 60727.23248 | FA7: 103937.3028 | FB7: 40753.00589 | FC7: 20231.19541 | FD7: 15849.154 | FE7: 11355.70565 | FF7: 25956.40659 | FG7: 1502.27922 | FH7: 36766.76468 | FI7: 15520.6127 | FJ7: 8266.283096 | FK7: 28710.41278 | FL7: 4.784906045 | FM7: 2807.608609 | FN7: 0.7115281102 | FO7: 0 | FP7: 1882.616636 | FQ7: 15.54771055 | FR7: 0.008881260724 | FS7: 0.146784717 | FT7: 0 | FU7: 71070.22611 | FV7: 0.5301315271 | FW7: 0.6179908305 | FX7: 1.74356523 | FY7: 0 | FZ7: 0 | GA7: 0 | GB7: 0 | GC7: 0 | GD7: 0.9332707136 | GE7: 9992.499446 | GF7: 0 | GG7: 0 | GH7: 0
A8: 1 | B8: OVERHEAD CONDUCTORS | C8: ˃ 11 kv & < = 22 kv ; single-phase | D8: 42.99638848 | E8: 95.38354504 | F8: 9.766449971 | G8: 2 | H8: 29.2984076 | I8: 46.91217766 | J8: 47.79334169 | K8: 85.40880516 | L8: 73.56740272 | M8: 74.37254873 | N8: 29.47829199 | O8: 59.40860138 | P8: 44.4085616 | Q8: 125.6058498 | R8: 98.32249753 | S8: 111.4372014 | T8: 132.6371031 | U8: 97.07350981 | V8: 22.71165254 | W8: 42.41936399 | X8: 60.81832441 | Y8: 51.30822691 | Z8: 37.80391261 | AA8: 25.38131335 | AB8: 51.13229271 | AC8: 52.38729794 | AD8: 67.02857692 | AE8: 83.322464 | AF8: 42.89460109 | AG8: 69.22746838 | AH8: 78.87318729 | AI8: 113.0231635 | AJ8: 137.2247703 | AK8: 121.8655598 | AL8: 142.716811 | AM8: 95.53471031 | AN8: 109.1401684 | AO8: 88.61228803 | AP8: 81.97581758 | AQ8: 110.6166712 | AR8: 128.4415724 | AS8: 390.6302717 | AT8: 101.181674 | AU8: 120.0247838 | AV8: 174.249976 | AW8: 185.9096956 | AX8: 186.6502335 | AY8: 173.4099432 | AZ8: 130.2653765 | BA8: 103.8417378 | BB8: 134.9124641 | BC8: 387.5852102 | BD8: 255.9289157 | BE8: 354.7962133 | BF8: 829.093557 | BG8: 1461.63824 | BH8: 1018.184924 | BI8: 369.7695253 | BJ8: 440.3922955 | BK8: 498.5879827 | BL8: 1675.757261 | BM8: 1372.545656 | BN8: 1077.79665 | BO8: 1150.128446 | BP8: 92.15746621 | BQ8: 1116.680713 | BR8: 1553.569825 | BS8: 587.2696312 | BT8: 190.2686331 | BU8: 177.4758301 | BV8: 31.8312029 | BW8: 1171.313894 | BX8: 30.66980273 | BY8: 20.47957862 | BZ8: 0.5842291 | CA8: 4.72609697 | CB8: 9.29240458 | CC8: 38.51192658 | CD8: 0.17608639 | CE8: 0 | CF8: 0.12380483 | CG8: 187.6937385 | CH8: 6.934679 | CI8: 16.26578922 | CJ8: 9.43857885 | CK8: 0 | CL8: 0 | CM8: 0 | CN8: 0 | CO8: 0 | CP8: 20.19846617 | CQ8: 473.3414867 | CR8: 0 | CS8: 0 | CT8: 0 | CV8: 1259.725715 | CW8: 2017.054215 | CX8: 2054.941086 | CY8: 3672.270167 | CZ8: 3163.132627 | DA8: 3197.750998 | DB8: 1267.460094 | DC8: 2554.355304 | DD8: 1909.407767 | DE8: 5400.597913 | DF8: 4227.512301 | DG8: 4791.397203 | DH8: 5702.916413 | DI8: 4173.810339 | DJ8: 976.5190357 | DK8: 1823.879453 | DL8: 2614.968303 | DM8: 2206.068457 | DN8: 1625.431713 | DO8: 1091.304809 | DP8: 2198.503921 | DQ8: 2252.464614 | DR8: 2881.986733 | DS8: 3582.565032 | DT8: 1844.312932 | DU8: 2976.531124 | DV8: 3391.262202 | DW8: 4859.587844 | DX8: 5900.169533 | DY8: 5239.778952 | DZ8: 6136.30745 | EA8: 4107.647518 | EB8: 4692.63308 | EC8: 3810.008361 | ED8: 3524.664099 | EE8: 4756.117366 | EF8: 5522.523743 | EG8: 16795.69091 | EH8: 4350.446561 | EI8: 5160.632232 | EJ8: 7492.119662 | EK8: 7993.445493 | EL8: 8025.28595 | EM8: 7456.001287 | EN8: 5600.940733 | EO8: 4464.8197 | EP8: 5800.748716 | EQ8: 16664.76427 | ER8: 11004.01908 | ES8: 15254.95582 | ET8: 35648.02867 | EU8: 62845.16558 | EV8: 43778.27454 | EW8: 15898.75416 | EX8: 18935.27822 | EY8: 21437.4826 | EZ8: 72051.51018 | FA8: 59014.50625 | FB8: 46341.36346 | FC8: 49451.36945 | FD8: 3962.438219 | FE8: 48013.23774 | FF8: 66797.89174 | FG8: 25250.47321 | FH8: 8180.864066 | FI8: 7630.819737 | FJ8: 1368.626766 | FK8: 50362.26721 | FL8: 1318.690753 | FM8: 880.5479183 | FN8: 25.11974135 | FO8: 203.2051013 | FP8: 399.5398373 | FQ8: 1655.873757 | FR8: 7.571078831 | FS8: 0 | FT8: 5.323160567 | FU8: 8070.152895 | FV8: 298.1661523 | FW8: 699.3701923 | FX8: 405.824803 | FY8: 0 | FZ8: 0 | GA8: 0 | GB8: 0 | GC8: 0 | GD8: 868.4610982 | GE8: 20351.97445 | GF8: 0 | GG8: 0 | GH8: 0
A9: 1 | B9: OVERHEAD CONDUCTORS | C9: ˃ 11 kv & < = 22 kv ; swer | D9: 30.9322846 | E9: 105.5668869 | F9: 10.27457478 | G9: 2 | H9: 75.80987728 | I9: 74.29232002 | J9: 175.0508044 | K9: 167.1792554 | L9: 283.1495373 | M9: 216.5804376 | N9: 249.7969273 | O9: 183.7971757 | P9: 145.5079213 | Q9: 234.629542 | R9: 182.3927906 | S9: 147.9689588 | T9: 92.66752305 | U9: 50.48666913 | V9: 47.42569988 | W9: 40.85385744 | X9: 57.5695065 | Y9: 71.25810785 | Z9: 33.57491303 | AA9: 17.12011918 | AB9: 27.72989597 | AC9: 25.64276351 | AD9: 56.23507201 | AE9: 72.34706542 | AF9: 23.91725715 | AG9: 48.93795149 | AH9: 34.2121048 | AI9: 41.90019526 | AJ9: 48.28624939 | AK9: 89.16255095 | AL9: 59.59611453 | AM9: 108.4437288 | AN9: 121.6354854 | AO9: 115.4018945 | AP9: 62.89922437 | AQ9: 155.1772234 | AR9: 146.0112065 | AS9: 183.9923595 | AT9: 77.408675 | AU9: 67.32921263 | AV9: 228.9241943 | AW9: 83.04321157 | AX9: 184.6231088 | AY9: 126.8874111 | AZ9: 190.1142799 | BA9: 100.2019278 | BB9: 73.98425175 | BC9: 403.0058394 | BD9: 222.6175552 | BE9: 419.5775263 | BF9: 843.2481825 | BG9: 1346.16026 | BH9: 1595.766688 | BI9: 652.4898958 | BJ9: 627.2563478 | BK9: 389.1836667 | BL9: 1212.555626 | BM9: 1584.098586 | BN9: 855.2855828 | BO9: 1156.024778 | BP9: 162.4211673 | BQ9: 764.3762191 | BR9: 805.8404495 | BS9: 422.5811523 | BT9: 264.36832 | BU9: 47.69940075 | BV9: 9.23772153 | BW9: 800.8044508 | BX9: 45.70222906 | BY9: 54.79528206 | BZ9: 6.79604268 | CA9: 0 | CB9: 25.52243182 | CC9: 148.5013548 | CD9: 0.08482838 | CE9: 1.40199463 | CF9: 0 | CG9: 730.1064035 | CH9: 5.06346583 | CI9: 5.90263612 | CJ9: 16.6533719 | CK9: 0 | CL9: 0 | CM9: 0 | CN9: 0 | CO9: 0 | CP9: 8.9139817 | CQ9: 506.1006519 | CR9: 0 | CS9: 0 | CT9: 0 | CV9: 2344.972699 | CW9: 2298.031186 | CX9: 5414.721299 | CY9: 5171.236307 | CZ9: 8758.462071 | DA9: 6699.327736 | DB9: 7726.789648 | DC9: 5685.266548 | DD9: 4500.892434 | DE9: 7257.627769 | DF9: 5641.825709 | DG9: 4577.017944 | DH9: 2866.418196 | DI9: 1561.668018 | DJ9: 1466.985246 | DK9: 1263.703145 | DL9: 1780.756359 | DM9: 2204.176072 | DN9: 1038.548765 | DO9: 529.5643988 | DP9: 857.749034 | DQ9: 793.1892588 | DR9: 1739.479252 | DS9: 2237.860017 | DT9: 739.8154049 | DU9: 1513.762643 | DV9: 1058.258562 | DW9: 1296.068764 | DX9: 1493.604008 | DY9: 2758.001401 | DZ9: 1843.443976 | EA9: 3354.412283 | EB9: 3762.463452 | EC9: 3569.644242 | ED9: 1945.616709 | EE9: 4799.986038 | EF9: 4516.460193 | EG9: 5691.304029 | EH9: 2394.427165 | EI9: 2082.646367 | EJ9: 7081.14833 | EK9: 2568.716254 | EL9: 5710.814546 | EM9: 3924.917512 | EN9: 5880.669011 | EO9: 3099.474549 | EP9: 2288.501931 | EQ9: 12465.89132 | ER9: 6886.069573 | ES9: 12978.49146 | ET9: 26083.59277 | EU9: 41639.81226 | EV9: 49360.70934 | EW9: 20183.00315 | EX9: 19402.47186 | EY9: 12038.33994 | EZ9: 37507.11572 | FA9: 48999.78831 | FB9: 26455.93706 | FC9: 35758.48744 | FD9: 5024.05777 | FE9: 23643.90275 | FF9: 24926.48612 | FG9: 13071.40047 | FH9: 8177.516111 | FI9: 1475.451439 | FJ9: 285.7438314 | FK9: 24770.71118 | FL9: 1413.674356 | FM9: 1694.943259 | FN9: 210.2171263 | FO9: 0 | FP9: 789.4671247 | FQ9: 4593.486169 | FR9: 2.623935592 | FS9: 43.3668969 | FT9: 0 | FU9: 22583.85906 | FV9: 156.6245661 | FW9: 182.5820203 | FX9: 515.1268391 | FY9: 0 | FZ9: 0 | GA9: 0 | GB9: 0 | GC9: 0 | GD9: 275.7298188 | GE9: 15654.8494 | GF9: 0 | GG9: 0 | GH9: 0
A10: 1 | B10: OVERHEAD CONDUCTORS | C10: > 1 kv & < = 11 kv | D10: 51.84768804 | E10: 84.85245035 | F10: 9.211538979 | G10: 2 | H10: 383.920726 | I10: 376.7250867 | J10: 642.7140441 | K10: 746.5354341 | L10: 947.0420946 | M10: 909.2234731 | N10: 747.6622563 | O10: 710.6535576 | P10: 660.5961527 | Q10: 471.794226 | R10: 401.7414774 | S10: 547.1097312 | T10: 685.1506065 | U10: 532.5126048 | V10: 227.6571979 | W10: 301.4725784 | X10: 296.1524722 | Y10: 267.2276033 | Z10: 148.8457376 | AA10: 165.3402427 | AB10: 174.3725403 | AC10: 212.2486021 | AD10: 265.4253091 | AE10: 330.8104867 | AF10: 305.3381023 | AG10: 336.8694062 | AH10: 423.0791364 | AI10: 392.0016569 | AJ10: 408.4243461 | AK10: 426.2267258 | AL10: 469.6094249 | AM10: 417.5954696 | AN10: 372.9646336 | AO10: 298.5315611 | AP10: 202.3574952 | AQ10: 393.9040848 | AR10: 360.9672353 | AS10: 452.0289361 | AT10: 355.9443105 | AU10: 382.8708348 | AV10: 713.1899178 | AW10: 347.4070562 | AX10: 520.7216254 | AY10: 481.7559536 | AZ10: 521.2204602 | BA10: 636.0302182 | BB10: 1148.939968 | BC10: 2233.977361 | BD10: 1544.146617 | BE10: 798.5634385 | BF10: 1467.543965 | BG10: 2634.825806 | BH10: 1955.989382 | BI10: 961.7135693 | BJ10: 1756.530029 | BK10: 1194.73375 | BL10: 3754.694358 | BM10: 4200.401587 | BN10: 1295.87947 | BO10: 1502.913966 | BP10: 1498.673281 | BQ10: 1363.245486 | BR10: 3567.728423 | BS10: 1681.223353 | BT10: 2870.951281 | BU10: 3173.530616 | BV10: 1052.560764 | BW10: 5175.600129 | BX10: 424.8481061 | BY10: 733.584742 | BZ10: 162.2248194 | CA10: 222.1854889 | CB10: 44.81220482 | CC10: 62.17841286 | CD10: 0 | CE10: 0 | CF10: 3.21047181 | CG10: 515.9094014 | CH10: 332.9397047 | CI10: 114.6664232 | CJ10: 111.1527398 | CK10: 213.5910228 | CL10: 12.29575395 | CM10: 4.93019945 | CN10: 53.0379785 | CO10: 0 | CP10: 42.58936986 | CQ10: 95.006679 | CR10: 0 | CS10: 87.19131595 | CT10: 0 | CV10: 19905.40203 | CW10: 19532.32477 | CX10: 33323.23726 | CY10: 38706.1363 | CZ10: 49101.94308 | DA10: 47141.13499 | DB10: 38764.55942 | DC10: 36845.74396 | DD10: 34250.38324 | DE10: 24461.43985 | DF10: 20829.36679 | DG10: 28366.37466 | DH10: 35523.47491 | DI10: 27609.54741 | DJ10: 11803.49937 | DK10: 15630.65619 | DL10: 15354.82099 | DM10: 13855.13341 | DN10: 7717.30737 | DO10: 8572.509324 | DP10: 9040.813072 | DQ10: 11004.59931 | DR10: 13761.68862 | DS10: 17151.75891 | DT10: 15831.07468 | DU10: 17465.89988 | DV10: 21935.67508 | DW10: 20324.37962 | DX10: 21175.85808 | DY10: 22098.87031 | DZ10: 24348.16296 | EA10: 21651.35963 | EB10: 19337.35397 | EC10: 15478.17125 | ED10: 10491.76828 | EE10: 20423.0161 | EF10: 18715.31661 | EG10: 23436.65526 | EH10: 18454.88957 | EI10: 19850.9676 | EJ10: 36977.24837 | EK10: 18012.25267 | EL10: 26998.21239 | EM10: 24977.93239 | EN10: 27024.07582 | EO10: 32976.69634 | EP10: 59569.88104 | EQ10: 115826.5613 | ER10: 80060.43206 | ES10: 41403.66804 | ET10: 76088.7617 | EU10: 136609.6264 | EV10: 101413.5273 | EW10: 49862.62512 | EX10: 91072.02098 | EY10: 61944.18274 | EZ10: 194672.2217 | FA10: 217781.1111 | FB10: 67188.35448 | FC10: 77922.61444 | FD10: 77702.74473 | FE10: 70681.12666 | FF10: 184978.4703 | FG10: 87167.54391 | FH10: 148852.1864 | FI10: 164540.2254 | FJ10: 54572.84215 | FK10: 268342.9009 | FL10: 22027.39207 | FM10: 38034.67285 | FN10: 8410.981826 | FO10: 11519.80392 | FP10: 2323.409216 | FQ10: 3223.806953 | FR10: 0 | FS10: 0 | FT10: 166.4555409 | FU10: 26748.7097 | FV10: 17262.15394 | FW10: 5945.188939 | FX10: 5763.012578 | FY10: 11074.20072 | FZ10: 637.506415 | GA10: 255.619443 | GB10: 2749.896563 | GC10: 0 | GD10: 2208.160362 | GE10: 4925.876654 | GF10: 0 | GG10: 4520.668149 | GH10: 0
A11: 1 | B11: OVERHEAD CONDUCTORS | C11: > 132 kv | D11: 70.00771581 | E11: 93.66451006 | F11: 9.678042677 | G11: 2 | H11: 0 | I11: 0 | J11: 0 | K11: 0 | L11: 0 | M11: 0 | N11: 0 | O11: 0 | P11: 0 | Q11: 0 | R11: 0 | S11: 0 | T11: 0 | U11: 0 | V11: 0 | W11: 0 | X11: 0 | Y11: 0 | Z11: 0 | AA11: 0 | AB11: 0 | AC11: 0 | AD11: 0 | AE11: 0 | AF11: 0 | AG11: 0 | AH11: 0 | AI11: 0 | AJ11: 0 | AK11: 0 | AL11: 0 | AM11: 2.97242005 | AN11: 0 | AO11: 0 | AP11: 0 | AQ11: 0 | AR11: 0 | AS11: 0 | AT11: 0 | AU11: 0 | AV11: 0 | AW11: 0 | AX11: 0 | AY11: 0 | AZ11: 0 | BA11: 0 | BB11: 0 | BC11: 0 | BD11: 0 | BE11: 0 | BF11: 0 | BG11: 0 | BH11: 0 | BI11: 0 | BJ11: 0 | BK11: 0 | BL11: 0 | BM11: 0 | BN11: 0 | BO11: 0 | BP11: 0 | BQ11: 0 | BR11: 0 | BS11: 0 | BT11: 0 | BU11: 0 | BV11: 0 | BW11: 0 | BX11: 0 | BY11: 0 | BZ11: 0 | CA11: 0 | CB11: 0 | CC11: 0 | CD11: 0 | CE11: 0 | CF11: 0 | CG11: 0 | CH11: 0 | CI11: 0 | CJ11: 0 | CK11: 0 | CL11: 0 | CM11: 0 | CN11: 0 | CO11: 0 | CP11: 0 | CQ11: 0 | CR11: 0 | CS11: 0 | CT11: 0 | CV11: 0 | CW11: 0 | CX11: 0 | CY11: 0 | CZ11: 0 | DA11: 0 | DB11: 0 | DC11: 0 | DD11: 0 | DE11: 0 | DF11: 0 | DG11: 0 | DH11: 0 | DI11: 0 | DJ11: 0 | DK11: 0 | DL11: 0 | DM11: 0 | DN11: 0 | DO11: 0 | DP11: 0 | DQ11: 0 | DR11: 0 | DS11: 0 | DT11: 0 | DU11: 0 | DV11: 0 | DW11: 0 | DX11: 0 | DY11: 0 | DZ11: 0 | EA11: 208.0923381 | EB11: 0 | EC11: 0 | ED11: 0 | EE11: 0 | EF11: 0 | EG11: 0 | EH11: 0 | EI11: 0 | EJ11: 0 | EK11: 0 | EL11: 0 | EM11: 0 | EN11: 0 | EO11: 0 | EP11: 0 | EQ11: 0 | ER11: 0 | ES11: 0 | ET11: 0 | EU11: 0 | EV11: 0 | EW11: 0 | EX11: 0 | EY11: 0 | EZ11: 0 | FA11: 0 | FB11: 0 | FC11: 0 | FD11: 0 | FE11: 0 | FF11: 0 | FG11: 0 | FH11: 0 | FI11: 0 | FJ11: 0 | FK11: 0 | FL11: 0 | FM11: 0 | FN11: 0 | FO11: 0 | FP11: 0 | FQ11: 0 | FR11: 0 | FS11: 0 | FT11: 0 | FU11: 0 | FV11: 0 | FW11: 0 | FX11: 0 | FY11: 0 | FZ11: 0 | GA11: 0 | GB11: 0 | GC11: 0 | GD11: 0 | GE11: 0 | GF11: 0 | GG11: 0 | GH11: 0
A12: 1 | B12: OVERHEAD CONDUCTORS | C12: > 22 kv & < = 66 kv | D12: 70.00771581 | E12: 93.66451006 | F12: 9.678042677 | G12: 2 | H12: 19.25079836 | I12: 162.279624 | J12: 41.98215768 | K12: 220.0725763 | L12: 167.4139779 | M12: 92.949753 | N12: 146.5599626 | O12: 90.03258645 | P12: 77.35926317 | Q12: 60.89148473 | R12: 54.85567092 | S12: 104.0732156 | T12: 192.2111554 | U12: 53.45283682 | V12: 15.3301278 | W12: 10.73718924 | X12: 47.53542639 | Y12: 32.26223206 | Z12: 5.33339036 | AA12: 160.409767 | AB12: 12.26545669 | AC12: 1.08746047 | AD12: 84.35811389 | AE12: 127.443611 | AF12: 46.51985286 | AG12: 322.9089006 | AH12: 52.59985848 | AI12: 75.05963229 | AJ12: 78.13035728 | AK12: 40.4063084 | AL12: 217.4745342 | AM12: 260.8514394 | AN12: 279.2249732 | AO12: 283.4105508 | AP12: 34.92672236 | AQ12: 284.1887571 | AR12: 337.7402917 | AS12: 137.9506081 | AT12: 78.95829386 | AU12: 164.3329534 | AV12: 273.330519 | AW12: 75.4635736 | AX12: 81.54546411 | AY12: 140.3947596 | AZ12: 61.53484996 | BA12: 84.23899347 | BB12: 290.4745819 | BC12: 190.8471543 | BD12: 331.8732077 | BE12: 267.5837192 | BF12: 560.1560208 | BG12: 1006.786488 | BH12: 713.635777 | BI12: 274.6962957 | BJ12: 348.0545519 | BK12: 277.2118567 | BL12: 416.2616671 | BM12: 727.2055753 | BN12: 103.0642062 | BO12: 219.9550776 | BP12: 82.43405388 | BQ12: 73.88254889 | BR12: 439.3964983 | BS12: 29.06400888 | BT12: 48.96574463 | BU12: 189.4569024 | BV12: 10.23217724 | BW12: 463.4099226 | BX12: 0 | BY12: 14.98279682 | BZ12: 53.44001325 | CA12: 4.34739348 | CB12: 107.2503607 | CC12: 0 | CD12: 3.5813446 | CE12: 0 | CF12: 0 | CG12: 0 | CH12: 0 | CI12: 0 | CJ12: 20.80266269 | CK12: 3.87043318 | CL12: 47.52458519 | CM12: 0 | CN12: 26.85860285 | CO12: 0 | CP12: 0 | CQ12: 158.5615833 | CR12: 0 | CS12: 82.87197386 | CT12: 0 | CV12: 1347.704421 | CW12: 11360.8258 | CX12: 2939.074964 | CY12: 15406.77838 | CZ12: 11720.27019 | DA12: 6507.199893 | DB12: 10260.32821 | DC12: 6302.975726 | DD12: 5415.745312 | DE12: 4262.873759 | DF12: 3840.320221 | DG12: 7285.928101 | DH12: 13456.26394 | DI12: 3742.11101 | DJ12: 1073.22723 | DK12: 751.686093 | DL12: 3327.846622 | DM12: 2258.605174 | DN12: 373.3784767 | DO12: 11229.92138 | DP12: 858.6766063 | DQ12: 76.13062354 | DR12: 5905.718864 | DS12: 8922.036103 | DT12: 3256.748639 | DU12: 22606.11455 | DV12: 3682.395944 | DW12: 5254.753407 | DX12: 5469.727849 | DY12: 2828.753356 | DZ12: 15224.89539 | EA12: 18261.61344 | EB12: 19547.90257 | EC12: 19840.9253 | ED12: 2445.140053 | EE12: 19895.40575 | EF12: 23644.42636 | EG12: 9657.606966 | EH12: 5527.689798 | EI12: 11504.5747 | EJ12: 19135.2453 | EK12: 5283.032415 | EL12: 5708.811677 | EM12: 9828.716431 | EN12: 4307.914289 | EO12: 5897.379515 | EP12: 20335.46198 | EQ12: 13360.77334 | ER12: 23233.68521 | ES12: 18732.92497 | ET12: 39215.24352 | EU12: 70482.82234 | EV12: 49960.01067 | EW12: 19230.8602 | EX12: 24366.50416 | EY12: 19406.96889 | EZ12: 29141.5285 | FA12: 50910.00125 | FB12: 7215.289662 | FC12: 15398.55257 | FD12: 5771.019817 | FE12: 5172.348486 | FF12: 30761.14518 | FG12: 2034.704874 | FH12: 3427.979935 | FI12: 13263.44498 | FJ12: 716.3313564 | FK12: 32442.27017 | FL12: 0 | FM12: 1048.911382 | FN12: 3741.213261 | FO12: 304.3510873 | FP12: 7508.35277 | FQ12: 0 | FR12: 250.721755 | FS12: 0 | FT12: 0 | FU12: 0 | FV12: 0 | FW12: 0 | FX12: 1456.346898 | FY12: 270.9601861 | FZ12: 3327.087654 | GA12: 0 | GB12: 1880.309436 | GC12: 0 | GD12: 0 | GE12: 11100.53426 | GF12: 0 | GG12: 5801.677595 | GH12: 0
A13: 1 | B13: OVERHEAD CONDUCTORS | C13: > 66 kv & < = 132 kv | D13: 70.00771581 | E13: 93.66451006 | F13: 9.678042677 | G13: 2 | H13: 0 | I13: 15.7652481 | J13: 36.3186755 | K13: 170.8348833 | L13: 33.089882 | M13: 64.36933494 | N13: 14.1092845 | O13: 2.89865114 | P13: 4.81614149 | Q13: 1.20271922 | R13: 0.78000169 | S13: 119.1906138 | T13: 0 | U13: 0 | V13: 0 | W13: 0 | X13: 11.59065838 | Y13: 0 | Z13: 0 | AA13: 28.33579079 | AB13: 73.67132229 | AC13: 2.18466021 | AD13: 8.75719825 | AE13: 21.58269614 | AF13: 40.26609292 | AG13: 215.1892649 | AH13: 9.2635401 | AI13: 5.06396097 | AJ13: 45.39858493 | AK13: 46.91257766 | AL13: 78.84198458 | AM13: 47.58715008 | AN13: 0 | AO13: 116.571828 | AP13: 215.3931493 | AQ13: 0 | AR13: 0 | AS13: 0 | AT13: 0.10371866 | AU13: 90.37315035 | AV13: 0 | AW13: 0 | AX13: 0 | AY13: 0 | AZ13: 21.01940236 | BA13: 9.84730212 | BB13: 0.08925202 | BC13: 0 | BD13: 10.34673403 | BE13: 75.05955718 | BF13: 27.66298913 | BG13: 303.8109548 | BH13: 42.67543904 | BI13: 0 | BJ13: 0 | BK13: 0 | BL13: 0 | BM13: 0 | BN13: 0 | BO13: 92.77062934 | BP13: 0 | BQ13: 0 | BR13: 0 | BS13: 0 | BT13: 0 | BU13: 0 | BV13: 14.03868854 | BW13: 0 | BX13: 0 | BY13: 0 | BZ13: 0 | CA13: 0 | CB13: 0 | CC13: 0 | CD13: 0 | CE13: 0 | CF13: 0 | CG13: 0 | CH13: 0 | CI13: 0 | CJ13: 0 | CK13: 0 | CL13: 0 | CM13: 0 | CN13: 0 | CO13: 0 | CP13: 0 | CQ13: 0 | CR13: 0 | CS13: 0 | CT13: 0 | CV13: 0 | CW13: 1103.689009 | CX13: 2542.587513 | CY13: 11959.75996 | CZ13: 2316.547055 | DA13: 4506.350108 | DB13: 987.7587796 | DC13: 202.9279453 | DD13: 337.1670648 | DE13: 84.19962536 | DF13: 54.60613665 | DG13: 8344.262619 | DH13: 0 | DI13: 0 | DJ13: 0 | DK13: 0 | DL13: 811.435518 | DM13: 0 | DN13: 0 | DO13: 1983.723989 | DP13: 5157.560995 | DQ13: 152.9430711 | DR13: 613.0714464 | DS13: 1510.955258 | DT13: 2818.93719 | DU13: 15064.90891 | DV13: 648.5192828 | DW13: 354.5163405 | DX13: 3178.251232 | DY13: 3284.242405 | DZ13: 5519.547251 | EA13: 3331.467679 | EB13: 0 | EC13: 8160.927409 | ED13: 15079.18239 | EE13: 0 | EF13: 0 | EG13: 0 | EH13: 7.261106474 | EI13: 6326.817827 | EJ13: 0 | EK13: 0 | EL13: 0 | EM13: 0 | EN13: 1471.520347 | EO13: 689.3871284 | EP13: 6.248330052 | EQ13: 0 | ER13: 724.3512156 | ES13: 5254.748148 | ET13: 1936.622682 | EU13: 21269.11098 | EV13: 2987.610009 | EW13: 0 | EX13: 0 | EY13: 0 | EZ13: 0 | FA13: 0 | FB13: 0 | FC13: 6494.659855 | FD13: 0 | FE13: 0 | FF13: 0 | FG13: 0 | FH13: 0 | FI13: 0 | FJ13: 982.8165177 | FK13: 0 | FL13: 0 | FM13: 0 | FN13: 0 | FO13: 0 | FP13: 0 | FQ13: 0 | FR13: 0 | FS13: 0 | FT13: 0 | FU13: 0 | FV13: 0 | FW13: 0 | FX13: 0 | FY13: 0 | FZ13: 0 | GA13: 0 | GB13: 0 | GC13: 0 | GD13: 0 | GE13: 0 | GF13: 0 | GG13: 0 | GH13: 0
A14: 2 | B14: POLES | C14: ˂ = 1 kv ; concrete | D14: 6.500740625 | E14: 61.34389626 | F14: 7.832234436 | G14: 2 | H14: 2 | I14: 28 | J14: 40 | K14: 78 | L14: 237 | M14: 280 | N14: 325 | O14: 275 | P14: 305 | Q14: 306 | R14: 254 | S14: 176 | T14: 313 | U14: 263 | V14: 249 | W14: 346 | X14: 367 | Y14: 623 | Z14: 177 | AA14: 293 | AB14: 318 | AC14: 434 | AD14: 806 | AE14: 593 | AF14: 650 | AG14: 474 | AH14: 611 | AI14: 543 | AJ14: 601 | AK14: 383 | AL14: 314 | AM14: 339 | AN14: 185 | AO14: 82 | AP14: 66 | AQ14: 18 | AR14: 73 | AS14: 76 | AT14: 19 | AU14: 17 | AV14: 21 | AW14: 7 | AX14: 4 | AY14: 4 | AZ14: 13 | BA14: 3 | BB14: 20 | BC14: 16 | BD14: 5 | BE14: 10 | BF14: 14 | BG14: 16 | BH14: 30 | BI14: 1 | BJ14: 1 | BK14: 3 | BL14: 2 | BM14: 92 | BN14: 0 | BO14: 4 | BP14: 1 | BQ14: 3 | BR14: 6 | BS14: 0 | BT14: 0 | BU14: 5 | BV14: 0 | BW14: 36 | BX14: 0 | BY14: 13 | BZ14: 0 | CA14: 0 | CB14: 0 | CC14: 0 | CD14: 0 | CE14: 0 | CF14: 0 | CG14: 5 | CH14: 0 | CI14: 0 | CJ14: 0 | CK14: 0 | CL14: 0 | CM14: 0 | CN14: 0 | CO14: 0 | CP14: 0 | CQ14: 2 | CR14: 0 | CS14: 0 | CT14: 0 | CV14: 13.00148125 | CW14: 182.0207375 | CX14: 260.029625 | CY14: 507.0577688 | CZ14: 1540.675528 | DA14: 1820.207375 | DB14: 2112.740703 | DC14: 1787.703672 | DD14: 1982.725891 | DE14: 1989.226631 | DF14: 1651.188119 | DG14: 1144.13035 | DH14: 2034.731816 | DI14: 1709.694784 | DJ14: 1618.684416 | DK14: 2249.256256 | DL14: 2385.771809 | DM14: 4049.96141 | DN14: 1150.631091 | DO14: 1904.717003 | DP14: 2067.235519 | DQ14: 2821.321431 | DR14: 5239.596944 | DS14: 3854.939191 | DT14: 4225.481406 | DU14: 3081.351056 | DV14: 3971.952522 | DW14: 3529.90216 | DX14: 3906.945116 | DY14: 2489.783659 | DZ14: 2041.232556 | EA14: 2203.751072 | EB14: 1202.637016 | EC14: 533.0607313 | ED14: 429.0488813 | EE14: 117.0133313 | EF14: 474.5540656 | EG14: 494.0562875 | EH14: 123.5140719 | EI14: 110.5125906 | EJ14: 136.5155531 | EK14: 45.50518438 | EL14: 26.0029625 | EM14: 26.0029625 | EN14: 84.50962813 | EO14: 19.50222188 | EP14: 130.0148125 | EQ14: 104.01185 | ER14: 32.50370313 | ES14: 65.00740625 | ET14: 91.01036875 | EU14: 104.01185 | EV14: 195.0222188 | EW14: 6.500740625 | EX14: 6.500740625 | EY14: 19.50222188 | EZ14: 13.00148125 | FA14: 598.0681375 | FB14: 0 | FC14: 26.0029625 | FD14: 6.500740625 | FE14: 19.50222188 | FF14: 39.00444375 | FG14: 0 | FH14: 0 | FI14: 32.50370313 | FJ14: 0 | FK14: 234.0266625 | FL14: 0 | FM14: 84.50962813 | FN14: 0 | FO14: 0 | FP14: 0 | FQ14: 0 | FR14: 0 | FS14: 0 | FT14: 0 | FU14: 32.50370313 | FV14: 0 | FW14: 0 | FX14: 0 | FY14: 0 | FZ14: 0 | GA14: 0 | GB14: 0 | GC14: 0 | GD14: 0 | GE14: 13.00148125 | GF14: 0 | GG14: 0 | GH14: 0
A15: 2 | B15: POLES | C15: ˂ = 1 kv ; steel | D15: 7.236306164 | E15: 77.06440538 | F15: 8.778633457 | G15: 2 | H15: 72 | I15: 131 | J15: 907 | K15: 552 | L15: 206 | M15: 426 | N15: 282 | O15: 358 | P15: 399 | Q15: 367 | R15: 130 | S15: 377 | T15: 254 | U15: 158 | V15: 265 | W15: 104 | X15: 441 | Y15: 811 | Z15: 233 | AA15: 120 | AB15: 45 | AC15: 107 | AD15: 258 | AE15: 71 | AF15: 109 | AG15: 81 | AH15: 329 | AI15: 346 | AJ15: 72 | AK15: 43 | AL15: 14 | AM15: 43 | AN15: 60 | AO15: 34 | AP15: 14 | AQ15: 27 | AR15: 220 | AS15: 604 | AT15: 10 | AU15: 29 | AV15: 99 | AW15: 11 | AX15: 93 | AY15: 23 | AZ15: 20 | BA15: 19 | BB15: 61 | BC15: 151 | BD15: 36 | BE15: 48 | BF15: 49 | BG15: 234 | BH15: 204 | BI15: 39 | BJ15: 20 | BK15: 8 | BL15: 58 | BM15: 150 | BN15: 8 | BO15: 14 | BP15: 24 | BQ15: 13 | BR15: 23 | BS15: 0 | BT15: 7 | BU15: 26 | BV15: 7 | BW15: 195 | BX15: 0 | BY15: 1 | BZ15: 11 | CA15: 6 | CB15: 0 | CC15: 0 | CD15: 0 | CE15: 0 | CF15: 0 | CG15: 269 | CH15: 3 | CI15: 0 | CJ15: 3 | CK15: 0 | CL15: 0 | CM15: 0 | CN15: 0 | CO15: 0 | CP15: 1 | CQ15: 2 | CR15: 0 | CS15: 0 | CT15: 0 | CV15: 521.0140438 | CW15: 947.9561075 | CX15: 6563.329691 | CY15: 3994.441003 | CZ15: 1490.67907 | DA15: 3082.666426 | DB15: 2040.638338 | DC15: 2590.597607 | DD15: 2887.28616 | DE15: 2655.724362 | DF15: 940.7198014 | DG15: 2728.087424 | DH15: 1838.021766 | DI15: 1143.336374 | DJ15: 1917.621134 | DK15: 752.5758411 | DL15: 3191.211019 | DM15: 5868.644299 | DN15: 1686.059336 | DO15: 868.3567397 | DP15: 325.6337774 | DQ15: 774.2847596 | DR15: 1866.96699 | DS15: 513.7777377 | DT15: 788.7573719 | DU15: 586.1407993 | DV15: 2380.744728 | DW15: 2503.761933 | DX15: 521.0140438 | DY15: 311.1611651 | DZ15: 101.3082863 | EA15: 311.1611651 | EB15: 434.1783699 | EC15: 246.0344096 | ED15: 101.3082863 | EE15: 195.3802664 | EF15: 1591.987356 | EG15: 4370.728923 | EH15: 72.36306164 | EI15: 209.8528788 | EJ15: 716.3943103 | EK15: 79.59936781 | EL15: 672.9764733 | EM15: 166.4350418 | EN15: 144.7261233 | EO15: 137.4898171 | EP15: 441.414676 | EQ15: 1092.682231 | ER15: 260.5070219 | ES15: 347.3426959 | ET15: 354.5790021 | EU15: 1693.295642 | EV15: 1476.206458 | EW15: 282.2159404 | EX15: 144.7261233 | EY15: 57.89044932 | EZ15: 419.7057575 | FA15: 1085.445925 | FB15: 57.89044932 | FC15: 101.3082863 | FD15: 173.6713479 | FE15: 94.07198014 | FF15: 166.4350418 | FG15: 0 | FH15: 50.65414315 | FI15: 188.1439603 | FJ15: 50.65414315 | FK15: 1411.079702 | FL15: 0 | FM15: 7.236306164 | FN15: 79.59936781 | FO15: 43.41783699 | FP15: 0 | FQ15: 0 | FR15: 0 | FS15: 0 | FT15: 0 | FU15: 1946.566358 | FV15: 21.70891849 | FW15: 0 | FX15: 21.70891849 | FY15: 0 | FZ15: 0 | GA15: 0 | GB15: 0 | GC15: 0 | GD15: 7.236306164 | GE15: 14.47261233 | GF15: 0 | GG15: 0 | GH15: 0
A16: 2 | B16: POLES | C16: ˂ = 1 kv ; wood | D16: 4.062895652 | E16: 70.61337136 | F16: 8.403176266 | G16: 2 | H16: 1862 | I16: 2524 | J16: 3223 | K16: 3269 | L16: 2977 | M16: 2614 | N16: 2160 | O16: 2135 | P16: 2371 | Q16: 2718 | R16: 2455 | S16: 2565 | T16: 3158 | U16: 3212 | V16: 2766 | W16: 2645 | X16: 2968 | Y16: 3069 | Z16: 2374 | AA16: 2162 | AB16: 2680 | AC16: 4175 | AD16: 4980 | AE16: 5460 | AF16: 5691 | AG16: 5906 | AH16: 7398 | AI16: 8182 | AJ16: 6675 | AK16: 7813 | AL16: 8214 | AM16: 6898 | AN16: 6058 | AO16: 4910 | AP16: 4683 | AQ16: 6119 | AR16: 6449 | AS16: 7580 | AT16: 5264 | AU16: 5692 | AV16: 6821 | AW16: 5088 | AX16: 6630 | AY16: 6756 | AZ16: 5250 | BA16: 5233 | BB16: 8571 | BC16: 12626 | BD16: 5691 | BE16: 5105 | BF16: 12681 | BG16: 6020 | BH16: 8304 | BI16: 3851 | BJ16: 1293 | BK16: 1834 | BL16: 9281 | BM16: 15615 | BN16: 1233 | BO16: 3269 | BP16: 1430 | BQ16: 2103 | BR16: 5939 | BS16: 1068 | BT16: 1312 | BU16: 2893 | BV16: 1740 | BW16: 10067 | BX16: 733 | BY16: 220 | BZ16: 254 | CA16: 218 | CB16: 67 | CC16: 26 | CD16: 18 | CE16: 4 | CF16: 13 | CG16: 226 | CH16: 45 | CI16: 38 | CJ16: 31 | CK16: 76 | CL16: 39 | CM16: 1 | CN16: 1 | CO16: 0 | CP16: 1057 | CQ16: 359 | CR16: 0 | CS16: 5 | CT16: 1 | CV16: 7565.111703 | CW16: 10254.74862 | CX16: 13094.71269 | CY16: 13281.60589 | CZ16: 12095.24035 | DA16: 10620.40923 | DB16: 8775.854607 | DC16: 8674.282216 | DD16: 9633.12559 | DE16: 11042.95038 | DF16: 9974.408825 | DG16: 10421.32735 | DH16: 12830.62447 | DI16: 13050.02083 | DJ16: 11237.96937 | DK16: 10746.359 | DL16: 12058.67429 | DM16: 12469.02675 | DN16: 9645.314277 | DO16: 8783.980399 | DP16: 10888.56035 | DQ16: 16962.58935 | DR16: 20233.22035 | DS16: 22183.41026 | DT16: 23121.93915 | DU16: 23995.46172 | DV16: 30057.30203 | DW16: 33242.61222 | DX16: 27119.82847 | DY16: 31743.40373 | DZ16: 33372.62488 | EA16: 28025.8542 | EB16: 24613.02186 | EC16: 19948.81765 | ED16: 19026.54034 | EE16: 24860.85849 | EF16: 26201.61406 | EG16: 30796.74904 | EH16: 21387.08271 | EI16: 23126.00205 | EJ16: 27713.01124 | EK16: 20672.01308 | EL16: 26936.99817 | EM16: 27448.92302 | EN16: 21330.20217 | EO16: 21261.13294 | EP16: 34823.07863 | EQ16: 51298.1205 | ER16: 23121.93915 | ES16: 20741.0823 | ET16: 51521.57976 | EU16: 24458.63182 | EV16: 33738.28549 | EW16: 15646.21115 | EX16: 5253.324078 | EY16: 7451.350625 | EZ16: 37707.73454 | FA16: 63442.1156 | FB16: 5009.550338 | FC16: 13281.60589 | FD16: 5809.940782 | FE16: 8544.269555 | FF16: 24129.53727 | FG16: 4339.172556 | FH16: 5330.519095 | FI16: 11753.95712 | FJ16: 7069.438434 | FK16: 40901.17052 | FL16: 2978.102513 | FM16: 893.8370434 | FN16: 1031.975496 | FO16: 885.7112521 | FP16: 272.2140087 | FQ16: 105.6352869 | FR16: 73.13212173 | FS16: 16.25158261 | FT16: 52.81764347 | FU16: 918.2144173 | FV16: 182.8303043 | FW16: 154.3900348 | FX16: 125.9497652 | FY16: 308.7800695 | FZ16: 158.4529304 | GA16: 4.062895652 | GB16: 4.062895652 | GC16: 0 | GD16: 4294.480704 | GE16: 1458.579539 | GF16: 0 | GG16: 20.31447826 | GH16: 4.062895652
A17: 2 | B17: POLES | C17: ˃ 11 kv & < = 22 kv ; concrete | D17: 8.022489777 | E17: 56.05261527 | F17: 7.486829453 | G17: 2 | H17: 7 | I17: 22 | J17: 23 | K17: 105 | L17: 345 | M17: 515 | N17: 642 | O17: 623 | P17: 615 | Q17: 684 | R17: 922 | S17: 1162 | T17: 997 | U17: 777 | V17: 732 | W17: 963 | X17: 1161 | Y17: 999 | Z17: 492 | AA17: 659 | AB17: 875 | AC17: 920 | AD17: 3938 | AE17: 4684 | AF17: 3436 | AG17: 730 | AH17: 397 | AI17: 735 | AJ17: 3319 | AK17: 4049 | AL17: 2707 | AM17: 2290 | AN17: 1966 | AO17: 1550 | AP17: 424 | AQ17: 532 | AR17: 101 | AS17: 189 | AT17: 17 | AU17: 9 | AV17: 19 | AW17: 2 | AX17: 10 | AY17: 10 | AZ17: 7 | BA17: 4 | BB17: 11 | BC17: 18 | BD17: 9 | BE17: 38 | BF17: 7 | BG17: 23 | BH17: 94 | BI17: 3 | BJ17: 1 | BK17: 1 | BL17: 7 | BM17: 18 | BN17: 8 | BO17: 17 | BP17: 0 | BQ17: 0 | BR17: 2 | BS17: 0 | BT17: 0 | BU17: 1 | BV17: 0 | BW17: 5 | BX17: 1 | BY17: 0 | BZ17: 0 | CA17: 0 | CB17: 0 | CC17: 0 | CD17: 0 | CE17: 0 | CF17: 0 | CG17: 30 | CH17: 0 | CI17: 0 | CJ17: 0 | CK17: 0 | CL17: 0 | CM17: 0 | CN17: 0 | CO17: 0 | CP17: 0 | CQ17: 0 | CR17: 0 | CS17: 0 | CT17: 0 | CV17: 56.15742844 | CW17: 176.4947751 | CX17: 184.5172649 | CY17: 842.3614265 | CZ17: 2767.758973 | DA17: 4131.582235 | DB17: 5150.438437 | DC17: 4998.011131 | DD17: 4933.831213 | DE17: 5487.383007 | DF17: 7396.735574 | DG17: 9322.13312 | DH17: 7998.422307 | DI17: 6233.474556 | DJ17: 5872.462516 | DK17: 7725.657655 | DL17: 9314.110631 | DM17: 8014.467287 | DN17: 3947.06497 | DO17: 5286.820763 | DP17: 7019.678554 | DQ17: 7380.690594 | DR17: 31592.56474 | DS17: 37577.34211 | DT17: 27565.27487 | DU17: 5856.417537 | DV17: 3184.928441 | DW17: 5896.529986 | DX17: 26626.64357 | DY17: 32483.06111 | DZ17: 21716.87983 | EA17: 18371.50159 | EB17: 15772.2149 | EC17: 12434.85915 | ED17: 3401.535665 | EE17: 4267.964561 | EF17: 810.2714674 | EG17: 1516.250568 | EH17: 136.3823262 | EI17: 72.20240799 | EJ17: 152.4273058 | EK17: 16.04497955 | EL17: 80.22489777 | EM17: 80.22489777 | EN17: 56.15742844 | EO17: 32.08995911 | EP17: 88.24738754 | EQ17: 144.404816 | ER17: 72.20240799 | ES17: 304.8546115 | ET17: 56.15742844 | EU17: 184.5172649 | EV17: 754.114039 | EW17: 24.06746933 | EX17: 8.022489777 | EY17: 8.022489777 | EZ17: 56.15742844 | FA17: 144.404816 | FB17: 64.17991821 | FC17: 136.3823262 | FD17: 0 | FE17: 0 | FF17: 16.04497955 | FG17: 0 | FH17: 0 | FI17: 8.022489777 | FJ17: 0 | FK17: 40.11244888 | FL17: 8.022489777 | FM17: 0 | FN17: 0 | FO17: 0 | FP17: 0 | FQ17: 0 | FR17: 0 | FS17: 0 | FT17: 0 | FU17: 240.6746933 | FV17: 0 | FW17: 0 | FX17: 0 | FY17: 0 | FZ17: 0 | GA17: 0 | GB17: 0 | GC17: 0 | GD17: 0 | GE17: 0 | GF17: 0 | GG17: 0 | GH17: 0
A18: 2 | B18: POLES | C18: ˃ 11 kv & < = 22 kv ; steel | D18: 8.779143479 | E18: 55.80806102 | F18: 7.470479303 | G18: 2 | H18: 74 | I18: 246 | J18: 602 | K18: 762 | L18: 1769 | M18: 2280 | N18: 1241 | O18: 1198 | P18: 1059 | Q18: 643 | R18: 436 | S18: 88 | T18: 1 | U18: 3 | V18: 0 | W18: 4 | X18: 3 | Y18: 3 | Z18: 0 | AA18: 3 | AB18: 0 | AC18: 0 | AD18: 0 | AE18: 3 | AF18: 3 | AG18: 1 | AH18: 1 | AI18: 1 | AJ18: 0 | AK18: 8 | AL18: 6 | AM18: 2 | AN18: 2 | AO18: 1 | AP18: 3 | AQ18: 7 | AR18: 31 | AS18: 26 | AT18: 3 | AU18: 12 | AV18: 6 | AW18: 10 | AX18: 0 | AY18: 3 | AZ18: 0 | BA18: 0 | BB18: 4 | BC18: 2 | BD18: 5 | BE18: 8 | BF18: 40 | BG18: 0 | BH18: 10 | BI18: 3 | BJ18: 0 | BK18: 3 | BL18: 9 | BM18: 5 | BN18: 5 | BO18: 5 | BP18: 0 | BQ18: 0 | BR18: 1 | BS18: 0 | BT18: 0 | BU18: 0 | BV18: 0 | BW18: 0 | BX18: 0 | BY18: 0 | BZ18: 0 | CA18: 0 | CB18: 0 | CC18: 0 | CD18: 0 | CE18: 0 | CF18: 0 | CG18: 4 | CH18: 0 | CI18: 0 | CJ18: 0 | CK18: 0 | CL18: 0 | CM18: 0 | CN18: 0 | CO18: 0 | CP18: 0 | CQ18: 0 | CR18: 0 | CS18: 0 | CT18: 0 | CV18: 649.6566174 | CW18: 2159.669296 | CX18: 5285.044374 | CY18: 6689.707331 | CZ18: 15530.30481 | DA18: 20016.44713 | DB18: 10894.91706 | DC18: 10517.41389 | DD18: 9297.112944 | DE18: 5644.989257 | DF18: 3827.706557 | DG18: 772.5646261 | DH18: 8.779143479 | DI18: 26.33743044 | DJ18: 0 | DK18: 35.11657391 | DL18: 26.33743044 | DM18: 26.33743044 | DN18: 0 | DO18: 26.33743044 | DP18: 0 | DQ18: 0 | DR18: 0 | DS18: 26.33743044 | DT18: 26.33743044 | DU18: 8.779143479 | DV18: 8.779143479 | DW18: 8.779143479 | DX18: 0 | DY18: 70.23314783 | DZ18: 52.67486087 | EA18: 17.55828696 | EB18: 17.55828696 | EC18: 8.779143479 | ED18: 26.33743044 | EE18: 61.45400435 | EF18: 272.1534478 | EG18: 228.2577304 | EH18: 26.33743044 | EI18: 105.3497217 | EJ18: 52.67486087 | EK18: 87.79143479 | EL18: 0 | EM18: 26.33743044 | EN18: 0 | EO18: 0 | EP18: 35.11657391 | EQ18: 17.55828696 | ER18: 43.89571739 | ES18: 70.23314783 | ET18: 351.1657391 | EU18: 0 | EV18: 87.79143479 | EW18: 26.33743044 | EX18: 0 | EY18: 26.33743044 | EZ18: 79.01229131 | FA18: 43.89571739 | FB18: 43.89571739 | FC18: 43.89571739 | FD18: 0 | FE18: 0 | FF18: 8.779143479 | FG18: 0 | FH18: 0 | FI18: 0 | FJ18: 0 | FK18: 0 | FL18: 0 | FM18: 0 | FN18: 0 | FO18: 0 | FP18: 0 | FQ18: 0 | FR18: 0 | FS18: 0 | FT18: 0 | FU18: 35.11657391 | FV18: 0 | FW18: 0 | FX18: 0 | FY18: 0 | FZ18: 0 | GA18: 0 | GB18: 0 | GC18: 0 | GD18: 0 | GE18: 0 | GF18: 0 | GG18: 0 | GH18: 0
A19: 2 | B19: POLES | C19: ˃ 11 kv & < = 22 kv ; wood | D19: 4.406814613 | E19: 70.74041576 | F19: 8.410732177 | G19: 2 | H19: 2118 | I19: 2009 | J19: 3494 | K19: 3145 | L19: 2365 | M19: 2109 | N19: 2103 | O19: 1764 | P19: 1906 | Q19: 2050 | R19: 1909 | S19: 2341 | T19: 2404 | U19: 2395 | V19: 2490 | W19: 2753 | X19: 3159 | Y19: 2522 | Z19: 2090 | AA19: 1525 | AB19: 2094 | AC19: 2928 | AD19: 4264 | AE19: 3483 | AF19: 3250 | AG19: 4673 | AH19: 4725 | AI19: 4476 | AJ19: 4325 | AK19: 4906 | AL19: 7506 | AM19: 4836 | AN19: 4940 | AO19: 4010 | AP19: 5315 | AQ19: 8965 | AR19: 6808 | AS19: 5615 | AT19: 4009 | AU19: 5822 | AV19: 4014 | AW19: 4040 | AX19: 3689 | AY19: 4010 | AZ19: 2767 | BA19: 2919 | BB19: 3416 | BC19: 7249 | BD19: 4328 | BE19: 6075 | BF19: 9436 | BG19: 7972 | BH19: 16235 | BI19: 7202 | BJ19: 2449 | BK19: 2184 | BL19: 13181 | BM19: 8601 | BN19: 3390 | BO19: 4218 | BP19: 829 | BQ19: 2230 | BR19: 8952 | BS19: 2627 | BT19: 760 | BU19: 705 | BV19: 513 | BW19: 2111 | BX19: 261 | BY19: 28 | BZ19: 28 | CA19: 63 | CB19: 7 | CC19: 36 | CD19: 3 | CE19: 5 | CF19: 13 | CG19: 228 | CH19: 19 | CI19: 12 | CJ19: 11 | CK19: 0 | CL19: 1 | CM19: 1 | CN19: 8 | CO19: 0 | CP19: 2531 | CQ19: 428 | CR19: 0 | CS19: 0 | CT19: 0 | CV19: 9333.633351 | CW19: 8853.290558 | CX19: 15397.41026 | CY19: 13859.43196 | CZ19: 10422.11656 | DA19: 9293.97202 | DB19: 9267.531132 | DC19: 7773.620978 | DD19: 8399.388653 | DE19: 9033.969957 | DF19: 8412.609097 | DG19: 10316.35301 | DH19: 10593.98233 | DI19: 10554.321 | DJ19: 10972.96839 | DK19: 12131.96063 | DL19: 13921.12736 | DM19: 11113.98645 | DN19: 9210.242542 | DO19: 6720.392285 | DP19: 9227.8698 | DQ19: 12903.15319 | DR19: 18790.65751 | DS19: 15348.9353 | DT19: 14322.14749 | DU19: 20593.04469 | DV19: 20822.19905 | DW19: 19724.90221 | DX19: 19059.4732 | DY19: 21619.83249 | DZ19: 33077.55049 | EA19: 21311.35547 | EB19: 21769.66419 | EC19: 17671.3266 | ED19: 23422.21967 | EE19: 39507.09301 | EF19: 30001.59389 | EG19: 24744.26405 | EH19: 17666.91979 | EI19: 25656.47468 | EJ19: 17688.95386 | EK19: 17803.53104 | EL19: 16256.73911 | EM19: 17671.3266 | EN19: 12193.65604 | EO19: 12863.49186 | EP19: 15053.67872 | EQ19: 31944.99913 | ER19: 19072.69365 | ES19: 26771.39878 | ET19: 41582.70269 | EU19: 35131.1261 | EV19: 71544.63525 | EW19: 31737.87885 | EX19: 10792.28899 | EY19: 9624.483116 | EZ19: 58086.22342 | FA19: 37903.01249 | FB19: 14939.10154 | FC19: 18587.94404 | FD19: 3653.249315 | FE19: 9827.196588 | FF19: 39449.80442 | FG19: 11576.70199 | FH19: 3349.179106 | FI19: 3106.804302 | FJ19: 2260.695897 | FK19: 9302.785649 | FL19: 1150.178614 | FM19: 123.3908092 | FN19: 123.3908092 | FO19: 277.6293206 | FP19: 30.84770229 | FQ19: 158.6453261 | FR19: 13.22044384 | FS19: 22.03407307 | FT19: 57.28858997 | FU19: 1004.753732 | FV19: 83.72947765 | FW19: 52.88177536 | FX19: 48.47496075 | FY19: 0 | FZ19: 4.406814613 | GA19: 4.406814613 | GB19: 35.25451691 | GC19: 0 | GD19: 11153.64779 | GE19: 1886.116655 | GF19: 0 | GG19: 0 | GH19: 0
A20: 2 | B20: POLES | C20: > 1 kv & < = 11 kv ; concrete | D20: 7.227111892 | E20: 55.13939012 | F20: 7.425590221 | G20: 2 | H20: 4 | I20: 23 | J20: 46 | K20: 193 | L20: 350 | M20: 450 | N20: 354 | O20: 416 | P20: 440 | Q20: 476 | R20: 557 | S20: 514 | T20: 668 | U20: 572 | V20: 564 | W20: 708 | X20: 723 | Y20: 820 | Z20: 356 | AA20: 538 | AB20: 534 | AC20: 732 | AD20: 1075 | AE20: 1197 | AF20: 1158 | AG20: 952 | AH20: 1598 | AI20: 1089 | AJ20: 975 | AK20: 1435 | AL20: 1377 | AM20: 683 | AN20: 366 | AO20: 199 | AP20: 199 | AQ20: 85 | AR20: 24 | AS20: 117 | AT20: 6 | AU20: 5 | AV20: 4 | AW20: 3 | AX20: 2 | AY20: 3 | AZ20: 1 | BA20: 1 | BB20: 1 | BC20: 3 | BD20: 0 | BE20: 4 | BF20: 16 | BG20: 12 | BH20: 4 | BI20: 1 | BJ20: 0 | BK20: 2 | BL20: 21 | BM20: 12 | BN20: 3 | BO20: 0 | BP20: 2 | BQ20: 0 | BR20: 0 | BS20: 0 | BT20: 0 | BU20: 19 | BV20: 0 | BW20: 23 | BX20: 0 | BY20: 0 | BZ20: 0 | CA20: 0 | CB20: 0 | CC20: 0 | CD20: 0 | CE20: 0 | CF20: 0 | CG20: 1 | CH20: 0 | CI20: 0 | CJ20: 0 | CK20: 0 | CL20: 0 | CM20: 0 | CN20: 0 | CO20: 0 | CP20: 0 | CQ20: 4 | CR20: 0 | CS20: 0 | CT20: 0 | CV20: 28.90844757 | CW20: 166.2235735 | CX20: 332.4471471 | CY20: 1394.832595 | CZ20: 2529.489162 | DA20: 3252.200352 | DB20: 2558.39761 | DC20: 3006.478547 | DD20: 3179.929233 | DE20: 3440.105261 | DF20: 4025.501324 | DG20: 3714.735513 | DH20: 4827.710744 | DI20: 4133.908003 | DJ20: 4076.091107 | DK20: 5116.79522 | DL20: 5225.201898 | DM20: 5926.231752 | DN20: 2572.851834 | DO20: 3888.186198 | DP20: 3859.277751 | DQ20: 5290.245905 | DR20: 7769.145284 | DS20: 8650.852935 | DT20: 8368.995572 | DU20: 6880.210522 | DV20: 11548.9248 | DW20: 7870.324851 | DX20: 7046.434095 | DY20: 10370.90557 | DZ20: 9951.733076 | EA20: 4936.117423 | EB20: 2645.122953 | EC20: 1438.195267 | ED20: 1438.195267 | EE20: 614.3045109 | EF20: 173.4506854 | EG20: 845.5720914 | EH20: 43.36267135 | EI20: 36.13555946 | EJ20: 28.90844757 | EK20: 21.68133568 | EL20: 14.45422378 | EM20: 21.68133568 | EN20: 7.227111892 | EO20: 7.227111892 | EP20: 7.227111892 | EQ20: 21.68133568 | ER20: 0 | ES20: 28.90844757 | ET20: 115.6337903 | EU20: 86.72534271 | EV20: 28.90844757 | EW20: 7.227111892 | EX20: 0 | EY20: 14.45422378 | EZ20: 151.7693497 | FA20: 86.72534271 | FB20: 21.68133568 | FC20: 0 | FD20: 14.45422378 | FE20: 0 | FF20: 0 | FG20: 0 | FH20: 0 | FI20: 137.315126 | FJ20: 0 | FK20: 166.2235735 | FL20: 0 | FM20: 0 | FN20: 0 | FO20: 0 | FP20: 0 | FQ20: 0 | FR20: 0 | FS20: 0 | FT20: 0 | FU20: 7.227111892 | FV20: 0 | FW20: 0 | FX20: 0 | FY20: 0 | FZ20: 0 | GA20: 0 | GB20: 0 | GC20: 0 | GD20: 0 | GE20: 28.90844757 | GF20: 0 | GG20: 0 | GH20: 0
A21: 2 | B21: POLES | C21: > 1 kv & < = 11 kv ; steel | D21: 8.265424663 | E21: 65.07053919 | F21: 8.066631217 | G21: 2 | H21: 13 | I21: 34 | J21: 158 | K21: 395 | L21: 1107 | M21: 1143 | N21: 744 | O21: 795 | P21: 1130 | Q21: 273 | R21: 247 | S21: 26 | T21: 7 | U21: 3 | V21: 5 | W21: 0 | X21: 2 | Y21: 6 | Z21: 0 | AA21: 0 | AB21: 2 | AC21: 0 | AD21: 1 | AE21: 2 | AF21: 0 | AG21: 1 | AH21: 1 | AI21: 0 | AJ21: 2 | AK21: 1 | AL21: 1 | AM21: 0 | AN21: 4 | AO21: 0 | AP21: 2 | AQ21: 2 | AR21: 1 | AS21: 0 | AT21: 0 | AU21: 20 | AV21: 7 | AW21: 2 | AX21: 2 | AY21: 0 | AZ21: 0 | BA21: 2 | BB21: 1 | BC21: 9 | BD21: 0 | BE21: 1 | BF21: 1 | BG21: 63 | BH21: 3 | BI21: 0 | BJ21: 0 | BK21: 19 | BL21: 5 | BM21: 7 | BN21: 0 | BO21: 8 | BP21: 0 | BQ21: 1 | BR21: 5 | BS21: 0 | BT21: 0 | BU21: 1 | BV21: 0 | BW21: 3 | BX21: 0 | BY21: 0 | BZ21: 0 | CA21: 0 | CB21: 0 | CC21: 0 | CD21: 0 | CE21: 0 | CF21: 0 | CG21: 0 | CH21: 0 | CI21: 0 | CJ21: 0 | CK21: 0 | CL21: 0 | CM21: 0 | CN21: 0 | CO21: 0 | CP21: 0 | CQ21: 0 | CR21: 0 | CS21: 0 | CT21: 0 | CV21: 107.4505206 | CW21: 281.0244385 | CX21: 1305.937097 | CY21: 3264.842742 | CZ21: 9149.825102 | DA21: 9447.38039 | DB21: 6149.475949 | DC21: 6571.012607 | DD21: 9339.929869 | DE21: 2256.460933 | DF21: 2041.559892 | DG21: 214.9010412 | DH21: 57.85797264 | DI21: 24.79627399 | DJ21: 41.32712331 | DK21: 0 | DL21: 16.53084933 | DM21: 49.59254798 | DN21: 0 | DO21: 0 | DP21: 16.53084933 | DQ21: 0 | DR21: 8.265424663 | DS21: 16.53084933 | DT21: 0 | DU21: 8.265424663 | DV21: 8.265424663 | DW21: 0 | DX21: 16.53084933 | DY21: 8.265424663 | DZ21: 8.265424663 | EA21: 0 | EB21: 33.06169865 | EC21: 0 | ED21: 16.53084933 | EE21: 16.53084933 | EF21: 8.265424663 | EG21: 0 | EH21: 0 | EI21: 165.3084933 | EJ21: 57.85797264 | EK21: 16.53084933 | EL21: 16.53084933 | EM21: 0 | EN21: 0 | EO21: 16.53084933 | EP21: 8.265424663 | EQ21: 74.38882197 | ER21: 0 | ES21: 8.265424663 | ET21: 8.265424663 | EU21: 520.7217538 | EV21: 24.79627399 | EW21: 0 | EX21: 0 | EY21: 157.0430686 | EZ21: 41.32712331 | FA21: 57.85797264 | FB21: 0 | FC21: 66.1233973 | FD21: 0 | FE21: 8.265424663 | FF21: 41.32712331 | FG21: 0 | FH21: 0 | FI21: 8.265424663 | FJ21: 0 | FK21: 24.79627399 | FL21: 0 | FM21: 0 | FN21: 0 | FO21: 0 | FP21: 0 | FQ21: 0 | FR21: 0 | FS21: 0 | FT21: 0 | FU21: 0 | FV21: 0 | FW21: 0 | FX21: 0 | FY21: 0 | FZ21: 0 | GA21: 0 | GB21: 0 | GC21: 0 | GD21: 0 | GE21: 0 | GF21: 0 | GG21: 0 | GH21: 0
A22: 2 | B22: POLES | C22: > 1 kv & < = 11 kv ; wood | D22: 4.476795373 | E22: 71.04797837 | F22: 8.428996285 | G22: 2 | H22: 3686 | I22: 4666 | J22: 6078 | K22: 6232 | L22: 6026 | M22: 6541 | N22: 5843 | O22: 5322 | P22: 5370 | Q22: 5556 | R22: 5486 | S22: 5267 | T22: 5933 | U22: 5608 | V22: 5314 | W22: 4956 | X22: 4620 | Y22: 4557 | Z22: 3125 | AA22: 3141 | AB22: 3902 | AC22: 4971 | AD22: 6370 | AE22: 6801 | AF22: 6571 | AG22: 7263 | AH22: 7776 | AI22: 8582 | AJ22: 7308 | AK22: 8563 | AL22: 10483 | AM22: 8705 | AN22: 7082 | AO22: 5796 | AP22: 6063 | AQ22: 7753 | AR22: 7704 | AS22: 7820 | AT22: 5918 | AU22: 6418 | AV22: 7907 | AW22: 6018 | AX22: 6600 | AY22: 5423 | AZ22: 5017 | BA22: 6226 | BB22: 8989 | BC22: 15584 | BD22: 8960 | BE22: 4950 | BF22: 10741 | BG22: 6904 | BH22: 7542 | BI22: 4930 | BJ22: 1814 | BK22: 4677 | BL22: 14403 | BM22: 23821 | BN22: 3195 | BO22: 3506 | BP22: 2392 | BQ22: 2779 | BR22: 9417 | BS22: 1275 | BT22: 3627 | BU22: 4322 | BV22: 3678 | BW22: 17483 | BX22: 487 | BY22: 267 | BZ22: 370 | CA22: 174 | CB22: 53 | CC22: 13 | CD22: 0 | CE22: 0 | CF22: 1 | CG22: 205 | CH22: 144 | CI22: 79 | CJ22: 14 | CK22: 192 | CL22: 8 | CM22: 5 | CN22: 0 | CO22: 2 | CP22: 26 | CQ22: 29 | CR22: 0 | CS22: 0 | CT22: 0 | CV22: 16501.46775 | CW22: 20888.72721 | CX22: 27209.96228 | CY22: 27899.38877 | CZ22: 26977.16892 | DA22: 29282.71854 | DB22: 26157.91537 | DC22: 23825.50498 | DD22: 24040.39115 | DE22: 24873.07509 | DF22: 24559.69942 | DG22: 23579.28123 | DH22: 26560.82695 | DI22: 25105.86845 | DJ22: 23789.69061 | DK22: 22186.99787 | DL22: 20682.79462 | DM22: 20400.75652 | DN22: 13989.98554 | DO22: 14061.61427 | DP22: 17468.45555 | DQ22: 22254.1498 | DR22: 28517.18653 | DS22: 30446.68533 | DT22: 29417.0224 | DU22: 32514.9648 | DV22: 34811.56082 | DW22: 38419.85789 | DX22: 32716.42059 | DY22: 38334.79878 | DZ22: 46930.2459 | EA22: 38970.50372 | EB22: 31704.66483 | EC22: 25947.50598 | ED22: 27142.81035 | EE22: 34708.59453 | EF22: 34489.23156 | EG22: 35008.53982 | EH22: 26493.67502 | EI22: 28732.07271 | EJ22: 35398.02102 | EK22: 26941.35456 | EL22: 29546.84946 | EM22: 24277.66131 | EN22: 22460.08239 | EO22: 27872.52799 | EP22: 40241.91361 | EQ22: 69766.3791 | ER22: 40112.08654 | ES22: 22160.1371 | ET22: 48085.2591 | EU22: 30907.79526 | EV22: 33763.99071 | EW22: 22070.60119 | EX22: 8120.906807 | EY22: 20937.97196 | EZ22: 64479.28376 | FA22: 106641.7426 | FB22: 14303.36122 | FC22: 15695.64458 | FD22: 10708.49453 | FE22: 12441.01434 | FF22: 42157.98203 | FG22: 5707.914101 | FH22: 16237.33682 | FI22: 19348.7096 | FJ22: 16465.65338 | FK22: 78267.81351 | FL22: 2180.199347 | FM22: 1195.304365 | FN22: 1656.414288 | FO22: 778.962395 | FP22: 237.2701548 | FQ22: 58.19833985 | FR22: 0 | FS22: 0 | FT22: 4.476795373 | FU22: 917.7430515 | FV22: 644.6585338 | FW22: 353.6668345 | FX22: 62.67513523 | FY22: 859.5447117 | FZ22: 35.81436299 | GA22: 22.38397687 | GB22: 0 | GC22: 8.953590747 | GD22: 116.3966797 | GE22: 129.8270658 | GF22: 0 | GG22: 0 | GH22: 0
A23: 2 | B23: POLES | C23: > 132 kv ; steel | D23: 12.71404631 | E23: 60.00596142 | F23: 7.746351491 | G23: 2 | H23: 0 | I23: 0 | J23: 0 | K23: 0 | L23: 0 | M23: 0 | N23: 0 | O23: 0 | P23: 0 | Q23: 0 | R23: 0 | S23: 0 | T23: 0 | U23: 0 | V23: 0 | W23: 0 | X23: 0 | Y23: 0 | Z23: 0 | AA23: 0 | AB23: 0 | AC23: 0 | AD23: 0 | AE23: 0 | AF23: 0 | AG23: 0 | AH23: 0 | AI23: 0 | AJ23: 0 | AK23: 0 | AL23: 0 | AM23: 10 | AN23: 0 | AO23: 0 | AP23: 0 | AQ23: 0 | AR23: 0 | AS23: 0 | AT23: 0 | AU23: 0 | AV23: 0 | AW23: 0 | AX23: 0 | AY23: 0 | AZ23: 0 | BA23: 0 | BB23: 0 | BC23: 0 | BD23: 0 | BE23: 0 | BF23: 0 | BG23: 0 | BH23: 0 | BI23: 0 | BJ23: 0 | BK23: 0 | BL23: 0 | BM23: 0 | BN23: 0 | BO23: 0 | BP23: 0 | BQ23: 0 | BR23: 0 | BS23: 0 | BT23: 0 | BU23: 0 | BV23: 0 | BW23: 0 | BX23: 0 | BY23: 0 | BZ23: 0 | CA23: 0 | CB23: 0 | CC23: 0 | CD23: 0 | CE23: 0 | CF23: 0 | CG23: 0 | CH23: 0 | CI23: 0 | CJ23: 0 | CK23: 0 | CL23: 0 | CM23: 0 | CN23: 0 | CO23: 0 | CP23: 0 | CQ23: 0 | CR23: 0 | CS23: 0 | CT23: 0 | CV23: 0 | CW23: 0 | CX23: 0 | CY23: 0 | CZ23: 0 | DA23: 0 | DB23: 0 | DC23: 0 | DD23: 0 | DE23: 0 | DF23: 0 | DG23: 0 | DH23: 0 | DI23: 0 | DJ23: 0 | DK23: 0 | DL23: 0 | DM23: 0 | DN23: 0 | DO23: 0 | DP23: 0 | DQ23: 0 | DR23: 0 | DS23: 0 | DT23: 0 | DU23: 0 | DV23: 0 | DW23: 0 | DX23: 0 | DY23: 0 | DZ23: 0 | EA23: 127.1404631 | EB23: 0 | EC23: 0 | ED23: 0 | EE23: 0 | EF23: 0 | EG23: 0 | EH23: 0 | EI23: 0 | EJ23: 0 | EK23: 0 | EL23: 0 | EM23: 0 | EN23: 0 | EO23: 0 | EP23: 0 | EQ23: 0 | ER23: 0 | ES23: 0 | ET23: 0 | EU23: 0 | EV23: 0 | EW23: 0 | EX23: 0 | EY23: 0 | EZ23: 0 | FA23: 0 | FB23: 0 | FC23: 0 | FD23: 0 | FE23: 0 | FF23: 0 | FG23: 0 | FH23: 0 | FI23: 0 | FJ23: 0 | FK23: 0 | FL23: 0 | FM23: 0 | FN23: 0 | FO23: 0 | FP23: 0 | FQ23: 0 | FR23: 0 | FS23: 0 | FT23: 0 | FU23: 0 | FV23: 0 | FW23: 0 | FX23: 0 | FY23: 0 | FZ23: 0 | GA23: 0 | GB23: 0 | GC23: 0 | GD23: 0 | GE23: 0 | GF23: 0 | GG23: 0 | GH23: 0
A24: 2 | B24: POLES | C24: > 22 kv & < = 66 kv ; concrete | D24: 11.26175051 | E24: 54.37457092 | F24: 7.373911507 | G24: 2 | H24: 9 | I24: 65 | J24: 17 | K24: 340 | L24: 491 | M24: 401 | N24: 280 | O24: 484 | P24: 473 | Q24: 198 | R24: 361 | S24: 387 | T24: 715 | U24: 239 | V24: 184 | W24: 270 | X24: 416 | Y24: 611 | Z24: 159 | AA24: 209 | AB24: 135 | AC24: 158 | AD24: 743 | AE24: 1320 | AF24: 1123 | AG24: 785 | AH24: 1037 | AI24: 369 | AJ24: 394 | AK24: 1670 | AL24: 725 | AM24: 219 | AN24: 296 | AO24: 446 | AP24: 88 | AQ24: 1043 | AR24: 124 | AS24: 7 | AT24: 3 | AU24: 4 | AV24: 1 | AW24: 11 | AX24: 0 | AY24: 2 | AZ24: 3 | BA24: 2 | BB24: 2 | BC24: 1 | BD24: 1 | BE24: 4 | BF24: 12 | BG24: 12 | BH24: 3 | BI24: 0 | BJ24: 1 | BK24: 1 | BL24: 1 | BM24: 2 | BN24: 0 | BO24: 0 | BP24: 0 | BQ24: 0 | BR24: 0 | BS24: 0 | BT24: 0 | BU24: 0 | BV24: 0 | BW24: 1 | BX24: 0 | BY24: 0 | BZ24: 0 | CA24: 0 | CB24: 0 | CC24: 0 | CD24: 0 | CE24: 0 | CF24: 0 | CG24: 5 | CH24: 0 | CI24: 0 | CJ24: 0 | CK24: 0 | CL24: 0 | CM24: 0 | CN24: 0 | CO24: 0 | CP24: 0 | CQ24: 0 | CR24: 0 | CS24: 0 | CT24: 0 | CV24: 101.3557546 | CW24: 732.0137832 | CX24: 191.4497587 | CY24: 3828.995174 | CZ24: 5529.519501 | DA24: 4515.961955 | DB24: 3153.290143 | DC24: 5450.687247 | DD24: 5326.807991 | DE24: 2229.826601 | DF24: 4065.491934 | DG24: 4358.297448 | DH24: 8052.151615 | DI24: 2691.558372 | DJ24: 2072.162094 | DK24: 3040.672638 | DL24: 4684.888212 | DM24: 6880.929562 | DN24: 1790.618331 | DO24: 2353.705857 | DP24: 1520.336319 | DQ24: 1779.356581 | DR24: 8367.480629 | DS24: 14865.51067 | DT24: 12646.94582 | DU24: 8840.474151 | DV24: 11678.43528 | DW24: 4155.585938 | DX24: 4437.129701 | DY24: 18807.12335 | DZ24: 8164.76912 | EA24: 2466.323362 | EB24: 3333.478151 | EC24: 5022.740728 | ED24: 991.0340449 | EE24: 11746.00578 | EF24: 1396.457063 | EG24: 78.83225357 | EH24: 33.78525153 | EI24: 45.04700204 | EJ24: 11.26175051 | EK24: 123.8792556 | EL24: 0 | EM24: 22.52350102 | EN24: 33.78525153 | EO24: 22.52350102 | EP24: 22.52350102 | EQ24: 11.26175051 | ER24: 11.26175051 | ES24: 45.04700204 | ET24: 135.1410061 | EU24: 135.1410061 | EV24: 33.78525153 | EW24: 0 | EX24: 11.26175051 | EY24: 11.26175051 | EZ24: 11.26175051 | FA24: 22.52350102 | FB24: 0 | FC24: 0 | FD24: 0 | FE24: 0 | FF24: 0 | FG24: 0 | FH24: 0 | FI24: 0 | FJ24: 0 | FK24: 11.26175051 | FL24: 0 | FM24: 0 | FN24: 0 | FO24: 0 | FP24: 0 | FQ24: 0 | FR24: 0 | FS24: 0 | FT24: 0 | FU24: 56.30875255 | FV24: 0 | FW24: 0 | FX24: 0 | FY24: 0 | FZ24: 0 | GA24: 0 | GB24: 0 | GC24: 0 | GD24: 0 | GE24: 0 | GF24: 0 | GG24: 0 | GH24: 0
A25: 2 | B25: POLES | C25: > 22 kv & < = 66 kv ; steel | D25: 15.35630126 | E25: 97.06788126 | F25: 9.852303348 | G25: 2 | H25: 24 | I25: 308 | J25: 149 | K25: 553 | L25: 755 | M25: 450 | N25: 389 | O25: 217 | P25: 138 | Q25: 266 | R25: 310 | S25: 36 | T25: 297 | U25: 22 | V25: 1 | W25: 0 | X25: 4 | Y25: 1 | Z25: 2 | AA25: 1 | AB25: 0 | AC25: 1 | AD25: 1 | AE25: 1 | AF25: 1 | AG25: 0 | AH25: 0 | AI25: 2 | AJ25: 0 | AK25: 2 | AL25: 0 | AM25: 1 | AN25: 1 | AO25: 0 | AP25: 1 | AQ25: 0 | AR25: 0 | AS25: 0 | AT25: 1 | AU25: 0 | AV25: 0 | AW25: 0 | AX25: 0 | AY25: 0 | AZ25: 1 | BA25: 1 | BB25: 0 | BC25: 1 | BD25: 0 | BE25: 2 | BF25: 0 | BG25: 2 | BH25: 0 | BI25: 2 | BJ25: 0 | BK25: 0 | BL25: 1 | BM25: 10 | BN25: 0 | BO25: 0 | BP25: 0 | BQ25: 0 | BR25: 3 | BS25: 1 | BT25: 0 | BU25: 0 | BV25: 0 | BW25: 71 | BX25: 0 | BY25: 0 | BZ25: 0 | CA25: 0 | CB25: 0 | CC25: 0 | CD25: 0 | CE25: 0 | CF25: 0 | CG25: 0 | CH25: 0 | CI25: 0 | CJ25: 1 | CK25: 0 | CL25: 0 | CM25: 0 | CN25: 0 | CO25: 0 | CP25: 0 | CQ25: 0 | CR25: 0 | CS25: 9 | CT25: 0 | CV25: 368.5512302 | CW25: 4729.740788 | CX25: 2288.088888 | CY25: 8492.034597 | CZ25: 11594.00745 | DA25: 6910.335567 | DB25: 5973.60119 | DC25: 3332.317373 | DD25: 2119.169574 | DE25: 4084.776135 | DF25: 4760.453391 | DG25: 552.8268454 | DH25: 4560.821474 | DI25: 337.8386277 | DJ25: 15.35630126 | DK25: 0 | DL25: 61.42520504 | DM25: 15.35630126 | DN25: 30.71260252 | DO25: 15.35630126 | DP25: 0 | DQ25: 15.35630126 | DR25: 15.35630126 | DS25: 15.35630126 | DT25: 15.35630126 | DU25: 0 | DV25: 0 | DW25: 30.71260252 | DX25: 0 | DY25: 30.71260252 | DZ25: 0 | EA25: 15.35630126 | EB25: 15.35630126 | EC25: 0 | ED25: 15.35630126 | EE25: 0 | EF25: 0 | EG25: 0 | EH25: 15.35630126 | EI25: 0 | EJ25: 0 | EK25: 0 | EL25: 0 | EM25: 0 | EN25: 15.35630126 | EO25: 15.35630126 | EP25: 0 | EQ25: 15.35630126 | ER25: 0 | ES25: 30.71260252 | ET25: 0 | EU25: 30.71260252 | EV25: 0 | EW25: 30.71260252 | EX25: 0 | EY25: 0 | EZ25: 15.35630126 | FA25: 153.5630126 | FB25: 0 | FC25: 0 | FD25: 0 | FE25: 0 | FF25: 46.06890378 | FG25: 15.35630126 | FH25: 0 | FI25: 0 | FJ25: 0 | FK25: 1090.297389 | FL25: 0 | FM25: 0 | FN25: 0 | FO25: 0 | FP25: 0 | FQ25: 0 | FR25: 0 | FS25: 0 | FT25: 0 | FU25: 0 | FV25: 0 | FW25: 0 | FX25: 15.35630126 | FY25: 0 | FZ25: 0 | GA25: 0 | GB25: 0 | GC25: 0 | GD25: 0 | GE25: 0 | GF25: 0 | GG25: 138.2067113 | GH25: 0
A26: 2 | B26: POLES | C26: > 22 kv & < = 66 kv ; wood | D26: 7.283633195 | E26: 71.94053326 | F26: 8.481776539 | G26: 2 | H26: 102 | I26: 856 | J26: 527 | K26: 553 | L26: 304 | M26: 251 | N26: 306 | O26: 151 | P26: 217 | Q26: 284 | R26: 541 | S26: 315 | T26: 464 | U26: 477 | V26: 491 | W26: 609 | X26: 516 | Y26: 357 | Z26: 202 | AA26: 202 | AB26: 263 | AC26: 379 | AD26: 338 | AE26: 438 | AF26: 405 | AG26: 422 | AH26: 816 | AI26: 512 | AJ26: 629 | AK26: 617 | AL26: 852 | AM26: 512 | AN26: 678 | AO26: 978 | AP26: 1090 | AQ26: 1668 | AR26: 1467 | AS26: 785 | AT26: 763 | AU26: 1372 | AV26: 1214 | AW26: 618 | AX26: 505 | AY26: 749 | AZ26: 502 | BA26: 1207 | BB26: 2004 | BC26: 2785 | BD26: 1982 | BE26: 1990 | BF26: 3217 | BG26: 2743 | BH26: 3189 | BI26: 1250 | BJ26: 720 | BK26: 1098 | BL26: 2059 | BM26: 3205 | BN26: 88 | BO26: 128 | BP26: 127 | BQ26: 242 | BR26: 1135 | BS26: 2 | BT26: 67 | BU26: 429 | BV26: 28 | BW26: 1358 | BX26: 56 | BY26: 42 | BZ26: 55 | CA26: 185 | CB26: 200 | CC26: 0 | CD26: 14 | CE26: 0 | CF26: 0 | CG26: 81 | CH26: 0 | CI26: 0 | CJ26: 81 | CK26: 16 | CL26: 89 | CM26: 0 | CN26: 1 | CO26: 0 | CP26: 786 | CQ26: 4 | CR26: 0 | CS26: 0 | CT26: 0 | CV26: 742.9305859 | CW26: 6234.790015 | CX26: 3838.474694 | CY26: 4027.849157 | CZ26: 2214.224491 | DA26: 1828.191932 | DB26: 2228.791758 | DC26: 1099.828613 | DD26: 1580.548403 | DE26: 2068.551827 | DF26: 3940.445559 | DG26: 2294.344457 | DH26: 3379.605803 | DI26: 3474.293034 | DJ26: 3576.263899 | DK26: 4435.732616 | DL26: 3758.354729 | DM26: 2600.257051 | DN26: 1471.293905 | DO26: 1471.293905 | DP26: 1915.59553 | DQ26: 2760.496981 | DR26: 2461.86802 | DS26: 3190.23134 | DT26: 2949.871444 | DU26: 3073.693208 | DV26: 5943.444687 | DW26: 3729.220196 | DX26: 4581.40528 | DY26: 4494.001682 | DZ26: 6205.655482 | EA26: 3729.220196 | EB26: 4938.303306 | EC26: 7123.393265 | ED26: 7939.160183 | EE26: 12149.10017 | EF26: 10685.0899 | EG26: 5717.652058 | EH26: 5557.412128 | EI26: 9993.144744 | EJ26: 8842.330699 | EK26: 4501.285315 | EL26: 3678.234764 | EM26: 5455.441263 | EN26: 3656.383864 | EO26: 8791.345267 | EP26: 14596.40092 | EQ26: 20284.91845 | ER26: 14436.16099 | ES26: 14494.43006 | ET26: 23431.44799 | EU26: 19979.00585 | EV26: 23227.50626 | EW26: 9104.541494 | EX26: 5244.215901 | EY26: 7997.429249 | EZ26: 14997.00075 | FA26: 23344.04439 | FB26: 640.9597212 | FC26: 932.305049 | FD26: 925.0214158 | FE26: 1762.639233 | FF26: 8266.923677 | FG26: 14.56726639 | FH26: 488.0034241 | FI26: 3124.678641 | FJ26: 203.9417295 | FK26: 9891.173879 | FL26: 407.8834589 | FM26: 305.9125942 | FN26: 400.5998257 | FO26: 1347.472141 | FP26: 1456.726639 | FQ26: 0 | FR26: 101.9708647 | FS26: 0 | FT26: 0 | FU26: 589.9742888 | FV26: 0 | FW26: 0 | FX26: 589.9742888 | FY26: 116.5381311 | FZ26: 648.2433544 | GA26: 0 | GB26: 7.283633195 | GC26: 0 | GD26: 5724.935692 | GE26: 29.13453278 | GF26: 0 | GG26: 0 | GH26: 0
A27: 2 | B27: POLES | C27: > 66 kv & < = 132 kv ; concrete | D27: 11.92450013 | E27: 50.72604952 | F27: 7.122222232 | G27: 2 | H27: 0 | I27: 1 | J27: 45 | K27: 203 | L27: 52 | M27: 282 | N27: 91 | O27: 41 | P27: 30 | Q27: 16 | R27: 75 | S27: 42 | T27: 199 | U27: 330 | V27: 4 | W27: 10 | X27: 11 | Y27: 9 | Z27: 0 | AA27: 158 | AB27: 194 | AC27: 25 | AD27: 11 | AE27: 96 | AF27: 179 | AG27: 100 | AH27: 1246 | AI27: 53 | AJ27: 87 | AK27: 168 | AL27: 330 | AM27: 399 | AN27: 69 | AO27: 1 | AP27: 0 | AQ27: 143 | AR27: 0 | AS27: 0 | AT27: 0 | AU27: 0 | AV27: 0 | AW27: 0 | AX27: 0 | AY27: 0 | AZ27: 0 | BA27: 0 | BB27: 0 | BC27: 0 | BD27: 0 | BE27: 0 | BF27: 0 | BG27: 0 | BH27: 2 | BI27: 3 | BJ27: 0 | BK27: 0 | BL27: 0 | BM27: 0 | BN27: 0 | BO27: 0 | BP27: 0 | BQ27: 0 | BR27: 0 | BS27: 0 | BT27: 0 | BU27: 0 | BV27: 0 | BW27: 0 | BX27: 0 | BY27: 0 | BZ27: 0 | CA27: 0 | CB27: 0 | CC27: 0 | CD27: 0 | CE27: 0 | CF27: 0 | CG27: 0 | CH27: 0 | CI27: 0 | CJ27: 0 | CK27: 0 | CL27: 0 | CM27: 0 | CN27: 0 | CO27: 0 | CP27: 0 | CQ27: 0 | CR27: 0 | CS27: 0 | CT27: 0 | CV27: 0 | CW27: 11.92450013 | CX27: 536.6025058 | CY27: 2420.673526 | CZ27: 620.0740067 | DA27: 3362.709036 | DB27: 1085.129512 | DC27: 488.9045053 | DD27: 357.7350039 | DE27: 190.7920021 | DF27: 894.3375097 | DG27: 500.8290054 | DH27: 2372.975526 | DI27: 3935.085043 | DJ27: 47.69800052 | DK27: 119.2450013 | DL27: 131.1695014 | DM27: 107.3205012 | DN27: 0 | DO27: 1884.07102 | DP27: 2313.353025 | DQ27: 298.1125032 | DR27: 131.1695014 | DS27: 1144.752012 | DT27: 2134.485523 | DU27: 1192.450013 | DV27: 14857.92716 | DW27: 631.9985068 | DX27: 1037.431511 | DY27: 2003.316022 | DZ27: 3935.085043 | EA27: 4757.875552 | EB27: 822.7905089 | EC27: 11.92450013 | ED27: 0 | EE27: 1705.203518 | EF27: 0 | EG27: 0 | EH27: 0 | EI27: 0 | EJ27: 0 | EK27: 0 | EL27: 0 | EM27: 0 | EN27: 0 | EO27: 0 | EP27: 0 | EQ27: 0 | ER27: 0 | ES27: 0 | ET27: 0 | EU27: 0 | EV27: 23.84900026 | EW27: 35.77350039 | EX27: 0 | EY27: 0 | EZ27: 0 | FA27: 0 | FB27: 0 | FC27: 0 | FD27: 0 | FE27: 0 | FF27: 0 | FG27: 0 | FH27: 0 | FI27: 0 | FJ27: 0 | FK27: 0 | FL27: 0 | FM27: 0 | FN27: 0 | FO27: 0 | FP27: 0 | FQ27: 0 | FR27: 0 | FS27: 0 | FT27: 0 | FU27: 0 | FV27: 0 | FW27: 0 | FX27: 0 | FY27: 0 | FZ27: 0 | GA27: 0 | GB27: 0 | GC27: 0 | GD27: 0 | GE27: 0 | GF27: 0 | GG27: 0 | GH27: 0
A28: 2 | B28: POLES | C28: > 66 kv & < = 132 kv ; steel | D28: 12.71404631 | E28: 60.00596142 | F28: 7.746351491 | G28: 2 | H28: 1 | I28: 74 | J28: 163 | K28: 557 | L28: 146 | M28: 28 | N28: 217 | O28: 0 | P28: 49 | Q28: 31 | R28: 6 | S28: 1 | T28: 0 | U28: 0 | V28: 0 | W28: 0 | X28: 1 | Y28: 0 | Z28: 0 | AA28: 0 | AB28: 1 | AC28: 0 | AD28: 29 | AE28: 0 | AF28: 1 | AG28: 0 | AH28: 0 | AI28: 0 | AJ28: 0 | AK28: 0 | AL28: 0 | AM28: 1 | AN28: 0 | AO28: 0 | AP28: 0 | AQ28: 0 | AR28: 0 | AS28: 0 | AT28: 0 | AU28: 0 | AV28: 0 | AW28: 0 | AX28: 2 | AY28: 0 | AZ28: 24 | BA28: 0 | BB28: 0 | BC28: 0 | BD28: 0 | BE28: 0 | BF28: 0 | BG28: 3 | BH28: 2 | BI28: 2 | BJ28: 0 | BK28: 0 | BL28: 0 | BM28: 0 | BN28: 0 | BO28: 0 | BP28: 0 | BQ28: 0 | BR28: 0 | BS28: 0 | BT28: 0 | BU28: 0 | BV28: 0 | BW28: 0 | BX28: 0 | BY28: 0 | BZ28: 0 | CA28: 0 | CB28: 0 | CC28: 0 | CD28: 0 | CE28: 0 | CF28: 0 | CG28: 0 | CH28: 0 | CI28: 0 | CJ28: 0 | CK28: 0 | CL28: 0 | CM28: 0 | CN28: 0 | CO28: 0 | CP28: 0 | CQ28: 0 | CR28: 0 | CS28: 0 | CT28: 0 | CV28: 12.71404631 | CW28: 940.8394273 | CX28: 2072.389549 | CY28: 7081.723797 | CZ28: 1856.250762 | DA28: 355.9932968 | DB28: 2758.94805 | DC28: 0 | DD28: 622.9882694 | DE28: 394.1354358 | DF28: 76.28427789 | DG28: 12.71404631 | DH28: 0 | DI28: 0 | DJ28: 0 | DK28: 0 | DL28: 12.71404631 | DM28: 0 | DN28: 0 | DO28: 0 | DP28: 12.71404631 | DQ28: 0 | DR28: 368.7073431 | DS28: 0 | DT28: 12.71404631 | DU28: 0 | DV28: 0 | DW28: 0 | DX28: 0 | DY28: 0 | DZ28: 0 | EA28: 12.71404631 | EB28: 0 | EC28: 0 | ED28: 0 | EE28: 0 | EF28: 0 | EG28: 0 | EH28: 0 | EI28: 0 | EJ28: 0 | EK28: 0 | EL28: 25.42809263 | EM28: 0 | EN28: 305.1371116 | EO28: 0 | EP28: 0 | EQ28: 0 | ER28: 0 | ES28: 0 | ET28: 0 | EU28: 38.14213894 | EV28: 25.42809263 | EW28: 25.42809263 | EX28: 0 | EY28: 0 | EZ28: 0 | FA28: 0 | FB28: 0 | FC28: 0 | FD28: 0 | FE28: 0 | FF28: 0 | FG28: 0 | FH28: 0 | FI28: 0 | FJ28: 0 | FK28: 0 | FL28: 0 | FM28: 0 | FN28: 0 | FO28: 0 | FP28: 0 | FQ28: 0 | FR28: 0 | FS28: 0 | FT28: 0 | FU28: 0 | FV28: 0 | FW28: 0 | FX28: 0 | FY28: 0 | FZ28: 0 | GA28: 0 | GB28: 0 | GC28: 0 | GD28: 0 | GE28: 0 | GF28: 0 | GG28: 0 | GH28: 0
A29: 2 | B29: POLES | C29: > 66 kv & < = 132 kv ; wood | D29: 6.873377281 | E29: 69.80965752 | F29: 8.355217383 | G29: 2 | H29: 52 | I29: 65 | J29: 31 | K29: 31 | L29: 11 | M29: 4 | N29: 8 | O29: 3 | P29: 25 | Q29: 25 | R29: 12 | S29: 7 | T29: 6 | U29: 6 | V29: 3 | W29: 1 | X29: 5 | Y29: 12 | Z29: 12 | AA29: 4 | AB29: 11 | AC29: 7 | AD29: 17 | AE29: 9 | AF29: 10 | AG29: 344 | AH29: 79 | AI29: 238 | AJ29: 89 | AK29: 11 | AL29: 17 | AM29: 165 | AN29: 8 | AO29: 102 | AP29: 1983 | AQ29: 623 | AR29: 309 | AS29: 144 | AT29: 213 | AU29: 57 | AV29: 26 | AW29: 42 | AX29: 13 | AY29: 8 | AZ29: 14 | BA29: 118 | BB29: 308 | BC29: 306 | BD29: 46 | BE29: 84 | BF29: 990 | BG29: 206 | BH29: 1447 | BI29: 850 | BJ29: 53 | BK29: 91 | BL29: 198 | BM29: 37 | BN29: 0 | BO29: 13 | BP29: 0 | BQ29: 1 | BR29: 2 | BS29: 0 | BT29: 0 | BU29: 47 | BV29: 1 | BW29: 2 | BX29: 0 | BY29: 0 | BZ29: 0 | CA29: 0 | CB29: 0 | CC29: 0 | CD29: 0 | CE29: 0 | CF29: 0 | CG29: 0 | CH29: 0 | CI29: 0 | CJ29: 0 | CK29: 0 | CL29: 0 | CM29: 0 | CN29: 0 | CO29: 0 | CP29: 0 | CQ29: 0 | CR29: 0 | CS29: 0 | CT29: 0 | CV29: 357.4156186 | CW29: 446.7695232 | CX29: 213.0746957 | CY29: 213.0746957 | CZ29: 75.60715009 | DA29: 27.49350912 | DB29: 54.98701824 | DC29: 20.62013184 | DD29: 171.834432 | DE29: 171.834432 | DF29: 82.48052737 | DG29: 48.11364096 | DH29: 41.24026368 | DI29: 41.24026368 | DJ29: 20.62013184 | DK29: 6.873377281 | DL29: 34.3668864 | DM29: 82.48052737 | DN29: 82.48052737 | DO29: 27.49350912 | DP29: 75.60715009 | DQ29: 48.11364096 | DR29: 116.8474138 | DS29: 61.86039553 | DT29: 68.73377281 | DU29: 2364.441785 | DV29: 542.9968052 | DW29: 1635.863793 | DX29: 611.730578 | DY29: 75.60715009 | DZ29: 116.8474138 | EA29: 1134.107251 | EB29: 54.98701824 | EC29: 701.0844826 | ED29: 13629.90715 | EE29: 4282.114046 | EF29: 2123.87358 | EG29: 989.7663284 | EH29: 1464.029361 | EI29: 391.782505 | EJ29: 178.7078093 | EK29: 288.6818458 | EL29: 89.35390465 | EM29: 54.98701824 | EN29: 96.22728193 | EO29: 811.0585191 | EP29: 2117.000202 | EQ29: 2103.253448 | ER29: 316.1753549 | ES29: 577.3636916 | ET29: 6804.643508 | EU29: 1415.91572 | EV29: 9945.776925 | EW29: 5842.370689 | EX29: 364.2889959 | EY29: 625.4773325 | EZ29: 1360.928702 | FA29: 254.3149594 | FB29: 0 | FC29: 89.35390465 | FD29: 0 | FE29: 6.873377281 | FF29: 13.74675456 | FG29: 0 | FH29: 0 | FI29: 323.0487322 | FJ29: 6.873377281 | FK29: 13.74675456 | FL29: 0 | FM29: 0 | FN29: 0 | FO29: 0 | FP29: 0 | FQ29: 0 | FR29: 0 | FS29: 0 | FT29: 0 | FU29: 0 | FV29: 0 | FW29: 0 | FX29: 0 | FY29: 0 | FZ29: 0 | GA29: 0 | GB29: 0 | GC29: 0 | GD29: 0 | GE29: 0 | GF29: 0 | GG29: 0 | GH29: 0
A30: 2 | B30: POLES | C30: staked wooden pole | D30: 6.09742291 | E30: 28.59115578 | F30: 5.347069831 | G30: 2 | H30: 3606 | I30: 2287 | J30: 860 | K30: 544 | L30: 340 | M30: 540 | N30: 273 | O30: 743 | P30: 651 | Q30: 717 | R30: 749 | S30: 906 | T30: 562 | U30: 753 | V30: 757 | W30: 746 | X30: 746 | Y30: 746 | Z30: 746 | AA30: 746 | AB30: 744 | AC30: 744 | AD30: 744 | AE30: 744 | AF30: 741 | AG30: 741 | AH30: 741 | AI30: 741 | AJ30: 0 | AK30: 0 | AL30: 0 | AM30: 0 | AN30: 0 | AO30: 0 | AP30: 0 | AQ30: 0 | AR30: 0 | AS30: 0 | AT30: 0 | AU30: 0 | AV30: 0 | AW30: 0 | AX30: 0 | AY30: 0 | AZ30: 0 | BA30: 0 | BB30: 0 | BC30: 0 | BD30: 0 | BE30: 0 | BF30: 0 | BG30: 0 | BH30: 0 | BI30: 0 | BJ30: 0 | BK30: 0 | BL30: 0 | BM30: 0 | BN30: 0 | BO30: 0 | BP30: 0 | BQ30: 0 | BR30: 0 | BS30: 0 | BT30: 0 | BU30: 0 | BV30: 0 | BW30: 0 | BX30: 0 | BY30: 0 | BZ30: 0 | CA30: 0 | CB30: 0 | CC30: 0 | CD30: 0 | CE30: 0 | CF30: 0 | CG30: 0 | CH30: 0 | CI30: 0 | CJ30: 0 | CK30: 0 | CL30: 0 | CM30: 0 | CN30: 0 | CO30: 0 | CP30: 0 | CQ30: 0 | CR30: 0 | CS30: 0 | CT30: 0 | CV30: 21987.30702 | CW30: 13944.8062 | CX30: 5243.783703 | CY30: 3316.998063 | CZ30: 2073.12379 | DA30: 3292.608372 | DB30: 1664.596455 | DC30: 4530.385222 | DD30: 3969.422315 | DE30: 4371.852227 | DF30: 4566.96976 | DG30: 5524.265157 | DH30: 3426.751676 | DI30: 4591.359452 | DJ30: 4615.749143 | DK30: 4548.677491 | DL30: 4548.677491 | DM30: 4548.677491 | DN30: 4548.677491 | DO30: 4548.677491 | DP30: 4536.482645 | DQ30: 4536.482645 | DR30: 4536.482645 | DS30: 4536.482645 | DT30: 4518.190377 | DU30: 4518.190377 | DV30: 4518.190377 | DW30: 4518.190377 | DX30: 0 | DY30: 0 | DZ30: 0 | EA30: 0 | EB30: 0 | EC30: 0 | ED30: 0 | EE30: 0 | EF30: 0 | EG30: 0 | EH30: 0 | EI30: 0 | EJ30: 0 | EK30: 0 | EL30: 0 | EM30: 0 | EN30: 0 | EO30: 0 | EP30: 0 | EQ30: 0 | ER30: 0 | ES30: 0 | ET30: 0 | EU30: 0 | EV30: 0 | EW30: 0 | EX30: 0 | EY30: 0 | EZ30: 0 | FA30: 0 | FB30: 0 | FC30: 0 | FD30: 0 | FE30: 0 | FF30: 0 | FG30: 0 | FH30: 0 | FI30: 0 | FJ30: 0 | FK30: 0 | FL30: 0 | FM30: 0 | FN30: 0 | FO30: 0 | FP30: 0 | FQ30: 0 | FR30: 0 | FS30: 0 | FT30: 0 | FU30: 0 | FV30: 0 | FW30: 0 | FX30: 0 | FY30: 0 | FZ30: 0 | GA30: 0 | GB30: 0 | GC30: 0 | GD30: 0 | GE30: 0 | GF30: 0 | GG30: 0 | GH30: 0
A31: 3 | B31: SERVICE LINES | C31: ˂ = 11 kv ; commercial and industrial ; simple type | D31: 1.354626426 | E31: 69.98048133 | F31: 8.365433721 | G31: 2 | H31: 518.0161166 | I31: 572.9010891 | J31: 862.1517135 | K31: 1144.273128 | L31: 1464.906838 | M31: 1988.61605 | N31: 1955.735373 | O31: 1289.381472 | P31: 1575.302509 | Q31: 1775.663753 | R31: 1362.393582 | S31: 1328.492289 | T31: 1171.930497 | U31: 1157.766489 | V31: 1393.674419 | W31: 970.6061821 | X31: 1090.624549 | Y31: 1062.854761 | Z31: 1344.314584 | AA31: 930.7251484 | AB31: 972.4783409 | AC31: 1194.132478 | AD31: 1202.877942 | AE31: 1498.609679 | AF31: 1406.982025 | AG31: 1286.58372 | AH31: 1369.912707 | AI31: 1521.155154 | AJ31: 1423.088476 | AK31: 1593.396056 | AL31: 1318.379066 | AM31: 1116.745562 | AN31: 1026.747675 | AO31: 986.1438012 | AP31: 966.4443539 | AQ31: 1177.378615 | AR31: 1168.354189 | AS31: 1408.128978 | AT31: 987.7919889 | AU31: 942.0261841 | AV31: 1021.850998 | AW31: 934.2151102 | AX31: 785.1779036 | AY31: 919.9247831 | AZ31: 789.4150186 | BA31: 845.5486239 | BB31: 826.8658522 | BC31: 906.7536165 | BD31: 1921.679216 | BE31: 818.2922658 | BF31: 987.508687 | BG31: 1069.037392 | BH31: 745.4566842 | BI31: 952.1657088 | BJ31: 510.342468 | BK31: 346.3888778 | BL31: 2226.574846 | BM31: 6826.017578 | BN31: 276.4685018 | BO31: 95.69750367 | BP31: 93.29081632 | BQ31: 81.73913043 | BR31: 149.4747475 | BS31: 108.4078947 | BT31: 64.48948374 | BU31: 78.03653846 | BV31: 62.0971223 | BW31: 327.0757098 | BX31: 123.1628276 | BY31: 29 | BZ31: 10.38043478 | CA31: 8.16161616 | CB31: 0 | CC31: 5 | CD31: 1 | CE31: 2 | CF31: 1 | CG31: 6 | CH31: 31 | CI31: 0 | CJ31: 2 | CK31: 4.47058823 | CL31: 4 | CM31: 1 | CN31: 0 | CO31: 0 | CP31: 24.23414634 | CQ31: 9.08910891 | CR31: 10 | CS31: 1 | CT31: 0 | CV31: 701.718321 | CW31: 776.066955 | CX31: 1167.893495 | CY31: 1550.062618 | CZ31: 1984.401515 | DA31: 2693.831854 | DB31: 2649.29082 | DC31: 1746.630216 | DD31: 2133.946409 | DE31: 2405.361045 | DF31: 1845.534349 | DG31: 1799.610762 | DH31: 1587.528022 | DI31: 1568.341081 | DJ31: 1887.908197 | DK31: 1314.808784 | DL31: 1477.388835 | DM31: 1439.771147 | DN31: 1821.044061 | DO31: 1260.784882 | DP31: 1317.34486 | DQ31: 1617.603411 | DR31: 1629.450248 | DS31: 2030.056274 | DT31: 1905.935032 | DU31: 1742.840307 | DV31: 1855.719954 | DW31: 2060.59697 | DX31: 1927.753257 | DY31: 2158.456406 | DZ31: 1785.911123 | EA31: 1512.77305 | EB31: 1390.859534 | EC31: 1335.856453 | ED31: 1309.171062 | EE31: 1594.908185 | EF31: 1582.68346 | EG31: 1907.488725 | EH31: 1338.089132 | EI31: 1276.093563 | EJ31: 1384.226366 | EK31: 1265.512476 | EL31: 1063.622738 | EM31: 1246.154422 | EN31: 1069.362446 | EO31: 1145.402511 | EP31: 1120.094335 | EQ31: 1228.312411 | ER31: 2603.157449 | ES31: 1108.480328 | ET31: 1337.705364 | EU31: 1448.146303 | EV31: 1009.815324 | EW31: 1289.828832 | EX31: 691.3233937 | EY31: 469.2275277 | EZ31: 3016.177126 | FA31: 9246.703798 | FB31: 374.5115387 | FC31: 129.6343674 | FD31: 126.3742051 | FE31: 110.7259862 | FF31: 202.482443 | FG31: 146.852199 | FH31: 87.3591589 | FI31: 105.7103572 | FJ31: 84.11840288 | FK31: 443.0653999 | FL31: 166.8396211 | FM31: 39.28416637 | FN31: 14.06161127 | FO31: 11.05594093 | FP31: 0 | FQ31: 6.773132132 | FR31: 1.354626426 | FS31: 2.709252853 | FT31: 1.354626426 | FU31: 8.127758559 | FV31: 41.99341922 | FW31: 0 | FX31: 2.709252853 | FY31: 6.055976958 | FZ31: 5.418505706 | GA31: 1.354626426 | GB31: 0 | GC31: 0 | GD31: 32.82821506 | GE31: 12.31234712 | GF31: 13.54626426 | GG31: 1.354626426 | GH31: 0
A32: 3 | B32: SERVICE LINES | C32: ˂ = 11 kv ; residential ; simple type | D32: 0.9160197905 | E32: 65.79012813 | F32: 8.111111399 | G32: 2 | H32: 2236.983883 | I32: 6309.098911 | J32: 4449.848286 | K32: 5089.726872 | L32: 17494.09316 | M32: 27025.38395 | N32: 21523.26463 | O32: 7428.618528 | P32: 7827.697491 | Q32: 12263.33625 | R32: 9377.606418 | S32: 10121.50771 | T32: 8980.069503 | U32: 10637.23351 | V32: 10530.32558 | W32: 8673.393818 | X32: 7927.375451 | Y32: 6998.145239 | Z32: 8719.685416 | AA32: 7296.274852 | AB32: 8430.521659 | AC32: 7942.867522 | AD32: 9915.122058 | AE32: 12961.39032 | AF32: 11525.01798 | AG32: 11235.41628 | AH32: 12551.08729 | AI32: 14395.84485 | AJ32: 14130.91152 | AK32: 11143.60394 | AL32: 8579.620934 | AM32: 9368.254438 | AN32: 10474.25232 | AO32: 10539.8562 | AP32: 9024.555646 | AQ32: 10938.62139 | AR32: 12181.64581 | AS32: 10062.87102 | AT32: 9283.208011 | AU32: 8594.973816 | AV32: 10253.149 | AW32: 10703.78489 | AX32: 11071.8221 | AY32: 11527.07522 | AZ32: 9927.584981 | BA32: 8016.451376 | BB32: 7874.134148 | BC32: 7957.246383 | BD32: 10072.32078 | BE32: 7047.707734 | BF32: 7207.491313 | BG32: 8314.962608 | BH32: 6633.543316 | BI32: 7635.834291 | BJ32: 5771.657532 | BK32: 4731.611122 | BL32: 13309.42515 | BM32: 68082.98242 | BN32: 1636.531498 | BO32: 590.3024963 | BP32: 701.7091837 | BQ32: 388.2608696 | BR32: 1058.525253 | BS32: 1123.592105 | BT32: 462.5105163 | BU32: 448.9634615 | BV32: 503.9028777 | BW32: 2240.92429 | BX32: 1147.837172 | BY32: 111 | BZ32: 180.6195652 | CA32: 92.83838383 | CB32: 29 | CC32: 7 | CD32: 4 | CE32: 4 | CF32: 3 | CG32: 40 | CH32: 55 | CI32: 0 | CJ32: 4 | CK32: 14.52941176 | CL32: 11 | CM32: 2 | CN32: 0 | CO32: 0 | CP32: 182.7658536 | CQ32: 92.91089108 | CR32: 44 | CS32: 0 | CT32: 7 | CV32: 2049.121508 | CW32: 5779.259463 | CX32: 4076.149095 | CY32: 4662.290543 | CZ32: 16024.93555 | DA32: 24755.78654 | DB32: 19715.73635 | DC32: 6804.761588 | DD32: 7170.325815 | DE32: 11233.4587 | DF32: 8590.073066 | DG32: 9271.501373 | DH32: 8225.921384 | DI32: 9743.916412 | DJ32: 9645.986633 | DK32: 7945.000388 | DL32: 7261.6328 | DM32: 6410.439535 | DN32: 7987.404408 | DO32: 6683.532161 | DP32: 7722.524684 | DQ32: 7275.823844 | DR32: 9082.44803 | DS32: 11872.89005 | DT32: 10557.14455 | DU32: 10291.86367 | DV32: 11497.04435 | DW32: 13186.87878 | DX32: 12944.19461 | DY32: 10207.76175 | DZ32: 7859.10257 | EA32: 8581.506467 | EB32: 9594.62242 | EC32: 9654.716867 | ED32: 8266.671572 | EE32: 10019.99367 | EF32: 11158.62864 | EG32: 9217.789005 | EH32: 8503.602257 | EI32: 7873.166114 | EJ32: 9392.0874 | EK32: 9804.878792 | EL32: 10142.00816 | EM32: 10559.02903 | EN32: 9093.864315 | EO32: 7343.22811 | EP32: 7212.862712 | EQ32: 7288.995165 | ER32: 9226.445174 | ES32: 6455.839762 | ET32: 6602.204682 | EU32: 7616.670306 | EV32: 6076.456958 | EW32: 6994.575328 | EX32: 5286.952523 | EY32: 4334.249429 | EZ32: 12191.69684 | FA32: 62365.35929 | FB32: 1499.09524 | FC32: 540.728769 | FD32: 642.7794994 | FE32: 355.6546404 | FF32: 969.63008 | FG32: 1029.232605 | FH32: 423.6687862 | FI32: 411.259416 | FJ32: 461.5850084 | FK32: 2052.730999 | FL32: 1051.441566 | FM32: 101.6781967 | FN32: 165.4510963 | FO32: 85.0417969 | FP32: 26.56457392 | FQ32: 6.412138533 | FR32: 3.664079162 | FS32: 3.664079162 | FT32: 2.748059371 | FU32: 36.64079162 | FV32: 50.38108848 | FW32: 0 | FX32: 3.664079162 | FY32: 13.30922872 | FZ32: 10.0762177 | GA32: 1.832039581 | GB32: 0 | GC32: 0 | GD32: 167.417139 | GE32: 85.10821498 | GF32: 40.30487078 | GG32: 0 | GH32: 6.412138533
A33: 4 | B33: SWITCHGEAR | C33: ˂ = 11 kv ; circuit breaker | D33: 58.44997408 | E33: 52.16150967 | F33: 7.222292549 | G33: 2 | H33: 115 | I33: 82 | J33: 438 | K33: 227 | L33: 597 | M33: 677 | N33: 753 | O33: 528 | P33: 761 | Q33: 857 | R33: 953 | S33: 635 | T33: 767 | U33: 482 | V33: 199 | W33: 314 | X33: 262 | Y33: 191 | Z33: 106 | AA33: 95 | AB33: 120 | AC33: 24 | AD33: 249 | AE33: 119 | AF33: 121 | AG33: 137 | AH33: 162 | AI33: 137 | AJ33: 123 | AK33: 71 | AL33: 192 | AM33: 52 | AN33: 137 | AO33: 44 | AP33: 47 | AQ33: 189 | AR33: 74 | AS33: 82 | AT33: 25 | AU33: 74 | AV33: 74 | AW33: 30 | AX33: 93 | AY33: 30 | AZ33: 55 | BA33: 79 | BB33: 55 | BC33: 33 | BD33: 60 | BE33: 77 | BF33: 25 | BG33: 77 | BH33: 66 | BI33: 19 | BJ33: 5 | BK33: 5 | BL33: 3 | BM33: 33 | BN33: 0 | BO33: 3 | BP33: 8 | BQ33: 8 | BR33: 55 | BS33: 0 | BT33: 8 | BU33: 19 | BV33: 3 | BW33: 55 | BX33: 0 | BY33: 0 | BZ33: 0 | CA33: 0 | CB33: 3 | CC33: 0 | CD33: 0 | CE33: 0 | CF33: 0 | CG33: 3 | CH33: 0 | CI33: 0 | CJ33: 0 | CK33: 3 | CL33: 3 | CM33: 0 | CN33: 0 | CO33: 0 | CP33: 0 | CQ33: 0 | CR33: 0 | CS33: 0 | CT33: 0 | CV33: 6721.74702 | CW33: 4792.897875 | CX33: 25601.08865 | CY33: 13268.14412 | CZ33: 34894.63453 | DA33: 39570.63245 | DB33: 44012.83048 | DC33: 30861.58632 | DD33: 44480.43028 | DE33: 50091.62779 | DF33: 55702.8253 | DG33: 37115.73354 | DH33: 44831.13012 | DI33: 28172.88751 | DJ33: 11631.54484 | DK33: 18353.29186 | DL33: 15313.89321 | DM33: 11163.94505 | DN33: 6195.697253 | DO33: 5552.747538 | DP33: 7013.99689 | DQ33: 1402.799378 | DR33: 14554.04355 | DS33: 6955.546916 | DT33: 7072.446864 | DU33: 8007.646449 | DV33: 9468.895801 | DW33: 8007.646449 | DX33: 7189.346812 | DY33: 4149.94816 | DZ33: 11222.39502 | EA33: 3039.398652 | EB33: 8007.646449 | EC33: 2571.79886 | ED33: 2747.148782 | EE33: 11047.0451 | EF33: 4325.298082 | EG33: 4792.897875 | EH33: 1461.249352 | EI33: 4325.298082 | EJ33: 4325.298082 | EK33: 1753.499222 | EL33: 5435.84759 | EM33: 1753.499222 | EN33: 3214.748575 | EO33: 4617.547953 | EP33: 3214.748575 | EQ33: 1928.849145 | ER33: 3506.998445 | ES33: 4500.648004 | ET33: 1461.249352 | EU33: 4500.648004 | EV33: 3857.698289 | EW33: 1110.549508 | EX33: 292.2498704 | EY33: 292.2498704 | EZ33: 175.3499222 | FA33: 1928.849145 | FB33: 0 | FC33: 175.3499222 | FD33: 467.5997927 | FE33: 467.5997927 | FF33: 3214.748575 | FG33: 0 | FH33: 467.5997927 | FI33: 1110.549508 | FJ33: 175.3499222 | FK33: 3214.748575 | FL33: 0 | FM33: 0 | FN33: 0 | FO33: 0 | FP33: 175.3499222 | FQ33: 0 | FR33: 0 | FS33: 0 | FT33: 0 | FU33: 175.3499222 | FV33: 0 | FW33: 0 | FX33: 0 | FY33: 175.3499222 | FZ33: 175.3499222 | GA33: 0 | GB33: 0 | GC33: 0 | GD33: 0 | GE33: 0 | GF33: 0 | GG33: 0 | GH33: 0
A34: 4 | B34: SWITCHGEAR | C34: ˂ = 11 kv ; fuse | D34: 2.246634642 | E34: 67.79940275 | F34: 8.234039273 | G34: 2 | H34: 4564 | I34: 5649 | J34: 7071 | K34: 5880 | L34: 9304 | M34: 9399 | N34: 8641 | O34: 8556 | P34: 6397 | Q34: 6839 | R34: 6481 | S34: 6333 | T34: 5954 | U34: 5542 | V34: 4256 | W34: 4435 | X34: 4751 | Y34: 3835 | Z34: 2918 | AA34: 2686 | AB34: 2771 | AC34: 3192 | AD34: 5605 | AE34: 5278 | AF34: 5204 | AG34: 5267 | AH34: 7111 | AI34: 6995 | AJ34: 5731 | AK34: 5973 | AL34: 7585 | AM34: 5710 | AN34: 13432 | AO34: 4730 | AP34: 3224 | AQ34: 5657 | AR34: 5352 | AS34: 6237 | AT34: 3350 | AU34: 4330 | AV34: 4688 | AW34: 4182 | AX34: 5067 | AY34: 4277 | AZ34: 4119 | BA34: 4235 | BB34: 4909 | BC34: 8649 | BD34: 6194 | BE34: 4477 | BF34: 3571 | BG34: 7827 | BH34: 5289 | BI34: 1738 | BJ34: 1180 | BK34: 1991 | BL34: 5141 | BM34: 11272 | BN34: 1201 | BO34: 2276 | BP34: 1180 | BQ34: 2233 | BR34: 4098 | BS34: 3139 | BT34: 611 | BU34: 1485 | BV34: 116 | BW34: 6553 | BX34: 495 | BY34: 105 | BZ34: 115 | CA34: 126 | CB34: 42 | CC34: 11 | CD34: 0 | CE34: 11 | CF34: 0 | CG34: 136 | CH34: 32 | CI34: 42 | CJ34: 21 | CK34: 83 | CL34: 0 | CM34: 21 | CN34: 0 | CO34: 32 | CP34: 0 | CQ34: 158 | CR34: 0 | CS34: 0 | CT34: 0 | CV34: 10253.64051 | CW34: 12691.23909 | CX34: 15885.95356 | CY34: 13210.2117 | CZ34: 20902.68871 | DA34: 21116.119 | DB34: 19413.16994 | DC34: 19222.206 | DD34: 14371.72181 | DE34: 15364.73432 | DF34: 14560.43912 | DG34: 14227.93719 | DH34: 13376.46266 | DI34: 12450.84919 | DJ34: 9561.677038 | DK34: 9963.824639 | DL34: 10673.76119 | DM34: 8615.843854 | DN34: 6555.679886 | DO34: 6034.460649 | DP34: 6225.424594 | DQ34: 7171.257779 | DR34: 12592.38717 | DS34: 11857.73764 | DT34: 11691.48668 | DU34: 11833.02466 | DV34: 15975.81894 | DW34: 15715.20932 | DX34: 12875.46314 | DY34: 13419.14872 | DZ34: 17040.72376 | EA34: 12828.28381 | EB34: 30176.79652 | EC34: 10626.58186 | ED34: 7243.150087 | EE34: 12709.21217 | EF34: 12023.98861 | EG34: 14012.26026 | EH34: 7526.226052 | EI34: 9727.928002 | EJ34: 10532.2232 | EK34: 9395.426074 | EL34: 11383.69773 | EM34: 9608.856365 | EN34: 9253.888092 | EO34: 9514.497711 | EP34: 11028.72946 | EQ34: 19431.14302 | ER34: 13915.65497 | ES34: 10058.18329 | ET34: 8022.732308 | EU34: 17584.40935 | EV34: 11882.45062 | EW34: 3904.651008 | EX34: 2651.028878 | EY34: 4473.049573 | EZ34: 11549.9487 | FA34: 25324.06569 | FB34: 2698.208206 | FC34: 5113.340446 | FD34: 2651.028878 | FE34: 5016.735156 | FF34: 9206.708765 | FG34: 7052.186142 | FH34: 1372.693766 | FI34: 3336.252444 | FJ34: 260.6096185 | FK34: 14722.19681 | FL34: 1112.084148 | FM34: 235.8966375 | FN34: 258.3629839 | FO34: 283.0759649 | FP34: 94.35865498 | FQ34: 24.71298107 | FR34: 0 | FS34: 24.71298107 | FT34: 0 | FU34: 305.5423114 | FV34: 71.89230856 | FW34: 94.35865498 | FX34: 47.17932749 | FY34: 186.4706753 | FZ34: 0 | GA34: 47.17932749 | GB34: 0 | GC34: 71.89230856 | GD34: 0 | GE34: 354.9682735 | GF34: 0 | GG34: 0 | GH34: 0
A35: 4 | B35: SWITCHGEAR | C35: ˂ = 11 kv ; switch | D35: 10.05909485 | E35: 69.2005978 | F35: 8.318689668 | G35: 2 | H35: 658 | I35: 841 | J35: 1197 | K35: 1320 | L35: 2217 | M35: 2121 | N35: 1946 | O35: 1441 | P35: 1432 | Q35: 1182 | R35: 1169 | S35: 993 | T35: 880 | U35: 677 | V35: 583 | W35: 552 | X35: 529 | Y35: 387 | Z35: 450 | AA35: 373 | AB35: 255 | AC35: 404 | AD35: 698 | AE35: 782 | AF35: 703 | AG35: 706 | AH35: 880 | AI35: 847 | AJ35: 638 | AK35: 706 | AL35: 816 | AM35: 743 | AN35: 1123 | AO35: 578 | AP35: 494 | AQ35: 755 | AR35: 766 | AS35: 798 | AT35: 424 | AU35: 673 | AV35: 680 | AW35: 531 | AX35: 658 | AY35: 559 | AZ35: 591 | BA35: 607 | BB35: 749 | BC35: 1396 | BD35: 820 | BE35: 718 | BF35: 623 | BG35: 1130 | BH35: 885 | BI35: 213 | BJ35: 304 | BK35: 205 | BL35: 411 | BM35: 1410 | BN35: 59 | BO35: 246 | BP35: 145 | BQ35: 123 | BR35: 507 | BS35: 114 | BT35: 199 | BU35: 415 | BV35: 17 | BW35: 1176 | BX35: 120 | BY35: 26 | BZ35: 12 | CA35: 31 | CB35: 10 | CC35: 2 | CD35: 3 | CE35: 4 | CF35: 0 | CG35: 15 | CH35: 5 | CI35: 6 | CJ35: 1 | CK35: 6 | CL35: 0 | CM35: 1 | CN35: 0 | CO35: 0 | CP35: 0 | CQ35: 50 | CR35: 0 | CS35: 0 | CT35: 0 | CV35: 6618.884412 | CW35: 8459.69877 | CX35: 12040.73654 | CY35: 13278.0052 | CZ35: 22301.01328 | DA35: 21335.34018 | DB35: 19574.99858 | DC35: 14495.15568 | DD35: 14404.62383 | DE35: 11889.85011 | DF35: 11759.08188 | DG35: 9988.681187 | DH35: 8852.003469 | DI35: 6810.007214 | DJ35: 5864.452298 | DK35: 5552.620358 | DL35: 5321.261176 | DM35: 3892.869707 | DN35: 4526.592683 | DO35: 3752.042379 | DP35: 2565.069187 | DQ35: 4063.87432 | DR35: 7021.248206 | DS35: 7866.212174 | DT35: 7071.54368 | DU35: 7101.720965 | DV35: 8852.003469 | DW35: 8520.053339 | DX35: 6417.702515 | DY35: 7101.720965 | DZ35: 8208.221399 | EA35: 7473.907474 | EB35: 11296.36352 | EC35: 5814.156824 | ED35: 4969.192856 | EE35: 7594.616613 | EF35: 7705.266656 | EG35: 8027.157691 | EH35: 4265.056217 | EI35: 6769.770835 | EJ35: 6840.184499 | EK35: 5341.379366 | EL35: 6618.884412 | EM35: 5623.034022 | EN35: 5944.925057 | EO35: 6105.870575 | EP35: 7534.262043 | EQ35: 14042.49641 | ER35: 8248.457778 | ES35: 7222.430103 | ET35: 6266.816092 | EU35: 11366.77718 | EV35: 8902.298943 | EW35: 2142.587203 | EX35: 3057.964835 | EY35: 2062.114444 | EZ35: 4134.287984 | FA35: 14183.32374 | FB35: 593.4865962 | FC35: 2474.537333 | FD35: 1458.568753 | FE35: 1237.268667 | FF35: 5099.96109 | FG35: 1146.736813 | FH35: 2001.759875 | FI35: 4174.524363 | FJ35: 171.0046125 | FK35: 11829.49554 | FL35: 1207.091382 | FM35: 261.5364661 | FN35: 120.7091382 | FO35: 311.8319404 | FP35: 100.5909485 | FQ35: 20.1181897 | FR35: 30.17728455 | FS35: 40.2363794 | FT35: 0 | FU35: 150.8864228 | FV35: 50.29547426 | FW35: 60.35456911 | FX35: 10.05909485 | FY35: 60.35456911 | FZ35: 0 | GA35: 10.05909485 | GB35: 0 | GC35: 0 | GD35: 0 | GE35: 502.9547426 | GF35: 0 | GG35: 0 | GH35: 0
A36: 4 | B36: SWITCHGEAR | C36: > 11 kv & < = 22 kv ; circuit breaker | D36: 76.76779323 | E36: 49.82238452 | F36: 7.058497327 | G36: 2 | H36: 23 | I36: 70 | J36: 121 | K36: 109 | L36: 174 | M36: 283 | N36: 292 | O36: 250 | P36: 135 | Q36: 160 | R36: 115 | S36: 72 | T36: 80 | U36: 63 | V36: 59 | W36: 45 | X36: 54 | Y36: 39 | Z36: 30 | AA36: 37 | AB36: 23 | AC36: 28 | AD36: 66 | AE36: 54 | AF36: 35 | AG36: 35 | AH36: 48 | AI36: 30 | AJ36: 21 | AK36: 23 | AL36: 39 | AM36: 30 | AN36: 13 | AO36: 14 | AP36: 23 | AQ36: 31 | AR36: 27 | AS36: 17 | AT36: 9 | AU36: 10 | AV36: 9 | AW36: 8 | AX36: 5 | AY36: 5 | AZ36: 3 | BA36: 21 | BB36: 5 | BC36: 25 | BD36: 8 | BE36: 9 | BF36: 35 | BG36: 13 | BH36: 39 | BI36: 19 | BJ36: 22 | BK36: 1 | BL36: 1 | BM36: 9 | BN36: 6 | BO36: 3 | BP36: 0 | BQ36: 6 | BR36: 28 | BS36: 0 | BT36: 1 | BU36: 0 | BV36: 0 | BW36: 12 | BX36: 0 | BY36: 0 | BZ36: 0 | CA36: 0 | CB36: 0 | CC36: 0 | CD36: 0 | CE36: 0 | CF36: 0 | CG36: 1 | CH36: 0 | CI36: 0 | CJ36: 0 | CK36: 0 | CL36: 0 | CM36: 0 | CN36: 0 | CO36: 0 | CP36: 0 | CQ36: 1 | CR36: 0 | CS36: 0 | CT36: 0 | CV36: 1765.659244 | CW36: 5373.745526 | CX36: 9288.902981 | CY36: 8367.689462 | CZ36: 13357.59602 | DA36: 21725.28548 | DB36: 22416.19562 | DC36: 19191.94831 | DD36: 10363.65209 | DE36: 12282.84692 | DF36: 8828.296221 | DG36: 5527.281113 | DH36: 6141.423458 | DI36: 4836.370974 | DJ36: 4529.299801 | DK36: 3454.550695 | DL36: 4145.460834 | DM36: 2993.943936 | DN36: 2303.033797 | DO36: 2840.40835 | DP36: 1765.659244 | DQ36: 2149.49821 | DR36: 5066.674353 | DS36: 4145.460834 | DT36: 2686.872763 | DU36: 2686.872763 | DV36: 3684.854075 | DW36: 2303.033797 | DX36: 1612.123658 | DY36: 1765.659244 | DZ36: 2993.943936 | EA36: 2303.033797 | EB36: 997.981312 | EC36: 1074.749105 | ED36: 1765.659244 | EE36: 2379.80159 | EF36: 2072.730417 | EG36: 1305.052485 | EH36: 690.9101391 | EI36: 767.6779323 | EJ36: 690.9101391 | EK36: 614.1423458 | EL36: 383.8389662 | EM36: 383.8389662 | EN36: 230.3033797 | EO36: 1612.123658 | EP36: 383.8389662 | EQ36: 1919.194831 | ER36: 614.1423458 | ES36: 690.9101391 | ET36: 2686.872763 | EU36: 997.981312 | EV36: 2993.943936 | EW36: 1458.588071 | EX36: 1688.891451 | EY36: 76.76779323 | EZ36: 76.76779323 | FA36: 690.9101391 | FB36: 460.6067594 | FC36: 230.3033797 | FD36: 0 | FE36: 460.6067594 | FF36: 2149.49821 | FG36: 0 | FH36: 76.76779323 | FI36: 0 | FJ36: 0 | FK36: 921.2135188 | FL36: 0 | FM36: 0 | FN36: 0 | FO36: 0 | FP36: 0 | FQ36: 0 | FR36: 0 | FS36: 0 | FT36: 0 | FU36: 76.76779323 | FV36: 0 | FW36: 0 | FX36: 0 | FY36: 0 | FZ36: 0 | GA36: 0 | GB36: 0 | GC36: 0 | GD36: 0 | GE36: 76.76779323 | GF36: 0 | GG36: 0 | GH36: 0
A37: 4 | B37: SWITCHGEAR | C37: > 11 kv & < = 22 kv ; switch | D37: 13.91544905 | E37: 68.40834218 | F37: 8.270933574 | G37: 2 | H37: 467 | I37: 1014 | J37: 1264 | K37: 1054 | L37: 1729 | M37: 1800 | N37: 1537 | O37: 1323 | P37: 779 | Q37: 828 | R37: 658 | S37: 811 | T37: 518 | U37: 407 | V37: 600 | W37: 611 | X37: 1915 | Y37: 621 | Z37: 711 | AA37: 574 | AB37: 692 | AC37: 649 | AD37: 1245 | AE37: 1074 | AF37: 988 | AG37: 1287 | AH37: 1103 | AI37: 1094 | AJ37: 993 | AK37: 1196 | AL37: 1709 | AM37: 1327 | AN37: 2267 | AO37: 1126 | AP37: 1006 | AQ37: 2105 | AR37: 1111 | AS37: 1552 | AT37: 610 | AU37: 714 | AV37: 630 | AW37: 615 | AX37: 592 | AY37: 497 | AZ37: 570 | BA37: 620 | BB37: 603 | BC37: 1148 | BD37: 777 | BE37: 774 | BF37: 617 | BG37: 2306 | BH37: 1424 | BI37: 952 | BJ37: 776 | BK37: 298 | BL37: 1739 | BM37: 1876 | BN37: 756 | BO37: 1161 | BP37: 89 | BQ37: 489 | BR37: 1015 | BS37: 465 | BT37: 64 | BU37: 197 | BV37: 105 | BW37: 603 | BX37: 95 | BY37: 18 | BZ37: 5 | CA37: 0 | CB37: 4 | CC37: 6 | CD37: 0 | CE37: 5 | CF37: 0 | CG37: 92 | CH37: 1 | CI37: 1 | CJ37: 0 | CK37: 0 | CL37: 0 | CM37: 0 | CN37: 0 | CO37: 0 | CP37: 0 | CQ37: 113 | CR37: 0 | CS37: 0 | CT37: 0 | CV37: 6498.514709 | CW37: 14110.26534 | CX37: 17589.12761 | CY37: 14666.8833 | CZ37: 24059.81142 | DA37: 25047.8083 | DB37: 21388.0452 | DC37: 18410.1391 | DD37: 10840.13481 | DE37: 11521.99182 | DF37: 9156.365478 | DG37: 11285.42918 | DH37: 7208.20261 | DI37: 5663.587765 | DJ37: 8349.269433 | DK37: 8502.339373 | DL37: 26648.08494 | DM37: 8641.493863 | DN37: 9893.884278 | DO37: 7987.467758 | DP37: 9629.490746 | DQ37: 9031.126437 | DR37: 17324.73407 | DS37: 14945.19229 | DT37: 13748.46367 | DU37: 17909.18293 | DV37: 15348.74031 | DW37: 15223.50127 | DX37: 13818.04091 | DY37: 16642.87707 | DZ37: 23781.50243 | EA37: 18465.8009 | EB37: 31546.32301 | EC37: 15668.79564 | ED37: 13998.94175 | EE37: 29292.02026 | EF37: 15460.0639 | EG37: 21596.77693 | EH37: 8488.423924 | EI37: 9935.630625 | EJ37: 8766.732905 | EK37: 8558.001169 | EL37: 8237.945841 | EM37: 6915.97818 | EN37: 7931.805961 | EO37: 8627.578414 | EP37: 8391.01578 | EQ37: 15974.93552 | ER37: 10812.30392 | ES37: 10770.55757 | ET37: 8585.832067 | EU37: 32089.02552 | EV37: 19815.59945 | EW37: 13247.5075 | EX37: 10798.38847 | EY37: 4146.803818 | EZ37: 24198.96591 | FA37: 26105.38243 | FB37: 10520.07949 | FC37: 16155.83635 | FD37: 1238.474966 | FE37: 6804.654588 | FF37: 14124.18079 | FG37: 6470.683811 | FH37: 890.5887395 | FI37: 2741.343464 | FJ37: 1461.122151 | FK37: 8391.01578 | FL37: 1321.96766 | FM37: 250.478083 | FN37: 69.57724527 | FO37: 0 | FP37: 55.66179622 | FQ37: 83.49269433 | FR37: 0 | FS37: 69.57724527 | FT37: 0 | FU37: 1280.221313 | FV37: 13.91544905 | FW37: 13.91544905 | FX37: 0 | FY37: 0 | FZ37: 0 | GA37: 0 | GB37: 0 | GC37: 0 | GD37: 0 | GE37: 1572.445743 | GF37: 0 | GG37: 0 | GH37: 0
A38: 4 | B38: SWITCHGEAR | C38: > 22 kv & < = 33 kv ; circuit breaker | D38: 110.1222033 | E38: 42.94572909 | F38: 6.5532991 | G38: 2 | H38: 2 | I38: 8 | J38: 9 | K38: 19 | L38: 24 | M38: 14 | N38: 32 | O38: 21 | P38: 43 | Q38: 36 | R38: 44 | S38: 40 | T38: 29 | U38: 19 | V38: 10 | W38: 8 | X38: 12 | Y38: 10 | Z38: 3 | AA38: 10 | AB38: 7 | AC38: 3 | AD38: 7 | AE38: 3 | AF38: 1 | AG38: 1 | AH38: 2 | AI38: 2 | AJ38: 2 | AK38: 1 | AL38: 1 | AM38: 3 | AN38: 1 | AO38: 0 | AP38: 0 | AQ38: 3 | AR38: 0 | AS38: 10 | AT38: 1 | AU38: 2 | AV38: 0 | AW38: 1 | AX38: 0 | AY38: 0 | AZ38: 1 | BA38: 0 | BB38: 1 | BC38: 0 | BD38: 1 | BE38: 0 | BF38: 4 | BG38: 1 | BH38: 0 | BI38: 1 | BJ38: 2 | BK38: 0 | BL38: 1 | BM38: 1 | BN38: 1 | BO38: 0 | BP38: 0 | BQ38: 0 | BR38: 0 | BS38: 0 | BT38: 0 | BU38: 3 | BV38: 0 | BW38: 0 | BX38: 0 | BY38: 0 | BZ38: 0 | CA38: 0 | CB38: 0 | CC38: 0 | CD38: 0 | CE38: 0 | CF38: 0 | CG38: 0 | CH38: 0 | CI38: 0 | CJ38: 0 | CK38: 0 | CL38: 0 | CM38: 0 | CN38: 0 | CO38: 0 | CP38: 0 | CQ38: 0 | CR38: 0 | CS38: 0 | CT38: 0 | CV38: 220.2444067 | CW38: 880.9776267 | CX38: 991.09983 | CY38: 2092.321863 | CZ38: 2642.93288 | DA38: 1541.710847 | DB38: 3523.910507 | DC38: 2312.56627 | DD38: 4735.254743 | DE38: 3964.39932 | DF38: 4845.376947 | DG38: 4404.888133 | DH38: 3193.543897 | DI38: 2092.321863 | DJ38: 1101.222033 | DK38: 880.9776267 | DL38: 1321.46644 | DM38: 1101.222033 | DN38: 330.36661 | DO38: 1101.222033 | DP38: 770.8554233 | DQ38: 330.36661 | DR38: 770.8554233 | DS38: 330.36661 | DT38: 110.1222033 | DU38: 110.1222033 | DV38: 220.2444067 | DW38: 220.2444067 | DX38: 220.2444067 | DY38: 110.1222033 | DZ38: 110.1222033 | EA38: 330.36661 | EB38: 110.1222033 | EC38: 0 | ED38: 0 | EE38: 330.36661 | EF38: 0 | EG38: 1101.222033 | EH38: 110.1222033 | EI38: 220.2444067 | EJ38: 0 | EK38: 110.1222033 | EL38: 0 | EM38: 0 | EN38: 110.1222033 | EO38: 0 | EP38: 110.1222033 | EQ38: 0 | ER38: 110.1222033 | ES38: 0 | ET38: 440.4888133 | EU38: 110.1222033 | EV38: 0 | EW38: 110.1222033 | EX38: 220.2444067 | EY38: 0 | EZ38: 110.1222033 | FA38: 110.1222033 | FB38: 110.1222033 | FC38: 0 | FD38: 0 | FE38: 0 | FF38: 0 | FG38: 0 | FH38: 0 | FI38: 330.36661 | FJ38: 0 | FK38: 0 | FL38: 0 | FM38: 0 | FN38: 0 | FO38: 0 | FP38: 0 | FQ38: 0 | FR38: 0 | FS38: 0 | FT38: 0 | FU38: 0 | FV38: 0 | FW38: 0 | FX38: 0 | FY38: 0 | FZ38: 0 | GA38: 0 | GB38: 0 | GC38: 0 | GD38: 0 | GE38: 0 | GF38: 0 | GG38: 0 | GH38: 0
A39: 4 | B39: SWITCHGEAR | C39: > 22 kv & < = 33 kv ; switch | D39: 17.40352222 | E39: 59.12946398 | F39: 7.689568517 | G39: 2 | H39: 58 | I39: 115 | J39: 57 | K39: 55 | L39: 103 | M39: 130 | N39: 109 | O39: 78 | P39: 79 | Q39: 41 | R39: 86 | S39: 93 | T39: 92 | U39: 31 | V39: 59 | W39: 56 | X39: 87 | Y39: 162 | Z39: 28 | AA39: 40 | AB39: 23 | AC39: 26 | AD39: 91 | AE39: 124 | AF39: 48 | AG39: 25 | AH39: 64 | AI39: 64 | AJ39: 36 | AK39: 60 | AL39: 49 | AM39: 92 | AN39: 73 | AO39: 36 | AP39: 27 | AQ39: 83 | AR39: 30 | AS39: 61 | AT39: 10 | AU39: 45 | AV39: 15 | AW39: 39 | AX39: 13 | AY39: 13 | AZ39: 24 | BA39: 15 | BB39: 39 | BC39: 47 | BD39: 46 | BE39: 38 | BF39: 38 | BG39: 76 | BH39: 24 | BI39: 19 | BJ39: 19 | BK39: 100 | BL39: 24 | BM39: 31 | BN39: 0 | BO39: 0 | BP39: 5 | BQ39: 0 | BR39: 12 | BS39: 0 | BT39: 0 | BU39: 32 | BV39: 0 | BW39: 11 | BX39: 0 | BY39: 0 | BZ39: 0 | CA39: 0 | CB39: 1 | CC39: 0 | CD39: 0 | CE39: 0 | CF39: 0 | CG39: 0 | CH39: 0 | CI39: 0 | CJ39: 0 | CK39: 0 | CL39: 0 | CM39: 0 | CN39: 0 | CO39: 0 | CP39: 0 | CQ39: 0 | CR39: 0 | CS39: 0 | CT39: 0 | CV39: 1009.404289 | CW39: 2001.405055 | CX39: 992.0007666 | CY39: 957.1937221 | CZ39: 1792.562789 | DA39: 2262.457889 | DB39: 1896.983922 | DC39: 1357.474733 | DD39: 1374.878255 | DE39: 713.544411 | DF39: 1496.702911 | DG39: 1618.527567 | DH39: 1601.124044 | DI39: 539.5091888 | DJ39: 1026.807811 | DK39: 974.5972443 | DL39: 1514.106433 | DM39: 2819.3706 | DN39: 487.2986222 | DO39: 696.1408888 | DP39: 400.2810111 | DQ39: 452.4915777 | DR39: 1583.720522 | DS39: 2158.036755 | DT39: 835.3690666 | DU39: 435.0880555 | DV39: 1113.825422 | DW39: 1113.825422 | DX39: 626.5267999 | DY39: 1044.211333 | DZ39: 852.7725888 | EA39: 1601.124044 | EB39: 1270.457122 | EC39: 626.5267999 | ED39: 469.8951 | EE39: 1444.492344 | EF39: 522.1056666 | EG39: 1061.614855 | EH39: 174.0352222 | EI39: 783.1584999 | EJ39: 261.0528333 | EK39: 678.7373666 | EL39: 226.2457889 | EM39: 226.2457889 | EN39: 417.6845333 | EO39: 261.0528333 | EP39: 678.7373666 | EQ39: 817.9655444 | ER39: 800.5620221 | ES39: 661.3338444 | ET39: 661.3338444 | EU39: 1322.667689 | EV39: 417.6845333 | EW39: 330.6669222 | EX39: 330.6669222 | EY39: 1740.352222 | EZ39: 417.6845333 | FA39: 539.5091888 | FB39: 0 | FC39: 0 | FD39: 87.0176111 | FE39: 0 | FF39: 208.8422666 | FG39: 0 | FH39: 0 | FI39: 556.9127111 | FJ39: 0 | FK39: 191.4387444 | FL39: 0 | FM39: 0 | FN39: 0 | FO39: 0 | FP39: 17.40352222 | FQ39: 0 | FR39: 0 | FS39: 0 | FT39: 0 | FU39: 0 | FV39: 0 | FW39: 0 | FX39: 0 | FY39: 0 | FZ39: 0 | GA39: 0 | GB39: 0 | GC39: 0 | GD39: 0 | GE39: 0 | GF39: 0 | GG39: 0 | GH39: 0
A40: 4 | B40: SWITCHGEAR | C40: > 33 kv & < = 66 kv ; circuit breaker | D40: 147.9389413 | E40: 37.78005587 | F40: 6.146548289 | G40: 2 | H40: 1 | I40: 11 | J40: 5 | K40: 7 | L40: 36 | M40: 26 | N40: 61 | O40: 40 | P40: 58 | Q40: 62 | R40: 51 | S40: 43 | T40: 30 | U40: 27 | V40: 48 | W40: 12 | X40: 28 | Y40: 5 | Z40: 4 | AA40: 0 | AB40: 0 | AC40: 2 | AD40: 6 | AE40: 3 | AF40: 1 | AG40: 10 | AH40: 9 | AI40: 7 | AJ40: 6 | AK40: 1 | AL40: 7 | AM40: 15 | AN40: 6 | AO40: 0 | AP40: 10 | AQ40: 17 | AR40: 20 | AS40: 5 | AT40: 1 | AU40: 1 | AV40: 0 | AW40: 2 | AX40: 1 | AY40: 0 | AZ40: 0 | BA40: 0 | BB40: 0 | BC40: 0 | BD40: 0 | BE40: 3 | BF40: 0 | BG40: 3 | BH40: 3 | BI40: 0 | BJ40: 1 | BK40: 0 | BL40: 0 | BM40: 0 | BN40: 0 | BO40: 0 | BP40: 0 | BQ40: 0 | BR40: 0 | BS40: 4 | BT40: 0 | BU40: 0 | BV40: 0 | BW40: 0 | BX40: 0 | BY40: 0 | BZ40: 0 | CA40: 0 | CB40: 0 | CC40: 0 | CD40: 0 | CE40: 0 | CF40: 0 | CG40: 0 | CH40: 0 | CI40: 0 | CJ40: 0 | CK40: 0 | CL40: 0 | CM40: 0 | CN40: 0 | CO40: 0 | CP40: 0 | CQ40: 0 | CR40: 0 | CS40: 0 | CT40: 0 | CV40: 147.9389413 | CW40: 1627.328354 | CX40: 739.6947063 | CY40: 1035.572589 | CZ40: 5325.801885 | DA40: 3846.412473 | DB40: 9024.275417 | DC40: 5917.557651 | DD40: 8580.458593 | DE40: 9172.214358 | DF40: 7544.886004 | DG40: 6361.374474 | DH40: 4438.168238 | DI40: 3994.351414 | DJ40: 7101.069181 | DK40: 1775.267295 | DL40: 4142.290355 | DM40: 739.6947063 | DN40: 591.7557651 | DO40: 0 | DP40: 0 | DQ40: 295.8778825 | DR40: 887.6336476 | DS40: 443.8168238 | DT40: 147.9389413 | DU40: 1479.389413 | DV40: 1331.450471 | DW40: 1035.572589 | DX40: 887.6336476 | DY40: 147.9389413 | DZ40: 1035.572589 | EA40: 2219.084119 | EB40: 887.6336476 | EC40: 0 | ED40: 1479.389413 | EE40: 2514.962001 | EF40: 2958.778825 | EG40: 739.6947063 | EH40: 147.9389413 | EI40: 147.9389413 | EJ40: 0 | EK40: 295.8778825 | EL40: 147.9389413 | EM40: 0 | EN40: 0 | EO40: 0 | EP40: 0 | EQ40: 0 | ER40: 0 | ES40: 443.8168238 | ET40: 0 | EU40: 443.8168238 | EV40: 443.8168238 | EW40: 0 | EX40: 147.9389413 | EY40: 0 | EZ40: 0 | FA40: 0 | FB40: 0 | FC40: 0 | FD40: 0 | FE40: 0 | FF40: 0 | FG40: 591.7557651 | FH40: 0 | FI40: 0 | FJ40: 0 | FK40: 0 | FL40: 0 | FM40: 0 | FN40: 0 | FO40: 0 | FP40: 0 | FQ40: 0 | FR40: 0 | FS40: 0 | FT40: 0 | FU40: 0 | FV40: 0 | FW40: 0 | FX40: 0 | FY40: 0 | FZ40: 0 | GA40: 0 | GB40: 0 | GC40: 0 | GD40: 0 | GE40: 0 | GF40: 0 | GG40: 0 | GH40: 0
A41: 4 | B41: SWITCHGEAR | C41: > 33 kv & < = 66 kv ; switch | D41: 35.39710659 | E41: 66.14307252 | F41: 8.132839142 | G41: 2 | H41: 11 | I41: 77 | J41: 62 | K41: 68 | L41: 117 | M41: 66 | N41: 128 | O41: 45 | P41: 109 | Q41: 74 | R41: 160 | S41: 138 | T41: 80 | U41: 40 | V41: 44 | W41: 22 | X41: 52 | Y41: 19 | Z41: 65 | AA41: 33 | AB41: 12 | AC41: 11 | AD41: 54 | AE41: 21 | AF41: 33 | AG41: 32 | AH41: 40 | AI41: 45 | AJ41: 6 | AK41: 28 | AL41: 76 | AM41: 44 | AN41: 41 | AO41: 13 | AP41: 42 | AQ41: 57 | AR41: 64 | AS41: 69 | AT41: 22 | AU41: 41 | AV41: 29 | AW41: 24 | AX41: 35 | AY41: 18 | AZ41: 39 | BA41: 31 | BB41: 12 | BC41: 25 | BD41: 33 | BE41: 118 | BF41: 60 | BG41: 64 | BH41: 109 | BI41: 6 | BJ41: 44 | BK41: 61 | BL41: 23 | BM41: 39 | BN41: 18 | BO41: 0 | BP41: 10 | BQ41: 1 | BR41: 3 | BS41: 19 | BT41: 0 | BU41: 49 | BV41: 0 | BW41: 5 | BX41: 0 | BY41: 0 | BZ41: 0 | CA41: 0 | CB41: 0 | CC41: 0 | CD41: 0 | CE41: 0 | CF41: 0 | CG41: 1 | CH41: 0 | CI41: 0 | CJ41: 0 | CK41: 0 | CL41: 0 | CM41: 0 | CN41: 0 | CO41: 0 | CP41: 0 | CQ41: 1 | CR41: 0 | CS41: 0 | CT41: 0 | CV41: 389.3681725 | CW41: 2725.577208 | CX41: 2194.620609 | CY41: 2407.003248 | CZ41: 4141.461471 | DA41: 2336.209035 | DB41: 4530.829644 | DC41: 1592.869797 | DD41: 3858.284619 | DE41: 2619.385888 | DF41: 5663.537055 | DG41: 4884.80071 | DH41: 2831.768527 | DI41: 1415.884264 | DJ41: 1557.47269 | DK41: 778.7363451 | DL41: 1840.649543 | DM41: 672.5450253 | DN41: 2300.811929 | DO41: 1168.104518 | DP41: 424.7652791 | DQ41: 389.3681725 | DR41: 1911.443756 | DS41: 743.3392385 | DT41: 1168.104518 | DU41: 1132.707411 | DV41: 1415.884264 | DW41: 1592.869797 | DX41: 212.3826396 | DY41: 991.1189846 | DZ41: 2690.180101 | EA41: 1557.47269 | EB41: 1451.28137 | EC41: 460.1623857 | ED41: 1486.678477 | EE41: 2017.635076 | EF41: 2265.414822 | EG41: 2442.400355 | EH41: 778.7363451 | EI41: 1451.28137 | EJ41: 1026.516091 | EK41: 849.5305582 | EL41: 1238.898731 | EM41: 637.1479187 | EN41: 1380.487157 | EO41: 1097.310304 | EP41: 424.7652791 | EQ41: 884.9276648 | ER41: 1168.104518 | ES41: 4176.858578 | ET41: 2123.826396 | EU41: 2265.414822 | EV41: 3858.284619 | EW41: 212.3826396 | EX41: 1557.47269 | EY41: 2159.223502 | EZ41: 814.1334516 | FA41: 1380.487157 | FB41: 637.1479187 | FC41: 0 | FD41: 353.9710659 | FE41: 35.39710659 | FF41: 106.1913198 | FG41: 672.5450253 | FH41: 0 | FI41: 1734.458223 | FJ41: 0 | FK41: 176.985533 | FL41: 0 | FM41: 0 | FN41: 0 | FO41: 0 | FP41: 0 | FQ41: 0 | FR41: 0 | FS41: 0 | FT41: 0 | FU41: 35.39710659 | FV41: 0 | FW41: 0 | FX41: 0 | FY41: 0 | FZ41: 0 | GA41: 0 | GB41: 0 | GC41: 0 | GD41: 0 | GE41: 35.39710659 | GF41: 0 | GG41: 0 | GH41: 0
A42: 4 | B42: SWITCHGEAR | C42: > 66 kv & < = 132 kv ; circuit breaker | D42: 187.7221722 | E42: 32.66631665 | F42: 5.715445447 | G42: 2 | H42: 1 | I42: 1 | J42: 0 | K42: 10 | L42: 7 | M42: 6 | N42: 17 | O42: 4 | P42: 1 | Q42: 24 | R42: 3 | S42: 10 | T42: 1 | U42: 2 | V42: 17 | W42: 3 | X42: 2 | Y42: 3 | Z42: 11 | AA42: 0 | AB42: 1 | AC42: 0 | AD42: 3 | AE42: 3 | AF42: 0 | AG42: 1 | AH42: 0 | AI42: 2 | AJ42: 1 | AK42: 0 | AL42: 0 | AM42: 1 | AN42: 5 | AO42: 3 | AP42: 5 | AQ42: 1 | AR42: 2 | AS42: 0 | AT42: 0 | AU42: 0 | AV42: 0 | AW42: 0 | AX42: 0 | AY42: 0 | AZ42: 0 | BA42: 0 | BB42: 1 | BC42: 0 | BD42: 0 | BE42: 0 | BF42: 0 | BG42: 0 | BH42: 0 | BI42: 0 | BJ42: 0 | BK42: 0 | BL42: 0 | BM42: 0 | BN42: 0 | BO42: 0 | BP42: 0 | BQ42: 0 | BR42: 0 | BS42: 0 | BT42: 0 | BU42: 0 | BV42: 0 | BW42: 0 | BX42: 0 | BY42: 0 | BZ42: 0 | CA42: 0 | CB42: 0 | CC42: 0 | CD42: 0 | CE42: 0 | CF42: 0 | CG42: 0 | CH42: 0 | CI42: 0 | CJ42: 0 | CK42: 0 | CL42: 0 | CM42: 0 | CN42: 0 | CO42: 0 | CP42: 0 | CQ42: 0 | CR42: 0 | CS42: 0 | CT42: 0 | CV42: 187.7221722 | CW42: 187.7221722 | CX42: 0 | CY42: 1877.221722 | CZ42: 1314.055205 | DA42: 1126.333033 | DB42: 3191.276927 | DC42: 750.8886887 | DD42: 187.7221722 | DE42: 4505.332132 | DF42: 563.1665165 | DG42: 1877.221722 | DH42: 187.7221722 | DI42: 375.4443443 | DJ42: 3191.276927 | DK42: 563.1665165 | DL42: 375.4443443 | DM42: 563.1665165 | DN42: 2064.943894 | DO42: 0 | DP42: 187.7221722 | DQ42: 0 | DR42: 563.1665165 | DS42: 563.1665165 | DT42: 0 | DU42: 187.7221722 | DV42: 0 | DW42: 375.4443443 | DX42: 187.7221722 | DY42: 0 | DZ42: 0 | EA42: 187.7221722 | EB42: 938.6108609 | EC42: 563.1665165 | ED42: 938.6108609 | EE42: 187.7221722 | EF42: 375.4443443 | EG42: 0 | EH42: 0 | EI42: 0 | EJ42: 0 | EK42: 0 | EL42: 0 | EM42: 0 | EN42: 0 | EO42: 0 | EP42: 187.7221722 | EQ42: 0 | ER42: 0 | ES42: 0 | ET42: 0 | EU42: 0 | EV42: 0 | EW42: 0 | EX42: 0 | EY42: 0 | EZ42: 0 | FA42: 0 | FB42: 0 | FC42: 0 | FD42: 0 | FE42: 0 | FF42: 0 | FG42: 0 | FH42: 0 | FI42: 0 | FJ42: 0 | FK42: 0 | FL42: 0 | FM42: 0 | FN42: 0 | FO42: 0 | FP42: 0 | FQ42: 0 | FR42: 0 | FS42: 0 | FT42: 0 | FU42: 0 | FV42: 0 | FW42: 0 | FX42: 0 | FY42: 0 | FZ42: 0 | GA42: 0 | GB42: 0 | GC42: 0 | GD42: 0 | GE42: 0 | GF42: 0 | GG42: 0 | GH42: 0
A43: 4 | B43: SWITCHGEAR | C43: > 66 kv & < = 132 kv ; switch | D43: 68.45042738 | E43: 68.07277051 | F43: 8.250622432 | G43: 2 | H43: 2 | I43: 4 | J43: 12 | K43: 51 | L43: 18 | M43: 57 | N43: 24 | O43: 17 | P43: 7 | Q43: 23 | R43: 4 | S43: 37 | T43: 6 | U43: 2 | V43: 32 | W43: 15 | X43: 2 | Y43: 15 | Z43: 44 | AA43: 0 | AB43: 5 | AC43: 0 | AD43: 14 | AE43: 7 | AF43: 1 | AG43: 1 | AH43: 7 | AI43: 0 | AJ43: 4 | AK43: 2 | AL43: 0 | AM43: 12 | AN43: 22 | AO43: 0 | AP43: 13 | AQ43: 2 | AR43: 16 | AS43: 16 | AT43: 1 | AU43: 1 | AV43: 0 | AW43: 0 | AX43: 0 | AY43: 0 | AZ43: 0 | BA43: 0 | BB43: 0 | BC43: 0 | BD43: 1 | BE43: 12 | BF43: 0 | BG43: 0 | BH43: 17 | BI43: 0 | BJ43: 0 | BK43: 0 | BL43: 0 | BM43: 0 | BN43: 0 | BO43: 0 | BP43: 0 | BQ43: 0 | BR43: 0 | BS43: 0 | BT43: 0 | BU43: 13 | BV43: 0 | BW43: 7 | BX43: 0 | BY43: 0 | BZ43: 0 | CA43: 0 | CB43: 0 | CC43: 0 | CD43: 0 | CE43: 0 | CF43: 0 | CG43: 0 | CH43: 0 | CI43: 0 | CJ43: 0 | CK43: 0 | CL43: 0 | CM43: 0 | CN43: 0 | CO43: 0 | CP43: 0 | CQ43: 0 | CR43: 0 | CS43: 0 | CT43: 0 | CV43: 136.9008548 | CW43: 273.8017095 | CX43: 821.4051286 | CY43: 3490.971796 | CZ43: 1232.107693 | DA43: 3901.674361 | DB43: 1642.810257 | DC43: 1163.657265 | DD43: 479.1529917 | DE43: 1574.35983 | DF43: 273.8017095 | DG43: 2532.665813 | DH43: 410.7025643 | DI43: 136.9008548 | DJ43: 2190.413676 | DK43: 1026.756411 | DL43: 136.9008548 | DM43: 1026.756411 | DN43: 3011.818805 | DO43: 0 | DP43: 342.2521369 | DQ43: 0 | DR43: 958.3059833 | DS43: 479.1529917 | DT43: 68.45042738 | DU43: 68.45042738 | DV43: 479.1529917 | DW43: 0 | DX43: 273.8017095 | DY43: 136.9008548 | DZ43: 0 | EA43: 821.4051286 | EB43: 1505.909402 | EC43: 0 | ED43: 889.8555559 | EE43: 136.9008548 | EF43: 1095.206838 | EG43: 1095.206838 | EH43: 68.45042738 | EI43: 68.45042738 | EJ43: 0 | EK43: 0 | EL43: 0 | EM43: 0 | EN43: 0 | EO43: 0 | EP43: 0 | EQ43: 0 | ER43: 68.45042738 | ES43: 821.4051286 | ET43: 0 | EU43: 0 | EV43: 1163.657265 | EW43: 0 | EX43: 0 | EY43: 0 | EZ43: 0 | FA43: 0 | FB43: 0 | FC43: 0 | FD43: 0 | FE43: 0 | FF43: 0 | FG43: 0 | FH43: 0 | FI43: 889.8555559 | FJ43: 0 | FK43: 479.1529917 | FL43: 0 | FM43: 0 | FN43: 0 | FO43: 0 | FP43: 0 | FQ43: 0 | FR43: 0 | FS43: 0 | FT43: 0 | FU43: 0 | FV43: 0 | FW43: 0 | FX43: 0 | FY43: 0 | FZ43: 0 | GA43: 0 | GB43: 0 | GC43: 0 | GD43: 0 | GE43: 0 | GF43: 0 | GG43: 0 | GH43: 0
A44: 5 | B44: TRANSFORMERS | C44: ground outdoor / indoor chamber mounted ; ˂ 22 kv ; < = 60 kva ; multiple phase | D44: 8.818545242 | E44: 17.79407328 | F44: 4.21830218 | G44: 2 | H44: 2 | I44: 4 | J44: 5 | K44: 3 | L44: 3 | M44: 3 | N44: 2 | O44: 4 | P44: 2 | Q44: 5 | R44: 2 | S44: 2 | T44: 2 | U44: 3 | V44: 2 | W44: 3 | X44: 3 | Y44: 2 | Z44: 3 | AA44: 2 | AB44: 2 | AC44: 4 | AD44: 3 | AE44: 3 | AF44: 2 | AG44: 2 | AH44: 0 | AI44: 1 | AJ44: 4 | AK44: 2 | AL44: 0 | AM44: 0 | AN44: 0 | AO44: 2 | AP44: 1 | AQ44: 1 | AR44: 4 | AS44: 1 | AT44: 0 | AU44: 0 | AV44: 1 | AW44: 6 | AX44: 0 | AY44: 2 | AZ44: 0 | BA44: 0 | BB44: 1 | BC44: 1 | BD44: 0 | BE44: 7 | BF44: 3 | BG44: 0 | BH44: 0 | BI44: 3 | BJ44: 2 | BK44: 2 | BL44: 1 | BM44: 0 | BN44: 0 | BO44: 0 | BP44: 2 | BQ44: 0 | BR44: 0 | BS44: 0 | BT44: 0 | BU44: 0 | BV44: 0 | BW44: 0 | BX44: 0 | BY44: 0 | BZ44: 0 | CA44: 0 | CB44: 0 | CC44: 0 | CD44: 0 | CE44: 0 | CF44: 0 | CG44: 0 | CH44: 0 | CI44: 0 | CJ44: 0 | CK44: 0 | CL44: 0 | CM44: 0 | CN44: 0 | CO44: 0 | CP44: 0 | CQ44: 0 | CR44: 0 | CS44: 0 | CT44: 0 | CV44: 17.63709048 | CW44: 35.27418097 | CX44: 44.09272621 | CY44: 26.45563572 | CZ44: 26.45563572 | DA44: 26.45563572 | DB44: 17.63709048 | DC44: 35.27418097 | DD44: 17.63709048 | DE44: 44.09272621 | DF44: 17.63709048 | DG44: 17.63709048 | DH44: 17.63709048 | DI44: 26.45563572 | DJ44: 17.63709048 | DK44: 26.45563572 | DL44: 26.45563572 | DM44: 17.63709048 | DN44: 26.45563572 | DO44: 17.63709048 | DP44: 17.63709048 | DQ44: 35.27418097 | DR44: 26.45563572 | DS44: 26.45563572 | DT44: 17.63709048 | DU44: 17.63709048 | DV44: 0 | DW44: 8.818545242 | DX44: 35.27418097 | DY44: 17.63709048 | DZ44: 0 | EA44: 0 | EB44: 0 | EC44: 17.63709048 | ED44: 8.818545242 | EE44: 8.818545242 | EF44: 35.27418097 | EG44: 8.818545242 | EH44: 0 | EI44: 0 | EJ44: 8.818545242 | EK44: 52.91127145 | EL44: 0 | EM44: 17.63709048 | EN44: 0 | EO44: 0 | EP44: 8.818545242 | EQ44: 8.818545242 | ER44: 0 | ES44: 61.72981669 | ET44: 26.45563572 | EU44: 0 | EV44: 0 | EW44: 26.45563572 | EX44: 17.63709048 | EY44: 17.63709048 | EZ44: 8.818545242 | FA44: 0 | FB44: 0 | FC44: 0 | FD44: 17.63709048 | FE44: 0 | FF44: 0 | FG44: 0 | FH44: 0 | FI44: 0 | FJ44: 0 | FK44: 0 | FL44: 0 | FM44: 0 | FN44: 0 | FO44: 0 | FP44: 0 | FQ44: 0 | FR44: 0 | FS44: 0 | FT44: 0 | FU44: 0 | FV44: 0 | FW44: 0 | FX44: 0 | FY44: 0 | FZ44: 0 | GA44: 0 | GB44: 0 | GC44: 0 | GD44: 0 | GE44: 0 | GF44: 0 | GG44: 0 | GH44: 0
A45: 5 | B45: TRANSFORMERS | C45: ground outdoor / indoor chamber mounted ; ˂ 22 kv ; > 60 kva and < = 600 kva ; multiple phase | D45: 37.93760632 | E45: 49.34024198 | F45: 7.024260956 | G45: 2 | H45: 2 | I45: 15 | J45: 6 | K45: 11 | L45: 11 | M45: 12 | N45: 12 | O45: 8 | P45: 13 | Q45: 32 | R45: 30 | S45: 20 | T45: 19 | U45: 17 | V45: 9 | W45: 9 | X45: 9 | Y45: 6 | Z45: 5 | AA45: 6 | AB45: 5 | AC45: 5 | AD45: 4 | AE45: 6 | AF45: 6 | AG45: 5 | AH45: 5 | AI45: 11 | AJ45: 3 | AK45: 8 | AL45: 2 | AM45: 4 | AN45: 2 | AO45: 5 | AP45: 8 | AQ45: 7 | AR45: 20 | AS45: 6 | AT45: 3 | AU45: 7 | AV45: 3 | AW45: 4 | AX45: 4 | AY45: 1 | AZ45: 0 | BA45: 2 | BB45: 1 | BC45: 3 | BD45: 0 | BE45: 7 | BF45: 2 | BG45: 2 | BH45: 2 | BI45: 5 | BJ45: 5 | BK45: 0 | BL45: 1 | BM45: 6 | BN45: 1 | BO45: 0 | BP45: 2 | BQ45: 0 | BR45: 1 | BS45: 0 | BT45: 1 | BU45: 2 | BV45: 0 | BW45: 0 | BX45: 2 | BY45: 0 | BZ45: 0 | CA45: 0 | CB45: 0 | CC45: 0 | CD45: 0 | CE45: 0 | CF45: 0 | CG45: 0 | CH45: 0 | CI45: 0 | CJ45: 0 | CK45: 1 | CL45: 0 | CM45: 0 | CN45: 0 | CO45: 0 | CP45: 0 | CQ45: 0 | CR45: 0 | CS45: 0 | CT45: 0 | CV45: 75.87521264 | CW45: 569.0640948 | CX45: 227.6256379 | CY45: 417.3136695 | CZ45: 417.3136695 | DA45: 455.2512758 | DB45: 455.2512758 | DC45: 303.5008506 | DD45: 493.1888821 | DE45: 1214.003402 | DF45: 1138.12819 | DG45: 758.7521264 | DH45: 720.8145201 | DI45: 644.9393074 | DJ45: 341.4384569 | DK45: 341.4384569 | DL45: 341.4384569 | DM45: 227.6256379 | DN45: 189.6880316 | DO45: 227.6256379 | DP45: 189.6880316 | DQ45: 189.6880316 | DR45: 151.7504253 | DS45: 227.6256379 | DT45: 227.6256379 | DU45: 189.6880316 | DV45: 189.6880316 | DW45: 417.3136695 | DX45: 113.812819 | DY45: 303.5008506 | DZ45: 75.87521264 | EA45: 151.7504253 | EB45: 75.87521264 | EC45: 189.6880316 | ED45: 303.5008506 | EE45: 265.5632442 | EF45: 758.7521264 | EG45: 227.6256379 | EH45: 113.812819 | EI45: 265.5632442 | EJ45: 113.812819 | EK45: 151.7504253 | EL45: 151.7504253 | EM45: 37.93760632 | EN45: 0 | EO45: 75.87521264 | EP45: 37.93760632 | EQ45: 113.812819 | ER45: 0 | ES45: 265.5632442 | ET45: 75.87521264 | EU45: 75.87521264 | EV45: 75.87521264 | EW45: 189.6880316 | EX45: 189.6880316 | EY45: 0 | EZ45: 37.93760632 | FA45: 227.6256379 | FB45: 37.93760632 | FC45: 0 | FD45: 75.87521264 | FE45: 0 | FF45: 37.93760632 | FG45: 0 | FH45: 37.93760632 | FI45: 75.87521264 | FJ45: 0 | FK45: 0 | FL45: 75.87521264 | FM45: 0 | FN45: 0 | FO45: 0 | FP45: 0 | FQ45: 0 | FR45: 0 | FS45: 0 | FT45: 0 | FU45: 0 | FV45: 0 | FW45: 0 | FX45: 0 | FY45: 37.93760632 | FZ45: 0 | GA45: 0 | GB45: 0 | GC45: 0 | GD45: 0 | GE45: 0 | GF45: 0 | GG45: 0 | GH45: 0
A46: 5 | B46: TRANSFORMERS | C46: ground outdoor / indoor chamber mounted ; ˂ 22 kv ; > 600 kva ; multiple phase | D46: 70.7787497 | E46: 54.21661923 | F46: 7.363193548 | G46: 2 | H46: 1 | I46: 4 | J46: 4 | K46: 8 | L46: 6 | M46: 3 | N46: 15 | O46: 3 | P46: 5 | Q46: 5 | R46: 7 | S46: 1 | T46: 0 | U46: 5 | V46: 3 | W46: 8 | X46: 3 | Y46: 3 | Z46: 6 | AA46: 3 | AB46: 5 | AC46: 0 | AD46: 19 | AE46: 8 | AF46: 8 | AG46: 3 | AH46: 2 | AI46: 4 | AJ46: 2 | AK46: 10 | AL46: 4 | AM46: 9 | AN46: 1 | AO46: 4 | AP46: 5 | AQ46: 6 | AR46: 9 | AS46: 14 | AT46: 0 | AU46: 4 | AV46: 6 | AW46: 0 | AX46: 11 | AY46: 6 | AZ46: 3 | BA46: 7 | BB46: 1 | BC46: 8 | BD46: 2 | BE46: 0 | BF46: 1 | BG46: 1 | BH46: 0 | BI46: 2 | BJ46: 0 | BK46: 4 | BL46: 0 | BM46: 0 | BN46: 0 | BO46: 0 | BP46: 0 | BQ46: 0 | BR46: 0 | BS46: 0 | BT46: 0 | BU46: 0 | BV46: 0 | BW46: 1 | BX46: 0 | BY46: 0 | BZ46: 0 | CA46: 0 | CB46: 0 | CC46: 0 | CD46: 0 | CE46: 0 | CF46: 0 | CG46: 0 | CH46: 0 | CI46: 0 | CJ46: 0 | CK46: 1 | CL46: 0 | CM46: 2 | CN46: 0 | CO46: 0 | CP46: 0 | CQ46: 0 | CR46: 0 | CS46: 0 | CT46: 0 | CV46: 70.7787497 | CW46: 283.1149988 | CX46: 283.1149988 | CY46: 566.2299976 | CZ46: 424.6724982 | DA46: 212.3362491 | DB46: 1061.681245 | DC46: 212.3362491 | DD46: 353.8937485 | DE46: 353.8937485 | DF46: 495.4512479 | DG46: 70.7787497 | DH46: 0 | DI46: 353.8937485 | DJ46: 212.3362491 | DK46: 566.2299976 | DL46: 212.3362491 | DM46: 212.3362491 | DN46: 424.6724982 | DO46: 212.3362491 | DP46: 353.8937485 | DQ46: 0 | DR46: 1344.796244 | DS46: 566.2299976 | DT46: 566.2299976 | DU46: 212.3362491 | DV46: 141.5574994 | DW46: 283.1149988 | DX46: 141.5574994 | DY46: 707.787497 | DZ46: 283.1149988 | EA46: 637.0087473 | EB46: 70.7787497 | EC46: 283.1149988 | ED46: 353.8937485 | EE46: 424.6724982 | EF46: 637.0087473 | EG46: 990.9024958 | EH46: 0 | EI46: 283.1149988 | EJ46: 424.6724982 | EK46: 0 | EL46: 778.5662467 | EM46: 424.6724982 | EN46: 212.3362491 | EO46: 495.4512479 | EP46: 70.7787497 | EQ46: 566.2299976 | ER46: 141.5574994 | ES46: 0 | ET46: 70.7787497 | EU46: 70.7787497 | EV46: 0 | EW46: 141.5574994 | EX46: 0 | EY46: 283.1149988 | EZ46: 0 | FA46: 0 | FB46: 0 | FC46: 0 | FD46: 0 | FE46: 0 | FF46: 0 | FG46: 0 | FH46: 0 | FI46: 0 | FJ46: 0 | FK46: 70.7787497 | FL46: 0 | FM46: 0 | FN46: 0 | FO46: 0 | FP46: 0 | FQ46: 0 | FR46: 0 | FS46: 0 | FT46: 0 | FU46: 0 | FV46: 0 | FW46: 0 | FX46: 0 | FY46: 70.7787497 | FZ46: 0 | GA46: 141.5574994 | GB46: 0 | GC46: 0 | GD46: 0 | GE46: 0 | GF46: 0 | GG46: 0 | GH46: 0
A47: 5 | B47: TRANSFORMERS | C47: ground outdoor / indoor chamber mounted ; > = 22 kv & < = 33 kv ; < = 15 mva | D47: 188.2173509 | E47: 56.25786953 | F47: 7.500524617 | G47: 2 | H47: 2 | I47: 11 | J47: 9 | K47: 7 | L47: 6 | M47: 7 | N47: 12 | O47: 15 | P47: 10 | Q47: 9 | R47: 12 | S47: 12 | T47: 9 | U47: 6 | V47: 6 | W47: 11 | X47: 15 | Y47: 6 | Z47: 8 | AA47: 6 | AB47: 4 | AC47: 7 | AD47: 9 | AE47: 13 | AF47: 9 | AG47: 3 | AH47: 7 | AI47: 8 | AJ47: 8 | AK47: 5 | AL47: 5 | AM47: 12 | AN47: 6 | AO47: 1 | AP47: 7 | AQ47: 12 | AR47: 7 | AS47: 15 | AT47: 11 | AU47: 2 | AV47: 6 | AW47: 10 | AX47: 2 | AY47: 4 | AZ47: 1 | BA47: 4 | BB47: 7 | BC47: 13 | BD47: 4 | BE47: 2 | BF47: 4 | BG47: 7 | BH47: 17 | BI47: 8 | BJ47: 3 | BK47: 5 | BL47: 4 | BM47: 5 | BN47: 2 | BO47: 1 | BP47: 0 | BQ47: 0 | BR47: 3 | BS47: 0 | BT47: 0 | BU47: 0 | BV47: 0 | BW47: 1 | BX47: 0 | BY47: 0 | BZ47: 0 | CA47: 0 | CB47: 0 | CC47: 0 | CD47: 0 | CE47: 2 | CF47: 0 | CG47: 0 | CH47: 0 | CI47: 0 | CJ47: 0 | CK47: 0 | CL47: 0 | CM47: 0 | CN47: 0 | CO47: 0 | CP47: 0 | CQ47: 0 | CR47: 0 | CS47: 0 | CT47: 0 | CV47: 376.4347018 | CW47: 2070.39086 | CX47: 1693.956158 | CY47: 1317.521456 | CZ47: 1129.304105 | DA47: 1317.521456 | DB47: 2258.608211 | DC47: 2823.260263 | DD47: 1882.173509 | DE47: 1693.956158 | DF47: 2258.608211 | DG47: 2258.608211 | DH47: 1693.956158 | DI47: 1129.304105 | DJ47: 1129.304105 | DK47: 2070.39086 | DL47: 2823.260263 | DM47: 1129.304105 | DN47: 1505.738807 | DO47: 1129.304105 | DP47: 752.8694036 | DQ47: 1317.521456 | DR47: 1693.956158 | DS47: 2446.825562 | DT47: 1693.956158 | DU47: 564.6520527 | DV47: 1317.521456 | DW47: 1505.738807 | DX47: 1505.738807 | DY47: 941.0867545 | DZ47: 941.0867545 | EA47: 2258.608211 | EB47: 1129.304105 | EC47: 188.2173509 | ED47: 1317.521456 | EE47: 2258.608211 | EF47: 1317.521456 | EG47: 2823.260263 | EH47: 2070.39086 | EI47: 376.4347018 | EJ47: 1129.304105 | EK47: 1882.173509 | EL47: 376.4347018 | EM47: 752.8694036 | EN47: 188.2173509 | EO47: 752.8694036 | EP47: 1317.521456 | EQ47: 2446.825562 | ER47: 752.8694036 | ES47: 376.4347018 | ET47: 752.8694036 | EU47: 1317.521456 | EV47: 3199.694965 | EW47: 1505.738807 | EX47: 564.6520527 | EY47: 941.0867545 | EZ47: 752.8694036 | FA47: 941.0867545 | FB47: 376.4347018 | FC47: 188.2173509 | FD47: 0 | FE47: 0 | FF47: 564.6520527 | FG47: 0 | FH47: 0 | FI47: 0 | FJ47: 0 | FK47: 188.2173509 | FL47: 0 | FM47: 0 | FN47: 0 | FO47: 0 | FP47: 0 | FQ47: 0 | FR47: 0 | FS47: 376.4347018 | FT47: 0 | FU47: 0 | FV47: 0 | FW47: 0 | FX47: 0 | FY47: 0 | FZ47: 0 | GA47: 0 | GB47: 0 | GC47: 0 | GD47: 0 | GE47: 0 | GF47: 0 | GG47: 0 | GH47: 0
A48: 5 | B48: TRANSFORMERS | C48: ground outdoor / indoor chamber mounted ; > = 22 kv & < = 33 kv ; > 15 mva and < = 40 mva | D48: 307.4678729 | E48: 48.04979263 | F48: 6.931795773 | G48: 2 | H48: 0 | I48: 0 | J48: 0 | K48: 0 | L48: 1 | M48: 2 | N48: 1 | O48: 0 | P48: 1 | Q48: 0 | R48: 6 | S48: 1 | T48: 3 | U48: 3 | V48: 0 | W48: 0 | X48: 1 | Y48: 0 | Z48: 0 | AA48: 0 | AB48: 0 | AC48: 0 | AD48: 1 | AE48: 0 | AF48: 0 | AG48: 1 | AH48: 1 | AI48: 0 | AJ48: 0 | AK48: 2 | AL48: 1 | AM48: 0 | AN48: 2 | AO48: 0 | AP48: 0 | AQ48: 0 | AR48: 1 | AS48: 0 | AT48: 0 | AU48: 0 | AV48: 2 | AW48: 0 | AX48: 0 | AY48: 0 | AZ48: 0 | BA48: 0 | BB48: 0 | BC48: 0 | BD48: 0 | BE48: 0 | BF48: 1 | BG48: 0 | BH48: 0 | BI48: 0 | BJ48: 0 | BK48: 0 | BL48: 0 | BM48: 0 | BN48: 0 | BO48: 0 | BP48: 0 | BQ48: 0 | BR48: 0 | BS48: 0 | BT48: 0 | BU48: 0 | BV48: 0 | BW48: 0 | BX48: 0 | BY48: 0 | BZ48: 0 | CA48: 0 | CB48: 0 | CC48: 0 | CD48: 0 | CE48: 0 | CF48: 0 | CG48: 0 | CH48: 0 | CI48: 0 | CJ48: 0 | CK48: 0 | CL48: 0 | CM48: 0 | CN48: 0 | CO48: 0 | CP48: 0 | CQ48: 0 | CR48: 0 | CS48: 0 | CT48: 0 | CV48: 0 | CW48: 0 | CX48: 0 | CY48: 0 | CZ48: 307.4678729 | DA48: 614.9357458 | DB48: 307.4678729 | DC48: 0 | DD48: 307.4678729 | DE48: 0 | DF48: 1844.807237 | DG48: 307.4678729 | DH48: 922.4036187 | DI48: 922.4036187 | DJ48: 0 | DK48: 0 | DL48: 307.4678729 | DM48: 0 | DN48: 0 | DO48: 0 | DP48: 0 | DQ48: 0 | DR48: 307.4678729 | DS48: 0 | DT48: 0 | DU48: 307.4678729 | DV48: 307.4678729 | DW48: 0 | DX48: 0 | DY48: 614.9357458 | DZ48: 307.4678729 | EA48: 0 | EB48: 614.9357458 | EC48: 0 | ED48: 0 | EE48: 0 | EF48: 307.4678729 | EG48: 0 | EH48: 0 | EI48: 0 | EJ48: 614.9357458 | EK48: 0 | EL48: 0 | EM48: 0 | EN48: 0 | EO48: 0 | EP48: 0 | EQ48: 0 | ER48: 0 | ES48: 0 | ET48: 307.4678729 | EU48: 0 | EV48: 0 | EW48: 0 | EX48: 0 | EY48: 0 | EZ48: 0 | FA48: 0 | FB48: 0 | FC48: 0 | FD48: 0 | FE48: 0 | FF48: 0 | FG48: 0 | FH48: 0 | FI48: 0 | FJ48: 0 | FK48: 0 | FL48: 0 | FM48: 0 | FN48: 0 | FO48: 0 | FP48: 0 | FQ48: 0 | FR48: 0 | FS48: 0 | FT48: 0 | FU48: 0 | FV48: 0 | FW48: 0 | FX48: 0 | FY48: 0 | FZ48: 0 | GA48: 0 | GB48: 0 | GC48: 0 | GD48: 0 | GE48: 0 | GF48: 0 | GG48: 0 | GH48: 0
A49: 5 | B49: TRANSFORMERS | C49: ground outdoor / indoor chamber mounted ; > = 22 kv & < = 33 kv ; > 40 mva | D49: 178.3553503 | E49: 57.9526994 | F49: 7.612667036 | G49: 2 | H49: 0 | I49: 0 | J49: 0 | K49: 0 | L49: 0 | M49: 0 | N49: 0 | O49: 0 | P49: 0 | Q49: 0 | R49: 0 | S49: 2 | T49: 0 | U49: 0 | V49: 0 | W49: 0 | X49: 0 | Y49: 0 | Z49: 0 | AA49: 0 | AB49: 0 | AC49: 0 | AD49: 0 | AE49: 0 | AF49: 0 | AG49: 0 | AH49: 0 | AI49: 0 | AJ49: 0 | AK49: 0 | AL49: 0 | AM49: 0 | AN49: 0 | AO49: 0 | AP49: 0 | AQ49: 0 | AR49: 0 | AS49: 0 | AT49: 0 | AU49: 0 | AV49: 0 | AW49: 0 | AX49: 0 | AY49: 0 | AZ49: 0 | BA49: 0 | BB49: 0 | BC49: 0 | BD49: 0 | BE49: 0 | BF49: 0 | BG49: 0 | BH49: 0 | BI49: 0 | BJ49: 0 | BK49: 0 | BL49: 0 | BM49: 0 | BN49: 0 | BO49: 0 | BP49: 0 | BQ49: 0 | BR49: 0 | BS49: 0 | BT49: 0 | BU49: 0 | BV49: 0 | BW49: 0 | BX49: 0 | BY49: 0 | BZ49: 0 | CA49: 0 | CB49: 0 | CC49: 0 | CD49: 0 | CE49: 0 | CF49: 0 | CG49: 0 | CH49: 0 | CI49: 0 | CJ49: 0 | CK49: 0 | CL49: 0 | CM49: 0 | CN49: 0 | CO49: 0 | CP49: 0 | CQ49: 0 | CR49: 0 | CS49: 0 | CT49: 0 | CV49: 0 | CW49: 0 | CX49: 0 | CY49: 0 | CZ49: 0 | DA49: 0 | DB49: 0 | DC49: 0 | DD49: 0 | DE49: 0 | DF49: 0 | DG49: 356.7107005 | DH49: 0 | DI49: 0 | DJ49: 0 | DK49: 0 | DL49: 0 | DM49: 0 | DN49: 0 | DO49: 0 | DP49: 0 | DQ49: 0 | DR49: 0 | DS49: 0 | DT49: 0 | DU49: 0 | DV49: 0 | DW49: 0 | DX49: 0 | DY49: 0 | DZ49: 0 | EA49: 0 | EB49: 0 | EC49: 0 | ED49: 0 | EE49: 0 | EF49: 0 | EG49: 0 | EH49: 0 | EI49: 0 | EJ49: 0 | EK49: 0 | EL49: 0 | EM49: 0 | EN49: 0 | EO49: 0 | EP49: 0 | EQ49: 0 | ER49: 0 | ES49: 0 | ET49: 0 | EU49: 0 | EV49: 0 | EW49: 0 | EX49: 0 | EY49: 0 | EZ49: 0 | FA49: 0 | FB49: 0 | FC49: 0 | FD49: 0 | FE49: 0 | FF49: 0 | FG49: 0 | FH49: 0 | FI49: 0 | FJ49: 0 | FK49: 0 | FL49: 0 | FM49: 0 | FN49: 0 | FO49: 0 | FP49: 0 | FQ49: 0 | FR49: 0 | FS49: 0 | FT49: 0 | FU49: 0 | FV49: 0 | FW49: 0 | FX49: 0 | FY49: 0 | FZ49: 0 | GA49: 0 | GB49: 0 | GC49: 0 | GD49: 0 | GE49: 0 | GF49: 0 | GG49: 0 | GH49: 0
A50: 5 | B50: TRANSFORMERS | C50: ground outdoor / indoor chamber mounted ; > 33 kv & < = 66 kv ; < = 15 mva | D50: 322.1063493 | E50: 58.62956173 | F50: 7.656994301 | G50: 2 | H50: 3 | I50: 6 | J50: 2 | K50: 6 | L50: 7 | M50: 9 | N50: 9 | O50: 8 | P50: 7 | Q50: 23 | R50: 3 | S50: 2 | T50: 3 | U50: 6 | V50: 1 | W50: 1 | X50: 0 | Y50: 2 | Z50: 3 | AA50: 1 | AB50: 1 | AC50: 0 | AD50: 4 | AE50: 1 | AF50: 3 | AG50: 5 | AH50: 4 | AI50: 3 | AJ50: 4 | AK50: 3 | AL50: 11 | AM50: 0 | AN50: 10 | AO50: 9 | AP50: 0 | AQ50: 2 | AR50: 8 | AS50: 8 | AT50: 3 | AU50: 3 | AV50: 3 | AW50: 1 | AX50: 1 | AY50: 3 | AZ50: 2 | BA50: 3 | BB50: 6 | BC50: 7 | BD50: 5 | BE50: 11 | BF50: 5 | BG50: 11 | BH50: 13 | BI50: 2 | BJ50: 5 | BK50: 0 | BL50: 6 | BM50: 9 | BN50: 3 | BO50: 2 | BP50: 1 | BQ50: 0 | BR50: 0 | BS50: 1 | BT50: 0 | BU50: 3 | BV50: 0 | BW50: 2 | BX50: 0 | BY50: 1 | BZ50: 0 | CA50: 0 | CB50: 1 | CC50: 0 | CD50: 0 | CE50: 0 | CF50: 0 | CG50: 0 | CH50: 0 | CI50: 0 | CJ50: 0 | CK50: 0 | CL50: 0 | CM50: 0 | CN50: 0 | CO50: 0 | CP50: 0 | CQ50: 0 | CR50: 0 | CS50: 0 | CT50: 0 | CV50: 966.3190478 | CW50: 1932.638096 | CX50: 644.2126985 | CY50: 1932.638096 | CZ50: 2254.744445 | DA50: 2898.957143 | DB50: 2898.957143 | DC50: 2576.850794 | DD50: 2254.744445 | DE50: 7408.446033 | DF50: 966.3190478 | DG50: 644.2126985 | DH50: 966.3190478 | DI50: 1932.638096 | DJ50: 322.1063493 | DK50: 322.1063493 | DL50: 0 | DM50: 644.2126985 | DN50: 966.3190478 | DO50: 322.1063493 | DP50: 322.1063493 | DQ50: 0 | DR50: 1288.425397 | DS50: 322.1063493 | DT50: 966.3190478 | DU50: 1610.531746 | DV50: 1288.425397 | DW50: 966.3190478 | DX50: 1288.425397 | DY50: 966.3190478 | DZ50: 3543.169842 | EA50: 0 | EB50: 3221.063493 | EC50: 2898.957143 | ED50: 0 | EE50: 644.2126985 | EF50: 2576.850794 | EG50: 2576.850794 | EH50: 966.3190478 | EI50: 966.3190478 | EJ50: 966.3190478 | EK50: 322.1063493 | EL50: 322.1063493 | EM50: 966.3190478 | EN50: 644.2126985 | EO50: 966.3190478 | EP50: 1932.638096 | EQ50: 2254.744445 | ER50: 1610.531746 | ES50: 3543.169842 | ET50: 1610.531746 | EU50: 3543.169842 | EV50: 4187.38254 | EW50: 644.2126985 | EX50: 1610.531746 | EY50: 0 | EZ50: 1932.638096 | FA50: 2898.957143 | FB50: 966.3190478 | FC50: 644.2126985 | FD50: 322.1063493 | FE50: 0 | FF50: 0 | FG50: 322.1063493 | FH50: 0 | FI50: 966.3190478 | FJ50: 0 | FK50: 644.2126985 | FL50: 0 | FM50: 322.1063493 | FN50: 0 | FO50: 0 | FP50: 322.1063493 | FQ50: 0 | FR50: 0 | FS50: 0 | FT50: 0 | FU50: 0 | FV50: 0 | FW50: 0 | FX50: 0 | FY50: 0 | FZ50: 0 | GA50: 0 | GB50: 0 | GC50: 0 | GD50: 0 | GE50: 0 | GF50: 0 | GG50: 0 | GH50: 0
A51: 5 | B51: TRANSFORMERS | C51: ground outdoor / indoor chamber mounted ; > 33 kv & < = 66 kv ; > 15 mva and < = 40 mva | D51: 307.4678729 | E51: 48.04979263 | F51: 6.931795773 | G51: 2 | H51: 1 | I51: 1 | J51: 0 | K51: 3 | L51: 2 | M51: 6 | N51: 6 | O51: 12 | P51: 5 | Q51: 7 | R51: 16 | S51: 6 | T51: 4 | U51: 10 | V51: 3 | W51: 3 | X51: 1 | Y51: 0 | Z51: 0 | AA51: 0 | AB51: 0 | AC51: 0 | AD51: 2 | AE51: 1 | AF51: 0 | AG51: 0 | AH51: 1 | AI51: 4 | AJ51: 1 | AK51: 2 | AL51: 5 | AM51: 1 | AN51: 5 | AO51: 5 | AP51: 7 | AQ51: 7 | AR51: 7 | AS51: 1 | AT51: 3 | AU51: 3 | AV51: 8 | AW51: 2 | AX51: 0 | AY51: 0 | AZ51: 2 | BA51: 0 | BB51: 0 | BC51: 2 | BD51: 0 | BE51: 0 | BF51: 2 | BG51: 2 | BH51: 1 | BI51: 0 | BJ51: 2 | BK51: 0 | BL51: 0 | BM51: 0 | BN51: 0 | BO51: 0 | BP51: 0 | BQ51: 0 | BR51: 0 | BS51: 0 | BT51: 0 | BU51: 0 | BV51: 0 | BW51: 0 | BX51: 0 | BY51: 0 | BZ51: 0 | CA51: 0 | CB51: 0 | CC51: 0 | CD51: 0 | CE51: 0 | CF51: 0 | CG51: 0 | CH51: 0 | CI51: 0 | CJ51: 0 | CK51: 0 | CL51: 0 | CM51: 0 | CN51: 0 | CO51: 0 | CP51: 0 | CQ51: 0 | CR51: 0 | CS51: 0 | CT51: 0 | CV51: 307.4678729 | CW51: 307.4678729 | CX51: 0 | CY51: 922.4036187 | CZ51: 614.9357458 | DA51: 1844.807237 | DB51: 1844.807237 | DC51: 3689.614475 | DD51: 1537.339364 | DE51: 2152.27511 | DF51: 4919.485966 | DG51: 1844.807237 | DH51: 1229.871492 | DI51: 3074.678729 | DJ51: 922.4036187 | DK51: 922.4036187 | DL51: 307.4678729 | DM51: 0 | DN51: 0 | DO51: 0 | DP51: 0 | DQ51: 0 | DR51: 614.9357458 | DS51: 307.4678729 | DT51: 0 | DU51: 0 | DV51: 307.4678729 | DW51: 1229.871492 | DX51: 307.4678729 | DY51: 614.9357458 | DZ51: 1537.339364 | EA51: 307.4678729 | EB51: 1537.339364 | EC51: 1537.339364 | ED51: 2152.27511 | EE51: 2152.27511 | EF51: 2152.27511 | EG51: 307.4678729 | EH51: 922.4036187 | EI51: 922.4036187 | EJ51: 2459.742983 | EK51: 614.9357458 | EL51: 0 | EM51: 0 | EN51: 614.9357458 | EO51: 0 | EP51: 0 | EQ51: 614.9357458 | ER51: 0 | ES51: 0 | ET51: 614.9357458 | EU51: 614.9357458 | EV51: 307.4678729 | EW51: 0 | EX51: 614.9357458 | EY51: 0 | EZ51: 0 | FA51: 0 | FB51: 0 | FC51: 0 | FD51: 0 | FE51: 0 | FF51: 0 | FG51: 0 | FH51: 0 | FI51: 0 | FJ51: 0 | FK51: 0 | FL51: 0 | FM51: 0 | FN51: 0 | FO51: 0 | FP51: 0 | FQ51: 0 | FR51: 0 | FS51: 0 | FT51: 0 | FU51: 0 | FV51: 0 | FW51: 0 | FX51: 0 | FY51: 0 | FZ51: 0 | GA51: 0 | GB51: 0 | GC51: 0 | GD51: 0 | GE51: 0 | GF51: 0 | GG51: 0 | GH51: 0
A52: 5 | B52: TRANSFORMERS | C52: ground outdoor / indoor chamber mounted ; > 33 kv & < = 66 kv ; > 40 mva | D52: 178.3553503 | E52: 57.9526994 | F52: 7.612667036 | G52: 2 | H52: 0 | I52: 0 | J52: 0 | K52: 0 | L52: 0 | M52: 0 | N52: 0 | O52: 0 | P52: 0 | Q52: 0 | R52: 0 | S52: 0 | T52: 2 | U52: 0 | V52: 0 | W52: 0 | X52: 0 | Y52: 0 | Z52: 0 | AA52: 0 | AB52: 0 | AC52: 0 | AD52: 0 | AE52: 0 | AF52: 0 | AG52: 0 | AH52: 0 | AI52: 0 | AJ52: 0 | AK52: 0 | AL52: 0 | AM52: 0 | AN52: 0 | AO52: 0 | AP52: 0 | AQ52: 0 | AR52: 0 | AS52: 0 | AT52: 0 | AU52: 0 | AV52: 0 | AW52: 0 | AX52: 0 | AY52: 0 | AZ52: 0 | BA52: 0 | BB52: 0 | BC52: 0 | BD52: 0 | BE52: 0 | BF52: 0 | BG52: 0 | BH52: 0 | BI52: 0 | BJ52: 0 | BK52: 0 | BL52: 0 | BM52: 0 | BN52: 0 | BO52: 0 | BP52: 0 | BQ52: 0 | BR52: 0 | BS52: 0 | BT52: 0 | BU52: 0 | BV52: 0 | BW52: 0 | BX52: 0 | BY52: 0 | BZ52: 0 | CA52: 0 | CB52: 0 | CC52: 0 | CD52: 0 | CE52: 0 | CF52: 0 | CG52: 0 | CH52: 0 | CI52: 0 | CJ52: 0 | CK52: 0 | CL52: 0 | CM52: 0 | CN52: 0 | CO52: 0 | CP52: 0 | CQ52: 0 | CR52: 0 | CS52: 0 | CT52: 0 | CV52: 0 | CW52: 0 | CX52: 0 | CY52: 0 | CZ52: 0 | DA52: 0 | DB52: 0 | DC52: 0 | DD52: 0 | DE52: 0 | DF52: 0 | DG52: 0 | DH52: 356.7107005 | DI52: 0 | DJ52: 0 | DK52: 0 | DL52: 0 | DM52: 0 | DN52: 0 | DO52: 0 | DP52: 0 | DQ52: 0 | DR52: 0 | DS52: 0 | DT52: 0 | DU52: 0 | DV52: 0 | DW52: 0 | DX52: 0 | DY52: 0 | DZ52: 0 | EA52: 0 | EB52: 0 | EC52: 0 | ED52: 0 | EE52: 0 | EF52: 0 | EG52: 0 | EH52: 0 | EI52: 0 | EJ52: 0 | EK52: 0 | EL52: 0 | EM52: 0 | EN52: 0 | EO52: 0 | EP52: 0 | EQ52: 0 | ER52: 0 | ES52: 0 | ET52: 0 | EU52: 0 | EV52: 0 | EW52: 0 | EX52: 0 | EY52: 0 | EZ52: 0 | FA52: 0 | FB52: 0 | FC52: 0 | FD52: 0 | FE52: 0 | FF52: 0 | FG52: 0 | FH52: 0 | FI52: 0 | FJ52: 0 | FK52: 0 | FL52: 0 | FM52: 0 | FN52: 0 | FO52: 0 | FP52: 0 | FQ52: 0 | FR52: 0 | FS52: 0 | FT52: 0 | FU52: 0 | FV52: 0 | FW52: 0 | FX52: 0 | FY52: 0 | FZ52: 0 | GA52: 0 | GB52: 0 | GC52: 0 | GD52: 0 | GE52: 0 | GF52: 0 | GG52: 0 | GH52: 0
A53: 5 | B53: TRANSFORMERS | C53: ground outdoor / indoor chamber mounted ; > 66 kv & < = 132 kv ; < = 100 mva | D53: 178.3553503 | E53: 57.9526994 | F53: 7.612667036 | G53: 2 | H53: 0 | I53: 0 | J53: 1 | K53: 0 | L53: 2 | M53: 8 | N53: 2 | O53: 4 | P53: 0 | Q53: 12 | R53: 2 | S53: 1 | T53: 0 | U53: 1 | V53: 4 | W53: 3 | X53: 3 | Y53: 2 | Z53: 4 | AA53: 0 | AB53: 0 | AC53: 0 | AD53: 5 | AE53: 2 | AF53: 0 | AG53: 1 | AH53: 2 | AI53: 2 | AJ53: 0 | AK53: 0 | AL53: 0 | AM53: 0 | AN53: 0 | AO53: 6 | AP53: 0 | AQ53: 4 | AR53: 1 | AS53: 0 | AT53: 0 | AU53: 1 | AV53: 0 | AW53: 1 | AX53: 0 | AY53: 0 | AZ53: 0 | BA53: 0 | BB53: 0 | BC53: 0 | BD53: 0 | BE53: 2 | BF53: 0 | BG53: 2 | BH53: 2 | BI53: 2 | BJ53: 0 | BK53: 0 | BL53: 2 | BM53: 0 | BN53: 0 | BO53: 0 | BP53: 0 | BQ53: 1 | BR53: 0 | BS53: 0 | BT53: 0 | BU53: 0 | BV53: 0 | BW53: 0 | BX53: 0 | BY53: 0 | BZ53: 0 | CA53: 0 | CB53: 0 | CC53: 0 | CD53: 0 | CE53: 0 | CF53: 0 | CG53: 0 | CH53: 0 | CI53: 0 | CJ53: 0 | CK53: 0 | CL53: 0 | CM53: 0 | CN53: 0 | CO53: 0 | CP53: 0 | CQ53: 0 | CR53: 0 | CS53: 0 | CT53: 0 | CV53: 0 | CW53: 0 | CX53: 178.3553503 | CY53: 0 | CZ53: 356.7107005 | DA53: 1426.842802 | DB53: 356.7107005 | DC53: 713.421401 | DD53: 0 | DE53: 2140.264203 | DF53: 356.7107005 | DG53: 178.3553503 | DH53: 0 | DI53: 178.3553503 | DJ53: 713.421401 | DK53: 535.0660508 | DL53: 535.0660508 | DM53: 356.7107005 | DN53: 713.421401 | DO53: 0 | DP53: 0 | DQ53: 0 | DR53: 891.7767513 | DS53: 356.7107005 | DT53: 0 | DU53: 178.3553503 | DV53: 356.7107005 | DW53: 356.7107005 | DX53: 0 | DY53: 0 | DZ53: 0 | EA53: 0 | EB53: 0 | EC53: 1070.132102 | ED53: 0 | EE53: 713.421401 | EF53: 178.3553503 | EG53: 0 | EH53: 0 | EI53: 178.3553503 | EJ53: 0 | EK53: 178.3553503 | EL53: 0 | EM53: 0 | EN53: 0 | EO53: 0 | EP53: 0 | EQ53: 0 | ER53: 0 | ES53: 356.7107005 | ET53: 0 | EU53: 356.7107005 | EV53: 356.7107005 | EW53: 356.7107005 | EX53: 0 | EY53: 0 | EZ53: 356.7107005 | FA53: 0 | FB53: 0 | FC53: 0 | FD53: 0 | FE53: 178.3553503 | FF53: 0 | FG53: 0 | FH53: 0 | FI53: 0 | FJ53: 0 | FK53: 0 | FL53: 0 | FM53: 0 | FN53: 0 | FO53: 0 | FP53: 0 | FQ53: 0 | FR53: 0 | FS53: 0 | FT53: 0 | FU53: 0 | FV53: 0 | FW53: 0 | FX53: 0 | FY53: 0 | FZ53: 0 | GA53: 0 | GB53: 0 | GC53: 0 | GD53: 0 | GE53: 0 | GF53: 0 | GG53: 0 | GH53: 0
A54: 5 | B54: TRANSFORMERS | C54: ground outdoor / indoor chamber mounted ; > 66 kv & < = 132 kv ; > 100 mva | D54: 307.4678729 | E54: 48.04979263 | F54: 6.931795773 | G54: 2 | H54: 0 | I54: 0 | J54: 0 | K54: 0 | L54: 0 | M54: 0 | N54: 0 | O54: 0 | P54: 0 | Q54: 0 | R54: 0 | S54: 3 | T54: 0 | U54: 0 | V54: 0 | W54: 0 | X54: 0 | Y54: 0 | Z54: 0 | AA54: 0 | AB54: 0 | AC54: 0 | AD54: 0 | AE54: 0 | AF54: 0 | AG54: 0 | AH54: 0 | AI54: 0 | AJ54: 0 | AK54: 0 | AL54: 0 | AM54: 0 | AN54: 0 | AO54: 0 | AP54: 0 | AQ54: 0 | AR54: 0 | AS54: 0 | AT54: 0 | AU54: 0 | AV54: 0 | AW54: 0 | AX54: 0 | AY54: 0 | AZ54: 0 | BA54: 0 | BB54: 0 | BC54: 0 | BD54: 0 | BE54: 0 | BF54: 0 | BG54: 0 | BH54: 0 | BI54: 0 | BJ54: 0 | BK54: 0 | BL54: 0 | BM54: 0 | BN54: 0 | BO54: 0 | BP54: 0 | BQ54: 0 | BR54: 0 | BS54: 0 | BT54: 0 | BU54: 0 | BV54: 0 | BW54: 0 | BX54: 0 | BY54: 0 | BZ54: 0 | CA54: 0 | CB54: 0 | CC54: 0 | CD54: 0 | CE54: 0 | CF54: 0 | CG54: 0 | CH54: 0 | CI54: 0 | CJ54: 0 | CK54: 0 | CL54: 0 | CM54: 0 | CN54: 0 | CO54: 0 | CP54: 0 | CQ54: 0 | CR54: 0 | CS54: 0 | CT54: 0 | CV54: 0 | CW54: 0 | CX54: 0 | CY54: 0 | CZ54: 0 | DA54: 0 | DB54: 0 | DC54: 0 | DD54: 0 | DE54: 0 | DF54: 0 | DG54: 922.4036187 | DH54: 0 | DI54: 0 | DJ54: 0 | DK54: 0 | DL54: 0 | DM54: 0 | DN54: 0 | DO54: 0 | DP54: 0 | DQ54: 0 | DR54: 0 | DS54: 0 | DT54: 0 | DU54: 0 | DV54: 0 | DW54: 0 | DX54: 0 | DY54: 0 | DZ54: 0 | EA54: 0 | EB54: 0 | EC54: 0 | ED54: 0 | EE54: 0 | EF54: 0 | EG54: 0 | EH54: 0 | EI54: 0 | EJ54: 0 | EK54: 0 | EL54: 0 | EM54: 0 | EN54: 0 | EO54: 0 | EP54: 0 | EQ54: 0 | ER54: 0 | ES54: 0 | ET54: 0 | EU54: 0 | EV54: 0 | EW54: 0 | EX54: 0 | EY54: 0 | EZ54: 0 | FA54: 0 | FB54: 0 | FC54: 0 | FD54: 0 | FE54: 0 | FF54: 0 | FG54: 0 | FH54: 0 | FI54: 0 | FJ54: 0 | FK54: 0 | FL54: 0 | FM54: 0 | FN54: 0 | FO54: 0 | FP54: 0 | FQ54: 0 | FR54: 0 | FS54: 0 | FT54: 0 | FU54: 0 | FV54: 0 | FW54: 0 | FX54: 0 | FY54: 0 | FZ54: 0 | GA54: 0 | GB54: 0 | GC54: 0 | GD54: 0 | GE54: 0 | GF54: 0 | GG54: 0 | GH54: 0
A55: 5 | B55: TRANSFORMERS | C55: kiosk mounted ; < = 22 kv ; < = 60 kva ; multiple phase | D55: 8.818545242 | E55: 17.79407328 | F55: 4.21830218 | G55: 2 | H55: 4 | I55: 12 | J55: 8 | K55: 0 | L55: 3 | M55: 5 | N55: 2 | O55: 0 | P55: 0 | Q55: 0 | R55: 1 | S55: 0 | T55: 4 | U55: 1 | V55: 1 | W55: 1 | X55: 1 | Y55: 12 | Z55: 3 | AA55: 6 | AB55: 1 | AC55: 3 | AD55: 10 | AE55: 3 | AF55: 12 | AG55: 1 | AH55: 2 | AI55: 9 | AJ55: 3 | AK55: 2 | AL55: 1 | AM55: 3 | AN55: 6 | AO55: 9 | AP55: 7 | AQ55: 0 | AR55: 2 | AS55: 9 | AT55: 1 | AU55: 0 | AV55: 0 | AW55: 0 | AX55: 0 | AY55: 0 | AZ55: 0 | BA55: 0 | BB55: 0 | BC55: 0 | BD55: 0 | BE55: 1 | BF55: 0 | BG55: 0 | BH55: 0 | BI55: 0 | BJ55: 0 | BK55: 0 | BL55: 0 | BM55: 0 | BN55: 0 | BO55: 0 | BP55: 0 | BQ55: 0 | BR55: 0 | BS55: 1 | BT55: 0 | BU55: 1 | BV55: 0 | BW55: 0 | BX55: 0 | BY55: 0 | BZ55: 0 | CA55: 0 | CB55: 0 | CC55: 0 | CD55: 0 | CE55: 0 | CF55: 0 | CG55: 0 | CH55: 0 | CI55: 0 | CJ55: 0 | CK55: 0 | CL55: 0 | CM55: 0 | CN55: 0 | CO55: 0 | CP55: 0 | CQ55: 0 | CR55: 0 | CS55: 0 | CT55: 0 | CV55: 35.27418097 | CW55: 105.8225429 | CX55: 70.54836193 | CY55: 0 | CZ55: 26.45563572 | DA55: 44.09272621 | DB55: 17.63709048 | DC55: 0 | DD55: 0 | DE55: 0 | DF55: 8.818545242 | DG55: 0 | DH55: 35.27418097 | DI55: 8.818545242 | DJ55: 8.818545242 | DK55: 8.818545242 | DL55: 8.818545242 | DM55: 105.8225429 | DN55: 26.45563572 | DO55: 52.91127145 | DP55: 8.818545242 | DQ55: 26.45563572 | DR55: 88.18545242 | DS55: 26.45563572 | DT55: 105.8225429 | DU55: 8.818545242 | DV55: 17.63709048 | DW55: 79.36690717 | DX55: 26.45563572 | DY55: 17.63709048 | DZ55: 8.818545242 | EA55: 26.45563572 | EB55: 52.91127145 | EC55: 79.36690717 | ED55: 61.72981669 | EE55: 0 | EF55: 17.63709048 | EG55: 79.36690717 | EH55: 8.818545242 | EI55: 0 | EJ55: 0 | EK55: 0 | EL55: 0 | EM55: 0 | EN55: 0 | EO55: 0 | EP55: 0 | EQ55: 0 | ER55: 0 | ES55: 8.818545242 | ET55: 0 | EU55: 0 | EV55: 0 | EW55: 0 | EX55: 0 | EY55: 0 | EZ55: 0 | FA55: 0 | FB55: 0 | FC55: 0 | FD55: 0 | FE55: 0 | FF55: 0 | FG55: 8.818545242 | FH55: 0 | FI55: 8.818545242 | FJ55: 0 | FK55: 0 | FL55: 0 | FM55: 0 | FN55: 0 | FO55: 0 | FP55: 0 | FQ55: 0 | FR55: 0 | FS55: 0 | FT55: 0 | FU55: 0 | FV55: 0 | FW55: 0 | FX55: 0 | FY55: 0 | FZ55: 0 | GA55: 0 | GB55: 0 | GC55: 0 | GD55: 0 | GE55: 0 | GF55: 0 | GG55: 0 | GH55: 0
A56: 5 | B56: TRANSFORMERS | C56: kiosk mounted ; < = 22 kv ; < = 60 kva ; single phase | D56: 8.818545242 | E56: 17.79407328 | F56: 4.21830218 | G56: 2 | H56: 0 | I56: 0 | J56: 1 | K56: 0 | L56: 1 | M56: 1 | N56: 0 | O56: 1 | P56: 0 | Q56: 11 | R56: 17 | S56: 8 | T56: 20 | U56: 4 | V56: 0 | W56: 0 | X56: 0 | Y56: 1 | Z56: 0 | AA56: 0 | AB56: 0 | AC56: 0 | AD56: 0 | AE56: 0 | AF56: 0 | AG56: 0 | AH56: 0 | AI56: 0 | AJ56: 0 | AK56: 0 | AL56: 0 | AM56: 0 | AN56: 0 | AO56: 0 | AP56: 0 | AQ56: 0 | AR56: 0 | AS56: 0 | AT56: 0 | AU56: 0 | AV56: 0 | AW56: 0 | AX56: 0 | AY56: 0 | AZ56: 0 | BA56: 0 | BB56: 0 | BC56: 0 | BD56: 0 | BE56: 0 | BF56: 0 | BG56: 0 | BH56: 0 | BI56: 0 | BJ56: 0 | BK56: 0 | BL56: 0 | BM56: 0 | BN56: 0 | BO56: 0 | BP56: 0 | BQ56: 0 | BR56: 0 | BS56: 0 | BT56: 0 | BU56: 0 | BV56: 0 | BW56: 0 | BX56: 0 | BY56: 0 | BZ56: 0 | CA56: 0 | CB56: 0 | CC56: 0 | CD56: 0 | CE56: 0 | CF56: 0 | CG56: 0 | CH56: 0 | CI56: 0 | CJ56: 0 | CK56: 0 | CL56: 0 | CM56: 0 | CN56: 0 | CO56: 0 | CP56: 0 | CQ56: 0 | CR56: 0 | CS56: 0 | CT56: 0 | CV56: 0 | CW56: 0 | CX56: 8.818545242 | CY56: 0 | CZ56: 8.818545242 | DA56: 8.818545242 | DB56: 0 | DC56: 8.818545242 | DD56: 0 | DE56: 97.00399766 | DF56: 149.9152691 | DG56: 70.54836193 | DH56: 176.3709048 | DI56: 35.27418097 | DJ56: 0 | DK56: 0 | DL56: 0 | DM56: 8.818545242 | DN56: 0 | DO56: 0 | DP56: 0 | DQ56: 0 | DR56: 0 | DS56: 0 | DT56: 0 | DU56: 0 | DV56: 0 | DW56: 0 | DX56: 0 | DY56: 0 | DZ56: 0 | EA56: 0 | EB56: 0 | EC56: 0 | ED56: 0 | EE56: 0 | EF56: 0 | EG56: 0 | EH56: 0 | EI56: 0 | EJ56: 0 | EK56: 0 | EL56: 0 | EM56: 0 | EN56: 0 | EO56: 0 | EP56: 0 | EQ56: 0 | ER56: 0 | ES56: 0 | ET56: 0 | EU56: 0 | EV56: 0 | EW56: 0 | EX56: 0 | EY56: 0 | EZ56: 0 | FA56: 0 | FB56: 0 | FC56: 0 | FD56: 0 | FE56: 0 | FF56: 0 | FG56: 0 | FH56: 0 | FI56: 0 | FJ56: 0 | FK56: 0 | FL56: 0 | FM56: 0 | FN56: 0 | FO56: 0 | FP56: 0 | FQ56: 0 | FR56: 0 | FS56: 0 | FT56: 0 | FU56: 0 | FV56: 0 | FW56: 0 | FX56: 0 | FY56: 0 | FZ56: 0 | GA56: 0 | GB56: 0 | GC56: 0 | GD56: 0 | GE56: 0 | GF56: 0 | GG56: 0 | GH56: 0
A57: 5 | B57: TRANSFORMERS | C57: kiosk mounted ; < = 22 kv ; > 60 kva and < = 600 kva ; multiple phase | D57: 37.70848932 | E57: 52.18290835 | F57: 7.22377383 | G57: 2 | H57: 70 | I57: 117 | J57: 146 | K57: 101 | L57: 115 | M57: 99 | N57: 160 | O57: 149 | P57: 149 | Q57: 177 | R57: 202 | S57: 137 | T57: 200 | U57: 250 | V57: 150 | W57: 134 | X57: 97 | Y57: 111 | Z57: 89 | AA57: 71 | AB57: 40 | AC57: 42 | AD57: 127 | AE57: 124 | AF57: 93 | AG57: 97 | AH57: 107 | AI57: 93 | AJ57: 77 | AK57: 36 | AL57: 44 | AM57: 97 | AN57: 37 | AO57: 39 | AP57: 54 | AQ57: 135 | AR57: 84 | AS57: 88 | AT57: 35 | AU57: 49 | AV57: 33 | AW57: 49 | AX57: 36 | AY57: 53 | AZ57: 24 | BA57: 14 | BB57: 12 | BC57: 32 | BD57: 12 | BE57: 7 | BF57: 5 | BG57: 3 | BH57: 3 | BI57: 4 | BJ57: 20 | BK57: 2 | BL57: 3 | BM57: 3 | BN57: 4 | BO57: 0 | BP57: 0 | BQ57: 0 | BR57: 0 | BS57: 0 | BT57: 0 | BU57: 1 | BV57: 0 | BW57: 2 | BX57: 2 | BY57: 0 | BZ57: 0 | CA57: 0 | CB57: 0 | CC57: 0 | CD57: 0 | CE57: 0 | CF57: 0 | CG57: 1 | CH57: 0 | CI57: 0 | CJ57: 1 | CK57: 1 | CL57: 0 | CM57: 0 | CN57: 0 | CO57: 0 | CP57: 0 | CQ57: 1 | CR57: 0 | CS57: 0 | CT57: 0 | CV57: 2639.594252 | CW57: 4411.893251 | CX57: 5505.439441 | CY57: 3808.557421 | CZ57: 4336.476272 | DA57: 3733.140443 | DB57: 6033.358291 | DC57: 5618.564909 | DD57: 5618.564909 | DE57: 6674.40261 | DF57: 7617.114843 | DG57: 5166.063037 | DH57: 7541.697864 | DI57: 9427.12233 | DJ57: 5656.273398 | DK57: 5052.937569 | DL57: 3657.723464 | DM57: 4185.642315 | DN57: 3356.05555 | DO57: 2677.302742 | DP57: 1508.339573 | DQ57: 1583.756551 | DR57: 4788.978144 | DS57: 4675.852676 | DT57: 3506.889507 | DU57: 3657.723464 | DV57: 4034.808357 | DW57: 3506.889507 | DX57: 2903.553678 | DY57: 1357.505616 | DZ57: 1659.17353 | EA57: 3657.723464 | EB57: 1395.214105 | EC57: 1470.631084 | ED57: 2036.258423 | EE57: 5090.646058 | EF57: 3167.513103 | EG57: 3318.34706 | EH57: 1319.797126 | EI57: 1847.715977 | EJ57: 1244.380148 | EK57: 1847.715977 | EL57: 1357.505616 | EM57: 1998.549934 | EN57: 905.0037437 | EO57: 527.9188505 | EP57: 452.5018719 | EQ57: 1206.671658 | ER57: 452.5018719 | ES57: 263.9594252 | ET57: 188.5424466 | EU57: 113.125468 | EV57: 113.125468 | EW57: 150.8339573 | EX57: 754.1697864 | EY57: 75.41697864 | EZ57: 113.125468 | FA57: 113.125468 | FB57: 150.8339573 | FC57: 0 | FD57: 0 | FE57: 0 | FF57: 0 | FG57: 0 | FH57: 0 | FI57: 37.70848932 | FJ57: 0 | FK57: 75.41697864 | FL57: 75.41697864 | FM57: 0 | FN57: 0 | FO57: 0 | FP57: 0 | FQ57: 0 | FR57: 0 | FS57: 0 | FT57: 0 | FU57: 37.70848932 | FV57: 0 | FW57: 0 | FX57: 37.70848932 | FY57: 37.70848932 | FZ57: 0 | GA57: 0 | GB57: 0 | GC57: 0 | GD57: 0 | GE57: 37.70848932 | GF57: 0 | GG57: 0 | GH57: 0
A58: 5 | B58: TRANSFORMERS | C58: kiosk mounted ; < = 22 kv ; > 600 kva ; multiple phase | D58: 49.12689788 | E58: 45.43134765 | F58: 6.74027801 | G58: 2 | H58: 17 | I58: 44 | J58: 52 | K58: 60 | L58: 47 | M58: 32 | N58: 95 | O58: 64 | P58: 83 | Q58: 71 | R58: 112 | S58: 74 | T58: 77 | U58: 55 | V58: 61 | W58: 37 | X58: 40 | Y58: 36 | Z58: 44 | AA58: 30 | AB58: 12 | AC58: 24 | AD58: 21 | AE58: 27 | AF58: 10 | AG58: 15 | AH58: 18 | AI58: 14 | AJ58: 10 | AK58: 15 | AL58: 19 | AM58: 1 | AN58: 8 | AO58: 5 | AP58: 10 | AQ58: 16 | AR58: 10 | AS58: 12 | AT58: 8 | AU58: 9 | AV58: 4 | AW58: 2 | AX58: 1 | AY58: 8 | AZ58: 2 | BA58: 0 | BB58: 1 | BC58: 5 | BD58: 2 | BE58: 3 | BF58: 0 | BG58: 0 | BH58: 2 | BI58: 0 | BJ58: 1 | BK58: 2 | BL58: 0 | BM58: 1 | BN58: 1 | BO58: 0 | BP58: 0 | BQ58: 0 | BR58: 0 | BS58: 0 | BT58: 0 | BU58: 0 | BV58: 0 | BW58: 0 | BX58: 0 | BY58: 0 | BZ58: 0 | CA58: 0 | CB58: 0 | CC58: 0 | CD58: 0 | CE58: 0 | CF58: 0 | CG58: 0 | CH58: 0 | CI58: 0 | CJ58: 0 | CK58: 0 | CL58: 0 | CM58: 0 | CN58: 0 | CO58: 0 | CP58: 0 | CQ58: 0 | CR58: 0 | CS58: 0 | CT58: 0 | CV58: 835.1572639 | CW58: 2161.583507 | CX58: 2554.59869 | CY58: 2947.613873 | CZ58: 2308.9642 | DA58: 1572.060732 | DB58: 4667.055298 | DC58: 3144.121464 | DD58: 4077.532524 | DE58: 3488.009749 | DF58: 5502.212562 | DG58: 3635.390443 | DH58: 3782.771136 | DI58: 2701.979383 | DJ58: 2996.74077 | DK58: 1817.695221 | DL58: 1965.075915 | DM58: 1768.568324 | DN58: 2161.583507 | DO58: 1473.806936 | DP58: 589.5227745 | DQ58: 1179.045549 | DR58: 1031.664855 | DS58: 1326.426243 | DT58: 491.2689788 | DU58: 736.9034681 | DV58: 884.2841618 | DW58: 687.7765703 | DX58: 491.2689788 | DY58: 736.9034681 | DZ58: 933.4110597 | EA58: 49.12689788 | EB58: 393.015183 | EC58: 245.6344894 | ED58: 491.2689788 | EE58: 786.030366 | EF58: 491.2689788 | EG58: 589.5227745 | EH58: 393.015183 | EI58: 442.1420809 | EJ58: 196.5075915 | EK58: 98.25379575 | EL58: 49.12689788 | EM58: 393.015183 | EN58: 98.25379575 | EO58: 0 | EP58: 49.12689788 | EQ58: 245.6344894 | ER58: 98.25379575 | ES58: 147.3806936 | ET58: 0 | EU58: 0 | EV58: 98.25379575 | EW58: 0 | EX58: 49.12689788 | EY58: 98.25379575 | EZ58: 0 | FA58: 49.12689788 | FB58: 49.12689788 | FC58: 0 | FD58: 0 | FE58: 0 | FF58: 0 | FG58: 0 | FH58: 0 | FI58: 0 | FJ58: 0 | FK58: 0 | FL58: 0 | FM58: 0 | FN58: 0 | FO58: 0 | FP58: 0 | FQ58: 0 | FR58: 0 | FS58: 0 | FT58: 0 | FU58: 0 | FV58: 0 | FW58: 0 | FX58: 0 | FY58: 0 | FZ58: 0 | GA58: 0 | GB58: 0 | GC58: 0 | GD58: 0 | GE58: 0 | GF58: 0 | GG58: 0 | GH58: 0
A59: 5 | B59: TRANSFORMERS | C59: kiosk mounted ; < = 22 kv ; > 600 kva ; single phase | D59: 49.12689788 | E59: 45.43134765 | F59: 6.74027801 | G59: 2 | H59: 0 | I59: 0 | J59: 0 | K59: 0 | L59: 0 | M59: 0 | N59: 0 | O59: 0 | P59: 0 | Q59: 0 | R59: 1 | S59: 0 | T59: 0 | U59: 0 | V59: 0 | W59: 0 | X59: 0 | Y59: 0 | Z59: 0 | AA59: 0 | AB59: 0 | AC59: 0 | AD59: 0 | AE59: 0 | AF59: 0 | AG59: 0 | AH59: 0 | AI59: 0 | AJ59: 0 | AK59: 0 | AL59: 0 | AM59: 0 | AN59: 0 | AO59: 0 | AP59: 1 | AQ59: 0 | AR59: 0 | AS59: 1 | AT59: 0 | AU59: 0 | AV59: 0 | AW59: 0 | AX59: 0 | AY59: 0 | AZ59: 0 | BA59: 0 | BB59: 0 | BC59: 0 | BD59: 0 | BE59: 0 | BF59: 0 | BG59: 0 | BH59: 0 | BI59: 0 | BJ59: 0 | BK59: 0 | BL59: 0 | BM59: 0 | BN59: 0 | BO59: 0 | BP59: 0 | BQ59: 0 | BR59: 0 | BS59: 0 | BT59: 0 | BU59: 0 | BV59: 0 | BW59: 0 | BX59: 0 | BY59: 0 | BZ59: 0 | CA59: 0 | CB59: 0 | CC59: 0 | CD59: 0 | CE59: 0 | CF59: 0 | CG59: 0 | CH59: 0 | CI59: 0 | CJ59: 0 | CK59: 0 | CL59: 0 | CM59: 0 | CN59: 0 | CO59: 0 | CP59: 0 | CQ59: 0 | CR59: 0 | CS59: 0 | CT59: 0 | CV59: 0 | CW59: 0 | CX59: 0 | CY59: 0 | CZ59: 0 | DA59: 0 | DB59: 0 | DC59: 0 | DD59: 0 | DE59: 0 | DF59: 49.12689788 | DG59: 0 | DH59: 0 | DI59: 0 | DJ59: 0 | DK59: 0 | DL59: 0 | DM59: 0 | DN59: 0 | DO59: 0 | DP59: 0 | DQ59: 0 | DR59: 0 | DS59: 0 | DT59: 0 | DU59: 0 | DV59: 0 | DW59: 0 | DX59: 0 | DY59: 0 | DZ59: 0 | EA59: 0 | EB59: 0 | EC59: 0 | ED59: 49.12689788 | EE59: 0 | EF59: 0 | EG59: 49.12689788 | EH59: 0 | EI59: 0 | EJ59: 0 | EK59: 0 | EL59: 0 | EM59: 0 | EN59: 0 | EO59: 0 | EP59: 0 | EQ59: 0 | ER59: 0 | ES59: 0 | ET59: 0 | EU59: 0 | EV59: 0 | EW59: 0 | EX59: 0 | EY59: 0 | EZ59: 0 | FA59: 0 | FB59: 0 | FC59: 0 | FD59: 0 | FE59: 0 | FF59: 0 | FG59: 0 | FH59: 0 | FI59: 0 | FJ59: 0 | FK59: 0 | FL59: 0 | FM59: 0 | FN59: 0 | FO59: 0 | FP59: 0 | FQ59: 0 | FR59: 0 | FS59: 0 | FT59: 0 | FU59: 0 | FV59: 0 | FW59: 0 | FX59: 0 | FY59: 0 | FZ59: 0 | GA59: 0 | GB59: 0 | GC59: 0 | GD59: 0 | GE59: 0 | GF59: 0 | GG59: 0 | GH59: 0
A60: 5 | B60: TRANSFORMERS | C60: pole mounted ; < = 22 kv ; < = 60 kva ; multiple phase | D60: 4.912082011 | E60: 67.25773151 | F60: 8.201081119 | G60: 2 | H60: 144 | I60: 300 | J60: 369 | K60: 349 | L60: 250 | M60: 335 | N60: 349 | O60: 287 | P60: 305 | Q60: 358 | R60: 288 | S60: 391 | T60: 402 | U60: 447 | V60: 445 | W60: 415 | X60: 669 | Y60: 341 | Z60: 289 | AA60: 262 | AB60: 259 | AC60: 401 | AD60: 520 | AE60: 758 | AF60: 578 | AG60: 580 | AH60: 634 | AI60: 524 | AJ60: 705 | AK60: 488 | AL60: 519 | AM60: 539 | AN60: 409 | AO60: 323 | AP60: 258 | AQ60: 544 | AR60: 477 | AS60: 521 | AT60: 257 | AU60: 344 | AV60: 293 | AW60: 231 | AX60: 249 | AY60: 292 | AZ60: 254 | BA60: 287 | BB60: 427 | BC60: 459 | BD60: 238 | BE60: 318 | BF60: 290 | BG60: 441 | BH60: 405 | BI60: 323 | BJ60: 380 | BK60: 103 | BL60: 267 | BM60: 425 | BN60: 94 | BO60: 44 | BP60: 35 | BQ60: 48 | BR60: 64 | BS60: 35 | BT60: 41 | BU60: 60 | BV60: 44 | BW60: 229 | BX60: 22 | BY60: 8 | BZ60: 30 | CA60: 33 | CB60: 3 | CC60: 3 | CD60: 4 | CE60: 6 | CF60: 7 | CG60: 21 | CH60: 7 | CI60: 15 | CJ60: 3 | CK60: 9 | CL60: 9 | CM60: 6 | CN60: 10 | CO60: 11 | CP60: 2 | CQ60: 35 | CR60: 0 | CS60: 0 | CT60: 0 | CV60: 707.3398095 | CW60: 1473.624603 | CX60: 1812.558262 | CY60: 1714.316622 | CZ60: 1228.020503 | DA60: 1645.547474 | DB60: 1714.316622 | DC60: 1409.767537 | DD60: 1498.185013 | DE60: 1758.52536 | DF60: 1414.679619 | DG60: 1920.624066 | DH60: 1974.656968 | DI60: 2195.700659 | DJ60: 2185.876495 | DK60: 2038.514034 | DL60: 3286.182865 | DM60: 1675.019966 | DN60: 1419.591701 | DO60: 1286.965487 | DP60: 1272.229241 | DQ60: 1969.744886 | DR60: 2554.282645 | DS60: 3723.358164 | DT60: 2839.183402 | DU60: 2849.007566 | DV60: 3114.259995 | DW60: 2573.930974 | DX60: 3463.017817 | DY60: 2397.096021 | DZ60: 2549.370563 | EA60: 2647.612204 | EB60: 2009.041542 | EC60: 1586.602489 | ED60: 1267.317159 | EE60: 2672.172614 | EF60: 2343.063119 | EG60: 2559.194727 | EH60: 1262.405077 | EI60: 1689.756212 | EJ60: 1439.240029 | EK60: 1134.690944 | EL60: 1223.108421 | EM60: 1434.327947 | EN60: 1247.668831 | EO60: 1409.767537 | EP60: 2097.459018 | EQ60: 2254.645643 | ER60: 1169.075519 | ES60: 1562.042079 | ET60: 1424.503783 | EU60: 2166.228167 | EV60: 1989.393214 | EW60: 1586.602489 | EX60: 1866.591164 | EY60: 505.9444471 | EZ60: 1311.525897 | FA60: 2087.634854 | FB60: 461.735709 | FC60: 216.1316085 | FD60: 171.9228704 | FE60: 235.7799365 | FF60: 314.3732487 | FG60: 171.9228704 | FH60: 201.3953624 | FI60: 294.7249206 | FJ60: 216.1316085 | FK60: 1124.86678 | FL60: 108.0658042 | FM60: 39.29665608 | FN60: 147.3624603 | FO60: 162.0987063 | FP60: 14.73624603 | FQ60: 14.73624603 | FR60: 19.64832804 | FS60: 29.47249206 | FT60: 34.38457407 | FU60: 103.1537222 | FV60: 34.38457407 | FW60: 73.68123016 | FX60: 14.73624603 | FY60: 44.20873809 | FZ60: 44.20873809 | GA60: 29.47249206 | GB60: 49.12082011 | GC60: 54.03290212 | GD60: 9.824164021 | GE60: 171.9228704 | GF60: 0 | GG60: 0 | GH60: 0
A61: 5 | B61: TRANSFORMERS | C61: pole mounted ; < = 22 kv ; < = 60 kva ; single phase | D61: 1.89599309 | E61: 66.33173254 | F61: 8.14442954 | G61: 2 | H61: 555 | I61: 1015 | J61: 1394 | K61: 1179 | L61: 1138 | M61: 1456 | N61: 1470 | O61: 1408 | P61: 1552 | Q61: 1504 | R61: 1527 | S61: 1887 | T61: 2009 | U61: 2125 | V61: 1895 | W61: 1538 | X61: 2097 | Y61: 1309 | Z61: 1015 | AA61: 1046 | AB61: 961 | AC61: 1323 | AD61: 1530 | AE61: 2000 | AF61: 1664 | AG61: 2039 | AH61: 1825 | AI61: 1921 | AJ61: 2119 | AK61: 1730 | AL61: 1624 | AM61: 1700 | AN61: 1460 | AO61: 1266 | AP61: 1212 | AQ61: 1654 | AR61: 1732 | AS61: 1700 | AT61: 1182 | AU61: 1160 | AV61: 1150 | AW61: 1103 | AX61: 1064 | AY61: 820 | AZ61: 753 | BA61: 779 | BB61: 825 | BC61: 1237 | BD61: 892 | BE61: 665 | BF61: 614 | BG61: 1354 | BH61: 909 | BI61: 464 | BJ61: 616 | BK61: 543 | BL61: 1689 | BM61: 1831 | BN61: 468 | BO61: 316 | BP61: 349 | BQ61: 389 | BR61: 730 | BS61: 208 | BT61: 120 | BU61: 121 | BV61: 37 | BW61: 984 | BX61: 35 | BY61: 37 | BZ61: 49 | CA61: 118 | CB61: 14 | CC61: 16 | CD61: 10 | CE61: 10 | CF61: 13 | CG61: 45 | CH61: 13 | CI61: 14 | CJ61: 16 | CK61: 13 | CL61: 5 | CM61: 1 | CN61: 4 | CO61: 12 | CP61: 3 | CQ61: 221 | CR61: 0 | CS61: 0 | CT61: 0 | CV61: 1052.276165 | CW61: 1924.432987 | CX61: 2643.014368 | CY61: 2235.375854 | CZ61: 2157.640137 | DA61: 2760.56594 | DB61: 2787.109843 | DC61: 2669.558271 | DD61: 2942.581276 | DE61: 2851.573608 | DF61: 2895.181449 | DG61: 3577.738961 | DH61: 3809.050118 | DI61: 4028.985317 | DJ61: 3592.906906 | DK61: 2916.037373 | DL61: 3975.89751 | DM61: 2481.854955 | DN61: 1924.432987 | DO61: 1983.208772 | DP61: 1822.04936 | DQ61: 2508.398859 | DR61: 2900.869428 | DS61: 3791.986181 | DT61: 3154.932502 | DU61: 3865.929911 | DV61: 3460.18739 | DW61: 3642.202727 | DX61: 4017.609358 | DY61: 3280.068046 | DZ61: 3079.092779 | EA61: 3223.188254 | EB61: 2768.149912 | EC61: 2400.327252 | ED61: 2297.943625 | EE61: 3135.972571 | EF61: 3283.860032 | EG61: 3223.188254 | EH61: 2241.063833 | EI61: 2199.351985 | EJ61: 2180.392054 | EK61: 2091.280379 | EL61: 2017.336648 | EM61: 1554.714334 | EN61: 1427.682797 | EO61: 1476.978617 | EP61: 1564.1943 | EQ61: 2345.343453 | ER61: 1691.225837 | ES61: 1260.835405 | ET61: 1164.139757 | EU61: 2567.174644 | EV61: 1723.457719 | EW61: 879.7407939 | EX61: 1167.931744 | EY61: 1029.524248 | EZ61: 3202.33233 | FA61: 3471.563348 | FB61: 887.3247663 | FC61: 599.1338165 | FD61: 661.7015885 | FE61: 737.5413121 | FF61: 1384.074956 | FG61: 394.3665628 | FH61: 227.5191708 | FI61: 229.4151639 | FJ61: 70.15174434 | FK61: 1865.657201 | FL61: 66.35975816 | FM61: 70.15174434 | FN61: 92.90366143 | FO61: 223.7271847 | FP61: 26.54390326 | FQ61: 30.33588945 | FR61: 18.9599309 | FS61: 18.9599309 | FT61: 24.64791017 | FU61: 85.31968907 | FV61: 24.64791017 | FW61: 26.54390326 | FX61: 30.33588945 | FY61: 24.64791017 | FZ61: 9.479965452 | GA61: 1.89599309 | GB61: 7.583972361 | GC61: 22.75191708 | GD61: 5.687979271 | GE61: 419.014473 | GF61: 0 | GG61: 0 | GH61: 0
A62: 5 | B62: TRANSFORMERS | C62: pole mounted ; < = 22 kv ; > 60 kva and < = 600 kva ; multiple phase | D62: 9.283593828 | E62: 59.5178014 | F62: 7.714778118 | G62: 2 | H62: 211 | I62: 560 | J62: 614 | K62: 759 | L62: 526 | M62: 672 | N62: 792 | O62: 836 | P62: 748 | Q62: 732 | R62: 658 | S62: 927 | T62: 750 | U62: 847 | V62: 872 | W62: 675 | X62: 671 | Y62: 436 | Z62: 447 | AA62: 361 | AB62: 252 | AC62: 290 | AD62: 407 | AE62: 404 | AF62: 308 | AG62: 319 | AH62: 368 | AI62: 256 | AJ62: 331 | AK62: 208 | AL62: 289 | AM62: 286 | AN62: 235 | AO62: 199 | AP62: 180 | AQ62: 373 | AR62: 359 | AS62: 306 | AT62: 250 | AU62: 243 | AV62: 251 | AW62: 187 | AX62: 202 | AY62: 167 | AZ62: 172 | BA62: 173 | BB62: 242 | BC62: 262 | BD62: 225 | BE62: 176 | BF62: 126 | BG62: 215 | BH62: 180 | BI62: 85 | BJ62: 89 | BK62: 35 | BL62: 129 | BM62: 167 | BN62: 38 | BO62: 19 | BP62: 21 | BQ62: 23 | BR62: 32 | BS62: 24 | BT62: 11 | BU62: 23 | BV62: 4 | BW62: 116 | BX62: 25 | BY62: 2 | BZ62: 3 | CA62: 8 | CB62: 3 | CC62: 1 | CD62: 2 | CE62: 1 | CF62: 1 | CG62: 14 | CH62: 4 | CI62: 3 | CJ62: 3 | CK62: 2 | CL62: 3 | CM62: 0 | CN62: 3 | CO62: 7 | CP62: 1 | CQ62: 23 | CR62: 0 | CS62: 0 | CT62: 0 | CV62: 1958.838298 | CW62: 5198.812544 | CX62: 5700.12661 | CY62: 7046.247715 | CZ62: 4883.170353 | DA62: 6238.575052 | DB62: 7352.606312 | DC62: 7761.08444 | DD62: 6944.128183 | DE62: 6795.590682 | DF62: 6108.604739 | DG62: 8605.891478 | DH62: 6962.695371 | DI62: 7863.203972 | DJ62: 8095.293818 | DK62: 6266.425834 | DL62: 6229.291459 | DM62: 4047.646909 | DN62: 4149.766441 | DO62: 3351.377372 | DP62: 2339.465645 | DQ62: 2692.24221 | DR62: 3778.422688 | DS62: 3750.571906 | DT62: 2859.346899 | DU62: 2961.466431 | DV62: 3416.362529 | DW62: 2376.60002 | DX62: 3072.869557 | DY62: 1930.987516 | DZ62: 2682.958616 | EA62: 2655.107835 | EB62: 2181.64455 | EC62: 1847.435172 | ED62: 1671.046889 | EE62: 3462.780498 | EF62: 3332.810184 | EG62: 2840.779711 | EH62: 2320.898457 | EI62: 2255.9133 | EJ62: 2330.182051 | EK62: 1736.032046 | EL62: 1875.285953 | EM62: 1550.360169 | EN62: 1596.778138 | EO62: 1606.061732 | EP62: 2246.629706 | EQ62: 2432.301583 | ER62: 2088.808611 | ES62: 1633.912514 | ET62: 1169.732822 | EU62: 1995.972673 | EV62: 1671.046889 | EW62: 789.1054754 | EX62: 826.2398507 | EY62: 324.925784 | EZ62: 1197.583604 | FA62: 1550.360169 | FB62: 352.7765655 | FC62: 176.3882827 | FD62: 194.9554704 | FE62: 213.522658 | FF62: 297.0750025 | FG62: 222.8062519 | FH62: 102.1195321 | FI62: 213.522658 | FJ62: 37.13437531 | FK62: 1076.896884 | FL62: 232.0898457 | FM62: 18.56718766 | FN62: 27.85078148 | FO62: 74.26875062 | FP62: 27.85078148 | FQ62: 9.283593828 | FR62: 18.56718766 | FS62: 9.283593828 | FT62: 9.283593828 | FU62: 129.9703136 | FV62: 37.13437531 | FW62: 27.85078148 | FX62: 27.85078148 | FY62: 18.56718766 | FZ62: 27.85078148 | GA62: 0 | GB62: 27.85078148 | GC62: 64.9851568 | GD62: 9.283593828 | GE62: 213.522658 | GF62: 0 | GG62: 0 | GH62: 0
A63: 5 | B63: TRANSFORMERS | C63: pole mounted ; < = 22 kv ; > 60 kva and < = 600 kva ; single phase | D63: 3.993376439 | E63: 61.25565435 | F63: 7.826599156 | G63: 2 | H63: 3 | I63: 15 | J63: 9 | K63: 11 | L63: 11 | M63: 8 | N63: 17 | O63: 11 | P63: 19 | Q63: 18 | R63: 19 | S63: 29 | T63: 41 | U63: 95 | V63: 56 | W63: 33 | X63: 41 | Y63: 36 | Z63: 29 | AA63: 43 | AB63: 36 | AC63: 37 | AD63: 38 | AE63: 32 | AF63: 18 | AG63: 17 | AH63: 13 | AI63: 10 | AJ63: 13 | AK63: 9 | AL63: 6 | AM63: 8 | AN63: 6 | AO63: 10 | AP63: 4 | AQ63: 10 | AR63: 5 | AS63: 6 | AT63: 4 | AU63: 5 | AV63: 3 | AW63: 6 | AX63: 6 | AY63: 3 | AZ63: 3 | BA63: 6 | BB63: 6 | BC63: 9 | BD63: 2 | BE63: 5 | BF63: 6 | BG63: 7 | BH63: 6 | BI63: 2 | BJ63: 2 | BK63: 1 | BL63: 5 | BM63: 16 | BN63: 2 | BO63: 3 | BP63: 1 | BQ63: 2 | BR63: 1 | BS63: 1 | BT63: 0 | BU63: 0 | BV63: 1 | BW63: 10 | BX63: 1 | BY63: 0 | BZ63: 0 | CA63: 0 | CB63: 0 | CC63: 0 | CD63: 0 | CE63: 0 | CF63: 0 | CG63: 2 | CH63: 0 | CI63: 0 | CJ63: 0 | CK63: 0 | CL63: 0 | CM63: 0 | CN63: 0 | CO63: 0 | CP63: 0 | CQ63: 1 | CR63: 0 | CS63: 0 | CT63: 0 | CV63: 11.98012932 | CW63: 59.90064659 | CX63: 35.94038795 | CY63: 43.92714083 | CZ63: 43.92714083 | DA63: 31.94701152 | DB63: 67.88739947 | DC63: 43.92714083 | DD63: 75.87415235 | DE63: 71.88077591 | DF63: 75.87415235 | DG63: 115.8079167 | DH63: 163.728434 | DI63: 379.3707617 | DJ63: 223.6290806 | DK63: 131.7814225 | DL63: 163.728434 | DM63: 143.7615518 | DN63: 115.8079167 | DO63: 171.7151869 | DP63: 143.7615518 | DQ63: 147.7549283 | DR63: 151.7483047 | DS63: 127.7880461 | DT63: 71.88077591 | DU63: 67.88739947 | DV63: 51.91389371 | DW63: 39.93376439 | DX63: 51.91389371 | DY63: 35.94038795 | DZ63: 23.96025864 | EA63: 31.94701152 | EB63: 23.96025864 | EC63: 39.93376439 | ED63: 15.97350576 | EE63: 39.93376439 | EF63: 19.9668822 | EG63: 23.96025864 | EH63: 15.97350576 | EI63: 19.9668822 | EJ63: 11.98012932 | EK63: 23.96025864 | EL63: 23.96025864 | EM63: 11.98012932 | EN63: 11.98012932 | EO63: 23.96025864 | EP63: 23.96025864 | EQ63: 35.94038795 | ER63: 7.986752879 | ES63: 19.9668822 | ET63: 23.96025864 | EU63: 27.95363508 | EV63: 23.96025864 | EW63: 7.986752879 | EX63: 7.986752879 | EY63: 3.993376439 | EZ63: 19.9668822 | FA63: 63.89402303 | FB63: 7.986752879 | FC63: 11.98012932 | FD63: 3.993376439 | FE63: 7.986752879 | FF63: 3.993376439 | FG63: 3.993376439 | FH63: 0 | FI63: 0 | FJ63: 3.993376439 | FK63: 39.93376439 | FL63: 3.993376439 | FM63: 0 | FN63: 0 | FO63: 0 | FP63: 0 | FQ63: 0 | FR63: 0 | FS63: 0 | FT63: 0 | FU63: 7.986752879 | FV63: 0 | FW63: 0 | FX63: 0 | FY63: 0 | FZ63: 0 | GA63: 0 | GB63: 0 | GC63: 0 | GD63: 0 | GE63: 3.993376439 | GF63: 0 | GG63: 0 | GH63: 0
A64: 5 | B64: TRANSFORMERS | C64: pole mounted ; < = 22 kv ; > 600 kva ; multiple phase | D64: 14.50475758 | E64: 55.83254309 | F64: 7.472117711 | G64: 2 | H64: 0 | I64: 0 | J64: 1 | K64: 0 | L64: 0 | M64: 0 | N64: 0 | O64: 0 | P64: 1 | Q64: 0 | R64: 0 | S64: 1 | T64: 0 | U64: 0 | V64: 2 | W64: 0 | X64: 0 | Y64: 1 | Z64: 2 | AA64: 0 | AB64: 0 | AC64: 4 | AD64: 0 | AE64: 1 | AF64: 2 | AG64: 0 | AH64: 1 | AI64: 0 | AJ64: 1 | AK64: 0 | AL64: 0 | AM64: 1 | AN64: 0 | AO64: 0 | AP64: 0 | AQ64: 0 | AR64: 0 | AS64: 2 | AT64: 0 | AU64: 0 | AV64: 1 | AW64: 1 | AX64: 2 | AY64: 0 | AZ64: 0 | BA64: 0 | BB64: 2 | BC64: 0 | BD64: 0 | BE64: 1 | BF64: 1 | BG64: 0 | BH64: 1 | BI64: 0 | BJ64: 0 | BK64: 0 | BL64: 1 | BM64: 0 | BN64: 0 | BO64: 0 | BP64: 0 | BQ64: 0 | BR64: 0 | BS64: 0 | BT64: 0 | BU64: 0 | BV64: 0 | BW64: 0 | BX64: 0 | BY64: 0 | BZ64: 0 | CA64: 0 | CB64: 0 | CC64: 0 | CD64: 0 | CE64: 0 | CF64: 0 | CG64: 0 | CH64: 0 | CI64: 0 | CJ64: 0 | CK64: 0 | CL64: 0 | CM64: 0 | CN64: 0 | CO64: 0 | CP64: 0 | CQ64: 0 | CR64: 0 | CS64: 0 | CT64: 0 | CV64: 0 | CW64: 0 | CX64: 14.50475758 | CY64: 0 | CZ64: 0 | DA64: 0 | DB64: 0 | DC64: 0 | DD64: 14.50475758 | DE64: 0 | DF64: 0 | DG64: 14.50475758 | DH64: 0 | DI64: 0 | DJ64: 29.00951516 | DK64: 0 | DL64: 0 | DM64: 14.50475758 | DN64: 29.00951516 | DO64: 0 | DP64: 0 | DQ64: 58.01903032 | DR64: 0 | DS64: 14.50475758 | DT64: 29.00951516 | DU64: 0 | DV64: 14.50475758 | DW64: 0 | DX64: 14.50475758 | DY64: 0 | DZ64: 0 | EA64: 14.50475758 | EB64: 0 | EC64: 0 | ED64: 0 | EE64: 0 | EF64: 0 | EG64: 29.00951516 | EH64: 0 | EI64: 0 | EJ64: 14.50475758 | EK64: 14.50475758 | EL64: 29.00951516 | EM64: 0 | EN64: 0 | EO64: 0 | EP64: 29.00951516 | EQ64: 0 | ER64: 0 | ES64: 14.50475758 | ET64: 14.50475758 | EU64: 0 | EV64: 14.50475758 | EW64: 0 | EX64: 0 | EY64: 0 | EZ64: 14.50475758 | FA64: 0 | FB64: 0 | FC64: 0 | FD64: 0 | FE64: 0 | FF64: 0 | FG64: 0 | FH64: 0 | FI64: 0 | FJ64: 0 | FK64: 0 | FL64: 0 | FM64: 0 | FN64: 0 | FO64: 0 | FP64: 0 | FQ64: 0 | FR64: 0 | FS64: 0 | FT64: 0 | FU64: 0 | FV64: 0 | FW64: 0 | FX64: 0 | FY64: 0 | FZ64: 0 | GA64: 0 | GB64: 0 | GC64: 0 | GD64: 0 | GE64: 0 | GF64: 0 | GG64: 0 | GH64: 0
A65: 5 | B65: TRANSFORMERS | C65: pole mounted ; < = 22 kv ; > 600 kva ; single phase | D65: 12.08729798 | E65: 55.83254309 | F65: 7.472117711 | G65: 2 | H65: 0 | I65: 0 | J65: 0 | K65: 0 | L65: 1 | M65: 0 | N65: 0 | O65: 0 | P65: 0 | Q65: 0 | R65: 0 | S65: 0 | T65: 0 | U65: 0 | V65: 0 | W65: 0 | X65: 0 | Y65: 0 | Z65: 0 | AA65: 0 | AB65: 0 | AC65: 0 | AD65: 0 | AE65: 0 | AF65: 0 | AG65: 0 | AH65: 0 | AI65: 0 | AJ65: 0 | AK65: 0 | AL65: 0 | AM65: 0 | AN65: 0 | AO65: 0 | AP65: 0 | AQ65: 0 | AR65: 0 | AS65: 0 | AT65: 0 | AU65: 0 | AV65: 0 | AW65: 0 | AX65: 0 | AY65: 0 | AZ65: 0 | BA65: 0 | BB65: 0 | BC65: 0 | BD65: 0 | BE65: 0 | BF65: 0 | BG65: 0 | BH65: 0 | BI65: 0 | BJ65: 0 | BK65: 0 | BL65: 0 | BM65: 0 | BN65: 0 | BO65: 0 | BP65: 0 | BQ65: 0 | BR65: 0 | BS65: 0 | BT65: 0 | BU65: 0 | BV65: 0 | BW65: 0 | BX65: 0 | BY65: 0 | BZ65: 0 | CA65: 0 | CB65: 0 | CC65: 0 | CD65: 0 | CE65: 0 | CF65: 0 | CG65: 0 | CH65: 0 | CI65: 0 | CJ65: 0 | CK65: 0 | CL65: 0 | CM65: 0 | CN65: 0 | CO65: 0 | CP65: 0 | CQ65: 0 | CR65: 0 | CS65: 0 | CT65: 0 | CV65: 0 | CW65: 0 | CX65: 0 | CY65: 0 | CZ65: 12.08729798 | DA65: 0 | DB65: 0 | DC65: 0 | DD65: 0 | DE65: 0 | DF65: 0 | DG65: 0 | DH65: 0 | DI65: 0 | DJ65: 0 | DK65: 0 | DL65: 0 | DM65: 0 | DN65: 0 | DO65: 0 | DP65: 0 | DQ65: 0 | DR65: 0 | DS65: 0 | DT65: 0 | DU65: 0 | DV65: 0 | DW65: 0 | DX65: 0 | DY65: 0 | DZ65: 0 | EA65: 0 | EB65: 0 | EC65: 0 | ED65: 0 | EE65: 0 | EF65: 0 | EG65: 0 | EH65: 0 | EI65: 0 | EJ65: 0 | EK65: 0 | EL65: 0 | EM65: 0 | EN65: 0 | EO65: 0 | EP65: 0 | EQ65: 0 | ER65: 0 | ES65: 0 | ET65: 0 | EU65: 0 | EV65: 0 | EW65: 0 | EX65: 0 | EY65: 0 | EZ65: 0 | FA65: 0 | FB65: 0 | FC65: 0 | FD65: 0 | FE65: 0 | FF65: 0 | FG65: 0 | FH65: 0 | FI65: 0 | FJ65: 0 | FK65: 0 | FL65: 0 | FM65: 0 | FN65: 0 | FO65: 0 | FP65: 0 | FQ65: 0 | FR65: 0 | FS65: 0 | FT65: 0 | FU65: 0 | FV65: 0 | FW65: 0 | FX65: 0 | FY65: 0 | FZ65: 0 | GA65: 0 | GB65: 0 | GC65: 0 | GD65: 0 | GE65: 0 | GF65: 0 | GG65: 0 | GH65: 0
A66: 6 | B66: UNDERGROUND CABLES | C66: ˂ = 1 kv | D66: 602.9227815 | E66: 69.70833266 | F66: 8.349151613 | G66: 2 | H66: 188.3598392 | I66: 234.3820038 | J66: 220.9299612 | K66: 187.5989387 | L66: 149.9041749 | M66: 159.7238236 | N66: 130.775831 | O66: 133.949702 | P66: 195.4982875 | Q66: 206.2166687 | R66: 174.9053887 | S66: 276.6090569 | T66: 203.1699823 | U66: 297.0489989 | V66: 260.1913844 | W66: 275.9223492 | X66: 149.0800964 | Y66: 124.9191747 | Z66: 112.9972348 | AA66: 103.3297789 | AB66: 109.2792907 | AC66: 131.5469143 | AD66: 153.0146754 | AE66: 177.1677537 | AF66: 161.9545622 | AG66: 139.3005705 | AH66: 156.951369 | AI66: 169.8767679 | AJ66: 173.4894774 | AK66: 94.90380355 | AL66: 57.08792511 | AM66: 92.97704211 | AN66: 84.37230753 | AO66: 74.71229079 | AP66: 86.59581247 | AQ66: 140.1395158 | AR66: 120.9517649 | AS66: 91.97443251 | AT66: 74.53765581 | AU66: 65.39084875 | AV66: 84.50224808 | AW66: 72.79459567 | AX66: 70.78678039 | AY66: 70.33435842 | AZ66: 54.81132303 | BA66: 46.31645448 | BB66: 38.99165621 | BC66: 29.30430343 | BD66: 38.77093674 | BE66: 14.96313101 | BF66: 12.40960017 | BG66: 26.10426522 | BH66: 13.08721274 | BI66: 10.94397651 | BJ66: 13.54354855 | BK66: 7.18260188 | BL66: 4.31513333 | BM66: 20.19857635 | BN66: 3.74928513 | BO66: 0.54800668 | BP66: 1.75827917 | BQ66: 3.32763434 | BR66: 4.4052201 | BS66: 2.26786507 | BT66: 1.17845195 | BU66: 0.23605343 | BV66: 0.56029926 | BW66: 8.67211409 | BX66: 1.44596279 | BY66: 2.29868942 | BZ66: 0.16146424 | CA66: 0.08671487 | CB66: 0.00838028 | CC66: 0 | CD66: 0.03893226 | CE66: 0.00323087 | CF66: 0 | CG66: 0.59823909 | CH66: 0.56404478 | CI66: 0.0429443 | CJ66: 0.2353643 | CK66: 0.00255796 | CL66: 0.00810277 | CM66: 0 | CN66: 0 | CO66: 0 | CP66: 0 | CQ66: 0.08710145 | CR66: 0 | CS66: 0 | CT66: 0 | CV66: =IFERROR($D66*H66,"") -> 113566.4382 | CW66: =IFERROR($D66*I66,"") -> 141314.2497 | CX66: =IFERROR($D66*J66,"") -> 133203.7067 | CY66: =IFERROR($D66*K66,"") -> 113107.6739 | CZ66: =IFERROR($D66*L66,"") -> 90380.6421 | DA66: =IFERROR($D66*M66,"") -> 96301.132 | DB66: =IFERROR($D66*N66,"") -> 78847.72777 | DC66: =IFERROR($D66*O66,"") -> 80761.32689 | DD66: =IFERROR($D66*P66,"") -> 117870.3713 | DE66: =IFERROR($D66*Q66,"") -> 124332.7275 | DF66: =IFERROR($D66*R66,"") -> 105454.4434 | DG66: =IFERROR($D66*S66,"") -> 166773.9019 | DH66: =IFERROR($D66*T66,"") -> 122495.8109 | DI66: =IFERROR($D66*U66,"") -> 179097.6087 | DJ66: =IFERROR($D66*V66,"") -> 156875.3132 | DK66: =IFERROR($D66*W66,"") -> 166359.8702 | DL66: =IFERROR($D66*X66,"") -> 89883.78638 | DM66: =IFERROR($D66*Y66,"") -> 75316.61628 | DN66: =IFERROR($D66*Z66,"") -> 68128.60708 | DO66: =IFERROR($D66*AA66,"") -> 62299.87773 | DP66: =IFERROR($D66*AB66,"") -> 65886.97391 | DQ66: =IFERROR($D66*AC66,"") -> 79312.63145 | DR66: =IFERROR($D66*AD66,"") -> 92256.03369 | DS66: =IFERROR($D66*AE66,"") -> 106818.4748 | DT66: =IFERROR($D66*AF66,"") -> 97646.09509 | DU66: =IFERROR($D66*AG66,"") -> 83987.48744 | DV66: =IFERROR($D66*AH66,"") -> 94629.55595 | DW66: =IFERROR($D66*AI66,"") -> 102422.5734 | DX66: =IFERROR($D66*AJ66,"") -> 104600.7583 | DY66: =IFERROR($D66*AK66,"") -> 57219.66521 | DZ66: =IFERROR($D66*AL66,"") -> 34419.6106 | EA66: =IFERROR($D66*AM66,"") -> 56057.97684 | EB66: =IFERROR($D66*AN66,"") -> 50869.98634 | EC66: =IFERROR($D66*AO66,"") -> 45045.74217 | ED66: =IFERROR($D66*AP66,"") -> 52210.58812 | EE66: =IFERROR($D66*AQ66,"") -> 84493.30664 | EF66: =IFERROR($D66*AR66,"") -> 72924.57451 | EG66: =IFERROR($D66*AS66,"") -> 55453.48067 | EH66: =IFERROR($D66*AT66,"") -> 44940.45077 | EI66: =IFERROR($D66*AU66,"") -> 39425.63241 | EJ66: =IFERROR($D66*AV66,"") -> 50948.33045 | EK66: =IFERROR($D66*AW66,"") -> 43889.5201 | EL66: =IFERROR($D66*AX66,"") -> 42678.96252 | EM66: =IFERROR($D66*AY66,"") -> 42406.18701 | EN66: =IFERROR($D66*AZ66,"") -> 33046.99534 | EO66: =IFERROR($D66*BA66,"") -> 27925.24556 | EP66: =IFERROR($D66*BB66,"") -> 23508.95782 | EQ66: =IFERROR($D66*BC66,"") -> 17668.23213 | ER66: =IFERROR($D66*BD66,"") -> 23375.88102 | ES66: =IFERROR($D66*BE66,"") -> 9021.612568 | ET66: =IFERROR($D66*BF66,"") -> 7482.030652 | EU66: =IFERROR($D66*BG66,"") -> 15738.85619 | EV66: =IFERROR($D66*BH66,"") -> 7890.578707 | EW66: =IFERROR($D66*BI66,"") -> 6598.372758 | EX66: =IFERROR($D66*BJ66,"") -> 8165.713963 | EY66: =IFERROR($D66*BK66,"") -> 4330.554304 | EZ66: =IFERROR($D66*BL66,"") -> 2601.69219 | FA66: =IFERROR($D66*BM66,"") -> 12178.18183 | FB66: =IFERROR($D66*BN66,"") -> 2260.529419 | FC66: =IFERROR($D66*BO66,"") -> 330.4057118 | FD66: =IFERROR($D66*BP66,"") -> 1060.106568 | FE66: =IFERROR($D66*BQ66,"") -> 2006.306552 | FF66: =IFERROR($D66*BR66,"") -> 2656.007556 | FG66: =IFERROR($D66*BS66,"") -> 1367.347516 | FH66: =IFERROR($D66*BT66,"") -> 710.5155275 | FI66: =IFERROR($D66*BU66,"") -> 142.3219906 | FJ66: =IFERROR($D66*BV66,"") -> 337.8171883 | FK66: =IFERROR($D66*BW66,"") -> 5228.615148 | FL66: =IFERROR($D66*BX66,"") -> 871.8039073 | FM66: =IFERROR($D66*BY66,"") -> 1385.932219 | FN66: =IFERROR($D66*BZ66,"") -> 97.35046869 | FO66: =IFERROR($D66*CA66,"") -> 52.28237062 | FP66: =IFERROR($D66*CB66,"") -> 5.052661727 | FQ66: =IFERROR($D66*CC66,"") -> 0 | FR66: =IFERROR($D66*CD66,"") -> 23.47314649 | FS66: =IFERROR($D66*CE66,"") -> 1.947965127 | FT66: =IFERROR($D66*CF66,"") -> 0 | FU66: =IFERROR($D66*CG66,"") -> 360.6919761 | FV66: =IFERROR($D66*CH66,"") -> 340.0754476 | FW66: =IFERROR($D66*CI66,"") -> 25.8920968 | FX66: =IFERROR($D66*CJ66,"") -> 141.9064984 | FY66: =IFERROR($D66*CK66,"") -> 1.542252358 | FZ66: =IFERROR($D66*CL66,"") -> 4.885344626 | GA66: =IFERROR($D66*CM66,"") -> 0 | GB66: =IFERROR($D66*CN66,"") -> 0 | GC66: =IFERROR($D66*CO66,"") -> 0 | GD66: =IFERROR($D66*CP66,"") -> 0 | GE66: =IFERROR($D66*CQ66,"") -> 52.51544851 | GF66: =IFERROR($D66*CR66,"") -> 0 | GG66: =IFERROR($D66*CS66,"") -> 0 | GH66: =IFERROR($D66*CT66,"") -> 0
A67: 6 | B67: UNDERGROUND CABLES | C67: > 1 kv & < = 11 kv | D67: 1031.588202 | E67: 69.58860822 | F67: 8.341978675 | G67: 2 | H67: 50.39604156 | I67: 67.338245 | J67: 80.29485647 | K67: 70.79173776 | L67: 106.7121044 | M67: 87.11399041 | N67: 77.38536271 | O67: 98.9502852 | P67: 113.9414476 | Q67: 125.5608487 | R67: 99.56175394 | S67: 81.59519566 | T67: 95.0316454 | U67: 117.5521365 | V67: 71.03469299 | W67: 91.93772368 | X67: 43.20564443 | Y67: 55.25490269 | Z67: 26.25832301 | AA67: 20.10537477 | AB67: 11.65566563 | AC67: 49.79239538 | AD67: 42.30384027 | AE67: 30.49641636 | AF67: 25.9486634 | AG67: 43.44032338 | AH67: 42.21880359 | AI67: 31.63061632 | AJ67: 29.64171381 | AK67: 13.85138332 | AL67: 10.25769517 | AM67: 22.82411062 | AN67: 13.92009901 | AO67: 14.9197164 | AP67: 21.57238589 | AQ67: 43.6533412 | AR67: 31.42821712 | AS67: 21.90855568 | AT67: 9.56814566 | AU67: 13.37868018 | AV67: 9.41872053 | AW67: 9.27147074 | AX67: 13.93135293 | AY67: 12.76756695 | AZ67: 7.06206756 | BA67: 7.19401067 | BB67: 17.92408343 | BC67: 7.95333949 | BD67: 1.53901213 | BE67: 4.87243623 | BF67: 1.73715633 | BG67: 0.82698423 | BH67: 0.92744615 | BI67: 2.22210399 | BJ67: 1.46403887 | BK67: 0.03637731 | BL67: 0 | BM67: 0.70965181 | BN67: 1.13250906 | BO67: 0 | BP67: 0.05282649 | BQ67: 0.10094144 | BR67: 2.13583558 | BS67: 0.98012833 | BT67: 0.00380897 | BU67: 0.05670284 | BV67: 1.65264848 | BW67: 1.91233255 | BX67: 0 | BY67: 0 | BZ67: 0 | CA67: 0 | CB67: 0 | CC67: 0 | CD67: 0 | CE67: 0 | CF67: 0.14164454 | CG67: 0.19523815 | CH67: 0 | CI67: 0 | CJ67: 0 | CK67: 0 | CL67: 0 | CM67: 0 | CN67: 0 | CO67: 0 | CP67: 0 | CQ67: 0 | CR67: 0 | CS67: 0 | CT67: 0 | CV67: 51987.96192 | CW67: 69465.33911 | CX67: 82831.22665 | CY67: 73027.9215 | CZ67: 110082.948 | DA67: 89865.76477 | DB67: 79829.82721 | DC67: 102075.9468 | DD67: 117540.6531 | DE67: 129527.0902 | DF67: 102706.7308 | DG67: 84172.64121 | DH67: 98033.52425 | DI67: 121265.3972 | DJ67: 73278.55125 | DK67: 94841.8711 | DL67: 44570.43307 | DM67: 57000.30574 | DN67: 27087.77623 | DO67: 20740.46742 | DP67: 12023.84715 | DQ67: 51365.24764 | DR67: 43640.14254 | DS67: 31459.74333 | DT67: 26768.33503 | DU67: 44812.52511 | DV67: 43552.4197 | DW67: 32629.77063 | DX67: 30578.04226 | DY67: 14288.92362 | DZ67: 10581.71732 | EA67: 23545.08325 | EB67: 14359.80991 | EC67: 15391.00342 | ED67: 22253.81878 | EE67: 45032.27178 | EF67: 32420.978 | EG67: 22600.60757 | EH67: 9870.386182 | EI67: 13801.28864 | EJ67: 9716.24098 | EK67: 9564.339834 | EL67: 14371.41933 | EM67: 13170.87144 | EN67: 7285.145579 | EO67: 7421.256535 | EP67: 18490.273 | EQ67: 8204.571187 | ER67: 1587.626757 | ES67: 5026.347732 | ET67: 1792.029976 | EU67: 853.1071752 | EV67: 956.7425067 | EW67: 2292.296261 | EX67: 1510.285226 | EY67: 37.52640383 | EZ67: 0 | FA67: 732.068435 | FB67: 1168.282985 | FC67: 0 | FD67: 54.49518386 | FE67: 104.1299986 | FF67: 2203.302787 | FG67: 1011.088822 | FH67: 3.929288515 | FI67: 58.49398079 | FJ67: 1704.852675 | FK67: 1972.739698 | FL67: 0 | FM67: 0 | FN67: 0 | FO67: 0 | FP67: 0 | FQ67: 0 | FR67: 0 | FS67: 0 | FT67: 146.1188364 | FU67: 201.4053722 | FV67: 0 | FW67: 0 | FX67: 0 | FY67: 0 | FZ67: 0 | GA67: 0 | GB67: 0 | GC67: 0 | GD67: 0 | GE67: 0 | GF67: 0 | GG67: 0 | GH67: 0
A68: 6 | B68: UNDERGROUND CABLES | C68: > 11 kv & < = 22 kv | D68: 1219.052603 | E68: 53.27078152 | F68: 7.298683547 | G68: 2 | H68: 5.17775535 | I68: 10.90835435 | J68: 15.3113994 | K68: 12.88152998 | L68: 19.75216568 | M68: 19.19451036 | N68: 9.45379159 | O68: 14.21609754 | P68: 24.6493779 | Q68: 19.99794544 | R68: 16.63544273 | S68: 24.14844673 | T68: 26.97618049 | U68: 13.18147413 | V68: 5.65403953 | W68: 4.49592323 | X68: 3.1282691 | Y68: 6.97467727 | Z68: 4.14678038 | AA68: 6.19150611 | AB68: 6.93738199 | AC68: 1.38259808 | AD68: 20.66136494 | AE68: 2.45956401 | AF68: 1.94213389 | AG68: 3.04360201 | AH68: 5.27384181 | AI68: 10.3431725 | AJ68: 1.2393124 | AK68: 1.99382301 | AL68: 3.75645109 | AM68: 1.32081957 | AN68: 1.67135924 | AO68: 1.13229202 | AP68: 0.74874897 | AQ68: 1.26785198 | AR68: 1.24953843 | AS68: 1.60970309 | AT68: 2.02660887 | AU68: 2.34648178 | AV68: 2.13328978 | AW68: 0.47411599 | AX68: 2.09225134 | AY68: 5.38273958 | AZ68: 0.15927512 | BA68: 0 | BB68: 0.47354644 | BC68: 0.17545182 | BD68: 0.36865357 | BE68: 0.1491666 | BF68: 1.86043141 | BG68: 0.06087348 | BH68: 0.02650993 | BI68: 0 | BJ68: 0.39057249 | BK68: 0 | BL68: 0.09169855 | BM68: 0.02310641 | BN68: 0.00679238 | BO68: 0 | BP68: 0 | BQ68: 0 | BR68: 0 | BS68: 0 | BT68: 0 | BU68: 0 | BV68: 0 | BW68: 0 | BX68: 0 | BY68: 0 | BZ68: 0 | CA68: 0 | CB68: 0 | CC68: 0 | CD68: 0 | CE68: 0 | CF68: 0 | CG68: 0 | CH68: 0 | CI68: 0 | CJ68: 0 | CK68: 0 | CL68: 0 | CM68: 0 | CN68: 0 | CO68: 0 | CP68: 0 | CQ68: 0 | CR68: 0 | CS68: 0 | CT68: 0 | CV68: 6311.95614 | CW68: 13297.85777 | CX68: 18665.4013 | CY68: 15703.26266 | CZ68: 24078.929 | DA68: 23399.11783 | DB68: 11524.66925 | DC68: 17330.17072 | DD68: 30048.8883 | DE68: 24378.54745 | DF68: 20279.47977 | DG68: 29438.22686 | DH68: 32885.38306 | DI68: 16068.91036 | DJ68: 6892.571609 | DK68: 5480.766919 | DL68: 3813.524591 | DM68: 8502.498484 | DN68: 5055.143418 | DO68: 7547.771643 | DP68: 8457.033576 | DQ68: 1685.459789 | DR68: 25187.29072 | DS68: 2998.33791 | DT68: 2367.563375 | DU68: 3710.310954 | DV68: 6429.090589 | DW68: 12608.87136 | DX68: 1510.787008 | DY68: 2430.575131 | DZ68: 4579.311481 | EA68: 1610.148536 | EB68: 2037.474833 | EC68: 1380.323535 | ED68: 912.7643812 | EE68: 1545.578257 | EF68: 1523.253076 | EG68: 1962.312743 | EH68: 2470.542819 | EI68: 2860.484723 | EJ68: 2600.59246 | EK68: 577.972332 | EL68: 2550.564443 | EM68: 6561.842699 | EN68: 194.1647497 | EO68: 0 | EP68: 577.2780205 | EQ68: 213.884998 | ER68: 449.4080943 | ES68: 181.8419321 | ET68: 2267.963754 | EU68: 74.20797428 | EV68: 32.31699918 | EW68: 0 | EX68: 476.1284108 | EY68: 0 | EZ68: 111.7853561 | FA68: 28.16792927 | FB68: 8.280268523 | FC68: 0 | FD68: 0 | FE68: 0 | FF68: 0 | FG68: 0 | FH68: 0 | FI68: 0 | FJ68: 0 | FK68: 0 | FL68: 0 | FM68: 0 | FN68: 0 | FO68: 0 | FP68: 0 | FQ68: 0 | FR68: 0 | FS68: 0 | FT68: 0 | FU68: 0 | FV68: 0 | FW68: 0 | FX68: 0 | FY68: 0 | FZ68: 0 | GA68: 0 | GB68: 0 | GC68: 0 | GD68: 0 | GE68: 0 | GF68: 0 | GG68: 0 | GH68: 0
A69: 6 | B69: UNDERGROUND CABLES | C69: > 22 kv & < = 33 kv | D69: 1219.052603 | E69: 53.27078152 | F69: 7.298683547 | G69: 2 | H69: 0.32157192 | I69: 0.50655182 | J69: 0.33365667 | K69: 0.07726526 | L69: 0.59759505 | M69: 0.94024688 | N69: 0.49345718 | O69: 0 | P69: 1.27283549 | Q69: 0.65318852 | R69: 0.94834779 | S69: 3.17118493 | T69: 0.74860069 | U69: 0 | V69: 1.38496276 | W69: 17.2111731 | X69: 0.05442089 | Y69: 0.08872822 | Z69: 1.02365057 | AA69: 0 | AB69: 0 | AC69: 4.23568058 | AD69: 0.06006662 | AE69: 0 | AF69: 0.07615 | AG69: 0 | AH69: 0 | AI69: 0 | AJ69: 0 | AK69: 0 | AL69: 0 | AM69: 7.95952199 | AN69: 3.51155865 | AO69: 0 | AP69: 0 | AQ69: 0.05093373 | AR69: 0 | AS69: 0.31058917 | AT69: 0 | AU69: 0 | AV69: 0 | AW69: 0 | AX69: 0 | AY69: 0 | AZ69: 0 | BA69: 0 | BB69: 0 | BC69: 0.08719924 | BD69: 0.02572589 | BE69: 0 | BF69: 0 | BG69: 0.06970615 | BH69: 0 | BI69: 1.39037271 | BJ69: 0 | BK69: 0.14201413 | BL69: 0 | BM69: 0 | BN69: 0 | BO69: 0 | BP69: 0 | BQ69: 0 | BR69: 0 | BS69: 0 | BT69: 0 | BU69: 0 | BV69: 0 | BW69: 0 | BX69: 0 | BY69: 0 | BZ69: 0 | CA69: 0 | CB69: 0 | CC69: 0 | CD69: 0 | CE69: 0 | CF69: 0 | CG69: 0 | CH69: 0 | CI69: 0 | CJ69: 0 | CK69: 0 | CL69: 0 | CM69: 0 | CN69: 0 | CO69: 0 | CP69: 0 | CQ69: 0 | CR69: 0 | CS69: 0 | CT69: 0 | CV69: 392.0130863 | CW69: 617.513315 | CX69: 406.7450322 | CY69: 94.19041636 | CZ69: 728.4998015 | DA69: 1146.210407 | DB69: 601.55026 | DC69: 0 | DD69: 1551.653418 | DE69: 796.2711659 | DF69: 1156.085842 | DG69: 3865.841245 | DH69: 912.5836201 | DI69: 0 | DJ69: 1688.342458 | DK69: 20981.32538 | DL69: 66.34192764 | DM69: 108.1643676 | DN69: 1247.883892 | DO69: 0 | DP69: 0 | DQ69: 5163.517439 | DR69: 73.22436949 | DS69: 0 | DT69: 92.83085575 | DU69: 0 | DV69: 0 | DW69: 0 | DX69: 0 | DY69: 0 | DZ69: 0 | EA69: 9703.076004 | EB69: 4280.774715 | EC69: 0 | ED69: 0 | EE69: 62.09089616 | EF69: 0 | EG69: 378.6245363 | EH69: 0 | EI69: 0 | EJ69: 0 | EK69: 0 | EL69: 0 | EM69: 0 | EN69: 0 | EO69: 0 | EP69: 0 | EQ69: 106.3004605 | ER69: 31.36121318 | ES69: 0 | ET69: 0 | EU69: 84.97546364 | EV69: 0 | EW69: 1694.937472 | EX69: 0 | EY69: 173.1226949 | EZ69: 0 | FA69: 0 | FB69: 0 | FC69: 0 | FD69: 0 | FE69: 0 | FF69: 0 | FG69: 0 | FH69: 0 | FI69: 0 | FJ69: 0 | FK69: 0 | FL69: 0 | FM69: 0 | FN69: 0 | FO69: 0 | FP69: 0 | FQ69: 0 | FR69: 0 | FS69: 0 | FT69: 0 | FU69: 0 | FV69: 0 | FW69: 0 | FX69: 0 | FY69: 0 | FZ69: 0 | GA69: 0 | GB69: 0 | GC69: 0 | GD69: 0 | GE69: 0 | GF69: 0 | GG69: 0 | GH69: 0
A70: 6 | B70: UNDERGROUND CABLES | C70: > 33 kv & < = 66 kv | D70: 1219.052603 | E70: 53.27078152 | F70: 7.298683547 | G70: 2 | H70: 0.2076655 | I70: 0.13611501 | J70: 0.2737267 | K70: 9.20144786 | L70: 1.26345524 | M70: 0.72670064 | N70: 2.65303484 | O70: 4.94986267 | P70: 2.64500104 | Q70: 1.81259406 | R70: 2.74070729 | S70: 1.56958314 | T70: 0.22115207 | U70: 2.70211246 | V70: 0.26240634 | W70: 0.9585758 | X70: 0 | Y70: 0 | Z70: 0 | AA70: 0 | AB70: 0 | AC70: 0 | AD70: 0 | AE70: 0 | AF70: 0 | AG70: 0 | AH70: 0 | AI70: 0 | AJ70: 0 | AK70: 0 | AL70: 0 | AM70: 0 | AN70: 0 | AO70: 0 | AP70: 0 | AQ70: 0 | AR70: 0 | AS70: 0 | AT70: 0.1420898 | AU70: 0 | AV70: 0 | AW70: 0 | AX70: 0.57431152 | AY70: 0 | AZ70: 0 | BA70: 0 | BB70: 0 | BC70: 0 | BD70: 0 | BE70: 0 | BF70: 0 | BG70: 0 | BH70: 0.5182552 | BI70: 0 | BJ70: 0 | BK70: 0 | BL70: 0 | BM70: 0 | BN70: 0 | BO70: 0 | BP70: 0 | BQ70: 0 | BR70: 0 | BS70: 0 | BT70: 0 | BU70: 0 | BV70: 0 | BW70: 0.29697716 | BX70: 0 | BY70: 0 | BZ70: 0 | CA70: 0 | CB70: 0 | CC70: 0 | CD70: 0 | CE70: 0 | CF70: 0 | CG70: 0 | CH70: 0 | CI70: 0 | CJ70: 0 | CK70: 0 | CL70: 0 | CM70: 0 | CN70: 0 | CO70: 0 | CP70: 0 | CQ70: 0 | CR70: 0 | CS70: 0 | CT70: 0 | CV70: 253.1551684 | CW70: 165.9313573 | CX70: 333.6872463 | CY70: 11217.04897 | CZ70: 1540.2184 | DA70: 885.8863071 | DB70: 3234.189029 | DC70: 6034.142975 | DD70: 3224.395404 | DE70: 2209.647508 | DF70: 3341.066357 | DG70: 1913.404413 | DH70: 269.5960067 | DI70: 3294.017229 | DJ70: 319.8871319 | DK70: 1168.554325 | DL70: 0 | DM70: 0 | DN70: 0 | DO70: 0 | DP70: 0 | DQ70: 0 | DR70: 0 | DS70: 0 | DT70: 0 | DU70: 0 | DV70: 0 | DW70: 0 | DX70: 0 | DY70: 0 | DZ70: 0 | EA70: 0 | EB70: 0 | EC70: 0 | ED70: 0 | EE70: 0 | EF70: 0 | EG70: 0 | EH70: 173.2149406 | EI70: 0 | EJ70: 0 | EK70: 0 | EL70: 700.1159537 | EM70: 0 | EN70: 0 | EO70: 0 | EP70: 0 | EQ70: 0 | ER70: 0 | ES70: 0 | ET70: 0 | EU70: 0 | EV70: 631.7803508 | EW70: 0 | EX70: 0 | EY70: 0 | EZ70: 0 | FA70: 0 | FB70: 0 | FC70: 0 | FD70: 0 | FE70: 0 | FF70: 0 | FG70: 0 | FH70: 0 | FI70: 0 | FJ70: 0 | FK70: 362.0307801 | FL70: 0 | FM70: 0 | FN70: 0 | FO70: 0 | FP70: 0 | FQ70: 0 | FR70: 0 | FS70: 0 | FT70: 0 | FU70: 0 | FV70: 0 | FW70: 0 | FX70: 0 | FY70: 0 | FZ70: 0 | GA70: 0 | GB70: 0 | GC70: 0 | GD70: 0 | GE70: 0 | GF70: 0 | GG70: 0 | GH70: 0
A71: 6 | B71: UNDERGROUND CABLES | C71: > 66 kv & < = 132 kv | D71: 1219.052603 | E71: 53.27078152 | F71: 7.298683547 | G71: =IFERROR(IF($B71="","",2),"") -> 2 | H71: 0 | I71: 0 | J71: 0 | K71: 0 | L71: 7.71216476 | M71: 0 | N71: 0 | O71: 0 | P71: 0 | Q71: 0 | R71: 0 | S71: 0 | T71: 0 | U71: 0 | V71: 0 | W71: 0 | X71: 0 | Y71: 0 | Z71: 0 | AA71: 0 | AB71: 2.15936931 | AC71: 0 | AD71: 0 | AE71: 0 | AF71: 0 | AG71: 0 | AH71: 0 | AI71: 0 | AJ71: 0 | AK71: 0 | AL71: 0 | AM71: 0 | AN71: 0 | AO71: 0 | AP71: 0 | AQ71: 0 | AR71: 0 | AS71: 0 | AT71: 0 | AU71: 0 | AV71: 0 | AW71: 0 | AX71: 0 | AY71: 0 | AZ71: 0 | BA71: 0 | BB71: 0 | BC71: 0 | BD71: 0 | BE71: 0 | BF71: 0 | BG71: 0 | BH71: 0 | BI71: 0 | BJ71: 0 | BK71: 0 | BL71: 0 | BM71: 0 | BN71: 0 | BO71: 0 | BP71: 0 | BQ71: 0 | BR71: 0 | BS71: 0 | BT71: 0 | BU71: 0 | BV71: 0 | BW71: 0 | BX71: 0 | BY71: 0 | BZ71: 0 | CA71: 0 | CB71: 0 | CC71: 0 | CD71: 0 | CE71: 0 | CF71: 0 | CG71: 0 | CH71: 0 | CI71: 0 | CJ71: 0 | CK71: 0 | CL71: 0 | CM71: 0 | CN71: 0 | CO71: 0 | CP71: 0 | CQ71: 0 | CR71: 0 | CS71: 0 | CT71: 0 | CV71: 0 | CW71: 0 | CX71: 0 | CY71: 0 | CZ71: 9401.534529 | DA71: 0 | DB71: 0 | DC71: 0 | DD71: 0 | DE71: 0 | DF71: 0 | DG71: 0 | DH71: 0 | DI71: 0 | DJ71: 0 | DK71: 0 | DL71: 0 | DM71: 0 | DN71: 0 | DO71: 0 | DP71: 2632.384779 | DQ71: 0 | DR71: 0 | DS71: 0 | DT71: 0 | DU71: 0 | DV71: 0 | DW71: 0 | DX71: 0 | DY71: 0 | DZ71: 0 | EA71: 0 | EB71: 0 | EC71: 0 | ED71: 0 | EE71: 0 | EF71: 0 | EG71: 0 | EH71: 0 | EI71: 0 | EJ71: 0 | EK71: 0 | EL71: 0 | EM71: 0 | EN71: 0 | EO71: 0 | EP71: 0 | EQ71: 0 | ER71: 0 | ES71: 0 | ET71: 0 | EU71: 0 | EV71: 0 | EW71: 0 | EX71: 0 | EY71: 0 | EZ71: 0 | FA71: 0 | FB71: 0 | FC71: 0 | FD71: 0 | FE71: 0 | FF71: 0 | FG71: 0 | FH71: 0 | FI71: 0 | FJ71: 0 | FK71: 0 | FL71: 0 | FM71: 0 | FN71: 0 | FO71: 0 | FP71: 0 | FQ71: 0 | FR71: 0 | FS71: 0 | FT71: 0 | FU71: 0 | FV71: 0 | FW71: 0 | FX71: 0 | FY71: 0 | FZ71: 0 | GA71: 0 | GB71: 0 | GC71: 0 | GD71: 0 | GE71: 0 | GF71: 0 | GG71: 0 | GH71: 0

Sheet Historical scenario - output
D1: Replacement expenditure forecast ($,000) | X1: Replacement quantity forecast (#)
D2: 1 | E2: 2 | F2: 3 | G2: 4 | H2: 5 | I2: 6 | J2: 7 | K2: 8 | L2: 9 | M2: 10 | N2: 11 | O2: 12 | P2: 13 | Q2: 14 | R2: 15 | S2: 16 | T2: 17 | U2: 18 | V2: 19 | W2: 20 | X2: 1 | Y2: 2 | Z2: 3 | AA2: 4 | AB2: 5 | AC2: 6 | AD2: 7 | AE2: 8 | AF2: 9 | AG2: 10 | AH2: 11 | AI2: 12 | AJ2: 13 | AK2: 14 | AL2: 15 | AM2: 16 | AN2: 17 | AO2: 18 | AP2: 19 | AQ2: 20
A5: ID | B5: Asset group | D5: 2018 | E5: 2019 | F5: 2020 | G5: 2021 | H5: 2022 | I5: 2023 | J5: 2024 | K5: 2025 | L5: 2026 | M5: 2027 | N5: 2028 | O5: 2029 | P5: 2030 | Q5: 2031 | R5: 2032 | S5: 2033 | T5: 2034 | U5: 2035 | V5: 2036 | W5: 2037 | X5: 2018 | Y5: 2019 | Z5: 2020 | AA5: 2021 | AB5: 2022 | AC5: 2023 | AD5: 2024 | AE5: 2025 | AF5: 2026 | AG5: 2027 | AH5: 2028 | AI5: 2029 | AJ5: 2030 | AK5: 2031 | AL5: 2032 | AM5: 2033 | AN5: 2034 | AO5: 2035 | AP5: 2036 | AQ5: 2037
A6: 1 | B6: OVERHEAD CONDUCTORS | D6: =IFERROR(IF($A6="","",SUMIFS(D$21:D$175,$A$21:$A$175,$A6)),"") -> 19007.88437 | E6: =IFERROR(IF($A6="","",SUMIFS(E$21:E$175,$A$21:$A$175,$A6)),"") -> 21540.16205 | F6: 24361.0441 | G6: 27496.11498 | H6: 30970.22221 | I6: 34806.44347 | J6: 39024.95227 | K6: 43641.83731 | L6: 48667.93908 | M6: 54107.77105 | N6: 59958.59019 | O6: 66209.67279 | P6: 72841.83761 | Q6: 79827.23979 | R6: 87129.43916 | S6: 94703.72688 | T6: 102497.6782 | U6: =IFERROR(IF($A6="","",SUMIFS(U$21:U$175,$A$21:$A$175,$A6)),"") -> 110451.8876 | V6: 118500.8385 | W6: 126573.8625 | X6: =IFERROR(IF($A6="","",SUMIFS(X$21:X$175,$A$21:$A$175,$A6)),"") -> 362.0949436 | Y6: =IFERROR(IF($A6="","",SUMIFS(Y$21:Y$175,$A$21:$A$175,$A6)),"") -> 410.8155101 | Z6: 465.1601604 | AA6: 525.627941 | AB6: 592.7020228 | AC6: 666.8295382 | AD6: 748.3995787 | AE6: 837.72044 | AF6: 934.9973683 | AG6: 1040.31212 | AH6: 1153.605592 | AI6: 1274.66459 | AJ6: 1403.113528 | AK6: 1538.411485 | AL6: 1679.854621 | AM6: 1826.583613 | AN6: 1977.595394 | AO6: =IFERROR(IF($A6="","",SUMIFS(AO$21:AO$175,$A$21:$A$175,$A6)),"") -> 2131.758301 | AP6: 2287.829624 | AQ6: 2444.474605
A7: 2 | B7: POLES | D7: =IFERROR(IF($A7="","",SUMIFS(D$21:D$175,$A$21:$A$175,$A7)),"") -> 45160.73054 | E7: 48086.7148 | F7: 51374.64742 | G7: 54963.43988 | H7: 58793.8048 | I7: 62810.7067 | J7: 66964.69205 | K7: 71212.14557 | L7: 75514.69606 | M7: 79838.09954 | N7: 84150.95067 | O7: 88423.5249 | P7: 92626.95564 | Q7: 96732.8305 | R7: 100713.1733 | S7: 104540.686 | T7: 108189.072 | U7: 111633.2642 | V7: 114849.434 | W7: 117814.7654 | X7: 9724.4597 | Y7: 10361.62798 | Z7: 11073.0793 | AA7: 11845.19699 | AB7: 12664.33728 | AC7: 13517.3878 | AD7: 14392.12394 | AE7: 15277.37118 | AF7: 16163.01226 | AG7: 17039.89658 | AH7: 17899.71304 | AI7: 18734.87859 | AJ7: 19538.47705 | AK7: 20304.26094 | AL7: 21026.70762 | AM7: 21701.10395 | AN7: 22323.62436 | AO7: 22891.36667 | AP7: 23402.32048 | AQ7: 23855.26143
A8: 3 | B8: SERVICE LINES | D8: 4876.146984 | E8: 5403.127678 | F8: 5950.070267 | G8: 6505.130099 | H8: 7056.114147 | I8: 7591.032329 | J8: 8098.678816 | K8: 8569.196345 | L8: 8994.573509 | M8: 9369.028565 | N8: 9689.243137 | O8: 9954.424109 | P8: 10166.18992 | Q8: 10328.29578 | R8: 10446.22854 | S8: 10526.71376 | T8: 10577.18374 | U8: 10605.25503 | V8: 10618.2581 | W8: 10622.85161 | X8: 5180.161201 | Y8: 5735.923626 | Z8: 6311.392393 | AA8: 6893.864005 | AB8: 7470.335338 | AC8: 8028.099615 | AD8: 8555.369892 | AE8: 9041.878848 | AF8: 9479.40089 | AG8: 9862.147033 | AH8: 10186.99416 | AI8: 10453.52693 | AJ8: 10663.89015 | AK8: 10822.46953 | AL8: 10935.43571 | AM8: 11010.19932 | AN8: 11054.83063 | AO8: 11077.49651 | AP8: 11085.96063 | AQ8: 11087.18071
A9: 4 | B9: SWITCHGEAR | D9: 29191.69939 | E9: 28994.5375 | F9: 29197.04391 | G9: 29677.72452 | H9: 30351.53975 | I9: 31158.10929 | J9: 32054.19521 | K9: 33008.80357 | L9: 33999.90311 | M9: 35012.17468 | N9: 36035.44513 | O9: 37063.58784 | P9: 38093.73652 | Q9: 39125.69355 | R9: 40161.44025 | S9: 41204.68304 | T9: 42260.39965 | U9: 43334.38091 | V9: 44432.78995 | W9: 45561.77773 | X9: 3419.913577 | Y9: 3625.29294 | Z9: 3840.162797 | AA9: 4060.204163 | AB9: 4281.711014 | AC9: 4501.535825 | AD9: 4717.046657 | AE9: 4926.085258 | AF9: 5126.923562 | AG9: 5318.220518 | AH9: 5498.983082 | AI9: 5668.53511 | AJ9: 5826.496504 | AK9: 5972.772851 | AL9: 6107.553493 | AM9: 6231.313875 | AN9: 6344.816553 | AO9: 6449.104492 | AP9: 6545.480559 | AQ9: 6635.468259
A10: 5 | B10: TRANSFORMERS | D10: 10538.22209 | E10: 10083.47208 | F10: 10067.7815 | G10: 10199.22417 | H10: 10407.75638 | I10: 10659.00525 | J10: 10932.74983 | K10: 11216.01242 | L10: 11500.18276 | M10: 11779.78025 | N10: 12051.70306 | O10: 12314.64572 | P10: 12568.5908 | Q10: 12814.37989 | R10: 13053.40849 | S10: 13287.48921 | T10: 13518.89549 | U10: 13750.545 | V10: 13986.22785 | W10: 14230.75373 | X10: 1081.840074 | Y10: 1036.539114 | Z10: 1041.319505 | AA10: 1063.684698 | AB10: 1095.900972 | AC10: 1134.070769 | AD10: 1175.805135 | AE10: 1219.502987 | AF10: 1264.056519 | AG10: 1308.724018 | AH10: 1353.047878 | AI10: 1396.786819 | AJ10: 1439.854391 | AK10: 1482.265628 | AL10: 1524.097306 | AM10: 1565.466814 | AN10: 1606.531008 | AO10: 1647.500662 | AP10: 1688.660304 | AQ10: 1730.380175
A11: 6 | B11: UNDERGROUND CABLES | D11: 3910.597406 | E11: 4302.78749 | F11: 4748.317212 | G11: 5254.821976 | H11: 5831.281271 | I11: 6488.02312 | J11: 7236.646173 | K11: 8089.85804 | L11: 9061.230736 | M11: 10164.8763 | N11: 11415.04847 | O11: 12825.68059 | P11: 14409.87544 | Q11: 16179.36972 | R11: 18144.00275 | S11: 20311.22512 | T11: 22685.68635 | U11: 25268.94076 | V11: 28059.30553 | W11: 31051.89618 | X11: 5.060548217 | Y11: 5.604077748 | Z11: 6.224218052 | AA11: 6.932521977 | AB11: 7.742304627 | AC11: 8.668618567 | AD11: 9.728124439 | AE11: 10.9388524 | AF11: 12.31985334 | AG11: 13.89074278 | AH11: 15.67114495 | AI11: 17.68005104 | AJ11: 19.93511297 | AK11: 22.45190327 | AL11: 25.24318009 | AM11: 28.31820434 | AN11: 31.68216042 | AO11: 35.33573272 | AP11: 39.2748848 | AQ11: 43.49087756
C18: Total | D18: =IFERROR(SUM(D$6:D$17),"") -> 112685.2808 | E18: =IFERROR(SUM(E$6:E$17),"") -> 118410.8016 | F18: 125698.9044 | G18: 134096.4556 | H18: 143410.7186 | I18: 153513.3202 | J18: 164311.9144 | K18: 175737.8533 | L18: 187738.5253 | M18: 200271.7304 | N18: 213300.9806 | O18: 226791.5359 | P18: 240707.1859 | Q18: 255007.8092 | R18: 269647.6925 | S18: 284574.524 | T18: 299728.9155 | U18: 315044.2734 | V18: 330446.854 | W18: 345855.9071
A20: ID | B20: Asset group | C20: Asset category
A21: =IFERROR('Historical scenario - input'!A6,"") -> 1 | B21: =IFERROR('Historical scenario - input'!B6,"") -> OVERHEAD CONDUCTORS | C21: =IFERROR('Historical scenario - input'!C6,"") -> ˂ = 1 kv | D21: =IFERROR(repcalc('Historical scenario - input'!$CV6:$GH6,'Historical scenario - input'!$G6,'Historical scenario - input'!$E6,'Historical scenario - input'!$F6,20,TRUE,TRUE),"") -> 1618.590766 | E21: 1808.842913 | F21: 2019.889933 | G21: 2255.654078 | H21: 2520.813574 | I21: 2820.788358 | J21: 3161.682599 | K21: 3550.180731 | L21: 3993.396172 | M21: 4498.674437 | N21: 5073.354954 | O21: 5724.498238 | P21: 6458.587122 | Q21: 7281.212276 | R21: 8196.753261 | S21: 9208.066859 | T21: 10316.19438 | U21: 11520.09931 | V21: 12816.44585 | W21: 14199.42831 | X21: =IFERROR(IF(OR(D21="",'Historical scenario - input'!$D6=""),"",D21/'Historical scenario - input'!$D6),"") -> 32.43817152 | Y21: =IFERROR(IF(OR(E21="",'Historical scenario - input'!$D6=""),"",E21/'Historical scenario - input'!$D6),"") -> 36.25101409 | Z21: =IFERROR(IF(OR(F21="",'Historical scenario - input'!$D6=""),"",F21/'Historical scenario - input'!$D6),"") -> 40.48060663 | AA21: =IFERROR(IF(OR(G21="",'Historical scenario - input'!$D6=""),"",G21/'Historical scenario - input'!$D6),"") -> 45.205555 | AB21: =IFERROR(IF(OR(H21="",'Historical scenario - input'!$D6=""),"",H21/'Historical scenario - input'!$D6),"") -> 50.51961547 | AC21: =IFERROR(IF(OR(I21="",'Historical scenario - input'!$D6=""),"",I21/'Historical scenario - input'!$D6),"") -> 56.531409 | AD21: =IFERROR(IF(OR(J21="",'Historical scenario - input'!$D6=""),"",J21/'Historical scenario - input'!$D6),"") -> 63.36326921 | AE21: =IFERROR(IF(OR(K21="",'Historical scenario - input'!$D6=""),"",K21/'Historical scenario - input'!$D6),"") -> 71.14915884 | AF21: =IFERROR(IF(OR(L21="",'Historical scenario - input'!$D6=""),"",L21/'Historical scenario - input'!$D6),"") -> 80.03163784 | AG21: =IFERROR(IF(OR(M21="",'Historical scenario - input'!$D6=""),"",M21/'Historical scenario - input'!$D6),"") -> 90.15791767 | AH21: =IFERROR(IF(OR(N21="",'Historical scenario - input'!$D6=""),"",N21/'Historical scenario - input'!$D6),"") -> 101.6750878 | AI21: =IFERROR(IF(OR(O21="",'Historical scenario - input'!$D6=""),"",O21/'Historical scenario - input'!$D6),"") -> 114.7246479 | AJ21: =IFERROR(IF(OR(P21="",'Historical scenario - input'!$D6=""),"",P21/'Historical scenario - input'!$D6),"") -> 129.4365205 | AK21: =IFERROR(IF(OR(Q21="",'Historical scenario - input'!$D6=""),"",Q21/'Historical scenario - input'!$D6),"") -> 145.9227482 | AL21: =IFERROR(IF(OR(R21="",'Historical scenario - input'!$D6=""),"",R21/'Historical scenario - input'!$D6),"") -> 164.2711017 | AM21: =IFERROR(IF(OR(S21="",'Historical scenario - input'!$D6=""),"",S21/'Historical scenario - input'!$D6),"") -> 184.5388337 | AN21: =IFERROR(IF(OR(T21="",'Historical scenario - input'!$D6=""),"",T21/'Historical scenario - input'!$D6),"") -> 206.7468133 | AO21: =IFERROR(IF(OR(U21="",'Historical scenario - input'!$D6=""),"",U21/'Historical scenario - input'!$D6),"") -> 230.8742675 | AP21: =IFERROR(IF(OR(V21="",'Historical scenario - input'!$D6=""),"",V21/'Historical scenario - input'!$D6),"") -> 256.8543437 | AQ21: =IFERROR(IF(OR(W21="",'Historical scenario - input'!$D6=""),"",W21/'Historical scenario - input'!$D6),"") -> 284.57069
A22: =IFERROR('Historical scenario - input'!A7,"") -> 1 | B22: =IFERROR('Historical scenario - input'!B7,"") -> OVERHEAD CONDUCTORS | C22: =IFERROR('Historical scenario - input'!C7,"") -> ˃ 11 kv & < = 22 kv ; multiple-phase | D22: =IFERROR(repcalc('Historical scenario - input'!$CV7:$GH7,'Historical scenario - input'!$G7,'Historical scenario - input'!$E7,'Historical scenario - input'!$F7,20,TRUE,TRUE),"") -> 3389.050621 | E22: 3754.751609 | F22: 4143.416792 | G22: 4556.654381 | H22: 4996.887768 | I22: 5467.522139 | J22: 5973.079434 | K22: 6519.282069 | L22: 7113.065475 | M22: 7762.500918 | N22: 8476.613239 | O22: 9265.083311 | P22: 10137.83188 | Q22: 11104.4899 | R22: 12173.76969 | S22: 13352.76142 | T22: 14646.18854 | U22: 16055.66455 | V22: 17579.0001 | W22: 19209.61316 | X22: =IFERROR(IF(OR(D22="",'Historical scenario - input'!$D7=""),"",D22/'Historical scenario - input'!$D7),"") -> 59.12061688 | Y22: =IFERROR(IF(OR(E22="",'Historical scenario - input'!$D7=""),"",E22/'Historical scenario - input'!$D7),"") -> 65.50012266 | Z22: =IFERROR(IF(OR(F22="",'Historical scenario - input'!$D7=""),"",F22/'Historical scenario - input'!$D7),"") -> 72.28022952 | AA22: =IFERROR(IF(OR(G22="",'Historical scenario - input'!$D7=""),"",G22/'Historical scenario - input'!$D7),"") -> 79.48899207 | AB22: =IFERROR(IF(OR(H22="",'Historical scenario - input'!$D7=""),"",H22/'Historical scenario - input'!$D7),"") -> 87.16868539 | AC22: =IFERROR(IF(OR(I22="",'Historical scenario - input'!$D7=""),"",I22/'Historical scenario - input'!$D7),"") -> 95.37871157 | AD22: =IFERROR(IF(OR(J22="",'Historical scenario - input'!$D7=""),"",J22/'Historical scenario - input'!$D7),"") -> 104.197954 | AE22: =IFERROR(IF(OR(K22="",'Historical scenario - input'!$D7=""),"",K22/'Historical scenario - input'!$D7),"") -> 113.726238 | AF22: =IFERROR(IF(OR(L22="",'Historical scenario - input'!$D7=""),"",L22/'Historical scenario - input'!$D7),"") -> 124.0845493 | AG22: =IFERROR(IF(OR(M22="",'Historical scenario - input'!$D7=""),"",M22/'Historical scenario - input'!$D7),"") -> 135.4136878 | AH22: =IFERROR(IF(OR(N22="",'Historical scenario - input'!$D7=""),"",N22/'Historical scenario - input'!$D7),"") -> 147.8710884 | AI22: =IFERROR(IF(OR(O22="",'Historical scenario - input'!$D7=""),"",O22/'Historical scenario - input'!$D7),"") -> 161.6256297 | AJ22: =IFERROR(IF(OR(P22="",'Historical scenario - input'!$D7=""),"",P22/'Historical scenario - input'!$D7),"") -> 176.8503755 | AK22: =IFERROR(IF(OR(Q22="",'Historical scenario - input'!$D7=""),"",Q22/'Historical scenario - input'!$D7),"") -> 193.7133334 | AL22: =IFERROR(IF(OR(R22="",'Historical scenario - input'!$D7=""),"",R22/'Historical scenario - input'!$D7),"") -> 212.3664867 | AM22: =IFERROR(IF(OR(S22="",'Historical scenario - input'!$D7=""),"",S22/'Historical scenario - input'!$D7),"") -> 232.9335205 | AN22: =IFERROR(IF(OR(T22="",'Historical scenario - input'!$D7=""),"",T22/'Historical scenario - input'!$D7),"") -> 255.4968332 | AO22: =IFERROR(IF(OR(U22="",'Historical scenario - input'!$D7=""),"",U22/'Historical scenario - input'!$D7),"") -> 280.0845719 | AP22: =IFERROR(IF(OR(V22="",'Historical scenario - input'!$D7=""),"",V22/'Historical scenario - input'!$D7),"") -> 306.6585443 | AQ22: =IFERROR(IF(OR(W22="",'Historical scenario - input'!$D7=""),"",W22/'Historical scenario - input'!$D7),"") -> 335.1039294
A23: =IFERROR('Historical scenario - input'!A8,"") -> 1 | B23: =IFERROR('Historical scenario - input'!B8,"") -> OVERHEAD CONDUCTORS | C23: =IFERROR('Historical scenario - input'!C8,"") -> ˃ 11 kv & < = 22 kv ; single-phase | D23: =IFERROR(repcalc('Historical scenario - input'!$CV8:$GH8,'Historical scenario - input'!$G8,'Historical scenario - input'!$E8,'Historical scenario - input'!$F8,20,TRUE,TRUE),"") -> 998.050418 | E23: 1107.868708 | F23: 1223.980357 | G23: 1347.216991 | H23: 1478.928438 | I23: 1621.083514 | J23: 1776.355916 | K23: 1948.186874 | L23: 2140.816351 | M23: 2359.275152 | N23: 2609.331451 | O23: 2897.386899 | P23: 3230.319626 | Q23: 3615.273979 | R23: 4059.399746 | S23: 4569.54665 | T23: 5151.923103 | U23: 5811.731189 | V23: 6552.792673 | W23: 7377.183098 | X23: =IFERROR(IF(OR(D23="",'Historical scenario - input'!$D8=""),"",D23/'Historical scenario - input'!$D8),"") -> 23.21242442 | Y23: =IFERROR(IF(OR(E23="",'Historical scenario - input'!$D8=""),"",E23/'Historical scenario - input'!$D8),"") -> 25.76655267 | Z23: =IFERROR(IF(OR(F23="",'Historical scenario - input'!$D8=""),"",F23/'Historical scenario - input'!$D8),"") -> 28.46705038 | AA23: =IFERROR(IF(OR(G23="",'Historical scenario - input'!$D8=""),"",G23/'Historical scenario - input'!$D8),"") -> 31.33325935 | AB23: =IFERROR(IF(OR(H23="",'Historical scenario - input'!$D8=""),"",H23/'Historical scenario - input'!$D8),"") -> 34.39657352 | AC23: =IFERROR(IF(OR(I23="",'Historical scenario - input'!$D8=""),"",I23/'Historical scenario - input'!$D8),"") -> 37.70278322 | AD23: =IFERROR(IF(OR(J23="",'Historical scenario - input'!$D8=""),"",J23/'Historical scenario - input'!$D8),"") -> 41.31407262 | AE23: =IFERROR(IF(OR(K23="",'Historical scenario - input'!$D8=""),"",K23/'Historical scenario - input'!$D8),"") -> 45.31047706 | AF23: =IFERROR(IF(OR(L23="",'Historical scenario - input'!$D8=""),"",L23/'Historical scenario - input'!$D8),"") -> 49.79060862 | AG23: =IFERROR(IF(OR(M23="",'Historical scenario - input'!$D8=""),"",M23/'Historical scenario - input'!$D8),"") -> 54.87147259 | AH23: =IFERROR(IF(OR(N23="",'Historical scenario - input'!$D8=""),"",N23/'Historical scenario - input'!$D8),"") -> 60.6872238 | AI23: =IFERROR(IF(OR(O23="",'Historical scenario - input'!$D8=""),"",O23/'Historical scenario - input'!$D8),"") -> 67.3867504 | AJ23: =IFERROR(IF(OR(P23="",'Historical scenario - input'!$D8=""),"",P23/'Historical scenario - input'!$D8),"") -> 75.1300223 | AK23: =IFERROR(IF(OR(Q23="",'Historical scenario - input'!$D8=""),"",Q23/'Historical scenario - input'!$D8),"") -> 84.0832011 | AL23: =IFERROR(IF(OR(R23="",'Historical scenario - input'!$D8=""),"",R23/'Historical scenario - input'!$D8),"") -> 94.41257484 | AM23: =IFERROR(IF(OR(S23="",'Historical scenario - input'!$D8=""),"",S23/'Historical scenario - input'!$D8),"") -> 106.2774528 | AN23: =IFERROR(IF(OR(T23="",'Historical scenario - input'!$D8=""),"",T23/'Historical scenario - input'!$D8),"") -> 119.8222289 | AO23: =IFERROR(IF(OR(U23="",'Historical scenario - input'!$D8=""),"",U23/'Historical scenario - input'!$D8),"") -> 135.1678919 | AP23: =IFERROR(IF(OR(V23="",'Historical scenario - input'!$D8=""),"",V23/'Historical scenario - input'!$D8),"") -> 152.4033274 | AQ23: =IFERROR(IF(OR(W23="",'Historical scenario - input'!$D8=""),"",W23/'Historical scenario - input'!$D8),"") -> 171.5768082
A24: =IFERROR('Historical scenario - input'!A9,"") -> 1 | B24: =IFERROR('Historical scenario - input'!B9,"") -> OVERHEAD CONDUCTORS | C24: =IFERROR('Historical scenario - input'!C9,"") -> ˃ 11 kv & < = 22 kv ; swer | D24: =IFERROR(repcalc('Historical scenario - input'!$CV9:$GH9,'Historical scenario - input'!$G9,'Historical scenario - input'!$E9,'Historical scenario - input'!$F9,20,TRUE,TRUE),"") -> 178.944208 | E24: 214.2329568 | F24: 254.5406359 | G24: 300.2037476 | H24: 351.5269244 | I24: 408.780644 | J24: 472.2026461 | K24: 542.0038193 | L24: 618.3791733 | M24: 701.5242877 | N24: 791.65734 | O24: 889.0464738 | P24: 994.0418811 | Q24: 1107.111559 | R24: 1228.879271 | S24: 1360.162843 | T24: 1502.010492 | U24: 1655.73261 | V24: 1822.926096 | W24: 2005.48821 | X24: =IFERROR(IF(OR(D24="",'Historical scenario - input'!$D9=""),"",D24/'Historical scenario - input'!$D9),"") -> 5.785030442 | Y24: =IFERROR(IF(OR(E24="",'Historical scenario - input'!$D9=""),"",E24/'Historical scenario - input'!$D9),"") -> 6.925869188 | Z24: =IFERROR(IF(OR(F24="",'Historical scenario - input'!$D9=""),"",F24/'Historical scenario - input'!$D9),"") -> 8.228963337 | AA24: =IFERROR(IF(OR(G24="",'Historical scenario - input'!$D9=""),"",G24/'Historical scenario - input'!$D9),"") -> 9.705191567 | AB24: =IFERROR(IF(OR(H24="",'Historical scenario - input'!$D9=""),"",H24/'Historical scenario - input'!$D9),"") -> 11.36440224 | AC24: =IFERROR(IF(OR(I24="",'Historical scenario - input'!$D9=""),"",I24/'Historical scenario - input'!$D9),"") -> 13.21533955 | AD24: =IFERROR(IF(OR(J24="",'Historical scenario - input'!$D9=""),"",J24/'Historical scenario - input'!$D9),"") -> 15.2656893 | AE24: =IFERROR(IF(OR(K24="",'Historical scenario - input'!$D9=""),"",K24/'Historical scenario - input'!$D9),"") -> 17.52226925 | AF24: =IFERROR(IF(OR(L24="",'Historical scenario - input'!$D9=""),"",L24/'Historical scenario - input'!$D9),"") -> 19.9913838 | AG24: =IFERROR(IF(OR(M24="",'Historical scenario - input'!$D9=""),"",M24/'Historical scenario - input'!$D9),"") -> 22.67935579 | AH24: =IFERROR(IF(OR(N24="",'Historical scenario - input'!$D9=""),"",N24/'Historical scenario - input'!$D9),"") -> 25.59323859 | AI24: =IFERROR(IF(OR(O24="",'Historical scenario - input'!$D9=""),"",O24/'Historical scenario - input'!$D9),"") -> 28.74170096 | AJ24: =IFERROR(IF(OR(P24="",'Historical scenario - input'!$D9=""),"",P24/'Historical scenario - input'!$D9),"") -> 32.13606412 | AK24: =IFERROR(IF(OR(Q24="",'Historical scenario - input'!$D9=""),"",Q24/'Historical scenario - input'!$D9),"") -> 35.79145779 | AL24: =IFERROR(IF(OR(R24="",'Historical scenario - input'!$D9=""),"",R24/'Historical scenario - input'!$D9),"") -> 39.72804749 | AM24: =IFERROR(IF(OR(S24="",'Historical scenario - input'!$D9=""),"",S24/'Historical scenario - input'!$D9),"") -> 43.97227236 | AN24: =IFERROR(IF(OR(T24="",'Historical scenario - input'!$D9=""),"",T24/'Historical scenario - input'!$D9),"") -> 48.55801992 | AO24: =IFERROR(IF(OR(U24="",'Historical scenario - input'!$D9=""),"",U24/'Historical scenario - input'!$D9),"") -> 53.52765343 | AP24: =IFERROR(IF(OR(V24="",'Historical scenario - input'!$D9=""),"",V24/'Historical scenario - input'!$D9),"") -> 58.93279852 | AQ24: =IFERROR(IF(OR(W24="",'Historical scenario - input'!$D9=""),"",W24/'Historical scenario - input'!$D9),"") -> 64.83479109
A25: =IFERROR('Historical scenario - input'!A10,"") -> 1 | B25: =IFERROR('Historical scenario - input'!B10,"") -> OVERHEAD CONDUCTORS | C25: =IFERROR('Historical scenario - input'!C10,"") -> > 1 kv & < = 11 kv | D25: =IFERROR(repcalc('Historical scenario - input'!$CV10:$GH10,'Historical scenario - input'!$G10,'Historical scenario - input'!$E10,'Historical scenario - input'!$F10,20,TRUE,TRUE),"") -> 11666.63794 | E25: 13400.7316 | F25: 15367.13805 | G25: 17584.32525 | H25: 20067.4926 | I25: 22827.22871 | J25: 25868.1737 | K25: 29187.77519 | L25: 32775.23239 | M25: 36610.7209 | N25: 40664.98 | O25: 44899.32534 | P25: 49266.12422 | Q25: 53709.73908 | R25: 58167.91196 | S25: 62573.52965 | T25: 66856.68116 | U25: 70946.89752 | V25: 74775.45148 | W25: 78277.59254 | X25: =IFERROR(IF(OR(D25="",'Historical scenario - input'!$D10=""),"",D25/'Historical scenario - input'!$D10),"") -> 225.0175153 | Y25: =IFERROR(IF(OR(E25="",'Historical scenario - input'!$D10=""),"",E25/'Historical scenario - input'!$D10),"") -> 258.4634361 | Z25: =IFERROR(IF(OR(F25="",'Historical scenario - input'!$D10=""),"",F25/'Historical scenario - input'!$D10),"") -> 296.3900345 | AA25: =IFERROR(IF(OR(G25="",'Historical scenario - input'!$D10=""),"",G25/'Historical scenario - input'!$D10),"") -> 339.1535074 | AB25: =IFERROR(IF(OR(H25="",'Historical scenario - input'!$D10=""),"",H25/'Historical scenario - input'!$D10),"") -> 387.0470095 | AC25: =IFERROR(IF(OR(I25="",'Historical scenario - input'!$D10=""),"",I25/'Historical scenario - input'!$D10),"") -> 440.2747658 | AD25: =IFERROR(IF(OR(J25="",'Historical scenario - input'!$D10=""),"",J25/'Historical scenario - input'!$D10),"") -> 498.9262719 | AE25: =IFERROR(IF(OR(K25="",'Historical scenario - input'!$D10=""),"",K25/'Historical scenario - input'!$D10),"") -> 562.9522992 | AF25: =IFERROR(IF(OR(L25="",'Historical scenario - input'!$D10=""),"",L25/'Historical scenario - input'!$D10),"") -> 632.14453 | AG25: =IFERROR(IF(OR(M25="",'Historical scenario - input'!$D10=""),"",M25/'Historical scenario - input'!$D10),"") -> 706.1206061 | AH25: =IFERROR(IF(OR(N25="",'Historical scenario - input'!$D10=""),"",N25/'Historical scenario - input'!$D10),"") -> 784.3161679 | AI25: =IFERROR(IF(OR(O25="",'Historical scenario - input'!$D10=""),"",O25/'Historical scenario - input'!$D10),"") -> 865.9851006 | AJ25: =IFERROR(IF(OR(P25="",'Historical scenario - input'!$D10=""),"",P25/'Historical scenario - input'!$D10),"") -> 950.2086994 | AK25: =IFERROR(IF(OR(Q25="",'Historical scenario - input'!$D10=""),"",Q25/'Historical scenario - input'!$D10),"") -> 1035.913868 | AL25: =IFERROR(IF(OR(R25="",'Historical scenario - input'!$D10=""),"",R25/'Historical scenario - input'!$D10),"") -> 1121.899822 | AM25: =IFERROR(IF(OR(S25="",'Historical scenario - input'!$D10=""),"",S25/'Historical scenario - input'!$D10),"") -> 1206.872129 | AN25: =IFERROR(IF(OR(T25="",'Historical scenario - input'!$D10=""),"",T25/'Historical scenario - input'!$D10),"") -> 1289.482399 | AO25: =IFERROR(IF(OR(U25="",'Historical scenario - input'!$D10=""),"",U25/'Historical scenario - input'!$D10),"") -> 1368.371478 | AP25: =IFERROR(IF(OR(V25="",'Historical scenario - input'!$D10=""),"",V25/'Historical scenario - input'!$D10),"") -> 1442.213806 | AQ25: =IFERROR(IF(OR(W25="",'Historical scenario - input'!$D10=""),"",W25/'Historical scenario - input'!$D10),"") -> 1509.760522
A26: =IFERROR('Historical scenario - input'!A11,"") -> 1 | B26: =IFERROR('Historical scenario - input'!B11,"") -> OVERHEAD CONDUCTORS | C26: =IFERROR('Historical scenario - input'!C11,"") -> > 132 kv | D26: =IFERROR(repcalc('Historical scenario - input'!$CV11:$GH11,'Historical scenario - input'!$G11,'Historical scenario - input'!$E11,'Historical scenario - input'!$F11,20,TRUE,TRUE),"") -> 1.334871612e-08 | E26: 2.563248348e-08 | F26: 4.869778534e-08 | G26: 9.153666273e-08 | H26: 1.702347746e-07 | I26: 3.132339518e-07 | J26: 5.702387499e-07 | K26: 1.027098208e-06 | L26: 1.830351794e-06 | M26: 3.227189898e-06 | N26: 5.629655638e-06 | O26: 9.7164249e-06 | P26: 1.659199193e-05 | Q26: 2.803224766e-05 | R26: 4.685810066e-05 | S26: 7.749591474e-05 | T26: 0.0001268061472 | U26: 0.0002052906541 | V26: 0.0003288254509 | W26: 0.0005211095675 | X26: =IFERROR(IF(OR(D26="",'Historical scenario - input'!$D11=""),"",D26/'Historical scenario - input'!$D11),"") -> 1.906749273e-10 | Y26: =IFERROR(IF(OR(E26="",'Historical scenario - input'!$D11=""),"",E26/'Historical scenario - input'!$D11),"") -> 3.661379775e-10 | Z26: =IFERROR(IF(OR(F26="",'Historical scenario - input'!$D11=""),"",F26/'Historical scenario - input'!$D11),"") -> 6.956059739e-10 | AA26: =IFERROR(IF(OR(G26="",'Historical scenario - input'!$D11=""),"",G26/'Historical scenario - input'!$D11),"") -> 1.307522487e-09 | AB26: =IFERROR(IF(OR(H26="",'Historical scenario - input'!$D11=""),"",H26/'Historical scenario - input'!$D11),"") -> 2.43165732e-09 | AC26: =IFERROR(IF(OR(I26="",'Historical scenario - input'!$D11=""),"",I26/'Historical scenario - input'!$D11),"") -> 4.474277558e-09 | AD26: =IFERROR(IF(OR(J26="",'Historical scenario - input'!$D11=""),"",J26/'Historical scenario - input'!$D11),"") -> 8.145370025e-09 | AE26: =IFERROR(IF(OR(K26="",'Historical scenario - input'!$D11=""),"",K26/'Historical scenario - input'!$D11),"") -> 1.46712144e-08 | AF26: =IFERROR(IF(OR(L26="",'Historical scenario - input'!$D11=""),"",L26/'Historical scenario - input'!$D11),"") -> 2.614500092e-08 | AG26: =IFERROR(IF(OR(M26="",'Historical scenario - input'!$D11=""),"",M26/'Historical scenario - input'!$D11),"") -> 4.609763167e-08 | AH26: =IFERROR(IF(OR(N26="",'Historical scenario - input'!$D11=""),"",N26/'Historical scenario - input'!$D11),"") -> 8.041478818e-08 | AI26: =IFERROR(IF(OR(O26="",'Historical scenario - input'!$D11=""),"",O26/'Historical scenario - input'!$D11),"") -> 1.387907717e-07 | AJ26: =IFERROR(IF(OR(P26="",'Historical scenario - input'!$D11=""),"",P26/'Historical scenario - input'!$D11),"") -> 2.370023324e-07 | AK26: =IFERROR(IF(OR(Q26="",'Historical scenario - input'!$D11=""),"",Q26/'Historical scenario - input'!$D11),"") -> 4.004165445e-07 | AL26: =IFERROR(IF(OR(R26="",'Historical scenario - input'!$D11=""),"",R26/'Historical scenario - input'!$D11),"") -> 6.693276607e-07 | AM26: =IFERROR(IF(OR(S26="",'Historical scenario - input'!$D11=""),"",S26/'Historical scenario - input'!$D11),"") -> 1.10696248e-06 | AN26: =IFERROR(IF(OR(T26="",'Historical scenario - input'!$D11=""),"",T26/'Historical scenario - input'!$D11),"") -> 1.811316734e-06 | AO26: =IFERROR(IF(OR(U26="",'Historical scenario - input'!$D11=""),"",U26/'Historical scenario - input'!$D11),"") -> 2.932400403e-06 | AP26: =IFERROR(IF(OR(V26="",'Historical scenario - input'!$D11=""),"",V26/'Historical scenario - input'!$D11),"") -> 4.696988711e-06 | AQ26: =IFERROR(IF(OR(W26="",'Historical scenario - input'!$D11=""),"",W26/'Historical scenario - input'!$D11),"") -> 7.443601915e-06
A27: =IFERROR('Historical scenario - input'!A12,"") -> 1 | B27: =IFERROR('Historical scenario - input'!B12,"") -> OVERHEAD CONDUCTORS | C27: =IFERROR('Historical scenario - input'!C12,"") -> > 22 kv & < = 66 kv | D27: =IFERROR(repcalc('Historical scenario - input'!$CV12:$GH12,'Historical scenario - input'!$G12,'Historical scenario - input'!$E12,'Historical scenario - input'!$F12,20,TRUE,TRUE),"") -> 1154.944376 | E27: 1251.440055 | F27: 1348.944948 | G27: 1447.815474 | H27: 1548.867504 | I27: 1653.432136 | J27: 1763.391515 | K27: 1881.190987 | L27: 2009.825178 | M27: 2152.79702 | N27: 2314.05022 | O27: 2497.877092 | P27: 2708.80478 | Q27: 2951.463818 | R27: 3230.443382 | S27: 3550.137747 | T27: 3914.588188 | U27: 4327.324164 | V27: 4791.207022 | W27: 5308.279038 | X27: =IFERROR(IF(OR(D27="",'Historical scenario - input'!$D12=""),"",D27/'Historical scenario - input'!$D12),"") -> 16.49738693 | Y27: =IFERROR(IF(OR(E27="",'Historical scenario - input'!$D12=""),"",E27/'Historical scenario - input'!$D12),"") -> 17.8757447 | Z27: =IFERROR(IF(OR(F27="",'Historical scenario - input'!$D12=""),"",F27/'Historical scenario - input'!$D12),"") -> 19.26851822 | AA27: =IFERROR(IF(OR(G27="",'Historical scenario - input'!$D12=""),"",G27/'Historical scenario - input'!$D12),"") -> 20.68079864 | AB27: =IFERROR(IF(OR(H27="",'Historical scenario - input'!$D12=""),"",H27/'Historical scenario - input'!$D12),"") -> 22.12423996 | AC27: =IFERROR(IF(OR(I27="",'Historical scenario - input'!$D12=""),"",I27/'Historical scenario - input'!$D12),"") -> 23.61785579 | AD27: =IFERROR(IF(OR(J27="",'Historical scenario - input'!$D12=""),"",J27/'Historical scenario - input'!$D12),"") -> 25.18853093 | AE27: =IFERROR(IF(OR(K27="",'Historical scenario - input'!$D12=""),"",K27/'Historical scenario - input'!$D12),"") -> 26.87119506 | AF27: =IFERROR(IF(OR(L27="",'Historical scenario - input'!$D12=""),"",L27/'Historical scenario - input'!$D12),"") -> 28.70862383 | AG27: =IFERROR(IF(OR(M27="",'Historical scenario - input'!$D12=""),"",M27/'Historical scenario - input'!$D12),"") -> 30.7508536 | AH27: =IFERROR(IF(OR(N27="",'Historical scenario - input'!$D12=""),"",N27/'Historical scenario - input'!$D12),"") -> 33.05421686 | AI27: =IFERROR(IF(OR(O27="",'Historical scenario - input'!$D12=""),"",O27/'Historical scenario - input'!$D12),"") -> 35.68002559 | AJ27: =IFERROR(IF(OR(P27="",'Historical scenario - input'!$D12=""),"",P27/'Historical scenario - input'!$D12),"") -> 38.69294618 | AK27: =IFERROR(IF(OR(Q27="",'Historical scenario - input'!$D12=""),"",Q27/'Historical scenario - input'!$D12),"") -> 42.15912179 | AL27: =IFERROR(IF(OR(R27="",'Historical scenario - input'!$D12=""),"",R27/'Historical scenario - input'!$D12),"") -> 46.14410489 | AM27: =IFERROR(IF(OR(S27="",'Historical scenario - input'!$D12=""),"",S27/'Historical scenario - input'!$D12),"") -> 50.71066389 | AN27: =IFERROR(IF(OR(T27="",'Historical scenario - input'!$D12=""),"",T27/'Historical scenario - input'!$D12),"") -> 55.91652495 | AO27: =IFERROR(IF(OR(U27="",'Historical scenario - input'!$D12=""),"",U27/'Historical scenario - input'!$D12),"") -> 61.81210333 | AP27: =IFERROR(IF(OR(V27="",'Historical scenario - input'!$D12=""),"",V27/'Historical scenario - input'!$D12),"") -> 68.43827093 | AQ27: =IFERROR(IF(OR(W27="",'Historical scenario - input'!$D12=""),"",W27/'Historical scenario - input'!$D12),"") -> 75.82419989
A28: =IFERROR('Historical scenario - input'!A13,"") -> 1 | B28: =IFERROR('Historical scenario - input'!B13,"") -> OVERHEAD CONDUCTORS | C28: =IFERROR('Historical scenario - input'!C13,"") -> > 66 kv & < = 132 kv | D28: =IFERROR(repcalc('Historical scenario - input'!$CV13:$GH13,'Historical scenario - input'!$G13,'Historical scenario - input'!$E13,'Historical scenario - input'!$F13,20,TRUE,TRUE),"") -> 1.666046279 | E28: 2.294199096 | F28: 3.133387881 | G28: 4.245056893 | H28: 5.705401742 | I28: 7.607969637 | J28: 10.06645625 | K28: 13.21763652 | L28: 17.2243381 | M28: 22.27833228 | N28: 28.6029791 | O28: 36.45542153 | P28: 46.12807945 | Q28: 57.94915188 | R28: 72.2817976 | S28: 89.52163743 | T28: 110.092211 | U28: 134.4380363 | V28: 163.0149681 | W28: 196.2776429 | X28: =IFERROR(IF(OR(D28="",'Historical scenario - input'!$D13=""),"",D28/'Historical scenario - input'!$D13),"") -> 0.02379803797 | Y28: =IFERROR(IF(OR(E28="",'Historical scenario - input'!$D13=""),"",E28/'Historical scenario - input'!$D13),"") -> 0.03277066063 | Z28: =IFERROR(IF(OR(F28="",'Historical scenario - input'!$D13=""),"",F28/'Historical scenario - input'!$D13),"") -> 0.04475775054 | AA28: =IFERROR(IF(OR(G28="",'Historical scenario - input'!$D13=""),"",G28/'Historical scenario - input'!$D13),"") -> 0.06063698613 | AB28: =IFERROR(IF(OR(H28="",'Historical scenario - input'!$D13=""),"",H28/'Historical scenario - input'!$D13),"") -> 0.08149675612 | AC28: =IFERROR(IF(OR(I28="",'Historical scenario - input'!$D13=""),"",I28/'Historical scenario - input'!$D13),"") -> 0.1086733019 | AD28: =IFERROR(IF(OR(J28="",'Historical scenario - input'!$D13=""),"",J28/'Historical scenario - input'!$D13),"") -> 0.1437906683 | AE28: =IFERROR(IF(OR(K28="",'Historical scenario - input'!$D13=""),"",K28/'Historical scenario - input'!$D13),"") -> 0.1888025679 | AF28: =IFERROR(IF(OR(L28="",'Historical scenario - input'!$D13=""),"",L28/'Historical scenario - input'!$D13),"") -> 0.2460348535 | AG28: =IFERROR(IF(OR(M28="",'Historical scenario - input'!$D13=""),"",M28/'Historical scenario - input'!$D13),"") -> 0.3182268128 | AH28: =IFERROR(IF(OR(N28="",'Historical scenario - input'!$D13=""),"",N28/'Historical scenario - input'!$D13),"") -> 0.4085689522 | AI28: =IFERROR(IF(OR(O28="",'Historical scenario - input'!$D13=""),"",O28/'Historical scenario - input'!$D13),"") -> 0.5207343377 | AJ28: =IFERROR(IF(OR(P28="",'Historical scenario - input'!$D13=""),"",P28/'Historical scenario - input'!$D13),"") -> 0.6588999358 | AK28: =IFERROR(IF(OR(Q28="",'Historical scenario - input'!$D13=""),"",Q28/'Historical scenario - input'!$D13),"") -> 0.8277537869 | AL28: =IFERROR(IF(OR(R28="",'Historical scenario - input'!$D13=""),"",R28/'Historical scenario - input'!$D13),"") -> 1.032483302 | AM28: =IFERROR(IF(OR(S28="",'Historical scenario - input'!$D13=""),"",S28/'Historical scenario - input'!$D13),"") -> 1.278739584 | AN28: =IFERROR(IF(OR(T28="",'Historical scenario - input'!$D13=""),"",T28/'Historical scenario - input'!$D13),"") -> 1.572572534 | AO28: =IFERROR(IF(OR(U28="",'Historical scenario - input'!$D13=""),"",U28/'Historical scenario - input'!$D13),"") -> 1.920331705 | AP28: =IFERROR(IF(OR(V28="",'Historical scenario - input'!$D13=""),"",V28/'Historical scenario - input'!$D13),"") -> 2.328528594 | AQ28: =IFERROR(IF(OR(W28="",'Historical scenario - input'!$D13=""),"",W28/'Historical scenario - input'!$D13),"") -> 2.803657292
A29: =IFERROR('Historical scenario - input'!A14,"") -> 2 | B29: =IFERROR('Historical scenario - input'!B14,"") -> POLES | C29: =IFERROR('Historical scenario - input'!C14,"") -> ˂ = 1 kv ; concrete | D29: =IFERROR(repcalc('Historical scenario - input'!$CV14:$GH14,'Historical scenario - input'!$G14,'Historical scenario - input'!$E14,'Historical scenario - input'!$F14,20,TRUE,TRUE),"") -> 142.7580235 | E29: 137.7480638 | F29: 133.546307 | G29: 130.0963723 | H29: 127.4217013 | I29: 125.6244335 | J29: 124.8880863 | K29: 125.4831318 | L29: 127.7742487 | M29: 132.2278173 | N29: 139.4180879 | O29: 150.0303499 | P29: 164.8593708 | Q29: 184.8013603 | R29: 210.8377953 | S29: 244.0096562 | T29: 285.3810363 | U29: 335.9917327 | V29: 396.7993233 | W29: 468.6123623 | X29: =IFERROR(IF(OR(D29="",'Historical scenario - input'!$D14=""),"",D29/'Historical scenario - input'!$D14),"") -> 21.96027064 | Y29: =IFERROR(IF(OR(E29="",'Historical scenario - input'!$D14=""),"",E29/'Historical scenario - input'!$D14),"") -> 21.18959543 | Z29: =IFERROR(IF(OR(F29="",'Historical scenario - input'!$D14=""),"",F29/'Historical scenario - input'!$D14),"") -> 20.54324494 | AA29: =IFERROR(IF(OR(G29="",'Historical scenario - input'!$D14=""),"",G29/'Historical scenario - input'!$D14),"") -> 20.01254623 | AB29: =IFERROR(IF(OR(H29="",'Historical scenario - input'!$D14=""),"",H29/'Historical scenario - input'!$D14),"") -> 19.60110527 | AC29: =IFERROR(IF(OR(I29="",'Historical scenario - input'!$D14=""),"",I29/'Historical scenario - input'!$D14),"") -> 19.32463403 | AD29: =IFERROR(IF(OR(J29="",'Historical scenario - input'!$D14=""),"",J29/'Historical scenario - input'!$D14),"") -> 19.21136274 | AE29: =IFERROR(IF(OR(K29="",'Historical scenario - input'!$D14=""),"",K29/'Historical scenario - input'!$D14),"") -> 19.30289779 | AF29: =IFERROR(IF(OR(L29="",'Historical scenario - input'!$D14=""),"",L29/'Historical scenario - input'!$D14),"") -> 19.65533714 | AG29: =IFERROR(IF(OR(M29="",'Historical scenario - input'!$D14=""),"",M29/'Historical scenario - input'!$D14),"") -> 20.34042348 | AH29: =IFERROR(IF(OR(N29="",'Historical scenario - input'!$D14=""),"",N29/'Historical scenario - input'!$D14),"") -> 21.44649293 | AI29: =IFERROR(IF(OR(O29="",'Historical scenario - input'!$D14=""),"",O29/'Historical scenario - input'!$D14),"") -> 23.07896263 | AJ29: =IFERROR(IF(OR(P29="",'Historical scenario - input'!$D14=""),"",P29/'Historical scenario - input'!$D14),"") -> 25.36009054 | AK29: =IFERROR(IF(OR(Q29="",'Historical scenario - input'!$D14=""),"",Q29/'Historical scenario - input'!$D14),"") -> 28.42773939 | AL29: =IFERROR(IF(OR(R29="",'Historical scenario - input'!$D14=""),"",R29/'Historical scenario - input'!$D14),"") -> 32.43288842 | AM29: =IFERROR(IF(OR(S29="",'Historical scenario - input'!$D14=""),"",S29/'Historical scenario - input'!$D14),"") -> 37.5356702 | AN29: =IFERROR(IF(OR(T29="",'Historical scenario - input'!$D14=""),"",T29/'Historical scenario - input'!$D14),"") -> 43.89977277 | AO29: =IFERROR(IF(OR(U29="",'Historical scenario - input'!$D14=""),"",U29/'Historical scenario - input'!$D14),"") -> 51.68514667 | AP29: =IFERROR(IF(OR(V29="",'Historical scenario - input'!$D14=""),"",V29/'Historical scenario - input'!$D14),"") -> 61.03909481 | AQ29: =IFERROR(IF(OR(W29="",'Historical scenario - input'!$D14=""),"",W29/'Historical scenario - input'!$D14),"") -> 72.08599593
A30: =IFERROR('Historical scenario - input'!A15,"") -> 2 | B30: =IFERROR('Historical scenario - input'!B15,"") -> POLES | C30: =IFERROR('Historical scenario - input'!C15,"") -> ˂ = 1 kv ; steel | D30: =IFERROR(repcalc('Historical scenario - input'!$CV15:$GH15,'Historical scenario - input'!$G15,'Historical scenario - input'!$E15,'Historical scenario - input'!$F15,20,TRUE,TRUE),"") -> 264.5493811 | E30: 271.5573843 | F30: 277.2139141 | G30: 281.7022526 | H30: 285.2661398 | I30: 288.1962208 | J30: 290.8139345 | K30: 293.4539422 | L30: 296.4462334 | M30: 300.0990043 | N30: 304.6833007 | O30: 310.4202613 | P30: 317.4716187 | Q30: 325.9339158 | R30: 335.8366884 | S30: 347.1446454 | T30: 359.7636616 | U30: 373.5501653 | V30: 388.3232874 | W30: 403.8789355 | X30: =IFERROR(IF(OR(D30="",'Historical scenario - input'!$D15=""),"",D30/'Historical scenario - input'!$D15),"") -> 36.55862191 | Y30: =IFERROR(IF(OR(E30="",'Historical scenario - input'!$D15=""),"",E30/'Historical scenario - input'!$D15),"") -> 37.52707226 | Z30: =IFERROR(IF(OR(F30="",'Historical scenario - input'!$D15=""),"",F30/'Historical scenario - input'!$D15),"") -> 38.30875971 | AA30: =IFERROR(IF(OR(G30="",'Historical scenario - input'!$D15=""),"",G30/'Historical scenario - input'!$D15),"") -> 38.92901242 | AB30: =IFERROR(IF(OR(H30="",'Historical scenario - input'!$D15=""),"",H30/'Historical scenario - input'!$D15),"") -> 39.42151332 | AC30: =IFERROR(IF(OR(I30="",'Historical scenario - input'!$D15=""),"",I30/'Historical scenario - input'!$D15),"") -> 39.82642722 | AD30: =IFERROR(IF(OR(J30="",'Historical scenario - input'!$D15=""),"",J30/'Historical scenario - input'!$D15),"") -> 40.18817445 | AE30: =IFERROR(IF(OR(K30="",'Historical scenario - input'!$D15=""),"",K30/'Historical scenario - input'!$D15),"") -> 40.55300253 | AF30: =IFERROR(IF(OR(L30="",'Historical scenario - input'!$D15=""),"",L30/'Historical scenario - input'!$D15),"") -> 40.96651339 | AG30: =IFERROR(IF(OR(M30="",'Historical scenario - input'!$D15=""),"",M30/'Historical scenario - input'!$D15),"") -> 41.4712973 | AH30: =IFERROR(IF(OR(N30="",'Historical scenario - input'!$D15=""),"",N30/'Historical scenario - input'!$D15),"") -> 42.10481063 | AI30: =IFERROR(IF(OR(O30="",'Historical scenario - input'!$D15=""),"",O30/'Historical scenario - input'!$D15),"") -> 42.89761299 | AJ30: =IFERROR(IF(OR(P30="",'Historical scenario - input'!$D15=""),"",P30/'Historical scenario - input'!$D15),"") -> 43.87205453 | AK30: =IFERROR(IF(OR(Q30="",'Historical scenario - input'!$D15=""),"",Q30/'Historical scenario - input'!$D15),"") -> 45.04147675 | AL30: =IFERROR(IF(OR(R30="",'Historical scenario - input'!$D15=""),"",R30/'Historical scenario - input'!$D15),"") -> 46.4099612 | AM30: =IFERROR(IF(OR(S30="",'Historical scenario - input'!$D15=""),"",S30/'Historical scenario - input'!$D15),"") -> 47.972631 | AN30: =IFERROR(IF(OR(T30="",'Historical scenario - input'!$D15=""),"",T30/'Historical scenario - input'!$D15),"") -> 49.71647875 | AO30: =IFERROR(IF(OR(U30="",'Historical scenario - input'!$D15=""),"",U30/'Historical scenario - input'!$D15),"") -> 51.62166399 | AP30: =IFERROR(IF(OR(V30="",'Historical scenario - input'!$D15=""),"",V30/'Historical scenario - input'!$D15),"") -> 53.66319205 | AQ30: =IFERROR(IF(OR(W30="",'Historical scenario - input'!$D15=""),"",W30/'Historical scenario - input'!$D15),"") -> 55.81285898
A31: =IFERROR('Historical scenario - input'!A16,"") -> 2 | B31: =IFERROR('Historical scenario - input'!B16,"") -> POLES | C31: =IFERROR('Historical scenario - input'!C16,"") -> ˂ = 1 kv ; wood | D31: =IFERROR(repcalc('Historical scenario - input'!$CV16:$GH16,'Historical scenario - input'!$G16,'Historical scenario - input'!$E16,'Historical scenario - input'!$F16,20,TRUE,TRUE),"") -> 10937.92277 | E31: 11562.20852 | F31: 12262.2533 | G31: 13025.26685 | H31: 13838.22638 | I31: 14688.4095 | J31: 15563.76196 | K31: 16453.10343 | L31: 17346.19199 | M31: 18233.67989 | N31: 19107.00042 | O31: 19958.2276 | P31: 20779.94684 | Q31: 21565.16792 | R31: 22307.30072 | S31: 23000.20304 | T31: 23638.29738 | U31: 24216.74287 | V31: 24731.64 | W31: 25180.23984 | X31: =IFERROR(IF(OR(D31="",'Historical scenario - input'!$D16=""),"",D31/'Historical scenario - input'!$D16),"") -> 2692.149566 | Y31: =IFERROR(IF(OR(E31="",'Historical scenario - input'!$D16=""),"",E31/'Historical scenario - input'!$D16),"") -> 2845.80494 | Z31: =IFERROR(IF(OR(F31="",'Historical scenario - input'!$D16=""),"",F31/'Historical scenario - input'!$D16),"") -> 3018.106875 | AA31: =IFERROR(IF(OR(G31="",'Historical scenario - input'!$D16=""),"",G31/'Historical scenario - input'!$D16),"") -> 3205.907306 | AB31: =IFERROR(IF(OR(H31="",'Historical scenario - input'!$D16=""),"",H31/'Historical scenario - input'!$D16),"") -> 3406.000932 | AC31: =IFERROR(IF(OR(I31="",'Historical scenario - input'!$D16=""),"",I31/'Historical scenario - input'!$D16),"") -> 3615.256399 | AD31: =IFERROR(IF(OR(J31="",'Historical scenario - input'!$D16=""),"",J31/'Historical scenario - input'!$D16),"") -> 3830.70679 | AE31: =IFERROR(IF(OR(K31="",'Historical scenario - input'!$D16=""),"",K31/'Historical scenario - input'!$D16),"") -> 4049.600295 | AF31: =IFERROR(IF(OR(L31="",'Historical scenario - input'!$D16=""),"",L31/'Historical scenario - input'!$D16),"") -> 4269.416071 | AG31: =IFERROR(IF(OR(M31="",'Historical scenario - input'!$D16=""),"",M31/'Historical scenario - input'!$D16),"") -> 4487.853356 | AH31: =IFERROR(IF(OR(N31="",'Historical scenario - input'!$D16=""),"",N31/'Historical scenario - input'!$D16),"") -> 4702.803631 | AI31: =IFERROR(IF(OR(O31="",'Historical scenario - input'!$D16=""),"",O31/'Historical scenario - input'!$D16),"") -> 4912.316069 | AJ31: =IFERROR(IF(OR(P31="",'Historical scenario - input'!$D16=""),"",P31/'Historical scenario - input'!$D16),"") -> 5114.565725 | AK31: =IFERROR(IF(OR(Q31="",'Historical scenario - input'!$D16=""),"",Q31/'Historical scenario - input'!$D16),"") -> 5307.83209 | AL31: =IFERROR(IF(OR(R31="",'Historical scenario - input'!$D16=""),"",R31/'Historical scenario - input'!$D16),"") -> 5490.493143 | AM31: =IFERROR(IF(OR(S31="",'Historical scenario - input'!$D16=""),"",S31/'Historical scenario - input'!$D16),"") -> 5661.037107 | AN31: =IFERROR(IF(OR(T31="",'Historical scenario - input'!$D16=""),"",T31/'Historical scenario - input'!$D16),"") -> 5818.091187 | AO31: =IFERROR(IF(OR(U31="",'Historical scenario - input'!$D16=""),"",U31/'Historical scenario - input'!$D16),"") -> 5960.463903 | AP31: =IFERROR(IF(OR(V31="",'Historical scenario - input'!$D16=""),"",V31/'Historical scenario - input'!$D16),"") -> 6087.195469 | AQ31: =IFERROR(IF(OR(W31="",'Historical scenario - input'!$D16=""),"",W31/'Historical scenario - input'!$D16),"") -> 6197.609292
A32: =IFERROR('Historical scenario - input'!A17,"") -> 2 | B32: =IFERROR('Historical scenario - input'!B17,"") -> POLES | C32: =IFERROR('Historical scenario - input'!C17,"") -> ˃ 11 kv & < = 22 kv ; concrete | D32: =IFERROR(repcalc('Historical scenario - input'!$CV17:$GH17,'Historical scenario - input'!$G17,'Historical scenario - input'!$E17,'Historical scenario - input'!$F17,20,TRUE,TRUE),"") -> 304.887668 | E32: 303.4061404 | F32: 318.918957 | G32: 352.3444422 | H32: 405.9648438 | I32: 483.3872967 | J32: 589.449315 | K32: 730.0582676 | L32: 911.9527394 | M32: 1142.375682 | N32: 1428.655042 | O32: 1777.696805 | P32: 2195.407254 | Q32: 2686.07426 | R32: 3251.749728 | S32: 3891.684929 | T32: 4601.875288 | U32: 5374.769802 | V32: 6199.191983 | W32: 7060.504129 | X32: =IFERROR(IF(OR(D32="",'Historical scenario - input'!$D17=""),"",D32/'Historical scenario - input'!$D17),"") -> 38.00412048 | Y32: =IFERROR(IF(OR(E32="",'Historical scenario - input'!$D17=""),"",E32/'Historical scenario - input'!$D17),"") -> 37.81944868 | Z32: =IFERROR(IF(OR(F32="",'Historical scenario - input'!$D17=""),"",F32/'Historical scenario - input'!$D17),"") -> 39.75311479 | AA32: =IFERROR(IF(OR(G32="",'Historical scenario - input'!$D17=""),"",G32/'Historical scenario - input'!$D17),"") -> 43.91958756 | AB32: =IFERROR(IF(OR(H32="",'Historical scenario - input'!$D17=""),"",H32/'Historical scenario - input'!$D17),"") -> 50.60334823 | AC32: =IFERROR(IF(OR(I32="",'Historical scenario - input'!$D17=""),"",I32/'Historical scenario - input'!$D17),"") -> 60.25402464 | AD32: =IFERROR(IF(OR(J32="",'Historical scenario - input'!$D17=""),"",J32/'Historical scenario - input'!$D17),"") -> 73.47461093 | AE32: =IFERROR(IF(OR(K32="",'Historical scenario - input'!$D17=""),"",K32/'Historical scenario - input'!$D17),"") -> 91.00145815 | AF32: =IFERROR(IF(OR(L32="",'Historical scenario - input'!$D17=""),"",L32/'Historical scenario - input'!$D17),"") -> 113.6745281 | AG32: =IFERROR(IF(OR(M32="",'Historical scenario - input'!$D17=""),"",M32/'Historical scenario - input'!$D17),"") -> 142.3966517 | AH32: =IFERROR(IF(OR(N32="",'Historical scenario - input'!$D17=""),"",N32/'Historical scenario - input'!$D17),"") -> 178.0812543 | AI32: =IFERROR(IF(OR(O32="",'Historical scenario - input'!$D17=""),"",O32/'Historical scenario - input'!$D17),"") -> 221.5891642 | AJ32: =IFERROR(IF(OR(P32="",'Historical scenario - input'!$D17=""),"",P32/'Historical scenario - input'!$D17),"") -> 273.6565973 | AK32: =IFERROR(IF(OR(Q32="",'Historical scenario - input'!$D17=""),"",Q32/'Historical scenario - input'!$D17),"") -> 334.8180347 | AL32: =IFERROR(IF(OR(R32="",'Historical scenario - input'!$D17=""),"",R32/'Historical scenario - input'!$D17),"") -> 405.3292454 | AM32: =IFERROR(IF(OR(S32="",'Historical scenario - input'!$D17=""),"",S32/'Historical scenario - input'!$D17),"") -> 485.096901 | AN32: =IFERROR(IF(OR(T32="",'Historical scenario - input'!$D17=""),"",T32/'Historical scenario - input'!$D17),"") -> 573.6218326 | AO32: =IFERROR(IF(OR(U32="",'Historical scenario - input'!$D17=""),"",U32/'Historical scenario - input'!$D17),"") -> 669.9628111 | AP32: =IFERROR(IF(OR(V32="",'Historical scenario - input'!$D17=""),"",V32/'Historical scenario - input'!$D17),"") -> 772.7266915 | AQ32: =IFERROR(IF(OR(W32="",'Historical scenario - input'!$D17=""),"",W32/'Historical scenario - input'!$D17),"") -> 880.0888908
A33: =IFERROR('Historical scenario - input'!A18,"") -> 2 | B33: =IFERROR('Historical scenario - input'!B18,"") -> POLES | C33: =IFERROR('Historical scenario - input'!C18,"") -> ˃ 11 kv & < = 22 kv ; steel | D33: =IFERROR(repcalc('Historical scenario - input'!$CV18:$GH18,'Historical scenario - input'!$G18,'Historical scenario - input'!$E18,'Historical scenario - input'!$F18,20,TRUE,TRUE),"") -> 83.20991149 | E33: 81.41437726 | F33: 80.31895757 | G33: 79.58034467 | H33: 78.96653203 | I33: 78.33776165 | J33: 77.62589265 | K33: 76.81379802 | L33: 75.91606436 | M33: 74.96202708 | N33: 73.9819844 | O33: 72.99725432 | P33: 72.01454073 | Q33: 71.0248483 | R33: 70.00694822 | S33: 68.93518643 | T33: 67.79128713 | U33: 66.57978054 | V33: 65.34679186 | W33: 64.20215633 | X33: =IFERROR(IF(OR(D33="",'Historical scenario - input'!$D18=""),"",D33/'Historical scenario - input'!$D18),"") -> 9.478135503 | Y33: =IFERROR(IF(OR(E33="",'Historical scenario - input'!$D18=""),"",E33/'Historical scenario - input'!$D18),"") -> 9.273612791 | Z33: =IFERROR(IF(OR(F33="",'Historical scenario - input'!$D18=""),"",F33/'Historical scenario - input'!$D18),"") -> 9.148837556 | AA33: =IFERROR(IF(OR(G33="",'Historical scenario - input'!$D18=""),"",G33/'Historical scenario - input'!$D18),"") -> 9.064704872 | AB33: =IFERROR(IF(OR(H33="",'Historical scenario - input'!$D18=""),"",H33/'Historical scenario - input'!$D18),"") -> 8.994787729 | AC33: =IFERROR(IF(OR(I33="",'Historical scenario - input'!$D18=""),"",I33/'Historical scenario - input'!$D18),"") -> 8.923166804 | AD33: =IFERROR(IF(OR(J33="",'Historical scenario - input'!$D18=""),"",J33/'Historical scenario - input'!$D18),"") -> 8.842080419 | AE33: =IFERROR(IF(OR(K33="",'Historical scenario - input'!$D18=""),"",K33/'Historical scenario - input'!$D18),"") -> 8.749577701 | AF33: =IFERROR(IF(OR(L33="",'Historical scenario - input'!$D18=""),"",L33/'Historical scenario - input'!$D18),"") -> 8.647320156 | AG33: =IFERROR(IF(OR(M33="",'Historical scenario - input'!$D18=""),"",M33/'Historical scenario - input'!$D18),"") -> 8.538649273 | AH33: =IFERROR(IF(OR(N33="",'Historical scenario - input'!$D18=""),"",N33/'Historical scenario - input'!$D18),"") -> 8.42701621 | AI33: =IFERROR(IF(OR(O33="",'Historical scenario - input'!$D18=""),"",O33/'Historical scenario - input'!$D18),"") -> 8.314849221 | AJ33: =IFERROR(IF(OR(P33="",'Historical scenario - input'!$D18=""),"",P33/'Historical scenario - input'!$D18),"") -> 8.202911925 | AK33: =IFERROR(IF(OR(Q33="",'Historical scenario - input'!$D18=""),"",Q33/'Historical scenario - input'!$D18),"") -> 8.090179694 | AL33: =IFERROR(IF(OR(R33="",'Historical scenario - input'!$D18=""),"",R33/'Historical scenario - input'!$D18),"") -> 7.974234434 | AM33: =IFERROR(IF(OR(S33="",'Historical scenario - input'!$D18=""),"",S33/'Historical scenario - input'!$D18),"") -> 7.852153982 | AN33: =IFERROR(IF(OR(T33="",'Historical scenario - input'!$D18=""),"",T33/'Historical scenario - input'!$D18),"") -> 7.721856613 | AO33: =IFERROR(IF(OR(U33="",'Historical scenario - input'!$D18=""),"",U33/'Historical scenario - input'!$D18),"") -> 7.583858346 | AP33: =IFERROR(IF(OR(V33="",'Historical scenario - input'!$D18=""),"",V33/'Historical scenario - input'!$D18),"") -> 7.443413132 | AQ33: =IFERROR(IF(OR(W33="",'Historical scenario - input'!$D18=""),"",W33/'Historical scenario - input'!$D18),"") -> 7.313031902
A34: =IFERROR('Historical scenario - input'!A19,"") -> 2 | B34: =IFERROR('Historical scenario - input'!B19,"") -> POLES | C34: =IFERROR('Historical scenario - input'!C19,"") -> ˃ 11 kv & < = 22 kv ; wood | D34: =IFERROR(repcalc('Historical scenario - input'!$CV19:$GH19,'Historical scenario - input'!$G19,'Historical scenario - input'!$E19,'Historical scenario - input'!$F19,20,TRUE,TRUE),"") -> 10324.78068 | E34: 10673.37787 | F34: 11212.54552 | G34: 11921.88934 | H34: 12777.21035 | I34: 13751.51867 | J34: 14815.97766 | K34: 15940.77911 | L34: 17095.96097 | M34: 18252.18237 | N34: 19381.46864 | O34: 20457.93092 | P34: 21458.45445 | Q34: 22363.33758 | R34: 23156.85308 | S34: 23827.69553 | T34: 24369.27569 | U34: 24779.82582 | V34: 25062.28776 | W34: 25223.96998 | X34: =IFERROR(IF(OR(D34="",'Historical scenario - input'!$D19=""),"",D34/'Historical scenario - input'!$D19),"") -> 2342.912419 | Y34: =IFERROR(IF(OR(E34="",'Historical scenario - input'!$D19=""),"",E34/'Historical scenario - input'!$D19),"") -> 2422.016536 | Z34: =IFERROR(IF(OR(F34="",'Historical scenario - input'!$D19=""),"",F34/'Historical scenario - input'!$D19),"") -> 2544.365149 | AA34: =IFERROR(IF(OR(G34="",'Historical scenario - input'!$D19=""),"",G34/'Historical scenario - input'!$D19),"") -> 2705.330354 | AB34: =IFERROR(IF(OR(H34="",'Historical scenario - input'!$D19=""),"",H34/'Historical scenario - input'!$D19),"") -> 2899.42089 | AC34: =IFERROR(IF(OR(I34="",'Historical scenario - input'!$D19=""),"",I34/'Historical scenario - input'!$D19),"") -> 3120.512179 | AD34: =IFERROR(IF(OR(J34="",'Historical scenario - input'!$D19=""),"",J34/'Historical scenario - input'!$D19),"") -> 3362.060571 | AE34: =IFERROR(IF(OR(K34="",'Historical scenario - input'!$D19=""),"",K34/'Historical scenario - input'!$D19),"") -> 3617.301954 | AF34: =IFERROR(IF(OR(L34="",'Historical scenario - input'!$D19=""),"",L34/'Historical scenario - input'!$D19),"") -> 3879.437296 | AG34: =IFERROR(IF(OR(M34="",'Historical scenario - input'!$D19=""),"",M34/'Historical scenario - input'!$D19),"") -> 4141.808533 | AH34: =IFERROR(IF(OR(N34="",'Historical scenario - input'!$D19=""),"",N34/'Historical scenario - input'!$D19),"") -> 4398.067615 | AI34: =IFERROR(IF(OR(O34="",'Historical scenario - input'!$D19=""),"",O34/'Historical scenario - input'!$D19),"") -> 4642.339811 | AJ34: =IFERROR(IF(OR(P34="",'Historical scenario - input'!$D19=""),"",P34/'Historical scenario - input'!$D19),"") -> 4869.379888 | AK34: =IFERROR(IF(OR(Q34="",'Historical scenario - input'!$D19=""),"",Q34/'Historical scenario - input'!$D19),"") -> 5074.717123 | AL34: =IFERROR(IF(OR(R34="",'Historical scenario - input'!$D19=""),"",R34/'Historical scenario - input'!$D19),"") -> 5254.782676 | AM34: =IFERROR(IF(OR(S34="",'Historical scenario - input'!$D19=""),"",S34/'Historical scenario - input'!$D19),"") -> 5407.011099 | AN34: =IFERROR(IF(OR(T34="",'Historical scenario - input'!$D19=""),"",T34/'Historical scenario - input'!$D19),"") -> 5529.907162 | AO34: =IFERROR(IF(OR(U34="",'Historical scenario - input'!$D19=""),"",U34/'Historical scenario - input'!$D19),"") -> 5623.069722 | AP34: =IFERROR(IF(OR(V34="",'Historical scenario - input'!$D19=""),"",V34/'Historical scenario - input'!$D19),"") -> 5687.166346 | AQ34: =IFERROR(IF(OR(W34="",'Historical scenario - input'!$D19=""),"",W34/'Historical scenario - input'!$D19),"") -> 5723.85548
A35: =IFERROR('Historical scenario - input'!A20,"") -> 2 | B35: =IFERROR('Historical scenario - input'!B20,"") -> POLES | C35: =IFERROR('Historical scenario - input'!C20,"") -> > 1 kv & < = 11 kv ; concrete | D35: =IFERROR(repcalc('Historical scenario - input'!$CV20:$GH20,'Historical scenario - input'!$G20,'Historical scenario - input'!$E20,'Historical scenario - input'!$F20,20,TRUE,TRUE),"") -> 165.6755078 | E35: 152.6105449 | F35: 147.7099935 | G35: 150.9973192 | H35: 163.2422387 | I35: 185.8160421 | J35: 220.5983954 | K35: 269.9025465 | L35: 336.3940792 | M35: 422.9854233 | N35: 532.6947655 | O35: 668.464331 | P35: 832.9395332 | Q35: 1028.217249 | R35: 1255.578169 | S35: 1515.224194 | T35: 1806.046359 | U35: 2125.450893 | V35: 2469.270016 | W35: 2831.779408 | X35: =IFERROR(IF(OR(D35="",'Historical scenario - input'!$D20=""),"",D35/'Historical scenario - input'!$D20),"") -> 22.92416532 | Y35: =IFERROR(IF(OR(E35="",'Historical scenario - input'!$D20=""),"",E35/'Historical scenario - input'!$D20),"") -> 21.11639437 | Z35: =IFERROR(IF(OR(F35="",'Historical scenario - input'!$D20=""),"",F35/'Historical scenario - input'!$D20),"") -> 20.43831557 | AA35: =IFERROR(IF(OR(G35="",'Historical scenario - input'!$D20=""),"",G35/'Historical scenario - input'!$D20),"") -> 20.89317579 | AB35: =IFERROR(IF(OR(H35="",'Historical scenario - input'!$D20=""),"",H35/'Historical scenario - input'!$D20),"") -> 22.58747909 | AC35: =IFERROR(IF(OR(I35="",'Historical scenario - input'!$D20=""),"",I35/'Historical scenario - input'!$D20),"") -> 25.71096793 | AD35: =IFERROR(IF(OR(J35="",'Historical scenario - input'!$D20=""),"",J35/'Historical scenario - input'!$D20),"") -> 30.52372768 | AE35: =IFERROR(IF(OR(K35="",'Historical scenario - input'!$D20=""),"",K35/'Historical scenario - input'!$D20),"") -> 37.34583752 | AF35: =IFERROR(IF(OR(L35="",'Historical scenario - input'!$D20=""),"",L35/'Historical scenario - input'!$D20),"") -> 46.54612855 | AG35: =IFERROR(IF(OR(M35="",'Historical scenario - input'!$D20=""),"",M35/'Historical scenario - input'!$D20),"") -> 58.52758745 | AH35: =IFERROR(IF(OR(N35="",'Historical scenario - input'!$D20=""),"",N35/'Historical scenario - input'!$D20),"") -> 73.70783425 | AI35: =IFERROR(IF(OR(O35="",'Historical scenario - input'!$D20=""),"",O35/'Historical scenario - input'!$D20),"") -> 92.49397836 | AJ35: =IFERROR(IF(OR(P35="",'Historical scenario - input'!$D20=""),"",P35/'Historical scenario - input'!$D20),"") -> 115.25206 | AK35: =IFERROR(IF(OR(Q35="",'Historical scenario - input'!$D20=""),"",Q35/'Historical scenario - input'!$D20),"") -> 142.2722194 | AL35: =IFERROR(IF(OR(R35="",'Historical scenario - input'!$D20=""),"",R35/'Historical scenario - input'!$D20),"") -> 173.7316631 | AM35: =IFERROR(IF(OR(S35="",'Historical scenario - input'!$D20=""),"",S35/'Historical scenario - input'!$D20),"") -> 209.6583278 | AN35: =IFERROR(IF(OR(T35="",'Historical scenario - input'!$D20=""),"",T35/'Historical scenario - input'!$D20),"") -> 249.8987681 | AO35: =IFERROR(IF(OR(U35="",'Historical scenario - input'!$D20=""),"",U35/'Historical scenario - input'!$D20),"") -> 294.0940896 | AP35: =IFERROR(IF(OR(V35="",'Historical scenario - input'!$D20=""),"",V35/'Historical scenario - input'!$D20),"") -> 341.6676057 | AQ35: =IFERROR(IF(OR(W35="",'Historical scenario - input'!$D20=""),"",W35/'Historical scenario - input'!$D20),"") -> 391.8272542
A36: =IFERROR('Historical scenario - input'!A21,"") -> 2 | B36: =IFERROR('Historical scenario - input'!B21,"") -> POLES | C36: =IFERROR('Historical scenario - input'!C21,"") -> > 1 kv & < = 11 kv ; steel | D36: =IFERROR(repcalc('Historical scenario - input'!$CV21:$GH21,'Historical scenario - input'!$G21,'Historical scenario - input'!$E21,'Historical scenario - input'!$F21,20,TRUE,TRUE),"") -> 28.10602564 | E36: 31.25131035 | F36: 34.4584767 | G36: 37.67082887 | H36: 40.82405931 | I36: 43.8483136 | J36: 46.67096653 | K36: 49.21997787 | L36: 51.42761297 | M36: 53.23424364 | N36: 54.59190282 | O36: 55.46726068 | P36: 55.8437249 | Q36: 55.72244429 | R36: 55.12210434 | S36: 54.07753398 | T36: 52.6372787 | U36: 50.86041928 | V36: 48.8130116 | W36: 46.56458292 | X36: =IFERROR(IF(OR(D36="",'Historical scenario - input'!$D21=""),"",D36/'Historical scenario - input'!$D21),"") -> 3.400433345 | Y36: =IFERROR(IF(OR(E36="",'Historical scenario - input'!$D21=""),"",E36/'Historical scenario - input'!$D21),"") -> 3.780968508 | Z36: =IFERROR(IF(OR(F36="",'Historical scenario - input'!$D21=""),"",F36/'Historical scenario - input'!$D21),"") -> 4.168990476 | AA36: =IFERROR(IF(OR(G36="",'Historical scenario - input'!$D21=""),"",G36/'Historical scenario - input'!$D21),"") -> 4.557639856 | AB36: =IFERROR(IF(OR(H36="",'Historical scenario - input'!$D21=""),"",H36/'Historical scenario - input'!$D21),"") -> 4.939136339 | AC36: =IFERROR(IF(OR(I36="",'Historical scenario - input'!$D21=""),"",I36/'Historical scenario - input'!$D21),"") -> 5.305028524 | AD36: =IFERROR(IF(OR(J36="",'Historical scenario - input'!$D21=""),"",J36/'Historical scenario - input'!$D21),"") -> 5.646529783 | AE36: =IFERROR(IF(OR(K36="",'Historical scenario - input'!$D21=""),"",K36/'Historical scenario - input'!$D21),"") -> 5.954924263 | AF36: =IFERROR(IF(OR(L36="",'Historical scenario - input'!$D21=""),"",L36/'Historical scenario - input'!$D21),"") -> 6.222017025 | AG36: =IFERROR(IF(OR(M36="",'Historical scenario - input'!$D21=""),"",M36/'Historical scenario - input'!$D21),"") -> 6.440593897 | AH36: =IFERROR(IF(OR(N36="",'Historical scenario - input'!$D21=""),"",N36/'Historical scenario - input'!$D21),"") -> 6.604851541 | AI36: =IFERROR(IF(OR(O36="",'Historical scenario - input'!$D21=""),"",O36/'Historical scenario - input'!$D21),"") -> 6.710757516 | AJ36: =IFERROR(IF(OR(P36="",'Historical scenario - input'!$D21=""),"",P36/'Historical scenario - input'!$D21),"") -> 6.756304385 | AK36: =IFERROR(IF(OR(Q36="",'Historical scenario - input'!$D21=""),"",Q36/'Historical scenario - input'!$D21),"") -> 6.741631139 | AL36: =IFERROR(IF(OR(R36="",'Historical scenario - input'!$D21=""),"",R36/'Historical scenario - input'!$D21),"") -> 6.66899846 | AM36: =IFERROR(IF(OR(S36="",'Historical scenario - input'!$D21=""),"",S36/'Historical scenario - input'!$D21),"") -> 6.542620153 | AN36: =IFERROR(IF(OR(T36="",'Historical scenario - input'!$D21=""),"",T36/'Historical scenario - input'!$D21),"") -> 6.368369545 | AO36: =IFERROR(IF(OR(U36="",'Historical scenario - input'!$D21=""),"",U36/'Historical scenario - input'!$D21),"") -> 6.153394575 | AP36: =IFERROR(IF(OR(V36="",'Historical scenario - input'!$D21=""),"",V36/'Historical scenario - input'!$D21),"") -> 5.905687075 | AQ36: =IFERROR(IF(OR(W36="",'Historical scenario - input'!$D21=""),"",W36/'Historical scenario - input'!$D21),"") -> 5.633658865
A37: =IFERROR('Historical scenario - input'!A22,"") -> 2 | B37: =IFERROR('Historical scenario - input'!B22,"") -> POLES | C37: =IFERROR('Historical scenario - input'!C22,"") -> > 1 kv & < = 11 kv ; wood | D37: =IFERROR(repcalc('Historical scenario - input'!$CV22:$GH22,'Historical scenario - input'!$G22,'Historical scenario - input'!$E22,'Historical scenario - input'!$F22,20,TRUE,TRUE),"") -> 15567.68117 | E37: 17047.06583 | F37: 18538.37643 | G37: 20023.70752 | H37: 21485.58041 | I37: 22907.52545 | J37: 24274.56099 | K37: 25573.54876 | L37: 26793.41975 | M37: 27925.2776 | N37: 28962.39747 | O37: 29900.14457 | P37: 30735.83992 | Q37: 31468.59919 | R37: 32099.1667 | S37: 32629.75956 | T37: 33063.92993 | U37: 33406.44559 | V37: 33663.18277 | W37: 33841.02028 | X37: =IFERROR(IF(OR(D37="",'Historical scenario - input'!$D22=""),"",D37/'Historical scenario - input'!$D22),"") -> 3477.416293 | Y37: =IFERROR(IF(OR(E37="",'Historical scenario - input'!$D22=""),"",E37/'Historical scenario - input'!$D22),"") -> 3807.872463 | Z37: =IFERROR(IF(OR(F37="",'Historical scenario - input'!$D22=""),"",F37/'Historical scenario - input'!$D22),"") -> 4140.992581 | AA37: =IFERROR(IF(OR(G37="",'Historical scenario - input'!$D22=""),"",G37/'Historical scenario - input'!$D22),"") -> 4472.777032 | AB37: =IFERROR(IF(OR(H37="",'Historical scenario - input'!$D22=""),"",H37/'Historical scenario - input'!$D22),"") -> 4799.321528 | AC37: =IFERROR(IF(OR(I37="",'Historical scenario - input'!$D22=""),"",I37/'Historical scenario - input'!$D22),"") -> 5116.947177 | AD37: =IFERROR(IF(OR(J37="",'Historical scenario - input'!$D22=""),"",J37/'Historical scenario - input'!$D22),"") -> 5422.307468 | AE37: =IFERROR(IF(OR(K37="",'Historical scenario - input'!$D22=""),"",K37/'Historical scenario - input'!$D22),"") -> 5712.467654 | AF37: =IFERROR(IF(OR(L37="",'Historical scenario - input'!$D22=""),"",L37/'Historical scenario - input'!$D22),"") -> 5984.955199 | AG37: =IFERROR(IF(OR(M37="",'Historical scenario - input'!$D22=""),"",M37/'Historical scenario - input'!$D22),"") -> 6237.782894 | AH37: =IFERROR(IF(OR(N37="",'Historical scenario - input'!$D22=""),"",N37/'Historical scenario - input'!$D22),"") -> 6469.448579 | AI37: =IFERROR(IF(OR(O37="",'Historical scenario - input'!$D22=""),"",O37/'Historical scenario - input'!$D22),"") -> 6678.916966 | AJ37: =IFERROR(IF(OR(P37="",'Historical scenario - input'!$D22=""),"",P37/'Historical scenario - input'!$D22),"") -> 6865.589636 | AK37: =IFERROR(IF(OR(Q37="",'Historical scenario - input'!$D22=""),"",Q37/'Historical scenario - input'!$D22),"") -> 7029.269057 | AL37: =IFERROR(IF(OR(R37="",'Historical scenario - input'!$D22=""),"",R37/'Historical scenario - input'!$D22),"") -> 7170.121488 | AM37: =IFERROR(IF(OR(S37="",'Historical scenario - input'!$D22=""),"",S37/'Historical scenario - input'!$D22),"") -> 7288.642174 | AN37: =IFERROR(IF(OR(T37="",'Historical scenario - input'!$D22=""),"",T37/'Historical scenario - input'!$D22),"") -> 7385.624575 | AO37: =IFERROR(IF(OR(U37="",'Historical scenario - input'!$D22=""),"",U37/'Historical scenario - input'!$D22),"") -> 7462.133692 | AP37: =IFERROR(IF(OR(V37="",'Historical scenario - input'!$D22=""),"",V37/'Historical scenario - input'!$D22),"") -> 7519.482122 | AQ37: =IFERROR(IF(OR(W37="",'Historical scenario - input'!$D22=""),"",W37/'Historical scenario - input'!$D22),"") -> 7559.20641
A38: =IFERROR('Historical scenario - input'!A23,"") -> 2 | B38: =IFERROR('Historical scenario - input'!B23,"") -> POLES | C38: =IFERROR('Historical scenario - input'!C23,"") -> > 132 kv ; steel | D38: =IFERROR(repcalc('Historical scenario - input'!$CV23:$GH23,'Historical scenario - input'!$G23,'Historical scenario - input'!$E23,'Historical scenario - input'!$F23,20,TRUE,TRUE),"") -> 0.009582113376 | E38: 0.01514471006 | F38: 0.02354144107 | G38: 0.03598964433 | H38: 0.05411211412 | I38: 0.0800172999 | J38: 0.116371259 | K38: 0.1664485552 | L38: 0.2341460245 | M38: 0.3239410718 | N38: 0.4407757715 | O38: 0.5898504187 | P38: 0.7763160281 | Q38: 1.004864957 | R38: 1.27923208 | S38: 1.601634732 | T38: 1.972196184 | U38: 2.38841205 | V38: 2.844728995 | W38: 3.332307375 | X38: =IFERROR(IF(OR(D38="",'Historical scenario - input'!$D23=""),"",D38/'Historical scenario - input'!$D23),"") -> 0.0007536635575 | Y38: =IFERROR(IF(OR(E38="",'Historical scenario - input'!$D23=""),"",E38/'Historical scenario - input'!$D23),"") -> 0.0011911794 | Z38: =IFERROR(IF(OR(F38="",'Historical scenario - input'!$D23=""),"",F38/'Historical scenario - input'!$D23),"") -> 0.001851608881 | AA38: =IFERROR(IF(OR(G38="",'Historical scenario - input'!$D23=""),"",G38/'Historical scenario - input'!$D23),"") -> 0.002830699483 | AB38: =IFERROR(IF(OR(H38="",'Historical scenario - input'!$D23=""),"",H38/'Historical scenario - input'!$D23),"") -> 0.004256089115 | AC38: =IFERROR(IF(OR(I38="",'Historical scenario - input'!$D23=""),"",I38/'Historical scenario - input'!$D23),"") -> 0.006293614001 | AD38: =IFERROR(IF(OR(J38="",'Historical scenario - input'!$D23=""),"",J38/'Historical scenario - input'!$D23),"") -> 0.009152967996 | AE38: =IFERROR(IF(OR(K38="",'Historical scenario - input'!$D23=""),"",K38/'Historical scenario - input'!$D23),"") -> 0.0130917059 | AF38: =IFERROR(IF(OR(L38="",'Historical scenario - input'!$D23=""),"",L38/'Historical scenario - input'!$D23),"") -> 0.01841632622 | AG38: =IFERROR(IF(OR(M38="",'Historical scenario - input'!$D23=""),"",M38/'Historical scenario - input'!$D23),"") -> 0.02547899101 | AH38: =IFERROR(IF(OR(N38="",'Historical scenario - input'!$D23=""),"",N38/'Historical scenario - input'!$D23),"") -> 0.03466841009 | AI38: =IFERROR(IF(OR(O38="",'Historical scenario - input'!$D23=""),"",O38/'Historical scenario - input'!$D23),"") -> 0.04639360311 | AJ38: =IFERROR(IF(OR(P38="",'Historical scenario - input'!$D23=""),"",P38/'Historical scenario - input'!$D23),"") -> 0.06105971371 | AK38: =IFERROR(IF(OR(Q38="",'Historical scenario - input'!$D23=""),"",Q38/'Historical scenario - input'!$D23),"") -> 0.07903581067 | AL38: =IFERROR(IF(OR(R38="",'Historical scenario - input'!$D23=""),"",R38/'Historical scenario - input'!$D23),"") -> 0.1006156536 | AM38: =IFERROR(IF(OR(S38="",'Historical scenario - input'!$D23=""),"",S38/'Historical scenario - input'!$D23),"") -> 0.1259736431 | AN38: =IFERROR(IF(OR(T38="",'Historical scenario - input'!$D23=""),"",T38/'Historical scenario - input'!$D23),"") -> 0.1551194746 | AO38: =IFERROR(IF(OR(U38="",'Historical scenario - input'!$D23=""),"",U38/'Historical scenario - input'!$D23),"") -> 0.1878561703 | AP38: =IFERROR(IF(OR(V38="",'Historical scenario - input'!$D23=""),"",V38/'Historical scenario - input'!$D23),"") -> 0.2237469429 | AQ38: =IFERROR(IF(OR(W38="",'Historical scenario - input'!$D23=""),"",W38/'Historical scenario - input'!$D23),"") -> 0.2620965264
A39: =IFERROR('Historical scenario - input'!A24,"") -> 2 | B39: =IFERROR('Historical scenario - input'!B24,"") -> POLES | C39: =IFERROR('Historical scenario - input'!C24,"") -> > 22 kv & < = 66 kv ; concrete | D39: =IFERROR(repcalc('Historical scenario - input'!$CV24:$GH24,'Historical scenario - input'!$G24,'Historical scenario - input'!$E24,'Historical scenario - input'!$F24,20,TRUE,TRUE),"") -> 119.0523498 | E39: 136.5812455 | F39: 164.7722011 | G39: 205.0265145 | H39: 259.3068786 | I39: 330.0438304 | J39: 420.0135483 | K39: 532.1852488 | L39: 669.538365 | M39: 834.8526489 | N39: 1030.477897 | O39: 1258.093673 | P39: 1518.472695 | Q39: 1811.264046 | R39: 2134.813746 | S39: 2486.040222 | T39: 2860.380837 | U39: 3251.822737 | V39: 3653.027009 | W39: 4055.549526 | X39: =IFERROR(IF(OR(D39="",'Historical scenario - input'!$D24=""),"",D39/'Historical scenario - input'!$D24),"") -> 10.57138938 | Y39: =IFERROR(IF(OR(E39="",'Historical scenario - input'!$D24=""),"",E39/'Historical scenario - input'!$D24),"") -> 12.1278877 | Z39: =IFERROR(IF(OR(F39="",'Historical scenario - input'!$D24=""),"",F39/'Historical scenario - input'!$D24),"") -> 14.6311358 | AA39: =IFERROR(IF(OR(G39="",'Historical scenario - input'!$D24=""),"",G39/'Historical scenario - input'!$D24),"") -> 18.20556354 | AB39: =IFERROR(IF(OR(H39="",'Historical scenario - input'!$D24=""),"",H39/'Historical scenario - input'!$D24),"") -> 23.02545047 | AC39: =IFERROR(IF(OR(I39="",'Historical scenario - input'!$D24=""),"",I39/'Historical scenario - input'!$D24),"") -> 29.3066189 | AD39: =IFERROR(IF(OR(J39="",'Historical scenario - input'!$D24=""),"",J39/'Historical scenario - input'!$D24),"") -> 37.29558277 | AE39: =IFERROR(IF(OR(K39="",'Historical scenario - input'!$D24=""),"",K39/'Historical scenario - input'!$D24),"") -> 47.25599704 | AF39: =IFERROR(IF(OR(L39="",'Historical scenario - input'!$D24=""),"",L39/'Historical scenario - input'!$D24),"") -> 59.45242388 | AG39: =IFERROR(IF(OR(M39="",'Historical scenario - input'!$D24=""),"",M39/'Historical scenario - input'!$D24),"") -> 74.13169455 | AH39: =IFERROR(IF(OR(N39="",'Historical scenario - input'!$D24=""),"",N39/'Historical scenario - input'!$D24),"") -> 91.50246191 | AI39: =IFERROR(IF(OR(O39="",'Historical scenario - input'!$D24=""),"",O39/'Historical scenario - input'!$D24),"") -> 111.7138647 | AJ39: =IFERROR(IF(OR(P39="",'Historical scenario - input'!$D24=""),"",P39/'Historical scenario - input'!$D24),"") -> 134.8345174 | AK39: =IFERROR(IF(OR(Q39="",'Historical scenario - input'!$D24=""),"",Q39/'Historical scenario - input'!$D24),"") -> 160.8332599 | AL39: =IFERROR(IF(OR(R39="",'Historical scenario - input'!$D24=""),"",R39/'Historical scenario - input'!$D24),"") -> 189.563225 | AM39: =IFERROR(IF(OR(S39="",'Historical scenario - input'!$D24=""),"",S39/'Historical scenario - input'!$D24),"") -> 220.7507811 | AN39: =IFERROR(IF(OR(T39="",'Historical scenario - input'!$D24=""),"",T39/'Historical scenario - input'!$D24),"") -> 253.9907836 | AO39: =IFERROR(IF(OR(U39="",'Historical scenario - input'!$D24=""),"",U39/'Historical scenario - input'!$D24),"") -> 288.7493143 | AP39: =IFERROR(IF(OR(V39="",'Historical scenario - input'!$D24=""),"",V39/'Historical scenario - input'!$D24),"") -> 324.3747058 | AQ39: =IFERROR(IF(OR(W39="",'Historical scenario - input'!$D24=""),"",W39/'Historical scenario - input'!$D24),"") -> 360.1171525
A40: =IFERROR('Historical scenario - input'!A25,"") -> 2 | B40: =IFERROR('Historical scenario - input'!B25,"") -> POLES | C40: =IFERROR('Historical scenario - input'!C25,"") -> > 22 kv & < = 66 kv ; steel | D40: =IFERROR(repcalc('Historical scenario - input'!$CV25:$GH25,'Historical scenario - input'!$G25,'Historical scenario - input'!$E25,'Historical scenario - input'!$F25,20,TRUE,TRUE),"") -> 6.307797708 | E40: 6.925715299 | F40: 7.566304316 | G40: 8.232654432 | H40: 8.930424004 | I40: 9.668108214 | J40: 10.45712777 | K40: 11.31169468 | L40: 12.24842255 | M40: 13.28566408 | N40: 14.44257815 | O40: 15.73795095 | P40: 17.18881905 | Q40: 18.80896549 | R40: 20.60737943 | S40: 22.58678545 | T40: 24.74235608 | U40: 27.06072089 | V40: 29.5193754 | W40: 32.08657319 | X40: =IFERROR(IF(OR(D40="",'Historical scenario - input'!$D25=""),"",D40/'Historical scenario - input'!$D25),"") -> 0.4107628264 | Y40: =IFERROR(IF(OR(E40="",'Historical scenario - input'!$D25=""),"",E40/'Historical scenario - input'!$D25),"") -> 0.4510015258 | Z40: =IFERROR(IF(OR(F40="",'Historical scenario - input'!$D25=""),"",F40/'Historical scenario - input'!$D25),"") -> 0.4927165851 | AA40: =IFERROR(IF(OR(G40="",'Historical scenario - input'!$D25=""),"",G40/'Historical scenario - input'!$D25),"") -> 0.5361092032 | AB40: =IFERROR(IF(OR(H40="",'Historical scenario - input'!$D25=""),"",H40/'Historical scenario - input'!$D25),"") -> 0.5815478514 | AC40: =IFERROR(IF(OR(I40="",'Historical scenario - input'!$D25=""),"",I40/'Historical scenario - input'!$D25),"") -> 0.6295857349 | AD40: =IFERROR(IF(OR(J40="",'Historical scenario - input'!$D25=""),"",J40/'Historical scenario - input'!$D25),"") -> 0.6809665681 | AE40: =IFERROR(IF(OR(K40="",'Historical scenario - input'!$D25=""),"",K40/'Historical scenario - input'!$D25),"") -> 0.7366158355 | AF40: =IFERROR(IF(OR(L40="",'Historical scenario - input'!$D25=""),"",L40/'Historical scenario - input'!$D25),"") -> 0.7976154115 | AG40: =IFERROR(IF(OR(M40="",'Historical scenario - input'!$D25=""),"",M40/'Historical scenario - input'!$D25),"") -> 0.8651604218 | AH40: =IFERROR(IF(OR(N40="",'Historical scenario - input'!$D25=""),"",N40/'Historical scenario - input'!$D25),"") -> 0.9404984903 | AI40: =IFERROR(IF(OR(O40="",'Historical scenario - input'!$D25=""),"",O40/'Historical scenario - input'!$D25),"") -> 1.02485297 | AJ40: =IFERROR(IF(OR(P40="",'Historical scenario - input'!$D25=""),"",P40/'Historical scenario - input'!$D25),"") -> 1.11933328 | AK40: =IFERROR(IF(OR(Q40="",'Historical scenario - input'!$D25=""),"",Q40/'Historical scenario - input'!$D25),"") -> 1.224836969 | AL40: =IFERROR(IF(OR(R40="",'Historical scenario - input'!$D25=""),"",R40/'Historical scenario - input'!$D25),"") -> 1.341949411 | AM40: =IFERROR(IF(OR(S40="",'Historical scenario - input'!$D25=""),"",S40/'Historical scenario - input'!$D25),"") -> 1.47084803 | AN40: =IFERROR(IF(OR(T40="",'Historical scenario - input'!$D25=""),"",T40/'Historical scenario - input'!$D25),"") -> 1.611218461 | AO40: =IFERROR(IF(OR(U40="",'Historical scenario - input'!$D25=""),"",U40/'Historical scenario - input'!$D25),"") -> 1.762190024 | AP40: =IFERROR(IF(OR(V40="",'Historical scenario - input'!$D25=""),"",V40/'Historical scenario - input'!$D25),"") -> 1.922297232 | AQ40: =IFERROR(IF(OR(W40="",'Historical scenario - input'!$D25=""),"",W40/'Historical scenario - input'!$D25),"") -> 2.089472761
A41: =IFERROR('Historical scenario - input'!A26,"") -> 2 | B41: =IFERROR('Historical scenario - input'!B26,"") -> POLES | C41: =IFERROR('Historical scenario - input'!C26,"") -> > 22 kv & < = 66 kv ; wood | D41: =IFERROR(repcalc('Historical scenario - input'!$CV26:$GH26,'Historical scenario - input'!$G26,'Historical scenario - input'!$E26,'Historical scenario - input'!$F26,20,TRUE,TRUE),"") -> 4001.714345 | E41: 4019.565308 | F41: 4103.694038 | G41: 4253.066207 | H41: 4465.225912 | I41: 4736.45227 | J41: 5061.873346 | K41: 5435.540592 | L41: 5850.476639 | M41: 6298.716232 | N41: 6771.3634 | O41: 7258.687421 | P41: 7750.275933 | Q41: 8235.256219 | R41: 8702.586348 | S41: 9141.407578 | T41: 9541.439646 | U41: 9893.392467 | V41: 10189.36247 | W41: 10423.17995 | X41: =IFERROR(IF(OR(D41="",'Historical scenario - input'!$D26=""),"",D41/'Historical scenario - input'!$D26),"") -> 549.4118441 | Y41: =IFERROR(IF(OR(E41="",'Historical scenario - input'!$D26=""),"",E41/'Historical scenario - input'!$D26),"") -> 551.8626763 | Z41: =IFERROR(IF(OR(F41="",'Historical scenario - input'!$D26=""),"",F41/'Historical scenario - input'!$D26),"") -> 563.4130561 | AA41: =IFERROR(IF(OR(G41="",'Historical scenario - input'!$D26=""),"",G41/'Historical scenario - input'!$D26),"") -> 583.9209763 | AB41: =IFERROR(IF(OR(H41="",'Historical scenario - input'!$D26=""),"",H41/'Historical scenario - input'!$D26),"") -> 613.0492561 | AC41: =IFERROR(IF(OR(I41="",'Historical scenario - input'!$D26=""),"",I41/'Historical scenario - input'!$D26),"") -> 650.2870398 | AD41: =IFERROR(IF(OR(J41="",'Historical scenario - input'!$D26=""),"",J41/'Historical scenario - input'!$D26),"") -> 694.9654397 | AE41: =IFERROR(IF(OR(K41="",'Historical scenario - input'!$D26=""),"",K41/'Historical scenario - input'!$D26),"") -> 746.2677549 | AF41: =IFERROR(IF(OR(L41="",'Historical scenario - input'!$D26=""),"",L41/'Historical scenario - input'!$D26),"") -> 803.2360337 | AG41: =IFERROR(IF(OR(M41="",'Historical scenario - input'!$D26=""),"",M41/'Historical scenario - input'!$D26),"") -> 864.7766936 | AH41: =IFERROR(IF(OR(N41="",'Historical scenario - input'!$D26=""),"",N41/'Historical scenario - input'!$D26),"") -> 929.6683699 | AI41: =IFERROR(IF(OR(O41="",'Historical scenario - input'!$D26=""),"",O41/'Historical scenario - input'!$D26),"") -> 996.5750919 | AJ41: =IFERROR(IF(OR(P41="",'Historical scenario - input'!$D26=""),"",P41/'Historical scenario - input'!$D26),"") -> 1064.067303 | AK41: =IFERROR(IF(OR(Q41="",'Historical scenario - input'!$D26=""),"",Q41/'Historical scenario - input'!$D26),"") -> 1130.652244 | AL41: =IFERROR(IF(OR(R41="",'Historical scenario - input'!$D26=""),"",R41/'Historical scenario - input'!$D26),"") -> 1194.813922 | AM41: =IFERROR(IF(OR(S41="",'Historical scenario - input'!$D26=""),"",S41/'Historical scenario - input'!$D26),"") -> 1255.061496 | AN41: =IFERROR(IF(OR(T41="",'Historical scenario - input'!$D26=""),"",T41/'Historical scenario - input'!$D26),"") -> 1309.983547 | AO41: =IFERROR(IF(OR(U41="",'Historical scenario - input'!$D26=""),"",U41/'Historical scenario - input'!$D26),"") -> 1358.304599 | AP41: =IFERROR(IF(OR(V41="",'Historical scenario - input'!$D26=""),"",V41/'Historical scenario - input'!$D26),"") -> 1398.939539 | AQ41: =IFERROR(IF(OR(W41="",'Historical scenario - input'!$D26=""),"",W41/'Historical scenario - input'!$D26),"") -> 1431.041304
A42: =IFERROR('Historical scenario - input'!A27,"") -> 2 | B42: =IFERROR('Historical scenario - input'!B27,"") -> POLES | C42: =IFERROR('Historical scenario - input'!C27,"") -> > 66 kv & < = 132 kv ; concrete | D42: =IFERROR(repcalc('Historical scenario - input'!$CV27:$GH27,'Historical scenario - input'!$G27,'Historical scenario - input'!$E27,'Historical scenario - input'!$F27,20,TRUE,TRUE),"") -> 41.3506295 | E42: 54.63931508 | F42: 72.55172068 | G42: 96.29335599 | H42: 127.1945788 | I42: 166.6606734 | J42: 216.0988925 | K42: 276.8221006 | L42: 349.9313412 | M42: 436.1829401 | N42: 535.8493588 | O42: 648.586434 | P42: 773.3222969 | Q42: 908.1845257 | R42: 1050.481362 | S42: 1196.74975 | T42: 1342.877469 | U42: 1484.299044 | V42: 1616.256233 | W42: 1734.104795 | X42: =IFERROR(IF(OR(D42="",'Historical scenario - input'!$D27=""),"",D42/'Historical scenario - input'!$D27),"") -> 3.467703388 | Y42: =IFERROR(IF(OR(E42="",'Historical scenario - input'!$D27=""),"",E42/'Historical scenario - input'!$D27),"") -> 4.582105287 | Z42: =IFERROR(IF(OR(F42="",'Historical scenario - input'!$D27=""),"",F42/'Historical scenario - input'!$D27),"") -> 6.084256774 | AA42: =IFERROR(IF(OR(G42="",'Historical scenario - input'!$D27=""),"",G42/'Historical scenario - input'!$D27),"") -> 8.075253046 | AB42: =IFERROR(IF(OR(H42="",'Historical scenario - input'!$D27=""),"",H42/'Historical scenario - input'!$D27),"") -> 10.66665918 | AC42: =IFERROR(IF(OR(I42="",'Historical scenario - input'!$D27=""),"",I42/'Historical scenario - input'!$D27),"") -> 13.97632367 | AD42: =IFERROR(IF(OR(J42="",'Historical scenario - input'!$D27=""),"",J42/'Historical scenario - input'!$D27),"") -> 18.12226006 | AE42: =IFERROR(IF(OR(K42="",'Historical scenario - input'!$D27=""),"",K42/'Historical scenario - input'!$D27),"") -> 23.21456645 | AF42: =IFERROR(IF(OR(L42="",'Historical scenario - input'!$D27=""),"",L42/'Historical scenario - input'!$D27),"") -> 29.34557738 | AG42: =IFERROR(IF(OR(M42="",'Historical scenario - input'!$D27=""),"",M42/'Historical scenario - input'!$D27),"") -> 36.57871905 | AH42: =IFERROR(IF(OR(N42="",'Historical scenario - input'!$D27=""),"",N42/'Historical scenario - input'!$D27),"") -> 44.93684037 | AI42: =IFERROR(IF(OR(O42="",'Historical scenario - input'!$D27=""),"",O42/'Historical scenario - input'!$D27),"") -> 54.39107945 | AJ42: =IFERROR(IF(OR(P42="",'Historical scenario - input'!$D27=""),"",P42/'Historical scenario - input'!$D27),"") -> 64.85154837 | AK42: =IFERROR(IF(OR(Q42="",'Historical scenario - input'!$D27=""),"",Q42/'Historical scenario - input'!$D27),"") -> 76.16122403 | AL42: =IFERROR(IF(OR(R42="",'Historical scenario - input'!$D27=""),"",R42/'Historical scenario - input'!$D27),"") -> 88.09437298 | AM42: =IFERROR(IF(OR(S42="",'Historical scenario - input'!$D27=""),"",S42/'Historical scenario - input'!$D27),"") -> 100.3605801 | AN42: =IFERROR(IF(OR(T42="",'Historical scenario - input'!$D27=""),"",T42/'Historical scenario - input'!$D27),"") -> 112.6149905 | AO42: =IFERROR(IF(OR(U42="",'Historical scenario - input'!$D27=""),"",U42/'Historical scenario - input'!$D27),"") -> 124.4747392 | AP42: =IFERROR(IF(OR(V42="",'Historical scenario - input'!$D27=""),"",V42/'Historical scenario - input'!$D27),"") -> 135.5407954 | AQ42: =IFERROR(IF(OR(W42="",'Historical scenario - input'!$D27=""),"",W42/'Historical scenario - input'!$D27),"") -> 145.4236887
A43: =IFERROR('Historical scenario - input'!A28,"") -> 2 | B43: =IFERROR('Historical scenario - input'!B28,"") -> POLES | C43: =IFERROR('Historical scenario - input'!C28,"") -> > 66 kv & < = 132 kv ; steel | D43: =IFERROR(repcalc('Historical scenario - input'!$CV28:$GH28,'Historical scenario - input'!$G28,'Historical scenario - input'!$E28,'Historical scenario - input'!$F28,20,TRUE,TRUE),"") -> 6.176610308 | E43: 7.301774107 | F43: 8.528578303 | G43: 9.842598447 | H43: 11.22346994 | I43: 12.64484853 | J43: 14.07477106 | K43: 15.47648755 | L43: 16.80980674 | M43: 18.0329536 | N43: 19.10488157 | O43: 19.98792053 | P43: 20.65058143 | Q43: 21.07029049 | R43: 21.23579916 | S43: 21.14901853 | T43: 20.82606198 | U43: 20.29734755 | V43: 19.60670574 | W43: 18.80954969 | X43: =IFERROR(IF(OR(D43="",'Historical scenario - input'!$D28=""),"",D43/'Historical scenario - input'!$D28),"") -> 0.4858099581 | Y43: =IFERROR(IF(OR(E43="",'Historical scenario - input'!$D28=""),"",E43/'Historical scenario - input'!$D28),"") -> 0.5743076536 | Z43: =IFERROR(IF(OR(F43="",'Historical scenario - input'!$D28=""),"",F43/'Historical scenario - input'!$D28),"") -> 0.6707996881 | AA43: =IFERROR(IF(OR(G43="",'Historical scenario - input'!$D28=""),"",G43/'Historical scenario - input'!$D28),"") -> 0.7741515331 | AB43: =IFERROR(IF(OR(H43="",'Historical scenario - input'!$D28=""),"",H43/'Historical scenario - input'!$D28),"") -> 0.8827614481 | AC43: =IFERROR(IF(OR(I43="",'Historical scenario - input'!$D28=""),"",I43/'Historical scenario - input'!$D28),"") -> 0.994557375 | AD43: =IFERROR(IF(OR(J43="",'Historical scenario - input'!$D28=""),"",J43/'Historical scenario - input'!$D28),"") -> 1.10702531 | AE43: =IFERROR(IF(OR(K43="",'Historical scenario - input'!$D28=""),"",K43/'Historical scenario - input'!$D28),"") -> 1.21727475 | AF43: =IFERROR(IF(OR(L43="",'Historical scenario - input'!$D28=""),"",L43/'Historical scenario - input'!$D28),"") -> 1.322144526 | AG43: =IFERROR(IF(OR(M43="",'Historical scenario - input'!$D28=""),"",M43/'Historical scenario - input'!$D28),"") -> 1.4183489 | AH43: =IFERROR(IF(OR(N43="",'Historical scenario - input'!$D28=""),"",N43/'Historical scenario - input'!$D28),"") -> 1.502659429 | AI43: =IFERROR(IF(OR(O43="",'Historical scenario - input'!$D28=""),"",O43/'Historical scenario - input'!$D28),"") -> 1.572113239 | AJ43: =IFERROR(IF(OR(P43="",'Historical scenario - input'!$D28=""),"",P43/'Historical scenario - input'!$D28),"") -> 1.624233617 | AK43: =IFERROR(IF(OR(Q43="",'Historical scenario - input'!$D28=""),"",Q43/'Historical scenario - input'!$D28),"") -> 1.657245063 | AL43: =IFERROR(IF(OR(R43="",'Historical scenario - input'!$D28=""),"",R43/'Historical scenario - input'!$D28),"") -> 1.670262844 | AM43: =IFERROR(IF(OR(S43="",'Historical scenario - input'!$D28=""),"",S43/'Historical scenario - input'!$D28),"") -> 1.663437273 | AN43: =IFERROR(IF(OR(T43="",'Historical scenario - input'!$D28=""),"",T43/'Historical scenario - input'!$D28),"") -> 1.638035718 | AO43: =IFERROR(IF(OR(U43="",'Historical scenario - input'!$D28=""),"",U43/'Historical scenario - input'!$D28),"") -> 1.596450654 | AP43: =IFERROR(IF(OR(V43="",'Historical scenario - input'!$D28=""),"",V43/'Historical scenario - input'!$D28),"") -> 1.542129489 | AQ43: =IFERROR(IF(OR(W43="",'Historical scenario - input'!$D28=""),"",W43/'Historical scenario - input'!$D28),"") -> 1.479430641
A44: =IFERROR('Historical scenario - input'!A29,"") -> 2 | B44: =IFERROR('Historical scenario - input'!B29,"") -> POLES | C44: =IFERROR('Historical scenario - input'!C29,"") -> > 66 kv & < = 132 kv ; wood | D44: =IFERROR(repcalc('Historical scenario - input'!$CV29:$GH29,'Historical scenario - input'!$G29,'Historical scenario - input'!$E29,'Historical scenario - input'!$F29,20,TRUE,TRUE),"") -> 217.0278381 | E44: 267.7410987 | F44: 326.8206648 | G44: 394.6167089 | H44: 471.2029893 | I44: 556.3161518 | J44: 649.3081385 | K44: 749.1188625 | L44: 854.2755862 | M44: 962.9237814 | N44: 1072.891696 | O44: 1181.787579 | P44: 1287.124849 | Q44: 1386.466826 | R44: 1477.579542 | S44: 1558.57895 | T44: 1628.058121 | U44: 1685.180867 | V44: 1729.730783 | W44: 1762.108734 | X44: =IFERROR(IF(OR(D44="",'Historical scenario - input'!$D29=""),"",D44/'Historical scenario - input'!$D29),"") -> 31.57513828 | Y44: =IFERROR(IF(OR(E44="",'Historical scenario - input'!$D29=""),"",E44/'Historical scenario - input'!$D29),"") -> 38.95335404 | Z44: =IFERROR(IF(OR(F44="",'Historical scenario - input'!$D29=""),"",F44/'Historical scenario - input'!$D29),"") -> 47.54877427 | AA44: =IFERROR(IF(OR(G44="",'Historical scenario - input'!$D29=""),"",G44/'Historical scenario - input'!$D29),"") -> 57.41234516 | AB44: =IFERROR(IF(OR(H44="",'Historical scenario - input'!$D29=""),"",H44/'Historical scenario - input'!$D29),"") -> 68.55479774 | AC44: =IFERROR(IF(OR(I44="",'Historical scenario - input'!$D29=""),"",I44/'Historical scenario - input'!$D29),"") -> 80.9378169 | AD44: =IFERROR(IF(OR(J44="",'Historical scenario - input'!$D29=""),"",J44/'Historical scenario - input'!$D29),"") -> 94.4671174 | AE44: =IFERROR(IF(OR(K44="",'Historical scenario - input'!$D29=""),"",K44/'Historical scenario - input'!$D29),"") -> 108.9884684 | AF44: =IFERROR(IF(OR(L44="",'Historical scenario - input'!$D29=""),"",L44/'Historical scenario - input'!$D29),"") -> 124.2876029 | AG44: =IFERROR(IF(OR(M44="",'Historical scenario - input'!$D29=""),"",M44/'Historical scenario - input'!$D29),"") -> 140.0947078 | AH44: =IFERROR(IF(OR(N44="",'Historical scenario - input'!$D29=""),"",N44/'Historical scenario - input'!$D29),"") -> 156.0938171 | AI44: =IFERROR(IF(OR(O44="",'Historical scenario - input'!$D29=""),"",O44/'Historical scenario - input'!$D29),"") -> 171.9369578 | AJ44: =IFERROR(IF(OR(P44="",'Historical scenario - input'!$D29=""),"",P44/'Historical scenario - input'!$D29),"") -> 187.2623597 | AK44: =IFERROR(IF(OR(Q44="",'Historical scenario - input'!$D29=""),"",Q44/'Historical scenario - input'!$D29),"") -> 201.7155132 | AL44: =IFERROR(IF(OR(R44="",'Historical scenario - input'!$D29=""),"",R44/'Historical scenario - input'!$D29),"") -> 214.9714007 | AM44: =IFERROR(IF(OR(S44="",'Historical scenario - input'!$D29=""),"",S44/'Historical scenario - input'!$D29),"") -> 226.7559143 | AN44: =IFERROR(IF(OR(T44="",'Historical scenario - input'!$D29=""),"",T44/'Historical scenario - input'!$D29),"") -> 236.8643615 | AO44: =IFERROR(IF(OR(U44="",'Historical scenario - input'!$D29=""),"",U44/'Historical scenario - input'!$D29),"") -> 245.1750862 | AP44: =IFERROR(IF(OR(V44="",'Historical scenario - input'!$D29=""),"",V44/'Historical scenario - input'!$D29),"") -> 251.6566038 | AQ44: =IFERROR(IF(OR(W44="",'Historical scenario - input'!$D29=""),"",W44/'Historical scenario - input'!$D29),"") -> 256.3672358
A45: =IFERROR('Historical scenario - input'!A30,"") -> 2 | B45: =IFERROR('Historical scenario - input'!B30,"") -> POLES | C45: =IFERROR('Historical scenario - input'!C30,"") -> staked wooden pole | D45: =IFERROR(repcalc('Historical scenario - input'!$CV30:$GH30,'Historical scenario - input'!$G30,'Historical scenario - input'!$E30,'Historical scenario - input'!$F30,20,TRUE,TRUE),"") -> 2949.520244 | E45: 3333.305169 | F45: 3685.348514 | G45: 3993.07058 | H45: 4247.963786 | I45: 4446.177107 | J45: 4588.40266 | K45: 4679.16117 | L45: 4725.698075 | M45: 4736.757324 | N45: 4721.488467 | O45: 4688.674714 | P45: 4646.366897 | Q45: 4601.895997 | R45: 4562.13799 | S45: 4533.837806 | T45: 4523.777452 | U45: 4538.605489 | V45: 4584.231784 | W45: 4664.822262 | X45: =IFERROR(IF(OR(D45="",'Historical scenario - input'!$D30=""),"",D45/'Historical scenario - input'!$D30),"") -> 483.732273 | Y45: =IFERROR(IF(OR(E45="",'Historical scenario - input'!$D30=""),"",E45/'Historical scenario - input'!$D30),"") -> 546.674426 | Z45: =IFERROR(IF(OR(F45="",'Historical scenario - input'!$D30=""),"",F45/'Historical scenario - input'!$D30),"") -> 604.4108417 | AA45: =IFERROR(IF(OR(G45="",'Historical scenario - input'!$D30=""),"",G45/'Historical scenario - input'!$D30),"") -> 654.8784033 | AB45: =IFERROR(IF(OR(H45="",'Historical scenario - input'!$D30=""),"",H45/'Historical scenario - input'!$D30),"") -> 696.6818357 | AC45: =IFERROR(IF(OR(I45="",'Historical scenario - input'!$D30=""),"",I45/'Historical scenario - input'!$D30),"") -> 729.1895564 | AD45: =IFERROR(IF(OR(J45="",'Historical scenario - input'!$D30=""),"",J45/'Historical scenario - input'!$D30),"") -> 752.5150751 | AE45: =IFERROR(IF(OR(K45="",'Historical scenario - input'!$D30=""),"",K45/'Historical scenario - input'!$D30),"") -> 767.3998078 | AF45: =IFERROR(IF(OR(L45="",'Historical scenario - input'!$D30=""),"",L45/'Historical scenario - input'!$D30),"") -> 775.0320331 | AG45: =IFERROR(IF(OR(M45="",'Historical scenario - input'!$D30=""),"",M45/'Historical scenario - input'!$D30),"") -> 776.845791 | AH45: =IFERROR(IF(OR(N45="",'Historical scenario - input'!$D30=""),"",N45/'Historical scenario - input'!$D30),"") -> 774.3416418 | AI45: =IFERROR(IF(OR(O45="",'Historical scenario - input'!$D30=""),"",O45/'Historical scenario - input'!$D30),"") -> 768.9600643 | AJ45: =IFERROR(IF(OR(P45="",'Historical scenario - input'!$D30=""),"",P45/'Historical scenario - input'!$D30),"") -> 762.0214253 | AK45: =IFERROR(IF(OR(Q45="",'Historical scenario - input'!$D30=""),"",Q45/'Historical scenario - input'!$D30),"") -> 754.7280325 | AL45: =IFERROR(IF(OR(R45="",'Historical scenario - input'!$D30=""),"",R45/'Historical scenario - input'!$D30),"") -> 748.2075718 | AM45: =IFERROR(IF(OR(S45="",'Historical scenario - input'!$D30=""),"",S45/'Historical scenario - input'!$D30),"") -> 743.5662365 | AN45: =IFERROR(IF(OR(T45="",'Historical scenario - input'!$D30=""),"",T45/'Historical scenario - input'!$D30),"") -> 741.916301 | AO45: =IFERROR(IF(OR(U45="",'Historical scenario - input'!$D30=""),"",U45/'Historical scenario - input'!$D30),"") -> 744.3481542 | AP45: =IFERROR(IF(OR(V45="",'Historical scenario - input'!$D30=""),"",V45/'Historical scenario - input'!$D30),"") -> 751.831036 | AQ45: =IFERROR(IF(OR(W45="",'Historical scenario - input'!$D30=""),"",W45/'Historical scenario - input'!$D30),"") -> 765.0481738
A46: =IFERROR('Historical scenario - input'!A31,"") -> 3 | B46: =IFERROR('Historical scenario - input'!B31,"") -> SERVICE LINES | C46: =IFERROR('Historical scenario - input'!C31,"") -> ˂ = 11 kv ; commercial and industrial ; simple type | D46: =IFERROR(repcalc('Historical scenario - input'!$CV31:$GH31,'Historical scenario - input'!$G31,'Historical scenario - input'!$E31,'Historical scenario - input'!$F31,20,TRUE,TRUE),"") -> 404.6423685 | E46: 459.8992755 | F46: 521.0567069 | G46: 587.4722634 | H46: 658.2752808 | I46: 732.383485 | J46: 808.5344458 | K46: 885.3315763 | L46: 961.3028992 | M46: 1034.969293 | N46: 1104.917653 | O46: 1169.873523 | P46: 1228.767475 | Q46: 1280.789813 | R46: 1325.429131 | S46: 1362.491695 | T46: 1392.100371 | U46: 1414.673707 | V46: 1430.887515 | W46: 1441.622704 | X46: =IFERROR(IF(OR(D46="",'Historical scenario - input'!$D31=""),"",D46/'Historical scenario - input'!$D31),"") -> 298.711409 | Y46: =IFERROR(IF(OR(E46="",'Historical scenario - input'!$D31=""),"",E46/'Historical scenario - input'!$D31),"") -> 339.5026603 | Z46: =IFERROR(IF(OR(F46="",'Historical scenario - input'!$D31=""),"",F46/'Historical scenario - input'!$D31),"") -> 384.6497431 | AA46: =IFERROR(IF(OR(G46="",'Historical scenario - input'!$D31=""),"",G46/'Historical scenario - input'!$D31),"") -> 433.6784311 | AB46: =IFERROR(IF(OR(H46="",'Historical scenario - input'!$D31=""),"",H46/'Historical scenario - input'!$D31),"") -> 485.9459907 | AC46: =IFERROR(IF(OR(I46="",'Historical scenario - input'!$D31=""),"",I46/'Historical scenario - input'!$D31),"") -> 540.6534751 | AD46: =IFERROR(IF(OR(J46="",'Historical scenario - input'!$D31=""),"",J46/'Historical scenario - input'!$D31),"") -> 596.8689448 | AE46: =IFERROR(IF(OR(K46="",'Historical scenario - input'!$D31=""),"",K46/'Historical scenario - input'!$D31),"") -> 653.561424 | AF46: =IFERROR(IF(OR(L46="",'Historical scenario - input'!$D31=""),"",L46/'Historical scenario - input'!$D31),"") -> 709.644283 | AG46: =IFERROR(IF(OR(M46="",'Historical scenario - input'!$D31=""),"",M46/'Historical scenario - input'!$D31),"") -> 764.0256186 | AH46: =IFERROR(IF(OR(N46="",'Historical scenario - input'!$D31=""),"",N46/'Historical scenario - input'!$D31),"") -> 815.6622603 | AI46: =IFERROR(IF(OR(O46="",'Historical scenario - input'!$D31=""),"",O46/'Historical scenario - input'!$D31),"") -> 863.6133916 | AJ46: =IFERROR(IF(OR(P46="",'Historical scenario - input'!$D31=""),"",P46/'Historical scenario - input'!$D31),"") -> 907.0895492 | AK46: =IFERROR(IF(OR(Q46="",'Historical scenario - input'!$D31=""),"",Q46/'Historical scenario - input'!$D31),"") -> 945.4930064 | AL46: =IFERROR(IF(OR(R46="",'Historical scenario - input'!$D31=""),"",R46/'Historical scenario - input'!$D31),"") -> 978.4462382 | AM46: =IFERROR(IF(OR(S46="",'Historical scenario - input'!$D31=""),"",S46/'Historical scenario - input'!$D31),"") -> 1005.806227 | AN46: =IFERROR(IF(OR(T46="",'Historical scenario - input'!$D31=""),"",T46/'Historical scenario - input'!$D31),"") -> 1027.663674 | AO46: =IFERROR(IF(OR(U46="",'Historical scenario - input'!$D31=""),"",U46/'Historical scenario - input'!$D31),"") -> 1044.327557 | AP46: =IFERROR(IF(OR(V46="",'Historical scenario - input'!$D31=""),"",V46/'Historical scenario - input'!$D31),"") -> 1056.296768 | AQ46: =IFERROR(IF(OR(W46="",'Historical scenario - input'!$D31=""),"",W46/'Historical scenario - input'!$D31),"") -> 1064.2216
A47: =IFERROR('Historical scenario - input'!A32,"") -> 3 | B47: =IFERROR('Historical scenario - input'!B32,"") -> SERVICE LINES | C47: =IFERROR('Historical scenario - input'!C32,"") -> ˂ = 11 kv ; residential ; simple type | D47: =IFERROR(repcalc('Historical scenario - input'!$CV32:$GH32,'Historical scenario - input'!$G32,'Historical scenario - input'!$E32,'Historical scenario - input'!$F32,20,TRUE,TRUE),"") -> 4471.504616 | E47: 4943.228402 | F47: 5429.01356 | G47: 5917.657836 | H47: 6397.838867 | I47: 6858.648844 | J47: 7290.144371 | K47: 7683.864769 | L47: 8033.270609 | M47: 8334.059271 | N47: 8584.325484 | O47: 8784.550586 | P47: 8937.422445 | Q47: 9047.505969 | R47: 9120.799407 | S47: 9164.222063 | T47: 9185.08337 | U47: 9190.581321 | V47: 9187.370588 | W47: 9181.228906 | X47: =IFERROR(IF(OR(D47="",'Historical scenario - input'!$D32=""),"",D47/'Historical scenario - input'!$D32),"") -> 4881.449792 | Y47: =IFERROR(IF(OR(E47="",'Historical scenario - input'!$D32=""),"",E47/'Historical scenario - input'!$D32),"") -> 5396.420966 | Z47: =IFERROR(IF(OR(F47="",'Historical scenario - input'!$D32=""),"",F47/'Historical scenario - input'!$D32),"") -> 5926.74265 | AA47: =IFERROR(IF(OR(G47="",'Historical scenario - input'!$D32=""),"",G47/'Historical scenario - input'!$D32),"") -> 6460.185574 | AB47: =IFERROR(IF(OR(H47="",'Historical scenario - input'!$D32=""),"",H47/'Historical scenario - input'!$D32),"") -> 6984.389347 | AC47: =IFERROR(IF(OR(I47="",'Historical scenario - input'!$D32=""),"",I47/'Historical scenario - input'!$D32),"") -> 7487.446139 | AD47: =IFERROR(IF(OR(J47="",'Historical scenario - input'!$D32=""),"",J47/'Historical scenario - input'!$D32),"") -> 7958.500948 | AE47: =IFERROR(IF(OR(K47="",'Historical scenario - input'!$D32=""),"",K47/'Historical scenario - input'!$D32),"") -> 8388.317424 | AF47: =IFERROR(IF(OR(L47="",'Historical scenario - input'!$D32=""),"",L47/'Historical scenario - input'!$D32),"") -> 8769.756607 | AG47: =IFERROR(IF(OR(M47="",'Historical scenario - input'!$D32=""),"",M47/'Historical scenario - input'!$D32),"") -> 9098.121414 | AH47: =IFERROR(IF(OR(N47="",'Historical scenario - input'!$D32=""),"",N47/'Historical scenario - input'!$D32),"") -> 9371.3319 | AI47: =IFERROR(IF(OR(O47="",'Historical scenario - input'!$D32=""),"",O47/'Historical scenario - input'!$D32),"") -> 9589.913534 | AJ47: =IFERROR(IF(OR(P47="",'Historical scenario - input'!$D32=""),"",P47/'Historical scenario - input'!$D32),"") -> 9756.800604 | AK47: =IFERROR(IF(OR(Q47="",'Historical scenario - input'!$D32=""),"",Q47/'Historical scenario - input'!$D32),"") -> 9876.976527 | AL47: =IFERROR(IF(OR(R47="",'Historical scenario - input'!$D32=""),"",R47/'Historical scenario - input'!$D32),"") -> 9956.989469 | AM47: =IFERROR(IF(OR(S47="",'Historical scenario - input'!$D32=""),"",S47/'Historical scenario - input'!$D32),"") -> 10004.39309 | AN47: =IFERROR(IF(OR(T47="",'Historical scenario - input'!$D32=""),"",T47/'Historical scenario - input'!$D32),"") -> 10027.16695 | AO47: =IFERROR(IF(OR(U47="",'Historical scenario - input'!$D32=""),"",U47/'Historical scenario - input'!$D32),"") -> 10033.16895 | AP47: =IFERROR(IF(OR(V47="",'Historical scenario - input'!$D32=""),"",V47/'Historical scenario - input'!$D32),"") -> 10029.66386 | AQ47: =IFERROR(IF(OR(W47="",'Historical scenario - input'!$D32=""),"",W47/'Historical scenario - input'!$D32),"") -> 10022.95911
A48: =IFERROR('Historical scenario - input'!A33,"") -> 4 | B48: =IFERROR('Historical scenario - input'!B33,"") -> SWITCHGEAR | C48: =IFERROR('Historical scenario - input'!C33,"") -> ˂ = 11 kv ; circuit breaker | D48: =IFERROR(repcalc('Historical scenario - input'!$CV33:$GH33,'Historical scenario - input'!$G33,'Historical scenario - input'!$E33,'Historical scenario - input'!$F33,20,TRUE,TRUE),"") -> 6166.502467 | E48: 5656.537082 | F48: 5279.736942 | G48: 5006.53393 | H48: 4814.317182 | I48: 4685.866166 | J48: 4608.24591 | K48: 4571.958633 | L48: 4570.232849 | M48: 4598.395169 | N48: 4653.31154 | O48: 4732.907271 | P48: 4835.783482 | Q48: 4960.946594 | R48: 5107.661207 | S48: 5275.428185 | T48: 5464.080734 | U48: 5673.982542 | V48: 5906.303546 | W48: 6163.340538 | X48: =IFERROR(IF(OR(D48="",'Historical scenario - input'!$D33=""),"",D48/'Historical scenario - input'!$D33),"") -> 105.5005167 | Y48: =IFERROR(IF(OR(E48="",'Historical scenario - input'!$D33=""),"",E48/'Historical scenario - input'!$D33),"") -> 96.77569872 | Z48: =IFERROR(IF(OR(F48="",'Historical scenario - input'!$D33=""),"",F48/'Historical scenario - input'!$D33),"") -> 90.32915797 | AA48: =IFERROR(IF(OR(G48="",'Historical scenario - input'!$D33=""),"",G48/'Historical scenario - input'!$D33),"") -> 85.65502395 | AB48: =IFERROR(IF(OR(H48="",'Historical scenario - input'!$D33=""),"",H48/'Historical scenario - input'!$D33),"") -> 82.36645538 | AC48: =IFERROR(IF(OR(I48="",'Historical scenario - input'!$D33=""),"",I48/'Historical scenario - input'!$D33),"") -> 80.16883222 | AD48: =IFERROR(IF(OR(J48="",'Historical scenario - input'!$D33=""),"",J48/'Historical scenario - input'!$D33),"") -> 78.84085464 | AE48: =IFERROR(IF(OR(K48="",'Historical scenario - input'!$D33=""),"",K48/'Historical scenario - input'!$D33),"") -> 78.2200284 | AF48: =IFERROR(IF(OR(L48="",'Historical scenario - input'!$D33=""),"",L48/'Historical scenario - input'!$D33),"") -> 78.19050258 | AG48: =IFERROR(IF(OR(M48="",'Historical scenario - input'!$D33=""),"",M48/'Historical scenario - input'!$D33),"") -> 78.67232177 | AH48: =IFERROR(IF(OR(N48="",'Historical scenario - input'!$D33=""),"",N48/'Historical scenario - input'!$D33),"") -> 79.6118666 | AI48: =IFERROR(IF(OR(O48="",'Historical scenario - input'!$D33=""),"",O48/'Historical scenario - input'!$D33),"") -> 80.97364191 | AJ48: =IFERROR(IF(OR(P48="",'Historical scenario - input'!$D33=""),"",P48/'Historical scenario - input'!$D33),"") -> 82.73371474 | AK48: =IFERROR(IF(OR(Q48="",'Historical scenario - input'!$D33=""),"",Q48/'Historical scenario - input'!$D33),"") -> 84.87508629 | AL48: =IFERROR(IF(OR(R48="",'Historical scenario - input'!$D33=""),"",R48/'Historical scenario - input'!$D33),"") -> 87.38517489 | AM48: =IFERROR(IF(OR(S48="",'Historical scenario - input'!$D33=""),"",S48/'Historical scenario - input'!$D33),"") -> 90.25544096 | AN48: =IFERROR(IF(OR(T48="",'Historical scenario - input'!$D33=""),"",T48/'Historical scenario - input'!$D33),"") -> 93.48303092 | AO48: =IFERROR(IF(OR(U48="",'Historical scenario - input'!$D33=""),"",U48/'Historical scenario - input'!$D33),"") -> 97.07416695 | AP48: =IFERROR(IF(OR(V48="",'Historical scenario - input'!$D33=""),"",V48/'Historical scenario - input'!$D33),"") -> 101.0488651 | AQ48: =IFERROR(IF(OR(W48="",'Historical scenario - input'!$D33=""),"",W48/'Historical scenario - input'!$D33),"") -> 105.4464204
A49: =IFERROR('Historical scenario - input'!A34,"") -> 4 | B49: =IFERROR('Historical scenario - input'!B34,"") -> SWITCHGEAR | C49: =IFERROR('Historical scenario - input'!C34,"") -> ˂ = 11 kv ; fuse | D49: =IFERROR(repcalc('Historical scenario - input'!$CV34:$GH34,'Historical scenario - input'!$G34,'Historical scenario - input'!$E34,'Historical scenario - input'!$F34,20,TRUE,TRUE),"") -> 5478.93502 | E49: 5849.1772 | F49: 6223.320011 | G49: 6596.700712 | H49: 6965.224842 | I49: 7325.432166 | J49: 7674.508848 | K49: 8010.2561 | L49: 8331.028677 | M49: 8635.657896 | N49: 8923.373401 | O49: 9193.73575 | P49: 9446.588378 | Q49: 9682.033011 | R49: 9900.427797 | S49: 10102.40272 | T49: 10288.88306 | U49: 10461.10904 | V49: 10620.63915 | W49: 10769.32543 | X49: =IFERROR(IF(OR(D49="",'Historical scenario - input'!$D34=""),"",D49/'Historical scenario - input'!$D34),"") -> 2438.729875 | Y49: =IFERROR(IF(OR(E49="",'Historical scenario - input'!$D34=""),"",E49/'Historical scenario - input'!$D34),"") -> 2603.528446 | Z49: =IFERROR(IF(OR(F49="",'Historical scenario - input'!$D34=""),"",F49/'Historical scenario - input'!$D34),"") -> 2770.063229 | AA49: =IFERROR(IF(OR(G49="",'Historical scenario - input'!$D34=""),"",G49/'Historical scenario - input'!$D34),"") -> 2936.258788 | AB49: =IFERROR(IF(OR(H49="",'Historical scenario - input'!$D34=""),"",H49/'Historical scenario - input'!$D34),"") -> 3100.292638 | AC49: =IFERROR(IF(OR(I49="",'Historical scenario - input'!$D34=""),"",I49/'Historical scenario - input'!$D34),"") -> 3260.624593 | AD49: =IFERROR(IF(OR(J49="",'Historical scenario - input'!$D34=""),"",J49/'Historical scenario - input'!$D34),"") -> 3416.002185 | AE49: =IFERROR(IF(OR(K49="",'Historical scenario - input'!$D34=""),"",K49/'Historical scenario - input'!$D34),"") -> 3565.446713 | AF49: =IFERROR(IF(OR(L49="",'Historical scenario - input'!$D34=""),"",L49/'Historical scenario - input'!$D34),"") -> 3708.225859 | AG49: =IFERROR(IF(OR(M49="",'Historical scenario - input'!$D34=""),"",M49/'Historical scenario - input'!$D34),"") -> 3843.819432 | AH49: =IFERROR(IF(OR(N49="",'Historical scenario - input'!$D34=""),"",N49/'Historical scenario - input'!$D34),"") -> 3971.884539 | AI49: =IFERROR(IF(OR(O49="",'Historical scenario - input'!$D34=""),"",O49/'Historical scenario - input'!$D34),"") -> 4092.225579 | AJ49: =IFERROR(IF(OR(P49="",'Historical scenario - input'!$D34=""),"",P49/'Historical scenario - input'!$D34),"") -> 4204.772863 | AK49: =IFERROR(IF(OR(Q49="",'Historical scenario - input'!$D34=""),"",Q49/'Historical scenario - input'!$D34),"") -> 4309.571672 | AL49: =IFERROR(IF(OR(R49="",'Historical scenario - input'!$D34=""),"",R49/'Historical scenario - input'!$D34),"") -> 4406.781419 | AM49: =IFERROR(IF(OR(S49="",'Historical scenario - input'!$D34=""),"",S49/'Historical scenario - input'!$D34),"") -> 4496.682518 | AN49: =IFERROR(IF(OR(T49="",'Historical scenario - input'!$D34=""),"",T49/'Historical scenario - input'!$D34),"") -> 4579.686819 | AO49: =IFERROR(IF(OR(U49="",'Historical scenario - input'!$D34=""),"",U49/'Historical scenario - input'!$D34),"") -> 4656.346362 | AP49: =IFERROR(IF(OR(V49="",'Historical scenario - input'!$D34=""),"",V49/'Historical scenario - input'!$D34),"") -> 4727.35484 | AQ49: =IFERROR(IF(OR(W49="",'Historical scenario - input'!$D34=""),"",W49/'Historical scenario - input'!$D34),"") -> 4793.536621
A50: =IFERROR('Historical scenario - input'!A35,"") -> 4 | B50: =IFERROR('Historical scenario - input'!B35,"") -> SWITCHGEAR | C50: =IFERROR('Historical scenario - input'!C35,"") -> ˂ = 11 kv ; switch | D50: =IFERROR(repcalc('Historical scenario - input'!$CV35:$GH35,'Historical scenario - input'!$G35,'Historical scenario - input'!$E35,'Historical scenario - input'!$F35,20,TRUE,TRUE),"") -> 2980.469722 | E50: 3168.340694 | F50: 3361.863011 | G50: 3559.096959 | H50: 3758.527629 | I50: 3959.050215 | J50: 4159.904044 | K50: 4360.567851 | L50: 4560.632572 | M50: 4759.669716 | N50: 4957.113091 | O50: 5152.169319 | P50: 5343.768568 | Q50: 5530.561681 | R50: 5710.964091 | S50: 5883.241197 | T50: 6045.624926 | U50: 6196.447575 | V50: 6334.277058 | W50: 6458.037624 | X50: =IFERROR(IF(OR(D50="",'Historical scenario - input'!$D35=""),"",D50/'Historical scenario - input'!$D35),"") -> 296.2960153 | Y50: =IFERROR(IF(OR(E50="",'Historical scenario - input'!$D35=""),"",E50/'Historical scenario - input'!$D35),"") -> 314.9727427 | Z50: =IFERROR(IF(OR(F50="",'Historical scenario - input'!$D35=""),"",F50/'Historical scenario - input'!$D35),"") -> 334.2112844 | AA50: =IFERROR(IF(OR(G50="",'Historical scenario - input'!$D35=""),"",G50/'Historical scenario - input'!$D35),"") -> 353.818809 | AB50: =IFERROR(IF(OR(H50="",'Historical scenario - input'!$D35=""),"",H50/'Historical scenario - input'!$D35),"") -> 373.6447151 | AC50: =IFERROR(IF(OR(I50="",'Historical scenario - input'!$D35=""),"",I50/'Historical scenario - input'!$D35),"") -> 393.5791712 | AD50: =IFERROR(IF(OR(J50="",'Historical scenario - input'!$D35=""),"",J50/'Historical scenario - input'!$D35),"") -> 413.5465571 | AE50: =IFERROR(IF(OR(K50="",'Historical scenario - input'!$D35=""),"",K50/'Historical scenario - input'!$D35),"") -> 433.4950525 | AF50: =IFERROR(IF(OR(L50="",'Historical scenario - input'!$D35=""),"",L50/'Historical scenario - input'!$D35),"") -> 453.3839912 | AG50: =IFERROR(IF(OR(M50="",'Historical scenario - input'!$D35=""),"",M50/'Historical scenario - input'!$D35),"") -> 473.1707759 | AH50: =IFERROR(IF(OR(N50="",'Historical scenario - input'!$D35=""),"",N50/'Historical scenario - input'!$D35),"") -> 492.79912 | AI50: =IFERROR(IF(OR(O50="",'Historical scenario - input'!$D35=""),"",O50/'Historical scenario - input'!$D35),"") -> 512.1901518 | AJ50: =IFERROR(IF(OR(P50="",'Historical scenario - input'!$D35=""),"",P50/'Historical scenario - input'!$D35),"") -> 531.2375166 | AK50: =IFERROR(IF(OR(Q50="",'Historical scenario - input'!$D35=""),"",Q50/'Historical scenario - input'!$D35),"") -> 549.8070913 | AL50: =IFERROR(IF(OR(R50="",'Historical scenario - input'!$D35=""),"",R50/'Historical scenario - input'!$D35),"") -> 567.7413501 | AM50: =IFERROR(IF(OR(S50="",'Historical scenario - input'!$D35=""),"",S50/'Historical scenario - input'!$D35),"") -> 584.8678518 | AN50: =IFERROR(IF(OR(T50="",'Historical scenario - input'!$D35=""),"",T50/'Historical scenario - input'!$D35),"") -> 601.0108281 | AO50: =IFERROR(IF(OR(U50="",'Historical scenario - input'!$D35=""),"",U50/'Historical scenario - input'!$D35),"") -> 616.0044882 | AP50: =IFERROR(IF(OR(V50="",'Historical scenario - input'!$D35=""),"",V50/'Historical scenario - input'!$D35),"") -> 629.7064648 | AQ50: =IFERROR(IF(OR(W50="",'Historical scenario - input'!$D35=""),"",W50/'Historical scenario - input'!$D35),"") -> 642.0098149
A51: =IFERROR('Historical scenario - input'!A36,"") -> 4 | B51: =IFERROR('Historical scenario - input'!B36,"") -> SWITCHGEAR | C51: =IFERROR('Historical scenario - input'!C36,"") -> > 11 kv & < = 22 kv ; circuit breaker | D51: =IFERROR(repcalc('Historical scenario - input'!$CV36:$GH36,'Historical scenario - input'!$G36,'Historical scenario - input'!$E36,'Historical scenario - input'!$F36,20,TRUE,TRUE),"") -> 3512.005737 | E51: 3112.391586 | F51: 2779.652521 | G51: 2501.299905 | H51: 2269.505685 | I51: 2079.127044 | J51: 1926.546123 | K51: 1808.958578 | L51: 1723.925134 | M51: 1669.094006 | N51: 1642.046392 | O51: 1640.235574 | P51: 1660.996617 | Q51: 1701.605958 | R51: 1759.372414 | S51: 1831.74444 | T51: 1916.422858 | U51: 2011.472706 | V51: 2115.4313 | W51: 2227.41112 | X51: =IFERROR(IF(OR(D51="",'Historical scenario - input'!$D36=""),"",D51/'Historical scenario - input'!$D36),"") -> 45.74842638 | Y51: =IFERROR(IF(OR(E51="",'Historical scenario - input'!$D36=""),"",E51/'Historical scenario - input'!$D36),"") -> 40.54293415 | Z51: =IFERROR(IF(OR(F51="",'Historical scenario - input'!$D36=""),"",F51/'Historical scenario - input'!$D36),"") -> 36.20857659 | AA51: =IFERROR(IF(OR(G51="",'Historical scenario - input'!$D36=""),"",G51/'Historical scenario - input'!$D36),"") -> 32.58267302 | AB51: =IFERROR(IF(OR(H51="",'Historical scenario - input'!$D36=""),"",H51/'Historical scenario - input'!$D36),"") -> 29.56325289 | AC51: =IFERROR(IF(OR(I51="",'Historical scenario - input'!$D36=""),"",I51/'Historical scenario - input'!$D36),"") -> 27.08332435 | AD51: =IFERROR(IF(OR(J51="",'Historical scenario - input'!$D36=""),"",J51/'Historical scenario - input'!$D36),"") -> 25.09576011 | AE51: =IFERROR(IF(OR(K51="",'Historical scenario - input'!$D36=""),"",K51/'Historical scenario - input'!$D36),"") -> 23.56402994 | AF51: =IFERROR(IF(OR(L51="",'Historical scenario - input'!$D36=""),"",L51/'Historical scenario - input'!$D36),"") -> 22.45635912 | AG51: =IFERROR(IF(OR(M51="",'Historical scenario - input'!$D36=""),"",M51/'Historical scenario - input'!$D36),"") -> 21.74211262 | AH51: =IFERROR(IF(OR(N51="",'Historical scenario - input'!$D36=""),"",N51/'Historical scenario - input'!$D36),"") -> 21.38978239 | AI51: =IFERROR(IF(OR(O51="",'Historical scenario - input'!$D36=""),"",O51/'Historical scenario - input'!$D36),"") -> 21.36619414 | AJ51: =IFERROR(IF(OR(P51="",'Historical scenario - input'!$D36=""),"",P51/'Historical scenario - input'!$D36),"") -> 21.63663363 | AK51: =IFERROR(IF(OR(Q51="",'Historical scenario - input'!$D36=""),"",Q51/'Historical scenario - input'!$D36),"") -> 22.16562294 | AL51: =IFERROR(IF(OR(R51="",'Historical scenario - input'!$D36=""),"",R51/'Historical scenario - input'!$D36),"") -> 22.91810589 | AM51: =IFERROR(IF(OR(S51="",'Historical scenario - input'!$D36=""),"",S51/'Historical scenario - input'!$D36),"") -> 23.86084532 | AN51: =IFERROR(IF(OR(T51="",'Historical scenario - input'!$D36=""),"",T51/'Historical scenario - input'!$D36),"") -> 24.96389146 | AO51: =IFERROR(IF(OR(U51="",'Historical scenario - input'!$D36=""),"",U51/'Historical scenario - input'!$D36),"") -> 26.20203893 | AP51: =IFERROR(IF(OR(V51="",'Historical scenario - input'!$D36=""),"",V51/'Historical scenario - input'!$D36),"") -> 27.55623434 | AQ51: =IFERROR(IF(OR(W51="",'Historical scenario - input'!$D36=""),"",W51/'Historical scenario - input'!$D36),"") -> 29.01491663
A52: =IFERROR('Historical scenario - input'!A37,"") -> 4 | B52: =IFERROR('Historical scenario - input'!B37,"") -> SWITCHGEAR | C52: =IFERROR('Historical scenario - input'!C37,"") -> > 11 kv & < = 22 kv ; switch | D52: =IFERROR(repcalc('Historical scenario - input'!$CV37:$GH37,'Historical scenario - input'!$G37,'Historical scenario - input'!$E37,'Historical scenario - input'!$F37,20,TRUE,TRUE),"") -> 6359.22075 | E52: 6861.832285 | F52: 7406.097723 | G52: 7979.218374 | H52: 8567.928018 | I52: 9158.893413 | J52: 9739.123183 | K52: 10296.38226 | L52: 10819.6042 | M52: 11299.28839 | N52: 11727.86459 | O52: 12100.00352 | P52: 12412.85076 | Q52: 12666.16177 | R52: 12862.3189 | S52: 13006.2169 | T52: 13105.01119 | U52: 13167.73212 | V52: 13204.77915 | W52: 13227.31872 | X52: =IFERROR(IF(OR(D52="",'Historical scenario - input'!$D37=""),"",D52/'Historical scenario - input'!$D37),"") -> 456.9899775 | Y52: =IFERROR(IF(OR(E52="",'Historical scenario - input'!$D37=""),"",E52/'Historical scenario - input'!$D37),"") -> 493.1089365 | Z52: =IFERROR(IF(OR(F52="",'Historical scenario - input'!$D37=""),"",F52/'Historical scenario - input'!$D37),"") -> 532.2212524 | AA52: =IFERROR(IF(OR(G52="",'Historical scenario - input'!$D37=""),"",G52/'Historical scenario - input'!$D37),"") -> 573.407178 | AB52: =IFERROR(IF(OR(H52="",'Historical scenario - input'!$D37=""),"",H52/'Historical scenario - input'!$D37),"") -> 615.7133689 | AC52: =IFERROR(IF(OR(I52="",'Historical scenario - input'!$D37=""),"",I52/'Historical scenario - input'!$D37),"") -> 658.1816639 | AD52: =IFERROR(IF(OR(J52="",'Historical scenario - input'!$D37=""),"",J52/'Historical scenario - input'!$D37),"") -> 699.8784692 | AE52: =IFERROR(IF(OR(K52="",'Historical scenario - input'!$D37=""),"",K52/'Historical scenario - input'!$D37),"") -> 739.9245415 | AF52: =IFERROR(IF(OR(L52="",'Historical scenario - input'!$D37=""),"",L52/'Historical scenario - input'!$D37),"") -> 777.5246171 | AG52: =IFERROR(IF(OR(M52="",'Historical scenario - input'!$D37=""),"",M52/'Historical scenario - input'!$D37),"") -> 811.9959582 | AH52: =IFERROR(IF(OR(N52="",'Historical scenario - input'!$D37=""),"",N52/'Historical scenario - input'!$D37),"") -> 842.7945473 | AI52: =IFERROR(IF(OR(O52="",'Historical scenario - input'!$D37=""),"",O52/'Historical scenario - input'!$D37),"") -> 869.537409 | AJ52: =IFERROR(IF(OR(P52="",'Historical scenario - input'!$D37=""),"",P52/'Historical scenario - input'!$D37),"") -> 892.0194176 | AK52: =IFERROR(IF(OR(Q52="",'Historical scenario - input'!$D37=""),"",Q52/'Historical scenario - input'!$D37),"") -> 910.2229992 | AL52: =IFERROR(IF(OR(R52="",'Historical scenario - input'!$D37=""),"",R52/'Historical scenario - input'!$D37),"") -> 924.319355 | AM52: =IFERROR(IF(OR(S52="",'Historical scenario - input'!$D37=""),"",S52/'Historical scenario - input'!$D37),"") -> 934.6602363 | AN52: =IFERROR(IF(OR(T52="",'Historical scenario - input'!$D37=""),"",T52/'Historical scenario - input'!$D37),"") -> 941.7598485 | AO52: =IFERROR(IF(OR(U52="",'Historical scenario - input'!$D37=""),"",U52/'Historical scenario - input'!$D37),"") -> 946.267136 | AP52: =IFERROR(IF(OR(V52="",'Historical scenario - input'!$D37=""),"",V52/'Historical scenario - input'!$D37),"") -> 948.9294309 | AQ52: =IFERROR(IF(OR(W52="",'Historical scenario - input'!$D37=""),"",W52/'Historical scenario - input'!$D37),"") -> 950.5491825
A53: =IFERROR('Historical scenario - input'!A38,"") -> 4 | B53: =IFERROR('Historical scenario - input'!B38,"") -> SWITCHGEAR | C53: =IFERROR('Historical scenario - input'!C38,"") -> > 22 kv & < = 33 kv ; circuit breaker | D53: =IFERROR(repcalc('Historical scenario - input'!$CV38:$GH38,'Historical scenario - input'!$G38,'Historical scenario - input'!$E38,'Historical scenario - input'!$F38,20,TRUE,TRUE),"") -> 659.5263023 | E53: 528.3663406 | F53: 436.5816035 | G53: 372.76098 | H53: 328.789949 | I53: 298.9849965 | J53: 279.4590816 | K53: 267.6665428 | L53: 262.0771143 | M53: 261.9377172 | N53: 267.0921129 | O53: 277.8389735 | P53: 294.8166949 | Q53: 318.9078839 | R53: 351.1582469 | S53: 392.7044447 | T53: 444.7043961 | U53: 508.2625696 | V53: 584.3429173 | W53: 673.6639238 | X53: =IFERROR(IF(OR(D53="",'Historical scenario - input'!$D38=""),"",D53/'Historical scenario - input'!$D38),"") -> 5.989040197 | Y53: =IFERROR(IF(OR(E53="",'Historical scenario - input'!$D38=""),"",E53/'Historical scenario - input'!$D38),"") -> 4.798000082 | Z53: =IFERROR(IF(OR(F53="",'Historical scenario - input'!$D38=""),"",F53/'Historical scenario - input'!$D38),"") -> 3.964519328 | AA53: =IFERROR(IF(OR(G53="",'Historical scenario - input'!$D38=""),"",G53/'Historical scenario - input'!$D38),"") -> 3.384975679 | AB53: =IFERROR(IF(OR(H53="",'Historical scenario - input'!$D38=""),"",H53/'Historical scenario - input'!$D38),"") -> 2.985682624 | AC53: =IFERROR(IF(OR(I53="",'Historical scenario - input'!$D38=""),"",I53/'Historical scenario - input'!$D38),"") -> 2.71502919 | AD53: =IFERROR(IF(OR(J53="",'Historical scenario - input'!$D38=""),"",J53/'Historical scenario - input'!$D38),"") -> 2.537717855 | AE53: =IFERROR(IF(OR(K53="",'Historical scenario - input'!$D38=""),"",K53/'Historical scenario - input'!$D38),"") -> 2.430631922 | AF53: =IFERROR(IF(OR(L53="",'Historical scenario - input'!$D38=""),"",L53/'Historical scenario - input'!$D38),"") -> 2.379875323 | AG53: =IFERROR(IF(OR(M53="",'Historical scenario - input'!$D38=""),"",M53/'Historical scenario - input'!$D38),"") -> 2.378609483 | AH53: =IFERROR(IF(OR(N53="",'Historical scenario - input'!$D38=""),"",N53/'Historical scenario - input'!$D38),"") -> 2.425415627 | AI53: =IFERROR(IF(OR(O53="",'Historical scenario - input'!$D38=""),"",O53/'Historical scenario - input'!$D38),"") -> 2.523005943 | AJ53: =IFERROR(IF(OR(P53="",'Historical scenario - input'!$D38=""),"",P53/'Historical scenario - input'!$D38),"") -> 2.67717759 | AK53: =IFERROR(IF(OR(Q53="",'Historical scenario - input'!$D38=""),"",Q53/'Historical scenario - input'!$D38),"") -> 2.895945361 | AL53: =IFERROR(IF(OR(R53="",'Historical scenario - input'!$D38=""),"",R53/'Historical scenario - input'!$D38),"") -> 3.18880513 | AM53: =IFERROR(IF(OR(S53="",'Historical scenario - input'!$D38=""),"",S53/'Historical scenario - input'!$D38),"") -> 3.566078709 | AN53: =IFERROR(IF(OR(T53="",'Historical scenario - input'!$D38=""),"",T53/'Historical scenario - input'!$D38),"") -> 4.038280952 | AO53: =IFERROR(IF(OR(U53="",'Historical scenario - input'!$D38=""),"",U53/'Historical scenario - input'!$D38),"") -> 4.615441339 | AP53: =IFERROR(IF(OR(V53="",'Historical scenario - input'!$D38=""),"",V53/'Historical scenario - input'!$D38),"") -> 5.306313347 | AQ53: =IFERROR(IF(OR(W53="",'Historical scenario - input'!$D38=""),"",W53/'Historical scenario - input'!$D38),"") -> 6.117421405
